Workbook

Sheet Contenido
O26: Tabla de Contenido
L29: A | O29: DEMANDA DE GAS NATURAL POR SECTORES MENSUAL
L32: B | O32: DEMANDA DE GAS NATURAL POR SECTORES ANUAL
D38: * Los datos del sector transporte y Ecopetrol son provisionales y están sujetos a modificaciones

Sheet Anual (hidden)
AI2: nf | AJ2: nc | AK2: nd | AO2: CENTRO | AP2: COSTA | AQ2: CQR | AR2: NORESTE | AS2: NOROESTE | AT2: SUROESTE | AU2: TG
C3: RESIDENCIAL MEDIO | M3: RESIDENCIAL ALTO | W3: RESIDENCIAL BAJO | AH3: RESIDENCIAL | AI3: 5 | AJ3: 3 | AK3: 34 | AM3: GBTUD | AN3: 1 | AO3: 1 | AP3: 1 | AQ3: 1 | AR3: 1 | AS3: 1 | AT3: 1 | AU3: 1 | AV3: 1
C4: CENTRO | D4: COSTA | E4: CQR | F4: NORESTE | G4: NOROESTE | H4: SUROESTE | I4: TOLIMA GRANDE | J4: TOTAL | M4: CENTRO | N4: COSTA | O4: CQR | P4: NORESTE | Q4: NOROESTE | R4: SUROESTE | S4: TOLIMA GRANDE | T4: TOTAL | W4: CENTRO | X4: COSTA | Y4: CQR | Z4: NORESTE | AA4: NOROESTE | AB4: SUROESTE | AC4: TOLIMA GRANDE | AD4: TOTAL | AH4: COMERCIAL | AI4: 43 | AJ4: 3 | AK4: 34 | AM4: MPCD | AN4: 2 | AO4: 1.13 | AP4: 0.997 | AQ4: 1.13 | AR4: 1.06 | AS4: 1.13 | AT4: 1.13 | AU4: 1.13 | AV4: 1.06
B5: 1996 | C5: 13.44605695 | D5: 11.87627891 | E5: 1.062988005 | F5: 4.914872171 | G5: 1.048429284 | H5: 2.095257082 | I5: 2.108354075 | J5: 36.55223647 | L5: 1996 | M5: 13.44605695 | N5: 11.87627891 | O5: 1.062988005 | P5: 4.914872171 | Q5: 1.048429284 | R5: 2.095257082 | S5: 2.108354075 | T5: 36.55223647 | V5: 1996 | W5: 13.44605695 | X5: 11.87627891 | Y5: 1.062988005 | Z5: 4.914872171 | AA5: 1.048429284 | AB5: 2.095257082 | AC5: 2.108354075 | AD5: 36.55223647 | AH5: INDUSTRIAL | AI5: 81 | AJ5: 3 | AK5: 34
B6: 1997 | C6: 16.7201083 | D6: 13.27987708 | E6: 1.437118033 | F6: 5.585389568 | G6: 1.494021766 | H6: 2.774155486 | I6: 2.60249813 | J6: 43.89316837 | L6: 1997 | M6: 16.7201083 | N6: 13.27987708 | O6: 1.437118033 | P6: 5.585389568 | Q6: 1.494021766 | R6: 2.774155486 | S6: 2.60249813 | T6: 43.89316837 | V6: 1997 | W6: 16.7201083 | X6: 13.27987708 | Y6: 1.437118033 | Z6: 5.585389568 | AA6: 1.494021766 | AB6: 2.774155486 | AC6: 2.60249813 | AD6: 43.89316837 | AH6: PETROQUIMICO | AI6: 119 | AJ6: 3 | AK6: 34
B7: 1998 | C7: 20.83750407 | D7: 14.79033441 | E7: 1.959757247 | F7: 6.32718308 | G7: 2.157474379 | H7: 3.698481724 | I7: 3.217968342 | J7: 52.98870325 | L7: 1998 | M7: 20.83750407 | N7: 14.79033441 | O7: 1.959757247 | P7: 6.32718308 | Q7: 2.157474379 | R7: 3.698481724 | S7: 3.217968342 | T7: 52.98870325 | V7: 1998 | W7: 20.83750407 | X7: 14.79033441 | Y7: 1.959757247 | Z7: 6.32718308 | AA7: 2.157474379 | AB7: 3.698481724 | AC7: 3.217968342 | AD7: 52.98870325 | AH7: ECOPETROL | AI7: 157 | AJ7: 3 | AK7: 34
B8: 1999 | C8: 24.48937994 | D8: 16.02122909 | E8: 2.451982756 | F8: 6.940515715 | G8: 2.805936387 | H8: 4.556212434 | I8: 3.760906221 | J8: 61.02616254 | L8: 1999 | M8: 24.48937994 | N8: 16.02122909 | O8: 2.451982756 | P8: 6.940515715 | Q8: 2.805936387 | R8: 4.556212434 | S8: 3.760906221 | T8: 61.02616254 | V8: 1999 | W8: 24.48937994 | X8: 16.02122909 | Y8: 2.451982756 | Z8: 6.940515715 | AA8: 2.805936387 | AB8: 4.556212434 | AC8: 3.760906221 | AD8: 61.02616254 | AH8: TRANSPORTE | AI8: 195 | AJ8: 3 | AK8: 34
B9: 2000 | C9: 26.85540588 | D9: 16.73291018 | E9: 2.79146637 | F9: 7.30351526 | G9: 3.269191696 | H9: 5.13915513 | I9: 4.110528009 | J9: 66.20217253 | L9: 2000 | M9: 26.85540588 | N9: 16.73291018 | O9: 2.79146637 | P9: 7.30351526 | Q9: 3.269191696 | R9: 5.13915513 | S9: 4.110528009 | T9: 66.20217253 | V9: 2000 | W9: 26.85540588 | X9: 16.73291018 | Y9: 2.79146637 | Z9: 7.30351526 | AA9: 3.269191696 | AB9: 5.13915513 | AC9: 4.110528009 | AD9: 66.20217253 | AH9: TERMOELECTRICO | AI9: 233 | AJ9: 3 | AK9: 34
B10: 2001 | C10: 39.08966661 | D10: 19.95008829 | E10: 4.751933279 | F10: 8.976908193 | G10: 6.140037235 | H10: 8.413245574 | I10: 5.901084058 | J10: 93.22296325 | L10: 2001 | M10: 39.08966661 | N10: 19.95008829 | O10: 4.751933279 | P10: 8.976908193 | Q10: 6.140037235 | R10: 8.413245574 | S10: 5.901084058 | T10: 93.22296325 | V10: 2001 | W10: 39.08966661 | X10: 19.95008829 | Y10: 4.751933279 | Z10: 8.976908193 | AA10: 6.140037235 | AB10: 8.413245574 | AC10: 5.901084058 | AD10: 93.22296325 | AH10: TOTAL | AI10: 271 | AJ10: 3 | AK10: 34
B11: 2002 | C11: 43.1103191 | D11: 20.83276645 | E11: 5.474553084 | F11: 9.451818776 | G11: 7.272862412 | H11: 9.587023507 | I11: 6.483269169 | J11: 102.2126125 | L11: 2002 | M11: 43.1103191 | N11: 20.83276645 | O11: 5.474553084 | P11: 9.451818776 | Q11: 7.272862412 | R11: 9.587023507 | S11: 6.483269169 | T11: 102.2126125 | V11: 2002 | W11: 43.1103191 | X11: 20.83276645 | Y11: 5.474553084 | Z11: 9.451818776 | AA11: 7.272862412 | AB11: 9.587023507 | AC11: 6.483269169 | AD11: 102.2126125
B12: 2003 | C12: 45.24951596 | D12: 21.30437432 | E12: 5.85773192 | F12: 9.705382112 | G12: 7.872186218 | H12: 10.2099761 | I12: 6.793110133 | J12: 106.9922768 | L12: 2003 | M12: 45.24951596 | N12: 21.30437432 | O12: 5.85773192 | P12: 9.705382112 | Q12: 7.872186218 | R12: 10.2099761 | S12: 6.793110133 | T12: 106.9922768 | V12: 2003 | W12: 45.24951596 | X12: 21.30437432 | Y12: 5.85773192 | Z12: 9.705382112 | AA12: 7.872186218 | AB12: 10.2099761 | AC12: 6.793110133 | AD12: 106.9922768
B13: 2004 | C13: 45.28831243 | D13: 21.27584337 | E13: 5.874355836 | F13: 9.695407356 | G13: 7.905222848 | H13: 10.23369094 | I13: 6.797821828 | J13: 107.0706546 | L13: 2004 | M13: 45.28831243 | N13: 21.27584337 | O13: 5.874355836 | P13: 9.695407356 | Q13: 7.905222848 | R13: 10.23369094 | S13: 6.797821828 | T13: 107.0706546 | V13: 2004 | W13: 45.28831243 | X13: 21.27584337 | Y13: 5.874355836 | Z13: 9.695407356 | AA13: 7.905222848 | AB13: 10.23369094 | AC13: 6.797821828 | AD13: 107.0706546
B14: 2005 | C14: 46.65426563 | D14: 21.59061298 | E14: 6.122636287 | F14: 9.861541445 | G14: 8.299574448 | H14: 10.63527845 | I14: 6.995611478 | J14: 110.1595207 | L14: 2005 | M14: 46.65426563 | N14: 21.59061298 | O14: 6.122636287 | P14: 9.861541445 | Q14: 8.299574448 | R14: 10.63527845 | S14: 6.995611478 | T14: 110.1595207 | V14: 2005 | W14: 46.65426563 | X14: 21.59061298 | Y14: 6.122636287 | Z14: 9.861541445 | AA14: 8.299574448 | AB14: 10.63527845 | AC14: 6.995611478 | AD14: 110.1595207
B15: 2006 | C15: 50.46386074 | D15: 22.34516065 | E15: 6.854397891 | F15: 10.27537541 | G15: 9.49335546 | H15: 11.80485625 | I15: 7.543850171 | J15: 118.7808566 | L15: 2006 | M15: 50.46386074 | N15: 22.34516065 | O15: 6.854397891 | P15: 10.27537541 | Q15: 9.49335546 | R15: 11.80485625 | S15: 7.543850171 | T15: 118.7808566 | V15: 2006 | W15: 50.46386074 | X15: 22.34516065 | Y15: 6.854397891 | Z15: 10.27537541 | AA15: 9.49335546 | AB15: 11.80485625 | AC15: 7.543850171 | AD15: 118.7808566
B16: 2007 | C16: 50.20445436 | D16: 22.28558595 | E16: 6.81013916 | F16: 10.24351425 | G16: 9.426920947 | H16: 11.73189536 | I16: 7.506147376 | J16: 118.2086574 | L16: 2007 | M16: 50.20445436 | N16: 22.28558595 | O16: 6.81013916 | P16: 10.24351425 | Q16: 9.426920947 | R16: 11.73189536 | S16: 7.506147376 | T16: 118.2086574 | V16: 2007 | W16: 50.20445436 | X16: 22.28558595 | Y16: 6.81013916 | Z16: 10.24351425 | AA16: 9.426920947 | AB16: 11.73189536 | AC16: 7.506147376 | AD16: 118.2086574
B17: 2008 | C17: 48.27235173 | D17: 21.88579091 | E17: 6.435916405 | F17: 10.02797555 | G17: 8.810083673 | H17: 11.13573002 | I17: 7.228066695 | J17: 113.795915 | L17: 2008 | M17: 48.27235173 | N17: 21.88579091 | O17: 6.435916405 | P17: 10.02797555 | Q17: 8.810083673 | R17: 11.13573002 | S17: 7.228066695 | T17: 113.795915 | V17: 2008 | W17: 48.27235173 | X17: 21.88579091 | Y17: 6.435916405 | Z17: 10.02797555 | AA17: 8.810083673 | AB17: 11.13573002 | AC17: 7.228066695 | AD17: 113.795915
B18: 2009 | C18: 45.71596528 | D18: 21.74491942 | E18: 5.820946392 | F18: 10.20618367 | G18: 8.735533392 | H18: 9.992804093 | I18: 6.621116058 | J18: 108.8374683 | L18: 2009 | M18: 45.71596528 | N18: 21.74491942 | O18: 5.820946392 | P18: 10.20618367 | Q18: 8.735533392 | R18: 9.992804093 | S18: 6.621116058 | T18: 108.8374683 | V18: 2009 | W18: 45.71596528 | X18: 21.74491942 | Y18: 5.820946392 | Z18: 10.20618367 | AA18: 8.735533392 | AB18: 9.992804093 | AC18: 6.621116058 | AD18: 108.8374683
B19: 2010 | C19: 47.3330751 | D19: 22.40511115 | E19: 6.405407052 | F19: 10.52663979 | G19: 9.626739797 | H19: 11.10356021 | I19: 6.867401104 | J19: 114.2679342 | L19: 2010 | M19: 47.3330751 | N19: 22.40511115 | O19: 6.405407052 | P19: 10.52663979 | Q19: 9.626739797 | R19: 11.10356021 | S19: 6.867401104 | T19: 114.2679342 | V19: 2010 | W19: 47.3330751 | X19: 22.40511115 | Y19: 6.405407052 | Z19: 10.20618367 | AA19: 9.626739797 | AB19: 11.10356021 | AC19: 6.867401104 | AD19: 113.9474781
B20: 2011 | C20: 49.95532432 | D20: 23.20220328 | E20: 6.995883085 | F20: 11.11485203 | G20: 10.93813028 | H20: 11.96463393 | I20: 7.517602641 | J20: 121.6886296 | L20: 2011 | M20: 49.95532432 | N20: 23.20220328 | O20: 6.995883085 | P20: 11.11485203 | Q20: 10.93813028 | R20: 11.96463393 | S20: 7.517602641 | T20: 121.6886296 | V20: 2011 | W20: 49.95532432 | X20: 23.20220328 | Y20: 6.995883085 | Z20: 10.52663979 | AA20: 10.93813028 | AB20: 11.96463393 | AC20: 7.517602641 | AD20: 121.1004173
B21: 2012 | C21: 50.86950525 | D21: 23.48660745 | E21: 7.298072536 | F21: 11.17937268 | G21: 12.0778825 | H21: 12.57193559 | I21: 7.604576049 | J21: 125.0879521 | L21: 2012 | M21: 50.86950525 | N21: 23.48660745 | O21: 7.298072536 | P21: 11.17937268 | Q21: 12.0778825 | R21: 12.57193559 | S21: 7.604576049 | T21: 125.0879521 | V21: 2012 | W21: 50.86950525 | X21: 23.48660745 | Y21: 7.298072536 | Z21: 11.11485203 | AA21: 12.0778825 | AB21: 12.57193559 | AC21: 7.604576049 | AD21: 125.0234314
B22: 2013 | C22: 52.36587018 | D22: 23.99339621 | E22: 7.959419625 | F22: 11.29061406 | G22: 13.41240473 | H22: 13.16242252 | I22: 7.878288212 | J22: 130.0624155 | L22: 2013 | M22: 52.36587018 | N22: 23.99339621 | O22: 7.959419625 | P22: 11.29061406 | Q22: 13.41240473 | R22: 13.16242252 | S22: 7.878288212 | T22: 130.0624155 | V22: 2013 | W22: 52.36587018 | X22: 23.99339621 | Y22: 7.959419625 | Z22: 11.17937268 | AA22: 13.41240473 | AB22: 13.16242252 | AC22: 7.878288212 | AD22: 129.9511741
B23: 2014 | C23: 54.27734042 | D23: 23.99272161 | E23: 8.231263892 | F23: 11.31449257 | G23: 13.96243407 | H23: 14.21297218 | I23: 7.790433371 | J23: 133.7816581 | L23: 2014 | M23: 54.27734042 | N23: 23.99272161 | O23: 8.231263892 | P23: 11.31449257 | Q23: 13.96243407 | R23: 14.21297218 | S23: 7.790433371 | T23: 133.7816581 | V23: 2014 | W23: 54.27734042 | X23: 23.99272161 | Y23: 8.231263892 | Z23: 11.29061406 | AA23: 13.96243407 | AB23: 14.21297218 | AC23: 7.790433371 | AD23: 133.7577796
B24: 2015 | C24: 56.2717863 | D24: 24.23191781 | E24: 9.435701096 | F24: 11.39926575 | G24: 14.69769589 | H24: 16.59263014 | I24: 7.975663562 | J24: 140.6046605 | L24: 2015 | M24: 58.96578214 | N24: 24.85685903 | O24: 10.13465621 | P24: 11.84564464 | Q24: 15.5926248 | R24: 17.68068445 | S24: 8.506691463 | T24: 147.5829427 | V24: 2015 | W24: 53.57779047 | X24: 23.60697659 | Y24: 8.736745979 | Z24: 10.95288687 | AA24: 13.80276698 | AB24: 15.50457582 | AC24: 7.44463566 | AD24: 133.6263784
B25: 2016 | C25: 56.79106027 | D25: 24.57619178 | E25: 9.904143836 | F25: 11.52787123 | G25: 15.28924658 | H25: 17.06702192 | I25: 8.115064384 | J25: 143.2706 | L25: 2016 | M25: 59.48505611 | N25: 25.201133 | O25: 10.60309895 | P25: 11.97425012 | Q25: 16.18417549 | R25: 18.15507623 | S25: 8.646092285 | T25: 150.2488822 | V25: 2016 | W25: 54.09706444 | X25: 23.95125056 | Y25: 9.205188719 | Z25: 11.08149235 | AA25: 14.39431766 | AB25: 15.9789676 | AC25: 7.584036482 | AD25: 136.2923178
B26: 2017 | C26: 58.07067397 | D26: 24.93723288 | E26: 10.41039836 | F26: 11.7467589 | G26: 15.88893425 | H26: 17.76265753 | I26: 8.273257534 | J26: 147.0899134 | L26: 2017 | M26: 60.76466981 | N26: 25.5621741 | O26: 11.10935347 | P26: 12.19313779 | Q26: 16.78386316 | R26: 18.85071185 | S26: 8.804285436 | T26: 154.0681956 | V26: 2017 | W26: 55.37667814 | X26: 24.31229166 | Y26: 9.711443239 | Z26: 11.30038002 | AA26: 14.99400533 | AB26: 16.67460322 | AC26: 7.742229633 | AD26: 140.1116312
B27: 2018 | C27: 59.25928493 | D27: 25.3121863 | E27: 10.93804301 | F27: 11.95419178 | G27: 16.77350685 | H27: 18.46414247 | I27: 8.427118356 | J27: 151.1284737 | L27: 2018 | M27: 61.95328077 | N27: 25.93712752 | O27: 11.63699813 | P27: 12.40057067 | Q27: 17.66843576 | R27: 19.55219678 | S27: 8.958146258 | T27: 158.1067559 | V27: 2018 | W27: 56.5652891 | X27: 24.68724508 | Y27: 10.2390879 | Z27: 11.5078129 | AA27: 15.87857794 | AB27: 17.37608815 | AC27: 7.896090455 | AD27: 144.1501915
B28: 2019 | C28: 60.40106027 | D28: 25.69908767 | E28: 11.47909589 | F28: 12.17150137 | G28: 17.51546575 | H28: 19.19432877 | I28: 8.589428767 | J28: 155.0499685 | L28: 2019 | M28: 63.09505611 | N28: 26.32402889 | O28: 12.17805101 | P28: 12.61788025 | Q28: 18.41039467 | R28: 20.28238308 | S28: 9.120456668 | T28: 162.0282507 | V28: 2019 | W28: 57.70706444 | X28: 25.07414645 | Y28: 10.78014077 | Z28: 11.72512249 | AA28: 16.62053684 | AB28: 18.10627445 | AC28: 8.058400866 | AD28: 148.0716863
B29: 2020 | C29: 61.55886849 | D29: 26.0978137 | E29: 12.03269589 | F29: 12.39480822 | G29: 18.17963836 | H29: 19.94807123 | I29: 8.755701644 | J29: 158.9675975 | L29: 2020 | M29: 64.25286433 | N29: 26.72275492 | O29: 12.73165101 | P29: 12.8411871 | Q29: 19.07456727 | R29: 21.03612555 | S29: 9.286729545 | T29: 165.9458797 | V29: 2020 | W29: 58.86487266 | X29: 25.47287248 | Y29: 11.33374077 | Z29: 11.94842933 | AA29: 17.28470944 | AB29: 18.86001692 | AC29: 8.224673742 | AD29: 151.9893153
B30: 2021 | C30: 62.69252329 | D30: 26.50809863 | E30: 12.59731781 | F30: 12.62431507 | G30: 18.863 | H30: 20.72323288 | I30: 8.926727397 | J30: 162.9352151 | L30: 2021 | M30: 65.38651912 | N30: 27.13303985 | O30: 13.29627292 | P30: 13.07069395 | Q30: 19.75792891 | R30: 21.81128719 | S30: 9.457755299 | T30: 169.9134973 | V30: 2021 | W30: 59.99852745 | X30: 25.88315741 | Y30: 11.89836269 | Z30: 12.17793618 | AA30: 17.96807109 | AB30: 19.63517856 | AC30: 8.395699496 | AD30: 155.9569329
B31: 2022 | C31: 63.81272877 | D31: 26.92964932 | E31: 13.17153425 | F31: 12.85980822 | G31: 19.65777808 | H31: 21.51736986 | I31: 9.102395342 | J31: 167.0512638 | L31: 2022 | M31: 66.5067246 | N31: 27.55459054 | O31: 13.87048936 | P31: 13.3061871 | Q31: 20.55270699 | R31: 22.60542418 | S31: 9.633423244 | T31: 174.029546 | V31: 2022 | W31: 61.11873293 | X31: 26.30470809 | Y31: 12.47257913 | Z31: 12.41342933 | AA31: 18.76284917 | AB31: 20.42931555 | AC31: 8.571367441 | AD31: 160.0729816
B32: 2023 | C32: 64.91309589 | D32: 27.36214521 | E32: 13.75399452 | F32: 13.10100548 | G32: 20.56052603 | H32: 22.32816438 | I32: 9.282563288 | J32: 171.3014948 | L32: 2023 | M32: 67.60709173 | N32: 27.98708643 | O32: 14.45294964 | P32: 13.54738436 | Q32: 21.45545494 | R32: 23.4162187 | S32: 9.813591189 | T32: 178.279777 | V32: 2023 | W32: 62.21910005 | X32: 26.73720398 | Y32: 13.0550394 | Z32: 12.6546266 | AA32: 19.66559712 | AB32: 21.24011007 | AC32: 8.751535386 | AD32: 164.3232126
B33: 2024 | C33: 65.99163014 | D33: 27.80524658 | E33: 14.34347671 | F33: 13.34765479 | G33: 21.58564384 | H33: 23.15344932 | I33: 9.467153699 | J33: 175.6942551 | L33: 2024 | M33: 68.68562597 | N33: 28.4301878 | O33: 15.04243183 | P33: 13.79403368 | Q33: 22.48057275 | R33: 24.24150363 | S33: 9.9981816 | T33: 182.6725373 | V33: 2024 | W33: 63.2976343 | X33: 27.18030535 | Y33: 13.6445216 | Z33: 12.90127591 | AA33: 20.69071492 | AB33: 22.065395 | AC33: 8.936125797 | AD33: 168.7159729
B34: 2025 | C34: 67.04633151 | D34: 28.25859178 | E34: 14.93887397 | F34: 13.59949863 | G34: 22.76038904 | H34: 23.99121096 | I34: 9.656052329 | J34: 180.2509482 | L34: 2025 | M34: 69.74032734 | N34: 28.883533 | O34: 15.63782909 | P34: 14.04587751 | Q34: 23.65531795 | R34: 25.07926528 | S34: 10.18708023 | T34: 187.2292304 | V34: 2025 | W34: 64.35233567 | X34: 27.63365056 | Y34: 14.23991886 | Z34: 13.15311975 | AA34: 21.86546013 | AB34: 22.90315664 | AC34: 9.125024427 | AD34: 173.272666
B35: 2026 | C35: 68.07544658 | D35: 28.7218137 | E35: 15.53920274 | F35: 13.85625479 | G35: 24.08130411 | H35: 24.83963836 | I35: 9.849146027 | J35: 184.9628063 | L35: 2026 | M35: 70.76944241 | N35: 29.34675492 | O35: 16.23815786 | P35: 14.30263368 | Q35: 24.97623302 | R35: 25.92769267 | S35: 10.38017393 | T35: 191.9410885 | V35: 2026 | W35: 65.38145074 | X35: 28.09687248 | Y35: 14.84024762 | Z35: 13.40987591 | AA35: 23.1863752 | AB35: 23.75158404 | AC35: 9.318118126 | AD35: 177.9845241
B36: 2027 | C36: 69.0777726 | D36: 29.19452603 | E36: 16.14359452 | F36: 14.11766575 | G36: 25.5221726 | H36: 25.69711781 | I36: 10.04631342 | J36: 189.7991627 | L36: 2027 | M36: 71.77176844 | N36: 29.81946725 | O36: 16.84254964 | P36: 14.56404464 | Q36: 26.41710151 | R36: 26.78517212 | S36: 10.57734133 | T36: 196.7774449 | V36: 2027 | W36: 66.38377677 | X36: 28.56958481 | Y36: 15.4446394 | Z36: 13.67128687 | AA36: 24.62724369 | AB36: 24.60906349 | AC36: 9.515285523 | AD36: 182.8208806
B37: 2028 | C37: 70.05245479 | D37: 29.67633699 | E37: 16.75131781 | F37: 14.38345479 | G37: 27.03527671 | H37: 26.5622274 | I37: 10.24742849 | J37: 194.708497 | L37: 2028 | M37: 72.74645063 | N37: 30.30127821 | O37: 17.45027292 | P37: 14.82983368 | Q37: 27.93020562 | R37: 27.65028171 | S37: 10.77845639 | T37: 201.6867792 | V37: 2028 | W37: 67.35845896 | X37: 29.05139577 | Y37: 16.05236269 | Z37: 13.93707591 | AA37: 26.1403478 | AB37: 25.47417308 | AC37: 9.716400592 | AD37: 187.7302148
B38: 2029 | C38: 70.99901096 | D38: 30.16685753 | E38: 17.36172877 | F38: 14.65335616 | G38: 28.65999178 | H38: 27.43373973 | I38: 10.45236219 | J38: 199.7270471 | L38: 2029 | M38: 73.69300679 | N38: 30.79179876 | O38: 18.06068388 | P38: 15.09973505 | Q38: 29.55492069 | R38: 28.52179404 | S38: 10.98339009 | T38: 206.7053293 | V38: 2029 | W38: 68.30501512 | X38: 29.54191631 | Y38: 16.66277365 | Z38: 14.20697728 | AA38: 27.76506287 | AB38: 26.34568541 | AC38: 9.92133429 | AD38: 192.7487649
C41: COMERCIAL MEDIO | M41: COMERCIAL ALTO | W41: COMERCIAL BAJO
C42: CENTRO | D42: COSTA | E42: CQR | F42: NORESTE | G42: NOROESTE | H42: SUROESTE | I42: TOLIMA GRANDE | J42: TOTAL | M42: CENTRO | N42: COSTA | O42: CQR | P42: NORESTE | Q42: NOROESTE | R42: SUROESTE | S42: TOLIMA GRANDE | T42: TOTAL | W42: CENTRO | X42: COSTA | Y42: CQR | Z42: NORESTE | AA42: NOROESTE | AB42: SUROESTE | AC42: TOLIMA GRANDE | AD42: TOTAL
B43: 1996 | C43: 2.310728637 | D43: 0.07291184429 | E43: 1.469438795 | F43: 0.09068660038 | G43: 0.3969808881 | H43: 0.5842728275 | I43: 0.0005511311667 | J43: 3.036143311 | L43: 1996 | M43: 2.310728637 | N43: 0.07291184429 | O43: 1.469438795 | P43: 0.09068660038 | Q43: 0.3969808881 | R43: 0.5842728275 | S43: 0.0005511311667 | T43: 3.036143311 | V43: 1996 | W43: 2.310728637 | X43: 0.07291184429 | Y43: 1.469438795 | Z43: 0.09068660038 | AA43: 0.3969808881 | AB43: 0.5842728275 | AC43: 0.0005511311667 | AD43: 3.036143311
B44: 1997 | C44: 3.213332291 | D44: 0.140102543 | E44: 1.56322611 | F44: 0.1577976045 | G44: 0.5708778932 | H44: 0.8107764405 | I44: 0.001974593192 | J44: 4.462478208 | L44: 1997 | M44: 3.213332291 | N44: 0.140102543 | O44: 1.56322611 | P44: 0.1577976045 | Q44: 0.5708778932 | R44: 0.8107764405 | S44: 0.001974593192 | T44: 4.462478208 | V44: 1997 | W44: 3.213332291 | X44: 0.140102543 | Y44: 1.56322611 | Z44: 0.1577976045 | AA44: 0.5708778932 | AB44: 0.8107764405 | AC44: 0.001974593192 | AD44: 4.462478208
B45: 1998 | C45: 4.545051698 | D45: 0.2790062491 | E45: 1.66175432 | F45: 0.2810016994 | G45: 0.8232280074 | H45: 1.124624569 | I45: 0.008263608162 | J45: 6.706452911 | L45: 1998 | M45: 4.545051698 | N45: 0.2790062491 | O45: 1.66175432 | P45: 0.2810016994 | Q45: 0.8232280074 | R45: 1.124624569 | S45: 0.008263608162 | T45: 6.706452911 | V45: 1998 | W45: 4.545051698 | X45: 0.2790062491 | Y45: 1.66175432 | Z45: 0.2810016994 | AA45: 0.8232280074 | AB45: 1.124624569 | AC45: 0.008263608162 | AD45: 6.706452911
B46: 1999 | C46: 5.86433363 | D46: 0.4461071947 | E46: 1.742964469 | F46: 0.4188373498 | G46: 1.067963962 | H46: 1.420624975 | I46: 0.02047481965 | J46: 9.016763488 | L46: 1999 | M46: 5.86433363 | N46: 0.4461071947 | O46: 1.742964469 | P46: 0.4188373498 | Q46: 1.067963962 | R46: 1.420624975 | S46: 0.02047481965 | T46: 9.016763488 | V46: 1999 | W46: 5.86433363 | X46: 0.4461071947 | Y46: 1.742964469 | Z46: 0.4188373498 | AA46: 1.067963962 | AB46: 1.420624975 | AC46: 0.02047481965 | AD46: 9.016763488
B47: 2000 | C47: 6.809730108 | D47: 0.5879663552 | E47: 1.787855447 | F47: 0.528850671 | G47: 1.239097439 | H47: 1.621862238 | I47: 0.0352182733 | J47: 10.73450233 | L47: 2000 | M47: 6.809730108 | N47: 0.5879663552 | O47: 1.787855447 | P47: 0.528850671 | Q47: 1.239097439 | R47: 1.621862238 | S47: 0.0352182733 | T47: 10.73450233 | V47: 2000 | W47: 6.809730108 | X47: 0.5879663552 | Y47: 1.787855447 | Z47: 0.528850671 | AA47: 1.239097439 | AB47: 1.621862238 | AC47: 0.0352182733 | AD47: 10.73450233
B48: 2001 | C48: 12.98222919 | D48: 1.875901084 | E48: 2.015005473 | F48: 1.393794399 | G48: 2.25659758 | H48: 2.755342857 | I48: 0.4081946154 | J48: 22.79523787 | L48: 2001 | M48: 12.98222919 | N48: 1.875901084 | O48: 2.015005473 | P48: 1.393794399 | Q48: 2.25659758 | R48: 2.755342857 | S48: 0.4081946154 | T48: 22.79523787 | V48: 2001 | W48: 12.98222919 | X48: 1.875901084 | Y48: 2.015005473 | Z48: 1.393794399 | AA48: 2.25659758 | AB48: 2.755342857 | AC48: 0.4081946154 | AD48: 22.79523787
B49: 2002 | C49: 15.5977929 | D49: 2.585344259 | E49: 2.080947317 | F49: 1.810196289 | G49: 2.622932137 | H49: 3.138296691 | I49: 0.8915836284 | J49: 28.28847469 | L49: 2002 | M49: 15.5977929 | N49: 2.585344259 | O49: 2.080947317 | P49: 1.810196289 | Q49: 2.622932137 | R49: 3.138296691 | S49: 0.8915836284 | T49: 28.28847469 | V49: 2002 | W49: 15.5977929 | X49: 2.585344259 | Y49: 2.080947317 | Z49: 1.810196289 | AA49: 2.622932137 | AB49: 3.138296691 | AC49: 0.8915836284 | AD49: 28.28847469
B50: 2003 | C50: 16.95833903 | D50: 2.950014327 | E50: 2.115965747 | F50: 2.026513721 | G50: 2.817155792 | H50: 3.342200748 | I50: 1.113683717 | J50: 31.13202733 | L50: 2003 | M50: 16.95833903 | N50: 2.950014327 | O50: 2.115965747 | P50: 2.026513721 | Q50: 2.817155792 | R50: 3.342200748 | S50: 1.113683717 | T50: 31.13202733 | V50: 2003 | W50: 16.95833903 | X50: 2.950014327 | Y50: 2.115965747 | Z50: 2.026513721 | AA50: 2.817155792 | AB50: 3.342200748 | AC50: 1.113683717 | AD50: 31.13202733
B51: 2004 | C51: 16.99302496 | D51: 2.969661628 | E51: 2.111361423 | F51: 2.034562171 | G51: 2.816694774 | H51: 3.3395774 | I51: 1.156179354 | J51: 31.2335362 | L51: 2004 | M51: 16.99302496 | N51: 2.969661628 | O51: 2.111361423 | P51: 2.034562171 | Q51: 2.816694774 | R51: 3.3395774 | S51: 1.156179354 | T51: 31.2335362 | V51: 2004 | W51: 16.99302496 | X51: 2.969661628 | Y51: 2.111361423 | Z51: 2.034562171 | AA51: 2.816694774 | AB51: 3.3395774 | AC51: 1.156179354 | AD51: 31.2335362
B52: 2005 | C52: 17.96627076 | D52: 3.24557424 | E52: 2.138030782 | F52: 2.190394814 | G52: 2.943855082 | H52: 3.470642539 | I52: 1.403174388 | J52: 33.30956165 | L52: 2005 | M52: 17.96627076 | N52: 3.24557424 | O52: 2.138030782 | P52: 2.190394814 | Q52: 2.943855082 | R52: 3.470642539 | S52: 1.403174388 | T52: 33.30956165 | V52: 2005 | W52: 17.96627076 | X52: 3.24557424 | Y52: 2.138030782 | Z52: 2.190394814 | AA52: 2.943855082 | AB52: 3.470642539 | AC52: 1.403174388 | AD52: 33.30956165
B53: 2006 | C53: 20.84988142 | D53: 4.114379482 | E53: 2.197218286 | F53: 2.658766082 | G53: 3.282881001 | H53: 3.808672587 | I53: 2.430289886 | J53: 39.62168631 | L53: 2006 | M53: 20.84988142 | N53: 4.114379482 | O53: 2.197218286 | P53: 2.658766082 | Q53: 3.282881001 | R53: 3.808672587 | S53: 2.430289886 | T53: 39.62168631 | V53: 2006 | W53: 20.84988142 | X53: 4.114379482 | Y53: 2.197218286 | Z53: 2.658766082 | AA53: 3.282881001 | AB53: 3.808672587 | AC53: 2.430289886 | AD53: 39.62168631
B54: 2007 | C54: 20.7352468 | D54: 4.085682629 | E54: 2.193054908 | F54: 2.635990603 | G54: 3.254637647 | H54: 3.777568876 | I54: 2.543169458 | J54: 39.41417408 | L54: 2007 | M54: 20.7352468 | N54: 4.085682629 | O54: 2.193054908 | P54: 2.635990603 | Q54: 3.254637647 | R54: 3.777568876 | S54: 2.543169458 | T54: 39.41417408 | V54: 2007 | W54: 20.7352468 | X54: 4.085682629 | Y54: 2.193054908 | Z54: 2.635990603 | AA54: 3.254637647 | AB54: 3.777568876 | AC54: 2.543169458 | AD54: 39.41417408
B55: 2008 | C55: 19.13962795 | D55: 3.598926301 | E55: 2.158407541 | F55: 2.383665075 | G55: 3.086904974 | H55: 3.613579776 | I55: 1.768892935 | J55: 35.86987581 | L55: 2008 | M55: 19.13962795 | N55: 3.598926301 | O55: 2.158407541 | P55: 2.383665075 | Q55: 3.086904974 | R55: 3.613579776 | S55: 1.768892935 | T55: 35.86987581 | V55: 2008 | W55: 19.13962795 | X55: 3.598926301 | Y55: 2.158407541 | Z55: 2.383665075 | AA55: 3.086904974 | AB55: 3.613579776 | AC55: 1.768892935 | AD55: 35.86987581
B56: 2009 | C56: 17.80610302 | D56: 3.700173693 | E56: 1.573682022 | F56: 2.449763863 | G56: 2.873473211 | H56: 3.278674948 | I56: 0.9936173479 | J56: 35.48801688 | L56: 2009 | M56: 17.80610302 | N56: 3.700173693 | O56: 1.573682022 | P56: 2.449763863 | Q56: 2.873473211 | R56: 3.278674948 | S56: 0.9936173479 | T56: 35.48801688 | V56: 2009 | W56: 17.80610302 | X56: 3.700173693 | Y56: 1.573682022 | Z56: 2.449763863 | AA56: 2.873473211 | AB56: 3.278674948 | AC56: 0.9936173479 | AD56: 35.48801688
B57: 2010 | C57: 19.10878198 | D57: 3.918696471 | E57: 1.763160674 | F57: 2.616996164 | G57: 3.336575562 | H57: 3.513315515 | I57: 1.01165691 | J57: 38.6383565 | L57: 2010 | M57: 19.10878198 | N57: 3.918696471 | O57: 1.763160674 | P57: 2.616996164 | Q57: 3.336575562 | R57: 3.513315515 | S57: 1.01165691 | T57: 38.6383565 | V57: 2010 | W57: 19.10878198 | X57: 3.918696471 | Y57: 1.763160674 | Z57: 2.616996164 | AA57: 3.336575562 | AB57: 3.513315515 | AC57: 1.01165691 | AD57: 38.6383565
B58: 2011 | C58: 20.85514858 | D58: 4.17421911 | E58: 1.859820392 | F58: 2.7082348 | G58: 3.916020759 | H58: 3.770976247 | I58: 1.164034682 | J58: 44.90346791 | L58: 2011 | M58: 20.85514858 | N58: 4.17421911 | O58: 1.859820392 | P58: 2.7082348 | Q58: 3.916020759 | R58: 3.770976247 | S58: 1.164034682 | T58: 44.90346791 | V58: 2011 | W58: 20.85514858 | X58: 4.17421911 | Y58: 1.859820392 | Z58: 2.7082348 | AA58: 3.916020759 | AB58: 3.770976247 | AC58: 1.164034682 | AD58: 44.90346791
B59: 2012 | C59: 25.53792883 | D59: 6.456914415 | E59: 1.907584784 | F59: 4.043803891 | G59: 3.98919927 | H59: 3.922055055 | I59: 1.176990675 | J59: 47.12038267 | L59: 2012 | M59: 25.53792883 | N59: 6.456914415 | O59: 1.907584784 | P59: 4.043803891 | Q59: 3.98919927 | R59: 3.922055055 | S59: 1.176990675 | T59: 47.12038267 | V59: 2012 | W59: 25.53792883 | X59: 6.456914415 | Y59: 1.907584784 | Z59: 4.043803891 | AA59: 3.98919927 | AB59: 3.922055055 | AC59: 1.176990675 | AD59: 47.12038267
B60: 2013 | C60: 26.59439517 | D60: 7.0288588 | E60: 2.059238857 | F60: 4.604930355 | G60: 4.134533326 | H60: 4.022475043 | I60: 1.230791213 | J60: 49.88827722 | L60: 2013 | M60: 26.59439517 | N60: 7.0288588 | O60: 2.059238857 | P60: 4.604930355 | Q60: 4.134533326 | R60: 4.022475043 | S60: 1.230791213 | T60: 49.88827722 | V60: 2013 | W60: 26.59439517 | X60: 7.0288588 | Y60: 2.059238857 | Z60: 4.604930355 | AA60: 4.134533326 | AB60: 4.022475043 | AC60: 1.230791213 | AD60: 49.88827722
B61: 2014 | C61: 27.56188783 | D61: 7.831134824 | E61: 2.219016583 | F61: 5.415368703 | G61: 4.101657841 | H61: 3.662732852 | I61: 1.266366448 | J61: 52.05816508 | L61: 2014 | M61: 27.56188783 | N61: 7.831134824 | O61: 2.219016583 | P61: 5.415368703 | Q61: 4.101657841 | R61: 3.662732852 | S61: 1.266366448 | T61: 52.05816508 | V61: 2014 | W61: 27.56188783 | X61: 7.831134824 | Y61: 2.219016583 | Z61: 5.415368703 | AA61: 4.101657841 | AB61: 3.662732852 | AC61: 1.266366448 | AD61: 52.05816508
B62: 2015 | C62: 28.93274521 | D62: 8.187229041 | E62: 2.468937534 | F62: 5.529872055 | G62: 4.222452603 | H62: 4.307074247 | I62: 1.432238904 | J62: 55.08054959 | L62: 2015 | M62: 31.26217889 | N62: 9.051821878 | O62: 2.642790265 | P62: 6.070333732 | Q62: 4.521981843 | R62: 4.641230512 | S62: 2.063968706 | T62: 60.25430583 | V62: 2015 | W62: 26.60331152 | X62: 7.322636204 | Y62: 2.295084804 | Z62: 4.989410378 | AA62: 3.922923362 | AB62: 3.972917981 | AC62: 0.8005091025 | AD62: 49.90679335
B63: 2016 | C63: 29.63601918 | D63: 9.037551507 | E63: 2.468639178 | F63: 5.629979178 | G63: 4.373390411 | H63: 4.390939071 | I63: 1.486261096 | J63: 57.02277962 | L63: 2016 | M63: 31.96545287 | N63: 9.902144344 | O63: 2.642491908 | P63: 6.170440855 | Q63: 4.672919652 | R63: 4.724182341 | S63: 2.117990898 | T63: 62.19562286 | V63: 2016 | W63: 27.30658549 | X63: 8.17295867 | Y63: 2.294786448 | Z63: 5.089517501 | AA63: 4.07386117 | AB63: 4.057695801 | AC63: 0.8545312942 | AD63: 51.84993637
B64: 2017 | C64: 30.8064 | D64: 9.291651507 | E64: 2.512951781 | F64: 5.722088493 | G64: 4.491985479 | H64: 4.456853151 | I64: 1.510803014 | J64: 58.79273342 | L64: 2017 | M64: 33.13583369 | N64: 10.15624434 | O64: 2.686804511 | P64: 6.26255017 | Q64: 4.79151472 | R64: 4.791009416 | S64: 2.142532815 | T64: 63.96648966 | V64: 2017 | W64: 28.47696631 | X64: 8.42705867 | Y64: 2.339099051 | Z64: 5.181626816 | AA64: 4.192456239 | AB64: 4.122696885 | AC64: 0.8790732121 | AD64: 53.61897719
B65: 2018 | C65: 31.78995342 | D65: 9.767628767 | E65: 2.551016986 | F65: 5.816129863 | G65: 4.614166027 | H65: 4.508214795 | I65: 1.534483014 | J65: 60.58159288 | L65: 2018 | M65: 34.11938711 | N65: 10.6322216 | O65: 2.724869717 | P65: 6.35659154 | Q65: 4.913695268 | R65: 4.84237106 | S65: 2.166212815 | T65: 65.75534912 | V65: 2018 | W65: 29.46051974 | X65: 8.90303593 | Y65: 2.377164256 | Z65: 5.275668186 | AA65: 4.314636787 | AB65: 4.174058529 | AC65: 0.9027532121 | AD65: 55.40783664
B66: 2019 | C66: 32.83903014 | D66: 10.34242438 | E66: 2.58213726 | F66: 5.91 | G66: 4.738452055 | H66: 4.563229041 | I66: 1.562151781 | J66: 62.53742466 | L66: 2019 | M66: 35.16846382 | N66: 11.20701722 | O66: 2.755989991 | P66: 6.450461677 | Q66: 5.037981295 | R66: 4.897385306 | S66: 2.193881582 | T66: 67.7111809 | V66: 2019 | W66: 30.50959645 | X66: 9.477831546 | Y66: 2.40828453 | Z66: 5.369538323 | AA66: 4.438922814 | AB66: 4.229072776 | AC66: 0.9304219792 | AD66: 57.36366842
B67: 2020 | C67: 33.86365479 | D67: 10.70394356 | E67: 2.61673863 | F67: 6.003836986 | G67: 4.861543836 | H67: 4.60434071 | I67: 1.588210137 | J67: 64.24226866 | L67: 2020 | M67: 36.19308848 | N67: 11.5685364 | O67: 2.79059136 | P67: 6.544298663 | Q67: 5.161073076 | R67: 4.93758398 | S67: 2.219939939 | T67: 69.4151119 | V67: 2020 | W67: 31.53422111 | X67: 9.839350724 | Y67: 2.4428859 | Z67: 5.46337531 | AA67: 4.562014595 | AB67: 4.27109744 | AC67: 0.9564803353 | AD67: 59.06942541
B68: 2021 | C68: 34.89724932 | D68: 11.22152877 | E68: 2.649932329 | F68: 6.097697808 | G68: 4.984968493 | H68: 4.670896712 | I68: 1.614668493 | J68: 66.13694192 | L68: 2021 | M68: 37.226683 | N68: 12.0861216 | O68: 2.823785059 | P68: 6.638159485 | Q68: 5.284497734 | R68: 5.005052978 | S68: 2.246398295 | T68: 71.31069816 | V68: 2021 | W68: 32.56781563 | X68: 10.35693593 | Y68: 2.476079598 | Z68: 5.557236132 | AA68: 4.685439253 | AB68: 4.336740447 | AC68: 0.9829386915 | AD68: 60.96318568
B69: 2022 | C69: 35.92763288 | D69: 11.70196712 | E69: 2.683916712 | F69: 6.191550685 | G69: 5.108352329 | H69: 4.724863562 | I69: 1.641085753 | J69: 67.97936904 | L69: 2022 | M69: 38.25706656 | N69: 12.56655996 | O69: 2.857769443 | P69: 6.732012362 | Q69: 5.407881569 | R69: 5.059019827 | S69: 2.272815555 | T69: 73.15312528 | V69: 2022 | W69: 33.59819919 | X69: 10.83737429 | Y69: 2.510063982 | Z69: 5.651089008 | AA69: 4.808823088 | AB69: 4.390707296 | AC69: 1.009355952 | AD69: 62.8056128
B70: 2023 | C70: 36.95924384 | D70: 12.13491507 | E70: 2.717533973 | F70: 6.285405479 | G70: 5.231724658 | H70: 4.778800274 | I70: 1.667487397 | J70: 69.77511068 | L70: 2023 | M70: 39.28867752 | N70: 12.99950791 | O70: 2.891386703 | P70: 6.825867156 | Q70: 5.531253898 | R70: 5.112956539 | S70: 2.299217199 | T70: 74.94886692 | V70: 2023 | W70: 34.62981015 | X70: 11.27032223 | Y70: 2.543681242 | Z70: 5.744943803 | AA70: 4.932195417 | AB70: 4.444644009 | AC70: 1.035757596 | AD70: 64.60135445
B71: 2024 | C71: 37.99045479 | D71: 12.63401918 | E71: 2.751414795 | F71: 6.379259726 | G71: 5.355105753 | H71: 4.819543169 | I71: 1.693899452 | J71: 71.62369687 | L71: 2024 | M71: 40.31988848 | N71: 13.49861202 | O71: 2.925267525 | P71: 6.919721403 | Q71: 5.654634994 | R71: 5.152786439 | S71: 2.325629254 | T71: 76.79654011 | V71: 2024 | W71: 35.66102111 | X71: 11.76942634 | Y71: 2.577562064 | Z71: 5.838798049 | AA71: 5.055576513 | AB71: 4.486299899 | AC71: 1.06216965 | AD71: 66.45085362
B72: 2025 | C72: 39.02184384 | D72: 13.09380548 | E72: 2.785221644 | F72: 6.473114521 | G72: 5.47848411 | H72: 4.886692603 | I72: 1.720308493 | J72: 73.45947068 | L72: 2025 | M72: 41.35127752 | N72: 13.95839832 | O72: 2.959074374 | P72: 7.013576197 | Q72: 5.77801335 | R72: 5.220848868 | S72: 2.352038295 | T72: 78.63322692 | V72: 2025 | W72: 36.69241015 | X72: 12.22921264 | Y72: 2.611368914 | Z72: 5.932652844 | AA72: 5.178954869 | AB72: 4.552536338 | AC72: 1.088578692 | AD72: 68.28571445
B73: 2026 | C73: 40.05318904 | D73: 13.55603562 | E73: 2.819103288 | F73: 6.566968767 | G73: 5.601863014 | H73: 4.940638082 | I73: 1.746718082 | J73: 75.28451589 | L73: 2026 | M73: 42.38262273 | N73: 14.42062845 | O73: 2.992956018 | P73: 7.107430444 | Q73: 5.901392254 | R73: 5.274794347 | S73: 2.378447884 | T73: 80.45827213 | V73: 2026 | W73: 37.72375535 | X73: 12.69144278 | Y73: 2.645250557 | Z73: 6.02650709 | AA73: 5.302333773 | AB73: 4.606481817 | AC73: 1.114988281 | AD73: 70.11075965
B74: 2027 | C74: 41.0845726 | D74: 14.03664384 | E74: 2.852979726 | F74: 6.660823288 | G74: 5.725241644 | H74: 4.994583562 | I74: 1.773127397 | J74: 77.12797205 | L74: 2027 | M74: 43.41400629 | N74: 14.90123667 | O74: 3.026832456 | P74: 7.201284964 | Q74: 6.024770884 | R74: 5.328739827 | S74: 2.404857199 | T74: 82.30172829 | V74: 2027 | W74: 38.75513892 | X74: 13.172051 | Y74: 2.679126996 | Z74: 6.120361611 | AA74: 5.425712403 | AB74: 4.660427296 | AC74: 1.141397596 | AD74: 71.95421582
B75: 2028 | C75: 42.11594795 | D75: 14.49767671 | E75: 2.886874521 | F75: 6.754677808 | G75: 5.848620274 | H75: 5.034734973 | I75: 1.799536712 | J75: 78.93806895 | L75: 2028 | M75: 44.44538163 | N75: 15.36226955 | O75: 3.060727251 | P75: 7.295139485 | Q75: 6.148149515 | R75: 5.367978243 | S75: 2.431266514 | T75: 84.11091219 | V75: 2028 | W75: 39.78651426 | X75: 13.63308388 | Y75: 2.71302179 | Z75: 6.214216132 | AA75: 5.549091033 | AB75: 4.701491703 | AC75: 1.167806911 | AD75: 73.7652257
B76: 2029 | C76: 43.14732603 | D76: 14.96764932 | E76: 2.920766301 | F76: 6.848532329 | G76: 5.971999178 | H76: 5.102474247 | I76: 1.825946301 | J76: 80.7846937 | L76: 2029 | M76: 45.47675972 | N76: 15.83224215 | O76: 3.094619032 | P76: 7.388994005 | Q76: 6.271528419 | R76: 5.436630512 | S76: 2.457676103 | T76: 85.95844994 | V76: 2029 | W76: 40.81789234 | X76: 14.10305648 | Y76: 2.746913571 | Z76: 6.308070652 | AA76: 5.672469938 | AB76: 4.768317981 | AC76: 1.1942165 | AD76: 75.61093746
C79: INDUSTRIA MEDIO | M79: INDUSTRIA ALTO | W79: INDUSTRIA BAJO
C80: CENTRO | D80: COSTA | E80: CQR | F80: NORESTE | G80: NOROESTE | H80: SUROESTE | I80: TOLIMA GRANDE | J80: TOTAL | M80: CENTRO | N80: COSTA | O80: CQR | P80: NORESTE | Q80: NOROESTE | R80: SUROESTE | S80: TOLIMA GRANDE | T80: TOTAL | W80: CENTRO | X80: COSTA | Y80: CQR | Z80: NORESTE | AA80: NOROESTE | AB80: SUROESTE | AC80: TOLIMA GRANDE | AD80: TOTAL
B81: 1996 | C81: 17.7346071 | D81: 60.5577408 | E81: 3.866665098 | F81: 1.064709079 | G81: 4.888182723 | H81: 14.21565468 | I81: 9.737836697 | J81: 112.0653962 | L81: 1996 | M81: 17.7346071 | N81: 60.5577408 | O81: 3.866665098 | P81: 1.064709079 | Q81: 4.888182723 | R81: 14.21565468 | S81: 9.737836697 | T81: 112.0653962 | V81: 1996 | W81: 17.7346071 | X81: 60.5577408 | Y81: 3.866665098 | Z81: 1.064709079 | AA81: 4.888182723 | AB81: 14.21565468 | AC81: 9.737836697 | AD81: 112.0653962
B82: 1997 | C82: 15.96014487 | D82: 56.66128949 | E82: 3.707626805 | F82: 0.8802259659 | G82: 4.382755272 | H82: 13.35669995 | I82: 9.94142477 | J82: 104.8901671 | L82: 1997 | M82: 15.96014487 | N82: 56.66128949 | O82: 3.707626805 | P82: 0.8802259659 | Q82: 4.382755272 | R82: 13.35669995 | S82: 9.94142477 | T82: 104.8901671 | V82: 1997 | W82: 15.96014487 | X82: 56.66128949 | Y82: 3.707626805 | Z82: 0.8802259659 | AA82: 4.382755272 | AB82: 13.35669995 | AC82: 9.94142477 | AD82: 104.8901671
B83: 1998 | C83: 17.24047565 | D83: 59.21747661 | E83: 3.840191359 | F83: 1.00137406 | G83: 4.745613167 | H83: 14.02616074 | I83: 9.850976909 | J83: 109.9222685 | L83: 1998 | M83: 17.24047565 | N83: 59.21747661 | O83: 3.840191359 | P83: 1.00137406 | Q83: 4.745613167 | R83: 14.02616074 | S83: 9.850976909 | T83: 109.9222685 | V83: 1998 | W83: 17.24047565 | X83: 59.21747661 | Y83: 3.840191359 | Z83: 1.00137406 | AA83: 4.745613167 | AB83: 14.02616074 | AC83: 9.850976909 | AD83: 109.9222685
B84: 1999 | C84: 18.91162242 | D84: 58.39651843 | E84: 4.101339572 | F84: 1.139587146 | G84: 5.213885567 | H84: 15.10775678 | I84: 10.25330379 | J84: 113.1240137 | L84: 1999 | M84: 18.91162242 | N84: 58.39651843 | O84: 4.101339572 | P84: 1.139587146 | Q84: 5.213885567 | R84: 15.10775678 | S84: 10.25330379 | T84: 113.1240137 | V84: 1999 | W84: 18.91162242 | X84: 58.39651843 | Y84: 4.101339572 | Z84: 1.139587146 | AA84: 5.213885567 | AB84: 15.10775678 | AC84: 10.25330379 | AD84: 113.1240137
B85: 2000 | C85: 19.51127508 | D85: 60.29676313 | E85: 4.123822433 | F85: 1.220306138 | G85: 5.387619012 | H85: 15.31372443 | I85: 10.0657111 | J85: 115.9192213 | L85: 2000 | M85: 19.51127508 | N85: 60.29676313 | O85: 4.123822433 | P85: 1.220306138 | Q85: 5.387619012 | R85: 15.31372443 | S85: 10.0657111 | T85: 115.9192213 | V85: 2000 | W85: 19.51127508 | X85: 60.29676313 | Y85: 4.123822433 | Z85: 1.220306138 | AA85: 5.387619012 | AB85: 15.31372443 | AC85: 10.0657111 | AD85: 115.9192213
B86: 2001 | C86: 23.67395208 | D86: 66.8701302 | E86: 4.497303542 | F86: 1.714113287 | G86: 6.578536856 | H86: 17.27746613 | I86: 9.898298913 | J86: 130.509801 | L86: 2001 | M86: 23.67395208 | N86: 66.8701302 | O86: 4.497303542 | P86: 1.714113287 | Q86: 6.578536856 | R86: 17.27746613 | S86: 9.898298913 | T86: 130.509801 | V86: 2001 | W86: 23.67395208 | X86: 66.8701302 | Y86: 4.497303542 | Z86: 1.714113287 | AA86: 6.578536856 | AB86: 17.27746613 | AC86: 9.898298913 | AD86: 130.509801
B87: 2002 | C87: 25.1899757 | D87: 71.84453281 | E87: 4.546018002 | F87: 1.958050339 | G87: 7.021213281 | H87: 17.75141126 | I87: 9.523149549 | J87: 137.8343509 | L87: 2002 | M87: 25.1899757 | N87: 71.84453281 | O87: 4.546018002 | P87: 1.958050339 | Q87: 7.021213281 | R87: 17.75141126 | S87: 9.523149549 | T87: 137.8343509 | V87: 2002 | W87: 25.1899757 | X87: 71.84453281 | Y87: 4.546018002 | Z87: 1.958050339 | AA87: 7.021213281 | AB87: 17.75141126 | AC87: 9.523149549 | AD87: 137.8343509
B88: 2003 | C88: 24.61237189 | D88: 69.33418259 | E88: 4.542535952 | F88: 1.856546127 | G88: 6.851206602 | H88: 17.61063502 | I88: 9.730323013 | J88: 134.5378012 | L88: 2003 | M88: 24.61237189 | N88: 69.33418259 | O88: 4.542535952 | P88: 1.856546127 | Q88: 6.851206602 | R88: 17.61063502 | S88: 9.730323013 | T88: 134.5378012 | V88: 2003 | W88: 24.61237189 | X88: 69.33418259 | Y88: 4.542535952 | Z88: 1.856546127 | AA88: 6.851206602 | AB88: 17.61063502 | AC88: 9.730323013 | AD88: 134.5378012
B89: 2004 | C89: 32.34202723 | D89: 79.11476217 | E89: 5.098957449 | F89: 3.046177587 | G89: 9.088370827 | H89: 20.7766885 | I89: 9.40443185 | J89: 158.8714156 | L89: 2004 | M89: 32.34202723 | N89: 79.11476217 | O89: 5.098957449 | P89: 3.046177587 | Q89: 9.088370827 | R89: 20.7766885 | S89: 9.40443185 | T89: 158.8714156 | V89: 2004 | W89: 32.34202723 | X89: 79.11476217 | Y89: 5.098957449 | Z89: 3.046177587 | AA89: 9.088370827 | AB89: 20.7766885 | AC89: 9.40443185 | AD89: 158.8714156
B90: 2005 | C90: 34.85184955 | D90: 86.59952361 | E90: 5.157619449 | F90: 3.572812183 | G90: 9.830095769 | H90: 21.44621383 | I90: 8.936573955 | J90: 170.3946884 | L90: 2005 | M90: 34.85184955 | N90: 86.59952361 | O90: 5.157619449 | P90: 3.572812183 | Q90: 9.830095769 | R90: 21.44621383 | S90: 8.936573955 | T90: 170.3946884 | V90: 2005 | W90: 34.85184955 | X90: 86.59952361 | Y90: 5.157619449 | Z90: 3.572812183 | AA90: 9.830095769 | AB90: 21.44621383 | AC90: 8.936573955 | AD90: 170.3946884
B91: 2006 | C91: 44.93384241 | D91: 95.00411882 | E91: 5.773903672 | F91: 5.636285917 | G91: 12.78233027 | H91: 25.09881479 | I91: 8.766427018 | J91: 197.9957229 | L91: 2006 | M91: 44.93384241 | N91: 95.00411882 | O91: 5.773903672 | P91: 5.636285917 | Q91: 12.78233027 | R91: 25.09881479 | S91: 8.766427018 | T91: 197.9957229 | V91: 2006 | W91: 44.93384241 | X91: 95.00411882 | Y91: 5.773903672 | Z91: 5.636285917 | AA91: 12.78233027 | AB91: 25.09881479 | AC91: 8.766427018 | AD91: 197.9957229
B92: 2007 | C92: 57.40084201 | D92: 106.3046005 | E92: 6.350825067 | F92: 8.821731172 | G92: 16.47366229 | H92: 28.9572258 | I92: 8.330367832 | J92: 232.6392547 | L92: 2007 | M92: 57.40084201 | N92: 106.3046005 | O92: 6.350825067 | P92: 8.821731172 | Q92: 16.47366229 | R92: 28.9572258 | S92: 8.330367832 | T92: 232.6392547 | V92: 2007 | W92: 57.40084201 | X92: 106.3046005 | Y92: 6.350825067 | Z92: 8.821731172 | AA92: 16.47366229 | AB92: 28.9572258 | AC92: 8.330367832 | AD92: 232.6392547
B93: 2008 | C93: 75.10074584 | D93: 113.6337897 | E93: 7.135845925 | F93: 14.16611119 | G93: 21.74707872 | H93: 34.16163788 | I93: 8.054269216 | J93: 273.9994784 | L93: 2008 | M93: 75.10074584 | N93: 113.6337897 | O93: 7.135845925 | P93: 14.16611119 | Q93: 21.74707872 | R93: 34.16163788 | S93: 8.054269216 | T93: 273.9994784 | V93: 2008 | W93: 75.10074584 | X93: 113.6337897 | Y93: 7.135845925 | Z93: 14.16611119 | AA93: 21.74707872 | AB93: 34.16163788 | AC93: 8.054269216 | AD93: 273.9994784
B94: 2009 | C94: 59.98399853 | D94: 91.64193267 | E94: 6.615099836 | F94: 7.620393181 | G94: 16.15144339 | H94: 28.09152905 | I94: 5.904146216 | J94: 216.0085429 | L94: 2009 | M94: 59.98399853 | N94: 91.64193267 | O94: 6.615099836 | P94: 7.620393181 | Q94: 16.15144339 | R94: 28.09152905 | S94: 5.904146216 | T94: 216.0085429 | V94: 2009 | W94: 59.98399853 | X94: 91.64193267 | Y94: 6.615099836 | Z94: 7.620393181 | AA94: 16.15144339 | AB94: 28.09152905 | AC94: 5.904146216 | AD94: 216.0085429
B95: 2010 | C95: 41.25242503 | D95: 95.92949518 | E95: 6.894255666 | F95: 9.520626285 | G95: 18.52801139 | H95: 30.12244364 | I95: 7.559306899 | J95: 209.8065641 | L95: 2010 | M95: 41.25242503 | N95: 95.92949518 | O95: 6.894255666 | P95: 9.520626285 | Q95: 18.52801139 | R95: 30.12244364 | S95: 7.559306899 | T95: 209.8065641 | V95: 2010 | W95: 41.25242503 | X95: 95.92949518 | Y95: 6.894255666 | Z95: 9.520626285 | AA95: 18.52801139 | AB95: 30.12244364 | AC95: 7.559306899 | AD95: 209.8065641
B96: 2011 | C96: 51.96814703 | D96: 96.78200893 | E96: 6.39695511 | F96: 19.64901422 | G96: 20.73879467 | H96: 28.29451384 | I96: 10.52461431 | J96: 234.3540481 | L96: 2011 | M96: 51.96814703 | N96: 96.78200893 | O96: 6.39695511 | P96: 19.64901422 | Q96: 20.73879467 | R96: 28.29451384 | S96: 10.52461431 | T96: 234.3540481 | V96: 2011 | W96: 51.96814703 | X96: 96.78200893 | Y96: 6.39695511 | Z96: 19.64901422 | AA96: 20.73879467 | AB96: 28.29451384 | AC96: 10.52461431 | AD96: 234.3540481
B97: 2012 | C97: 46.9791433 | D97: 97.32567261 | E97: 6.774167555 | F97: 15.30567129 | G97: 21.94956004 | H97: 33.92793784 | I97: 8.499663426 | J97: 230.7618161 | L97: 2012 | M97: 46.9791433 | N97: 97.32567261 | O97: 6.774167555 | P97: 15.30567129 | Q97: 21.94956004 | R97: 33.92793784 | S97: 8.499663426 | T97: 230.7618161 | V97: 2012 | W97: 46.9791433 | X97: 97.32567261 | Y97: 6.774167555 | Z97: 15.30567129 | AA97: 21.94956004 | AB97: 33.92793784 | AC97: 8.499663426 | AD97: 230.7618161
B98: 2013 | C98: 54.46579593 | D98: 93.08739672 | E98: 6.965741271 | F98: 14.48126229 | G98: 22.18069444 | H98: 45.88750087 | I98: 2.987898664 | J98: 240.0562902 | L98: 2013 | M98: 54.46579593 | N98: 93.08739672 | O98: 6.965741271 | P98: 14.48126229 | Q98: 22.18069444 | R98: 45.88750087 | S98: 2.987898664 | T98: 240.0562902 | V98: 2013 | W98: 54.46579593 | X98: 93.08739672 | Y98: 6.965741271 | Z98: 14.48126229 | AA98: 22.18069444 | AB98: 45.88750087 | AC98: 2.987898664 | AD98: 240.0562902
B99: 2014 | C99: 76.40673358 | D99: 94.56832422 | E99: 6.634620462 | F99: 17.24422187 | G99: 23.2042072 | H99: 54.27812359 | I99: 2.833214311 | J99: 275.1694452 | L99: 2014 | M99: 76.40673358 | N99: 94.56832422 | O99: 6.634620462 | P99: 17.24422187 | Q99: 23.2042072 | R99: 54.27812359 | S99: 2.833214311 | T99: 275.1694452 | V99: 2014 | W99: 76.40673358 | X99: 94.56832422 | Y99: 6.634620462 | Z99: 17.24422187 | AA99: 23.2042072 | AB99: 54.27812359 | AC99: 2.833214311 | AD99: 275.1694452
B100: 2015 | C100: 75.49174282 | D100: 99.18615935 | E100: 6.572034101 | F100: 18.22981919 | G100: 23.29512751 | H100: 53.9838275 | I100: 3.682111455 | J100: 280.4408219 | L100: 2015 | M100: 81.29330764 | N100: 106.8092086 | O100: 7.077118201 | P100: 19.6306807 | Q100: 25.08539837 | R100: 58.13260556 | S100: 3.965178351 | T100: 301.9934974 | V100: 2015 | W100: 69.69017799 | X100: 91.56311008 | Y100: 6.066950002 | Z100: 16.82895769 | AA100: 21.50485665 | AB100: 49.83504944 | AC100: 3.399044559 | AD100: 258.8881464
B101: 2016 | C101: 74.14044416 | D101: 101.959607 | E101: 6.720681683 | F101: 16.82525488 | G101: 23.20877239 | H101: 55.03909505 | I101: 5.287569461 | J101: 283.1814247 | L101: 2016 | M101: 79.78327012 | N101: 109.7197627 | O101: 7.232183109 | P101: 18.10586808 | Q101: 24.97518527 | R101: 59.22793918 | S101: 5.689891685 | T101: 304.7341002 | V101: 2016 | W101: 68.4976182 | X101: 94.19945134 | Y101: 6.209180256 | Z101: 15.54464169 | AA101: 21.4423595 | AB101: 50.85025092 | AC101: 4.885247237 | AD101: 261.6287492
B102: 2017 | C102: 76.34851015 | D102: 103.9035082 | E102: 6.898907617 | F102: 17.23225138 | G102: 23.89444439 | H102: 57.48920723 | I102: 5.450897032 | J102: 291.217726 | L102: 2017 | M102: 81.99888471 | N102: 111.5934569 | O102: 7.409494322 | P102: 18.50755884 | Q102: 25.66281955 | R102: 61.74376695 | S102: 5.854420298 | T102: 312.7704015 | V102: 2017 | W102: 70.6981356 | X102: 96.21355958 | Y102: 6.388320911 | Z102: 15.95694392 | AA102: 22.12606924 | AB102: 53.23464751 | AC102: 5.047373766 | AD102: 269.6650505
B103: 2018 | C103: 79.31264287 | D103: 106.1498906 | E103: 7.064131333 | F103: 18.01820692 | G103: 24.82015931 | H103: 60.10935401 | I103: 4.848738292 | J103: 300.3231233 | L103: 2018 | M103: 85.00441007 | N103: 113.767907 | O103: 7.571098629 | P103: 19.31123393 | Q103: 26.601343 | R103: 64.42296467 | S103: 5.196841527 | T103: 321.8757988 | V103: 2018 | W103: 73.62087566 | X103: 98.53187415 | Y103: 6.557164038 | Z103: 16.72517991 | AA103: 23.03897561 | AB103: 55.79574335 | AC103: 4.500635056 | AD103: 278.7704478
B104: 2019 | C104: 82.30523429 | D104: 108.352344 | E104: 7.215966412 | F104: 18.85976294 | G104: 25.77849233 | H104: 62.72487353 | I104: 4.378011444 | J104: 309.6146849 | L104: 2019 | M104: 88.03452984 | N104: 115.8950729 | O104: 7.718290745 | P104: 20.17257067 | Q104: 27.57293754 | R104: 67.09111554 | S104: 4.682843206 | T104: 331.1673604 | V104: 2019 | W104: 76.57593873 | X104: 100.8096151 | Y104: 6.713642079 | Z104: 17.5469552 | AA104: 23.98404713 | AB104: 58.35863152 | AC104: 4.073179682 | AD104: 288.0620094
B105: 2020 | C105: 85.22238228 | D105: 110.4546511 | E105: 7.35875538 | F105: 19.694212 | G105: 26.72195917 | H105: 65.32776198 | I105: 4.158962979 | J105: 318.9386849 | L105: 2020 | M105: 90.98132817 | N105: 117.918939 | O105: 7.856043885 | P105: 21.02503345 | Q105: 28.52770447 | R105: 69.74225812 | S105: 4.44005337 | T105: 340.4913604 | V105: 2020 | W105: 79.46343639 | X105: 102.9903633 | Y105: 6.861466875 | Z105: 18.36339054 | AA105: 24.91621388 | AB105: 60.91326585 | AC105: 3.877872588 | AD105: 297.3860094
B106: 2021 | C106: 88.10973912 | D106: 112.528404 | E106: 7.49913122 | F106: 20.52300677 | G106: 27.65830633 | H106: 67.95873903 | I106: 3.990947524 | J106: 328.268274 | L106: 2021 | M106: 93.89458808 | N106: 119.916696 | O106: 7.991502347 | P106: 21.87042297 | Q106: 29.47420928 | R106: 72.42051074 | S106: 4.253020051 | T106: 349.8209495 | V106: 2021 | W106: 82.32489016 | X106: 105.1401119 | Y106: 7.006760093 | Z106: 19.17559058 | AA106: 25.84240338 | AB106: 63.49696732 | AC106: 3.728874997 | AD106: 306.7155985
B107: 2022 | C107: 90.99517882 | D107: 114.6104524 | E107: 7.639940185 | F107: 21.35076086 | G107: 28.59442219 | H107: 70.6342882 | I107: 3.77380663 | J107: 337.5988493 | L107: 2022 | M107: 96.80435845 | N107: 121.9274567 | O107: 8.12769189 | P107: 22.71378384 | Q107: 30.41990095 | R107: 75.14355498 | S107: 4.014777984 | T107: 359.1515248 | V107: 2022 | W107: 85.18599918 | X107: 107.2934481 | Y107: 7.152188479 | Z107: 19.98773788 | AA107: 26.76894343 | AB107: 66.12502142 | AC107: 3.532835277 | AD107: 316.0461738
B108: 2023 | C108: 93.87503901 | D108: 116.6954208 | E108: 7.780907048 | F108: 22.17632674 | G108: 29.52872191 | H108: 73.34561769 | I108: 3.527610601 | J108: 346.9296438 | L108: 2023 | M108: 99.70689131 | N108: 123.9451512 | O108: 8.264297469 | P108: 23.55398036 | Q108: 31.36314775 | R108: 77.9020465 | S108: 3.746804757 | T108: 368.4823193 | V108: 2023 | W108: 88.04318672 | X108: 109.4456905 | Y108: 7.297516627 | Z108: 20.79867312 | AA108: 27.69429608 | AB108: 68.78918888 | AC108: 3.308416444 | AD108: 325.3769683
B109: 2024 | C109: 96.74167569 | D109: 118.7732401 | E109: 7.921379502 | F109: 22.99788449 | G109: 30.458714 | H109: 76.08123806 | I109: 3.286251765 | J109: 356.2603836 | L109: 2024 | M109: 102.5942141 | N109: 125.9587902 | O109: 8.400607331 | P109: 24.38916006 | Q109: 32.30135798 | R109: 80.68382959 | S109: 3.485099788 | T109: 377.8130591 | V109: 2024 | W109: 90.88913727 | X109: 111.5876899 | Y109: 7.442151673 | Z109: 21.60660892 | AA109: 28.61607002 | AB109: 71.47864652 | AC109: 3.087403743 | AD109: 334.7077081
B110: 2025 | C110: 99.59488982 | D110: 120.8433552 | E110: 8.061324721 | F110: 23.81539987 | G110: 31.38431612 | H110: 78.83603549 | I110: 3.05591162 | J110: 365.5912329 | L110: 2025 | M110: 105.4662648 | N110: 127.967545 | O110: 8.536571216 | P110: 25.2193631 | Q110: 33.23449919 | R110: 83.48356265 | S110: 3.236102432 | T110: 387.1439084 | V110: 2025 | W110: 93.72351486 | X110: 113.7191655 | Y110: 7.586078227 | Z110: 22.41143663 | AA110: 29.53413306 | AB110: 74.18850832 | AC110: 2.875720808 | AD110: 344.0385574
B111: 2026 | C111: 102.4377978 | D111: 122.909283 | E111: 8.200979467 | F111: 24.62964526 | G111: 32.3065159 | H111: 81.6082216 | I111: 2.829529636 | J111: 374.9219726 | L111: 2026 | M111: 108.3264804 | N111: 129.9749279 | O111: 8.672426239 | P111: 26.04547686 | Q111: 34.16366755 | R111: 86.29944869 | S111: 2.992220469 | T111: 396.4746481 | V111: 2026 | W111: 96.54911519 | X111: 115.843638 | Y111: 7.729532696 | Z111: 23.21381366 | AA111: 30.44936424 | AB111: 76.91699451 | AC111: 2.666838803 | AD111: 353.3692971
B112: 2027 | C112: 105.2727247 | D112: 124.9734273 | E112: 8.340504235 | F112: 25.44121244 | G112: 33.22604784 | H112: 84.39593101 | I112: 2.602974483 | J112: 384.2528219 | L112: 2027 | M112: 111.1774246 | N112: 131.9832689 | O112: 8.808328411 | P112: 26.86818524 | Q112: 35.08967936 | R112: 89.12960514 | S112: 2.749005731 | T112: 405.8054974 | V112: 2027 | W112: 99.36802466 | X112: 117.9635856 | Y112: 7.872680059 | Z112: 24.01423965 | AA112: 31.36241632 | AB112: 79.66225689 | AC112: 2.456943234 | AD112: 362.7001464
B113: 2028 | C113: 108.1004496 | D113: 127.0363466 | E113: 8.479937627 | F113: 26.2503295 | G113: 34.14316988 | H113: 87.19664792 | I113: 2.37668048 | J113: 393.5835616 | L113: 2028 | M113: 114.0200146 | N113: 133.9929661 | O113: 8.944306118 | P113: 27.68778136 | Q113: 36.0128425 | R113: 91.97147017 | S113: 2.506856351 | T113: 415.1362372 | V113: 2028 | W113: 102.1808846 | X113: 120.0797272 | Y113: 8.015569135 | Z113: 24.81287764 | AA113: 32.27349726 | AB113: 82.42182568 | AC113: 2.24650461 | AD113: 372.0308861
B114: 2029 | C114: 110.921563 | D114: 129.0983448 | E114: 8.61929979 | F114: 27.05717384 | G114: 35.05807119 | H114: 90.00807776 | I114: 2.151853226 | J114: 402.9143836 | L114: 2029 | M114: 116.8549494 | N114: 136.0041566 | O114: 9.080368765 | P114: 28.50449746 | Q114: 36.93338586 | R114: 94.82271441 | S114: 2.266986545 | T114: 424.4670591 | V114: 2029 | W114: 104.9881766 | X114: 122.1925329 | Y114: 8.158230815 | Z114: 25.60985023 | AA114: 33.18275651 | AB114: 85.19344111 | AC114: 2.036719906 | AD114: 381.3617081
C117: PETROQUIMICA MEDIO | M117: PETROQUIMICA ALTO | W117: PETROQUIMICA BAJO
C118: CENTRO | D118: COSTA | E118: CQR | F118: NORESTE | G118: NOROESTE | H118: SUROESTE | I118: TOLIMA GRANDE | J118: TOTAL | M118: CENTRO | N118: COSTA | O118: CQR | P118: NORESTE | Q118: NOROESTE | R118: SUROESTE | S118: TOLIMA GRANDE | T118: TOTAL | W118: CENTRO | X118: COSTA | Y118: CQR | Z118: NORESTE | AA118: NOROESTE | AB118: SUROESTE | AC118: TOLIMA GRANDE | AD118: TOTAL
B119: 1996 | D119: 11.14109976 | G119: 0.5400751084 | J119: 11.68117486 | L119: 1996 | N119: 11.14109976 | Q119: 0.5400751084 | T119: 11.68117486 | V119: 1996 | X119: 11.14109976 | AA119: 0.5400751084 | AD119: 11.68117486
B120: 1997 | D120: 15.05675207 | G120: 0.5665465641 | J120: 15.62329863 | L120: 1997 | N120: 15.05675207 | Q120: 0.5665465641 | T120: 15.62329863 | V120: 1997 | X120: 15.05675207 | AA120: 0.5665465641 | AD120: 15.62329863
B121: 1998 | D121: 11.17717871 | G121: 0.5417336165 | J121: 11.71891233 | L121: 1998 | N121: 11.17717871 | Q121: 0.5417336165 | T121: 11.71891233 | V121: 1998 | X121: 11.17717871 | AA121: 0.5417336165 | AD121: 11.71891233
B122: 1999 | D122: 8.951817867 | G122: 0.5089054206 | J122: 9.460723288 | L122: 1999 | N122: 8.951817867 | Q122: 0.5089054206 | T122: 9.460723288 | V122: 1999 | X122: 8.951817867 | AA122: 0.5089054206 | AD122: 9.460723288
B123: 2000 | D123: 10.1954966 | G123: 0.5196044972 | J123: 10.71510109 | L123: 2000 | N123: 10.1954966 | Q123: 0.5196044972 | T123: 10.71510109 | V123: 2000 | X123: 10.1954966 | AA123: 0.5196044972 | AD123: 10.71510109
B124: 2001 | D124: 10.39553212 | G124: 0.531238218 | J124: 10.92677034 | L124: 2001 | N124: 10.39553212 | Q124: 0.531238218 | T124: 10.92677034 | V124: 2001 | X124: 10.39553212 | AA124: 0.531238218 | AD124: 10.92677034
B125: 2002 | D125: 11.64828508 | G125: 0.5395833224 | J125: 12.1878684 | L125: 2002 | N125: 11.64828508 | Q125: 0.5395833224 | T125: 12.1878684 | V125: 2002 | X125: 11.64828508 | AA125: 0.5395833224 | AD125: 12.1878684
B126: 2003 | D126: 11.61014268 | G126: 0.5414308825 | J126: 12.15157356 | L126: 2003 | N126: 11.61014268 | Q126: 0.5414308825 | T126: 12.15157356 | V126: 2003 | X126: 11.61014268 | AA126: 0.5414308825 | AD126: 12.15157356
B127: 2004 | D127: 10.20626733 | G127: 0.5246237574 | J127: 10.73089108 | L127: 2004 | N127: 10.20626733 | Q127: 0.5246237574 | T127: 10.73089108 | V127: 2004 | X127: 10.20626733 | AA127: 0.5246237574 | AD127: 10.73089108
B128: 2005 | D128: 10.40057937 | G128: 0.5308672888 | J128: 10.93144666 | L128: 2005 | N128: 10.40057937 | Q128: 0.5308672888 | T128: 10.93144666 | V128: 2005 | X128: 10.40057937 | AA128: 0.5308672888 | AD128: 10.93144666
B129: 2006 | D129: 11.77519923 | G129: 0.5399363658 | J129: 12.31513559 | L129: 2006 | N129: 11.77519923 | Q129: 0.5399363658 | T129: 12.31513559 | V129: 2006 | X129: 11.77519923 | AA129: 0.5399363658 | AD129: 12.31513559
B130: 2007 | D130: 12.79614733 | G130: 0.5435475957 | J130: 13.33969493 | L130: 2007 | N130: 12.79614733 | Q130: 0.5435475957 | T130: 13.33969493 | V130: 2007 | X130: 12.79614733 | AA130: 0.5435475957 | AD130: 13.33969493
B131: 2008 | D131: 11.47179948 | G131: 0.5333741958 | J131: 12.00517368 | L131: 2008 | N131: 11.47179948 | Q131: 0.5333741958 | T131: 12.00517368 | V131: 2008 | X131: 11.47179948 | AA131: 0.5333741958 | AD131: 12.00517368
B132: 2009 | D132: 19.61011926 | G132: 0.6831599151 | J132: 20.29327917 | L132: 2009 | N132: 19.61011926 | Q132: 0.6831599151 | T132: 20.29327917 | V132: 2009 | X132: 19.61011926 | AA132: 0.6831599151 | AD132: 20.29327917
B133: 2010 | D133: 21.19948218 | G133: 0.6029830904 | J133: 21.80246527 | L133: 2010 | N133: 21.19948218 | Q133: 0.6029830904 | T133: 21.80246527 | V133: 2010 | X133: 21.19948218 | AA133: 0.6029830904 | AD133: 21.80246527
B134: 2011 | D134: 22.16314407 | G134: 0.514310389 | J134: 22.67745446 | L134: 2011 | N134: 22.16314407 | Q134: 0.514310389 | T134: 22.67745446 | V134: 2011 | X134: 22.16314407 | AA134: 0.514310389 | AD134: 22.67745446
B135: 2012 | D135: 18.30200804 | G135: 0.6161569454 | J135: 18.91816499 | L135: 2012 | N135: 18.30200804 | Q135: 0.6161569454 | T135: 18.91816499 | V135: 2012 | X135: 18.30200804 | AA135: 0.6161569454 | AD135: 18.91816499
B136: 2013 | D136: 21.23602494 | G136: 0.9027165713 | J136: 22.13874152 | L136: 2013 | N136: 21.23602494 | Q136: 0.9027165713 | T136: 22.13874152 | V136: 2013 | X136: 21.23602494 | AA136: 0.9027165713 | AD136: 22.13874152
B137: 2014 | D137: 19.19907332 | G137: 1.12159072 | J137: 20.32066404 | L137: 2014 | N137: 19.19907332 | Q137: 1.12159072 | T137: 20.32066404 | V137: 2014 | X137: 19.19907332 | AA137: 1.12159072 | AD137: 20.32066404
B138: 2015 | D138: 20.11340548 | G138: 1.116151781 | J138: 21.22955726 | L138: 2015 | N138: 24.81797039 | Q138: 1.357368175 | T138: 26.17533856 | V138: 2015 | X138: 15.40884057 | AA138: 0.8749353863 | AD138: 16.28377596
B139: 2016 | D139: 20.04809589 | G139: 1.116493425 | J139: 21.16458932 | L139: 2016 | N139: 24.7526608 | Q139: 1.357709819 | T139: 26.11037062 | V139: 2016 | X139: 15.34353098 | AA139: 0.8752770301 | AD139: 16.21880801
B140: 2017 | D140: 20.04131781 | G140: 1.120844932 | J140: 21.16216274 | L140: 2017 | N140: 24.74588272 | Q140: 1.362061326 | T140: 26.10794404 | V140: 2017 | X140: 15.3367529 | AA140: 0.879628537 | AD140: 16.21638144
B141: 2018 | D141: 20.04061918 | G141: 1.125168493 | J141: 21.16578767 | L141: 2018 | N141: 24.74518409 | Q141: 1.366384888 | T141: 26.11156898 | V141: 2018 | X141: 15.33605427 | AA141: 0.8839520986 | AD141: 16.22000637
B142: 2019 | D142: 20.04054795 | G142: 1.12949863 | J142: 21.17004658 | L142: 2019 | N142: 24.74511285 | Q142: 1.370715025 | T142: 26.11582788 | V142: 2019 | X142: 15.33598304 | AA142: 0.8882822356 | AD142: 16.22426527
B143: 2020 | D143: 20.04053699 | G143: 1.133829041 | J143: 21.17436603 | L143: 2020 | N143: 24.7451019 | Q143: 1.375045436 | T143: 26.12014733 | V143: 2020 | X143: 15.33597208 | AA143: 0.8926126466 | AD143: 16.22858472
B144: 2021 | D144: 20.04053699 | G144: 1.13816 | J144: 21.17869699 | L144: 2021 | N144: 24.7451019 | Q144: 1.379376395 | T144: 26.12447829 | V144: 2021 | X144: 15.33597208 | AA144: 0.8969436055 | AD144: 16.23291568
B145: 2022 | D145: 20.04053699 | G145: 1.142490959 | J145: 21.18302795 | L145: 2022 | N145: 24.7451019 | Q145: 1.383707353 | T145: 26.12880925 | V145: 2022 | X145: 15.33597208 | AA145: 0.9012745644 | AD145: 16.23724664
B146: 2023 | D146: 20.04053699 | G146: 1.146821918 | J146: 21.1873589 | L146: 2023 | N146: 24.7451019 | Q146: 1.388038312 | T146: 26.13314021 | V146: 2023 | X146: 15.33597208 | AA146: 0.9056055233 | AD146: 16.2415776
B147: 2024 | D147: 20.04053699 | G147: 1.151152877 | J147: 21.19168986 | L147: 2024 | N147: 24.7451019 | Q147: 1.392369271 | T147: 26.13747117 | V147: 2024 | X147: 15.33597208 | AA147: 0.9099364822 | AD147: 16.24590856
B148: 2025 | D148: 20.04053699 | G148: 1.155483836 | J148: 21.19602082 | L148: 2025 | N148: 24.7451019 | Q148: 1.39670023 | T148: 26.14180213 | V148: 2025 | X148: 15.33597208 | AA148: 0.9142674411 | AD148: 16.25023952
B149: 2026 | D149: 20.04053699 | G149: 1.159813699 | J149: 21.20035068 | L149: 2026 | N149: 24.7451019 | Q149: 1.401030093 | T149: 26.14613199 | V149: 2026 | X149: 15.33597208 | AA149: 0.9185973041 | AD149: 16.25456938
B150: 2027 | D150: 20.04053699 | G150: 1.164144658 | J150: 21.20468164 | L150: 2027 | N150: 24.7451019 | Q150: 1.405361052 | T150: 26.15046295 | V150: 2027 | X150: 15.33597208 | AA150: 0.922928263 | AD150: 16.25890034
B151: 2028 | D151: 20.04053699 | G151: 1.168475616 | J151: 21.2090126 | L151: 2028 | N151: 24.7451019 | Q151: 1.409692011 | T151: 26.15479391 | V151: 2028 | X151: 15.33597208 | AA151: 0.9272592219 | AD151: 16.2632313
B152: 2029 | D152: 20.04053699 | G152: 1.172806575 | J152: 21.21334356 | L152: 2029 | N152: 24.7451019 | Q152: 1.41402297 | T152: 26.15912487 | V152: 2029 | X152: 15.33597208 | AA152: 0.9315901808 | AD152: 16.26756226
C155: ECOPETROL MEDIO | M155: ECOPETROL ALTO | W155: ECOPETROL BAJO
C156: CENTRO | D156: COSTA | E156: CQR | F156: NORESTE | G156: NOROESTE | H156: SUROESTE | I156: TOLIMA GRANDE | J156: TOTAL | M156: CENTRO | N156: COSTA | O156: CQR | P156: NORESTE | Q156: NOROESTE | R156: SUROESTE | S156: TOLIMA GRANDE | T156: TOTAL | W156: CENTRO | X156: COSTA | Y156: CQR | Z156: NORESTE | AA156: NOROESTE | AB156: SUROESTE | AC156: TOLIMA GRANDE | AD156: TOTAL
B157: 1996 | C157: 14.08889414 | D157: 12.7511776 | F157: 82.46223154 | J157: 109.3023033 | L157: 1996 | M157: 14.08889414 | N157: 12.7511776 | P157: 82.46223154 | T157: 109.3023033 | V157: 1996 | W157: 14.08889414 | X157: 12.7511776 | Z157: 82.46223154 | AD157: 109.3023033
B158: 1997 | C158: 15.26904048 | D158: 12.66225205 | F158: 89.36962254 | J158: 117.3009151 | L158: 1997 | M158: 15.26904048 | N158: 12.66225205 | P158: 89.36962254 | T158: 117.3009151 | V158: 1997 | W158: 15.26904048 | X158: 12.66225205 | Z158: 89.36962254 | AD158: 117.3009151
B159: 1998 | C159: 15.20102742 | D159: 11.60449863 | F159: 88.97154244 | J159: 115.7770685 | L159: 1998 | M159: 15.20102742 | N159: 11.60449863 | P159: 88.97154244 | T159: 115.7770685 | V159: 1998 | W159: 15.20102742 | X159: 11.60449863 | Z159: 88.97154244 | AD159: 115.7770685
B160: 1999 | C160: 16.20757059 | D160: 13.46944658 | F160: 94.86283489 | J160: 124.5398521 | L160: 1999 | M160: 16.20757059 | N160: 13.46944658 | P160: 94.86283489 | T160: 124.5398521 | V160: 1999 | W160: 16.20757059 | X160: 13.46944658 | Z160: 94.86283489 | AD160: 124.5398521
B161: 2000 | C161: 15.76349952 | D161: 14.57952732 | F161: 92.263689 | J161: 122.6067158 | L161: 2000 | M161: 15.76349952 | N161: 14.57952732 | P161: 92.263689 | T161: 122.6067158 | V161: 2000 | W161: 15.76349952 | X161: 14.57952732 | Z161: 92.263689 | AD161: 122.6067158
B162: 2001 | C162: 13.27413688 | D162: 11.50363836 | F162: 77.69346111 | J162: 102.4712363 | L162: 2001 | M162: 13.27413688 | N162: 11.50363836 | P162: 77.69346111 | T162: 102.4712363 | V162: 2001 | W162: 13.27413688 | X162: 11.50363836 | Z162: 77.69346111 | AD162: 102.4712363
B163: 2002 | C163: 11.4478516 | D163: 12.41269863 | F163: 67.00422188 | J163: 90.86477211 | L163: 2002 | M163: 11.4478516 | N163: 12.41269863 | P163: 67.00422188 | T163: 90.86477211 | V163: 2002 | W163: 11.4478516 | X163: 12.41269863 | Z163: 67.00422188 | AD163: 90.86477211
B164: 2003 | C164: 10.80329791 | D164: 13.98698904 | F164: 63.23165218 | J164: 88.02193913 | L164: 2003 | M164: 10.80329791 | N164: 13.98698904 | P164: 63.23165218 | T164: 88.02193913 | V164: 2003 | W164: 10.80329791 | X164: 13.98698904 | Z164: 63.23165218 | AD164: 88.02193913
B165: 2004 | C165: 10.72898932 | D165: 13.19910491 | F165: 62.79672434 | J165: 86.72481857 | L165: 2004 | M165: 10.72898932 | N165: 13.19910491 | P165: 62.79672434 | T165: 86.72481857 | V165: 2004 | W165: 10.72898932 | X165: 13.19910491 | Z165: 62.79672434 | AD165: 86.72481857
B166: 2005 | C166: 11.02216027 | D166: 12.39753403 | F166: 64.51265252 | J166: 87.93234682 | L166: 2005 | M166: 11.02216027 | N166: 12.39753403 | P166: 64.51265252 | T166: 87.93234682 | V166: 2005 | W166: 11.02216027 | X166: 12.39753403 | Z166: 64.51265252 | AD166: 87.93234682
B167: 2006 | C167: 12.13792772 | D167: 13.83692268 | F167: 71.04323419 | J167: 97.01808459 | L167: 2006 | M167: 12.13792772 | N167: 13.83692268 | P167: 71.04323419 | T167: 97.01808459 | V167: 2006 | W167: 12.13792772 | X167: 13.83692268 | Z167: 71.04323419 | AD167: 97.01808459
B168: 2007 | C168: 12.9222118 | D168: 13.59105227 | F168: 75.63364524 | J168: 102.1469093 | L168: 2007 | M168: 12.9222118 | N168: 13.59105227 | P168: 75.63364524 | T168: 102.1469093 | V168: 2007 | W168: 12.9222118 | X168: 13.59105227 | Z168: 75.63364524 | AD168: 102.1469093
B169: 2008 | C169: 11.03454092 | D169: 12.71888637 | F169: 64.58511643 | J169: 88.33854372 | L169: 2008 | M169: 11.03454092 | N169: 12.71888637 | P169: 64.58511643 | T169: 88.33854372 | V169: 2008 | W169: 11.03454092 | X169: 12.71888637 | Z169: 64.58511643 | AD169: 88.33854372
B170: 2009 | C170: 8.270983526 | D170: 12.03733011 | F170: 78.94613141 | J170: 99.25444505 | L170: 2009 | M170: 8.270983526 | N170: 12.03733011 | P170: 78.94613141 | T170: 99.25444505 | V170: 2009 | W170: 8.270983526 | X170: 12.03733011 | Z170: 78.94613141 | AD170: 99.25444505
B171: 2010 | C171: 13.13021633 | D171: 11.76319061 | F171: 85.40046307 | J171: 110.29387 | L171: 2010 | M171: 13.13021633 | N171: 11.76319061 | P171: 85.40046307 | T171: 110.29387 | V171: 2010 | W171: 13.13021633 | X171: 11.76319061 | Z171: 85.40046307 | AD171: 110.29387
B172: 2011 | C172: 17.1304111 | D172: 14.17183609 | F172: 95.41396715 | J172: 126.7162143 | L172: 2011 | M172: 17.1304111 | N172: 14.17183609 | P172: 95.41396715 | T172: 126.7162143 | V172: 2011 | W172: 17.1304111 | X172: 14.17183609 | Z172: 95.41396715 | AD172: 126.7162143
B173: 2012 | C173: 19.52264759 | D173: 13.75384574 | F173: 97.26205731 | J173: 130.5385506 | L173: 2012 | M173: 19.52264759 | N173: 13.75384574 | P173: 97.26205731 | T173: 130.5385506 | V173: 2012 | W173: 19.52264759 | X173: 13.75384574 | Z173: 97.26205731 | AD173: 130.5385506
B174: 2013 | C174: 20.61432603 | D174: 13.79797611 | F174: 98.39856164 | J174: 132.8108638 | L174: 2013 | M174: 20.61432603 | N174: 13.79797611 | P174: 98.39856164 | T174: 132.8108638 | V174: 2013 | W174: 20.61432603 | X174: 13.79797611 | Z174: 98.39856164 | AD174: 132.8108638
B175: 2014 | C175: 19.9827589 | D175: 4.076424329 | F175: 95.26369041 | J175: 119.3228736 | L175: 2014 | M175: 19.9827589 | N175: 4.076424329 | P175: 95.26369041 | T175: 119.3228736 | V175: 2014 | W175: 19.9827589 | X175: 4.076424329 | Z175: 95.26369041 | AD175: 119.3228736
B176: 2015 | C176: 30.71850803 | D176: 68.90410959 | F176: 109.2 | J176: 208.8226176 | L176: 2015 | M176: 30.71850803 | N176: 68.90410959 | P176: 109.2 | T176: 208.8226176 | V176: 2015 | W176: 27.64665723 | X176: 62.01369863 | Z176: 98.28 | AD176: 187.9403559
B177: 2016 | C177: 37.22847345 | D177: 85 | F177: 103.2 | J177: 225.4284734 | L177: 2016 | M177: 37.22847345 | N177: 85 | P177: 103.2 | T177: 225.4284734 | V177: 2016 | W177: 33.5056261 | X177: 76.5 | Z177: 92.88 | AD177: 202.8856261
B178: 2017 | C178: 39.50783028 | D178: 85 | F178: 103.2 | J178: 227.7078303 | L178: 2017 | M178: 39.50783028 | N178: 85 | P178: 103.2 | T178: 227.7078303 | V178: 2017 | W178: 35.55704725 | X178: 76.5 | Z178: 92.88 | AD178: 204.9370472
B179: 2018 | C179: 145.5413928 | D179: 85 | F179: 103.2 | J179: 333.7413928 | L179: 2018 | M179: 145.5413928 | N179: 85 | P179: 103.2 | T179: 333.7413928 | V179: 2018 | W179: 130.9872535 | X179: 76.5 | Z179: 92.88 | AD179: 300.3672535
B180: 2019 | C180: 153.1333012 | D180: 85 | F180: 103.2 | J180: 341.3333012 | L180: 2019 | M180: 153.1333012 | N180: 85 | P180: 103.2 | T180: 341.3333012 | V180: 2019 | W180: 137.8199711 | X180: 76.5 | Z180: 92.88 | AD180: 307.1999711
B181: 2020 | C181: 159.4225104 | D181: 85 | F181: 191.0570492 | J181: 435.4795596 | L181: 2020 | M181: 159.4225104 | N181: 85 | P181: 191.0570492 | T181: 435.4795596 | V181: 2020 | W181: 143.4802594 | X181: 76.5 | Z181: 171.9513443 | AD181: 391.9316036
B182: 2021 | C182: 160.7316581 | D182: 85 | F182: 199.08 | J182: 444.8116581 | L182: 2021 | M182: 160.7316581 | N182: 85 | P182: 199.08 | T182: 444.8116581 | V182: 2021 | W182: 144.6584923 | X182: 76.5 | Z182: 179.172 | AD182: 400.3304923
B183: 2022 | C183: 160.9807955 | D183: 85 | F183: 199.08 | J183: 445.0607955 | L183: 2022 | M183: 160.9807955 | N183: 85 | P183: 199.08 | T183: 445.0607955 | V183: 2022 | W183: 144.8827159 | X183: 76.5 | Z183: 179.172 | AD183: 400.5547159
B184: 2023 | C184: 160.9807955 | D184: 85 | F184: 199.08 | J184: 445.0607955 | L184: 2023 | M184: 160.9807955 | N184: 85 | P184: 199.08 | T184: 445.0607955 | V184: 2023 | W184: 144.8827159 | X184: 76.5 | Z184: 179.172 | AD184: 400.5547159
B185: 2024 | C185: 160.9815145 | D185: 85 | F185: 199.08 | J185: 445.0615145 | L185: 2024 | M185: 160.9815145 | N185: 85 | P185: 199.08 | T185: 445.0615145 | V185: 2024 | W185: 144.8833631 | X185: 76.5 | Z185: 179.172 | AD185: 400.5553631
B186: 2025 | C186: 160.9807955 | D186: 85 | F186: 199.08 | J186: 445.0607955 | L186: 2025 | M186: 160.9807955 | N186: 85 | P186: 199.08 | T186: 445.0607955 | V186: 2025 | W186: 144.8827159 | X186: 76.5 | Z186: 179.172 | AD186: 400.5547159
B187: 2026 | C187: 160.9807955 | D187: 85 | F187: 199.08 | J187: 445.0607955 | L187: 2026 | M187: 160.9807955 | N187: 85 | P187: 199.08 | T187: 445.0607955 | V187: 2026 | W187: 144.8827159 | X187: 76.5 | Z187: 179.172 | AD187: 400.5547159
B188: 2027 | C188: 160.9807955 | D188: 85 | F188: 199.08 | J188: 445.0607955 | L188: 2027 | M188: 160.9807955 | N188: 85 | P188: 199.08 | T188: 445.0607955 | V188: 2027 | W188: 144.8827159 | X188: 76.5 | Z188: 179.172 | AD188: 400.5547159
B189: 2028 | C189: 160.9815145 | D189: 85 | F189: 199.08 | J189: 445.0615145 | L189: 2028 | M189: 160.9815145 | N189: 85 | P189: 199.08 | T189: 445.0615145 | V189: 2028 | W189: 144.8833631 | X189: 76.5 | Z189: 179.172 | AD189: 400.5553631
B190: 2029 | C190: 160.9822336 | D190: 85 | F190: 199.08 | J190: 445.0622336 | L190: 2029 | M190: 160.9822336 | N190: 85 | P190: 199.08 | T190: 445.0622336 | V190: 2029 | W190: 144.8840102 | X190: 76.5 | Z190: 179.172 | AD190: 400.5560102
C193: TRANSPORTE MEDIO | M193: TRANSPORTE ALTO | W193: TRANSPORTE BAJO
C194: CENTRO | D194: COSTA | E194: CQR | F194: NORESTE | G194: NOROESTE | H194: SUROESTE | I194: TOLIMA GRANDE | J194: TOTAL | M194: CENTRO | N194: COSTA | O194: CQR | P194: NORESTE | Q194: NOROESTE | R194: SUROESTE | S194: TOLIMA GRANDE | T194: TOTAL | W194: CENTRO | X194: COSTA | Y194: CQR | Z194: NORESTE | AA194: NOROESTE | AB194: SUROESTE | AC194: TOLIMA GRANDE | AD194: TOTAL
B195: 1996 | C195: 0.1914691939 | D195: 5.190083333 | E195: 0.04131697548 | F195: 0.01435362825 | G195: 0.03930647104 | H195: 0.09504709761 | I195: 0.03101073205 | J195: 5.602587432 | L195: 1996 | M195: 0.1914691939 | N195: 5.190083333 | O195: 0.04131697548 | P195: 0.01435362825 | Q195: 0.03930647104 | R195: 0.09504709761 | S195: 0.03101073205 | T195: 5.602587432 | V195: 1996 | W195: 0.1914691939 | X195: 5.190083333 | Y195: 0.04131697548 | Z195: 0.01435362825 | AA195: 0.03930647104 | AB195: 0.09504709761 | AC195: 0.03101073205 | AD195: 5.602587432
B196: 1997 | C196: 0.1097672684 | D196: 5.67525 | E196: 0.02368658604 | F196: 0.008228783607 | G196: 0.02253398506 | H196: 0.05448949806 | I196: 0.01777812544 | J196: 5.911734247 | L196: 1997 | M196: 0.1097672684 | N196: 5.67525 | O196: 0.02368658604 | P196: 0.008228783607 | Q196: 0.02253398506 | R196: 0.05448949806 | S196: 0.01777812544 | T196: 5.911734247 | V196: 1997 | W196: 0.1097672684 | X196: 5.67525 | Y196: 0.02368658604 | Z196: 0.008228783607 | AA196: 0.02253398506 | AB196: 0.05448949806 | AC196: 0.01777812544 | AD196: 5.911734247
B197: 1998 | C197: 0.1689155338 | D197: 5.668666667 | E197: 0.03645014022 | F197: 0.01266287661 | G197: 0.0346764584 | H197: 0.0838512499 | I197: 0.02735789633 | J197: 6.032580822 | L197: 1998 | M197: 0.1689155338 | N197: 5.668666667 | O197: 0.03645014022 | P197: 0.01266287661 | Q197: 0.0346764584 | R197: 0.0838512499 | S197: 0.02735789633 | T197: 6.032580822 | V197: 1998 | W197: 0.1689155338 | X197: 5.668666667 | Y197: 0.03645014022 | Z197: 0.01266287661 | AA197: 0.0346764584 | AB197: 0.0838512499 | AC197: 0.02735789633 | AD197: 6.032580822
B198: 1999 | C198: 0.2646321179 | D198: 5.7295 | E198: 0.05710474098 | F198: 0.01983834039 | G198: 0.05432599608 | H198: 0.131365857 | I198: 0.04286034496 | J198: 6.299627397 | L198: 1999 | M198: 0.2646321179 | N198: 5.7295 | O198: 0.05710474098 | P198: 0.01983834039 | Q198: 0.05432599608 | R198: 0.131365857 | S198: 0.04286034496 | T198: 6.299627397 | V198: 1999 | W198: 0.2646321179 | X198: 5.7295 | Y198: 0.05710474098 | Z198: 0.01983834039 | AA198: 0.05432599608 | AB198: 0.131365857 | AC198: 0.04286034496 | AD198: 6.299627397
B199: 2000 | C199: 0.3112524505 | D199: 6.46475 | E199: 0.06716490314 | F199: 0.02333326774 | G199: 0.06389662578 | H199: 0.1545086258 | I199: 0.05041106689 | J199: 7.13531694 | L199: 2000 | M199: 0.3112524505 | N199: 6.46475 | O199: 0.06716490314 | P199: 0.02333326774 | Q199: 0.06389662578 | R199: 0.1545086258 | S199: 0.05041106689 | T199: 7.13531694 | V199: 2000 | W199: 0.3112524505 | X199: 6.46475 | Y199: 0.06716490314 | Z199: 0.02333326774 | AA199: 0.06389662578 | AB199: 0.1545086258 | AC199: 0.05041106689 | AD199: 7.13531694
B200: 2001 | C200: 0.6302773005 | D200: 7.210333333 | E200: 0.1360070058 | F200: 0.0472491991 | G200: 0.1293888377 | H200: 0.3128755434 | I200: 0.1020809671 | J200: 8.568212187 | L200: 2001 | M200: 0.6302773005 | N200: 7.210333333 | O200: 0.1360070058 | P200: 0.0472491991 | Q200: 0.1293888377 | R200: 0.3128755434 | S200: 0.1020809671 | T200: 8.568212187 | V200: 2001 | W200: 0.6302773005 | X200: 7.210333333 | Y200: 0.1360070058 | Z200: 0.0472491991 | AA200: 0.1293888377 | AB200: 0.3128755434 | AC200: 0.1020809671 | AD200: 8.568212187
B201: 2002 | C201: 1.365459183 | D201: 7.490730694 | E201: 0.2946512827 | F201: 0.102362647 | G201: 0.2803134058 | H201: 0.6778267021 | I201: 0.2211524893 | J201: 10.4324964 | L201: 2002 | M201: 1.365459183 | N201: 7.490730694 | O201: 0.2946512827 | P201: 0.102362647 | Q201: 0.2803134058 | R201: 0.6778267021 | S201: 0.2211524893 | T201: 10.4324964 | V201: 2002 | W201: 1.365459183 | X201: 7.490730694 | Y201: 0.2946512827 | Z201: 0.102362647 | AA201: 0.2803134058 | AB201: 0.6778267021 | AC201: 0.2211524893 | AD201: 10.4324964
B202: 2003 | C202: 2.171715572 | D202: 8.467165683 | E202: 0.4686326671 | F202: 0.1628042472 | G202: 0.4458287701 | H202: 1.07805991 | I202: 0.35173538 | J202: 13.14594223 | L202: 2003 | M202: 2.171715572 | N202: 8.467165683 | O202: 0.4686326671 | P202: 0.1628042472 | Q202: 0.4458287701 | R202: 1.07805991 | S202: 0.35173538 | T202: 13.14594223 | V202: 2003 | W202: 2.171715572 | X202: 8.467165683 | Y202: 0.4686326671 | Z202: 0.1628042472 | AA202: 0.4458287701 | AB202: 1.07805991 | AC202: 0.35173538 | AD202: 13.14594223
B203: 2004 | C203: 5.118704026 | D203: 8.93010262 | E203: 1.104560814 | F203: 0.3837273935 | G203: 1.050812339 | H203: 2.540972526 | I203: 0.8290355005 | J203: 19.95791522 | L203: 2004 | M203: 5.118704026 | N203: 8.93010262 | O203: 1.104560814 | P203: 0.3837273935 | Q203: 1.050812339 | R203: 2.540972526 | S203: 0.8290355005 | T203: 19.95791522 | V203: 2004 | W203: 5.118704026 | X203: 8.93010262 | Y203: 1.104560814 | Z203: 0.3837273935 | AA203: 1.050812339 | AB203: 2.540972526 | AC203: 0.8290355005 | AD203: 19.95791522
B204: 2005 | C204: 8.692042975 | D204: 13.27953347 | E204: 1.875648605 | F204: 0.6516053629 | G204: 1.784378617 | H204: 4.314811381 | I204: 1.407780595 | J204: 32.00580101 | L204: 2005 | M204: 8.692042975 | N204: 13.27953347 | O204: 1.875648605 | P204: 0.6516053629 | Q204: 1.784378617 | R204: 4.314811381 | S204: 1.407780595 | T204: 32.00580101 | V204: 2005 | W204: 8.692042975 | X204: 13.27953347 | Y204: 1.875648605 | Z204: 0.6516053629 | AA204: 1.784378617 | AB204: 4.314811381 | AC204: 1.407780595 | AD204: 32.00580101
B205: 2006 | C205: 16.01037394 | D205: 15.2929331 | E205: 3.454865055 | F205: 1.200229399 | G205: 3.286749615 | H205: 7.947699278 | I205: 2.593072055 | J205: 49.78592244 | L205: 2006 | M205: 16.01037394 | N205: 15.2929331 | O205: 3.454865055 | P205: 1.200229399 | Q205: 3.286749615 | R205: 7.947699278 | S205: 2.593072055 | T205: 49.78592244 | V205: 2006 | W205: 16.01037394 | X205: 15.2929331 | Y205: 3.454865055 | Z205: 1.200229399 | AA205: 3.286749615 | AB205: 7.947699278 | AC205: 2.593072055 | AD205: 49.78592244
B206: 2007 | C206: 24.31060542 | D206: 17.90237001 | E206: 5.24596499 | F206: 1.822462327 | G206: 4.990693743 | H206: 12.06801177 | I206: 3.937394081 | J206: 70.27750235 | L206: 2007 | M206: 24.31060542 | N206: 17.90237001 | O206: 5.24596499 | P206: 1.822462327 | Q206: 4.990693743 | R206: 12.06801177 | S206: 3.937394081 | T206: 70.27750235 | V206: 2007 | W206: 24.31060542 | X206: 17.90237001 | Y206: 5.24596499 | Z206: 1.822462327 | AA206: 4.990693743 | AB206: 12.06801177 | AC206: 3.937394081 | AD206: 70.27750235
B207: 2008 | C207: 30.21632659 | D207: 18.48982951 | E207: 6.520355568 | F207: 2.265189037 | G207: 6.203071846 | H207: 14.99966696 | I207: 4.893896445 | J207: 83.58833596 | L207: 2008 | M207: 30.21632659 | N207: 18.48982951 | O207: 6.520355568 | P207: 2.265189037 | Q207: 6.203071846 | R207: 14.99966696 | S207: 4.893896445 | T207: 83.58833596 | V207: 2008 | W207: 30.21632659 | X207: 18.48982951 | Y207: 6.520355568 | Z207: 2.265189037 | AA207: 6.203071846 | AB207: 14.99966696 | AC207: 4.893896445 | AD207: 83.58833596
B208: 2009 | C208: 29.06580236 | D208: 17.70827007 | E208: 6.048863781 | F208: 3.031148488 | G208: 6.080667701 | H208: 15.34490974 | I208: 3.785016608 | J208: 81.06467875 | L208: 2009 | M208: 29.06580236 | N208: 17.70827007 | O208: 6.048863781 | P208: 3.031148488 | Q208: 6.080667701 | R208: 15.34490974 | S208: 3.785016608 | T208: 81.06467875 | V208: 2009 | W208: 29.06580236 | X208: 17.70827007 | Y208: 6.048863781 | Z208: 3.031148488 | AA208: 6.080667701 | AB208: 15.34490974 | AC208: 3.785016608 | AD208: 81.06467875
B209: 2010 | C209: 27.25060377 | D209: 16.55473442 | E209: 5.655330962 | F209: 2.445082507 | G209: 5.480156775 | H209: 14.50961433 | I209: 4.392131655 | J209: 76.28765443 | L209: 2010 | M209: 27.25060377 | N209: 16.55473442 | O209: 5.655330962 | P209: 2.445082507 | Q209: 5.480156775 | R209: 14.50961433 | S209: 4.392131655 | T209: 76.28765443 | V209: 2010 | W209: 27.25060377 | X209: 16.55473442 | Y209: 5.655330962 | Z209: 2.445082507 | AA209: 5.480156775 | AB209: 14.50961433 | AC209: 4.392131655 | AD209: 76.28765443
B210: 2011 | C210: 27.50099964 | D210: 16.40101555 | E210: 5.627256833 | F210: 2.307013819 | G210: 5.884765937 | H210: 14.39619839 | I210: 4.350041425 | J210: 76.46729159 | L210: 2011 | M210: 27.50099964 | N210: 16.40101555 | O210: 5.627256833 | P210: 2.307013819 | Q210: 5.884765937 | R210: 14.39619839 | S210: 4.350041425 | T210: 76.46729159 | V210: 2011 | W210: 27.50099964 | X210: 16.40101555 | Y210: 5.627256833 | Z210: 2.307013819 | AA210: 5.884765937 | AB210: 14.39619839 | AC210: 4.350041425 | AD210: 76.46729159
B211: 2012 | C211: 29.24811484 | D211: 16.49775949 | E211: 6.08373497 | F211: 1.935360705 | G211: 6.574655874 | H211: 11.7972573 | I211: 4.443518978 | J211: 76.58040216 | L211: 2012 | M211: 29.24811484 | N211: 16.49775949 | O211: 6.08373497 | P211: 1.935360705 | Q211: 6.574655874 | R211: 11.7972573 | S211: 4.443518978 | T211: 76.58040216 | V211: 2012 | W211: 29.24811484 | X211: 16.49775949 | Y211: 6.08373497 | Z211: 1.935360705 | AA211: 6.574655874 | AB211: 11.7972573 | AC211: 4.443518978 | AD211: 76.58040216
... 125 more rows

Sheet Demanda_Anual
F1: Histórico
F2: Proyectado | H2: Contenido
BX3: RESIDENCIAL | BZ3: GBTUD
BX4: COMERCIAL | BZ4: MPCD
C5: Sector de consumo | BX5: INDUSTRIAL
BX6: PETROQUIMICO | CC6: nf | CD6: nc | CE6: nd
C7: Unidad de energía | BX7: ECOPETROL | CB7: RESIDENCIAL | CC7: =+VLOOKUP($CB7,Anual!$AH$3:$AK$10,2,FALSE) -> 5 | CD7: =+VLOOKUP($CB7,Anual!$AH$3:$AK$10,3,FALSE) -> 3 | CE7: =+VLOOKUP($CB7,Anual!$AH$3:$AK$10,4,FALSE) -> 34
BX8: TRANSPORTE | CB8: GBTUD | CC8: =+VLOOKUP($CB8,Anual!$AM$3:$AN$4,2,FALSE) -> 1
A9: Fuente: Construcción UPME con datos de Ecopetrol, Chevron, CNO Gas y Concentra | BX9: TERMOELECTRICO
BX10: TOTAL
A11: AÑO | B11: Proyección Demanda Gas Natural - Escenario Medio - Revisión Marzo de 2015 | J11: AÑO | K11: Proyección Demanda Gas Natural - Escenario Alto - Revisión Marzo de 2015 | S11: AÑO | T11: Proyección Demanda Gas Natural - Escenario Bajo - Revisión Marzo de 2015
B12: CENTRO | C12: COSTA | D12: CQR | E12: NORESTE | F12: NOROESTE | G12: SUROESTE | H12: TOLIMA GRANDE | I12: TOTAL | K12: CENTRO | L12: COSTA | M12: CQR | N12: NORESTE | O12: NOROESTE | P12: SUROESTE | Q12: TOLIMA GRANDE | R12: TOTAL | T12: CENTRO | U12: COSTA | V12: CQR | W12: NORESTE | X12: NOROESTE | Y12: SUROESTE | Z12: TOLIMA GRANDE | AA12: TOTAL
A13: 1996 | B13: 13.44605695 | C13: 11.87627891 | D13: 1.062988005 | E13: 4.914872171 | F13: 1.048429284 | G13: 2.095257082 | H13: 2.108354075 | I13: 36.55223647 | J13: 1996 | K13: 13.44605695 | L13: 11.87627891 | M13: 1.062988005 | N13: 4.914872171 | O13: 1.048429284 | P13: 2.095257082 | Q13: 2.108354075 | R13: 36.55223647 | S13: 1996 | T13: 13.44605695 | U13: 11.87627891 | V13: 1.062988005 | W13: 4.914872171 | X13: 1.048429284 | Y13: 2.095257082 | Z13: 2.108354075 | AA13: 36.55223647
A14: 1997 | B14: 16.7201083 | C14: 13.27987708 | D14: 1.437118033 | E14: 5.585389568 | F14: 1.494021766 | G14: 2.774155486 | H14: 2.60249813 | I14: 43.89316837 | J14: 1997 | K14: 16.7201083 | L14: 13.27987708 | M14: 1.437118033 | N14: 5.585389568 | O14: 1.494021766 | P14: 2.774155486 | Q14: 2.60249813 | R14: 43.89316837 | S14: 1997 | T14: 16.7201083 | U14: 13.27987708 | V14: 1.437118033 | W14: 5.585389568 | X14: 1.494021766 | Y14: 2.774155486 | Z14: 2.60249813 | AA14: 43.89316837
A15: 1998 | B15: 20.83750407 | C15: 14.79033441 | D15: 1.959757247 | E15: 6.32718308 | F15: 2.157474379 | G15: 3.698481724 | H15: 3.217968342 | I15: 52.98870325 | J15: 1998 | K15: 20.83750407 | L15: 14.79033441 | M15: 1.959757247 | N15: 6.32718308 | O15: 2.157474379 | P15: 3.698481724 | Q15: 3.217968342 | R15: 52.98870325 | S15: 1998 | T15: 20.83750407 | U15: 14.79033441 | V15: 1.959757247 | W15: 6.32718308 | X15: 2.157474379 | Y15: 3.698481724 | Z15: 3.217968342 | AA15: 52.98870325
A16: 1999 | B16: 24.48937994 | C16: 16.02122909 | D16: 2.451982756 | E16: 6.940515715 | F16: 2.805936387 | G16: 4.556212434 | H16: 3.760906221 | I16: 61.02616254 | J16: 1999 | K16: 24.48937994 | L16: 16.02122909 | M16: 2.451982756 | N16: 6.940515715 | O16: 2.805936387 | P16: 4.556212434 | Q16: 3.760906221 | R16: 61.02616254 | S16: 1999 | T16: 24.48937994 | U16: 16.02122909 | V16: 2.451982756 | W16: 6.940515715 | X16: 2.805936387 | Y16: 4.556212434 | Z16: 3.760906221 | AA16: 61.02616254
A17: 2000 | B17: 26.85540588 | C17: 16.73291018 | D17: 2.79146637 | E17: 7.30351526 | F17: 3.269191696 | G17: 5.13915513 | H17: 4.110528009 | I17: 66.20217253 | J17: 2000 | K17: 26.85540588 | L17: 16.73291018 | M17: 2.79146637 | N17: 7.30351526 | O17: 3.269191696 | P17: 5.13915513 | Q17: 4.110528009 | R17: 66.20217253 | S17: 2000 | T17: 26.85540588 | U17: 16.73291018 | V17: 2.79146637 | W17: 7.30351526 | X17: 3.269191696 | Y17: 5.13915513 | Z17: 4.110528009 | AA17: 66.20217253
A18: 2001 | B18: 39.08966661 | C18: 19.95008829 | D18: 4.751933279 | E18: 8.976908193 | F18: 6.140037235 | G18: 8.413245574 | H18: 5.901084058 | I18: 93.22296325 | J18: 2001 | K18: 39.08966661 | L18: 19.95008829 | M18: 4.751933279 | N18: 8.976908193 | O18: 6.140037235 | P18: 8.413245574 | Q18: 5.901084058 | R18: 93.22296325 | S18: 2001 | T18: 39.08966661 | U18: 19.95008829 | V18: 4.751933279 | W18: 8.976908193 | X18: 6.140037235 | Y18: 8.413245574 | Z18: 5.901084058 | AA18: 93.22296325
A19: 2002 | B19: 43.1103191 | C19: 20.83276645 | D19: 5.474553084 | E19: 9.451818776 | F19: 7.272862412 | G19: 9.587023507 | H19: 6.483269169 | I19: 102.2126125 | J19: 2002 | K19: 43.1103191 | L19: 20.83276645 | M19: 5.474553084 | N19: 9.451818776 | O19: 7.272862412 | P19: 9.587023507 | Q19: 6.483269169 | R19: 102.2126125 | S19: 2002 | T19: 43.1103191 | U19: 20.83276645 | V19: 5.474553084 | W19: 9.451818776 | X19: 7.272862412 | Y19: 9.587023507 | Z19: 6.483269169 | AA19: 102.2126125
A20: 2003 | B20: 45.24951596 | C20: 21.30437432 | D20: 5.85773192 | E20: 9.705382112 | F20: 7.872186218 | G20: 10.2099761 | H20: 6.793110133 | I20: 106.9922768 | J20: 2003 | K20: 45.24951596 | L20: 21.30437432 | M20: 5.85773192 | N20: 9.705382112 | O20: 7.872186218 | P20: 10.2099761 | Q20: 6.793110133 | R20: 106.9922768 | S20: 2003 | T20: 45.24951596 | U20: 21.30437432 | V20: 5.85773192 | W20: 9.705382112 | X20: 7.872186218 | Y20: 10.2099761 | Z20: 6.793110133 | AA20: 106.9922768
A21: 2004 | B21: 45.28831243 | C21: 21.27584337 | D21: 5.874355836 | E21: 9.695407356 | F21: 7.905222848 | G21: 10.23369094 | H21: 6.797821828 | I21: 107.0706546 | J21: 2004 | K21: 45.28831243 | L21: 21.27584337 | M21: 5.874355836 | N21: 9.695407356 | O21: 7.905222848 | P21: 10.23369094 | Q21: 6.797821828 | R21: 107.0706546 | S21: 2004 | T21: 45.28831243 | U21: 21.27584337 | V21: 5.874355836 | W21: 9.695407356 | X21: 7.905222848 | Y21: 10.23369094 | Z21: 6.797821828 | AA21: 107.0706546
A22: 2005 | B22: 46.65426563 | C22: 21.59061298 | D22: 6.122636287 | E22: 9.861541445 | F22: 8.299574448 | G22: 10.63527845 | H22: 6.995611478 | I22: 110.1595207 | J22: 2005 | K22: 46.65426563 | L22: 21.59061298 | M22: 6.122636287 | N22: 9.861541445 | O22: 8.299574448 | P22: 10.63527845 | Q22: 6.995611478 | R22: 110.1595207 | S22: 2005 | T22: 46.65426563 | U22: 21.59061298 | V22: 6.122636287 | W22: 9.861541445 | X22: 8.299574448 | Y22: 10.63527845 | Z22: 6.995611478 | AA22: 110.1595207
A23: 2006 | B23: 50.46386074 | C23: 22.34516065 | D23: 6.854397891 | E23: 10.27537541 | F23: 9.49335546 | G23: 11.80485625 | H23: 7.543850171 | I23: 118.7808566 | J23: 2006 | K23: 50.46386074 | L23: 22.34516065 | M23: 6.854397891 | N23: 10.27537541 | O23: 9.49335546 | P23: 11.80485625 | Q23: 7.543850171 | R23: 118.7808566 | S23: 2006 | T23: 50.46386074 | U23: 22.34516065 | V23: 6.854397891 | W23: 10.27537541 | X23: 9.49335546 | Y23: 11.80485625 | Z23: 7.543850171 | AA23: 118.7808566
A24: 2007 | B24: 50.20445436 | C24: 22.28558595 | D24: 6.81013916 | E24: 10.24351425 | F24: 9.426920947 | G24: 11.73189536 | H24: 7.506147376 | I24: 118.2086574 | J24: 2007 | K24: 50.20445436 | L24: 22.28558595 | M24: 6.81013916 | N24: 10.24351425 | O24: 9.426920947 | P24: 11.73189536 | Q24: 7.506147376 | R24: 118.2086574 | S24: 2007 | T24: 50.20445436 | U24: 22.28558595 | V24: 6.81013916 | W24: 10.24351425 | X24: 9.426920947 | Y24: 11.73189536 | Z24: 7.506147376 | AA24: 118.2086574
A25: 2008 | B25: 48.27235173 | C25: 21.88579091 | D25: 6.435916405 | E25: 10.02797555 | F25: 8.810083673 | G25: 11.13573002 | H25: 7.228066695 | I25: 113.795915 | J25: 2008 | K25: 48.27235173 | L25: 21.88579091 | M25: 6.435916405 | N25: 10.02797555 | O25: 8.810083673 | P25: 11.13573002 | Q25: 7.228066695 | R25: 113.795915 | S25: 2008 | T25: 48.27235173 | U25: 21.88579091 | V25: 6.435916405 | W25: 10.02797555 | X25: 8.810083673 | Y25: 11.13573002 | Z25: 7.228066695 | AA25: 113.795915
A26: 2009 | B26: 45.71596528 | C26: 21.74491942 | D26: 5.820946392 | E26: 10.20618367 | F26: 8.735533392 | G26: 9.992804093 | H26: 6.621116058 | I26: 108.8374683 | J26: 2009 | K26: 45.71596528 | L26: 21.74491942 | M26: 5.820946392 | N26: 10.20618367 | O26: 8.735533392 | P26: 9.992804093 | Q26: 6.621116058 | R26: 108.8374683 | S26: 2009 | T26: 45.71596528 | U26: 21.74491942 | V26: 5.820946392 | W26: 10.20618367 | X26: 8.735533392 | Y26: 9.992804093 | Z26: 6.621116058 | AA26: 108.8374683
A27: 2010 | B27: 47.3330751 | C27: 22.40511115 | D27: 6.405407052 | E27: 10.52663979 | F27: 9.626739797 | G27: 11.10356021 | H27: 6.867401104 | I27: 114.2679342 | J27: 2010 | K27: 47.3330751 | L27: 22.40511115 | M27: 6.405407052 | N27: 10.52663979 | O27: 9.626739797 | P27: 11.10356021 | Q27: 6.867401104 | R27: 114.2679342 | S27: 2010 | T27: 47.3330751 | U27: 22.40511115 | V27: 6.405407052 | W27: 10.20618367 | X27: 9.626739797 | Y27: 11.10356021 | Z27: 6.867401104 | AA27: 113.9474781
A28: 2011 | B28: 49.95532432 | C28: 23.20220328 | D28: 6.995883085 | E28: 11.11485203 | F28: 10.93813028 | G28: 11.96463393 | H28: 7.517602641 | I28: 121.6886296 | J28: 2011 | K28: 49.95532432 | L28: 23.20220328 | M28: 6.995883085 | N28: 11.11485203 | O28: 10.93813028 | P28: 11.96463393 | Q28: 7.517602641 | R28: 121.6886296 | S28: 2011 | T28: 49.95532432 | U28: 23.20220328 | V28: 6.995883085 | W28: 10.52663979 | X28: 10.93813028 | Y28: 11.96463393 | Z28: 7.517602641 | AA28: 121.1004173
A29: 2012 | B29: 50.86950525 | C29: 23.48660745 | D29: 7.298072536 | E29: 11.17937268 | F29: 12.0778825 | G29: 12.57193559 | H29: 7.604576049 | I29: 125.0879521 | J29: 2012 | K29: 50.86950525 | L29: 23.48660745 | M29: 7.298072536 | N29: 11.17937268 | O29: 12.0778825 | P29: 12.57193559 | Q29: 7.604576049 | R29: 125.0879521 | S29: 2012 | T29: 50.86950525 | U29: 23.48660745 | V29: 7.298072536 | W29: 11.11485203 | X29: 12.0778825 | Y29: 12.57193559 | Z29: 7.604576049 | AA29: 125.0234314
A30: 2013 | B30: 52.36587018 | C30: 23.99339621 | D30: 7.959419625 | E30: 11.29061406 | F30: 13.41240473 | G30: 13.16242252 | H30: 7.878288212 | I30: 130.0624155 | J30: 2013 | K30: 52.36587018 | L30: 23.99339621 | M30: 7.959419625 | N30: 11.29061406 | O30: 13.41240473 | P30: 13.16242252 | Q30: 7.878288212 | R30: 130.0624155 | S30: 2013 | T30: 52.36587018 | U30: 23.99339621 | V30: 7.959419625 | W30: 11.17937268 | X30: 13.41240473 | Y30: 13.16242252 | Z30: 7.878288212 | AA30: 129.9511741
A31: 2014 | B31: 54.27734042 | C31: 23.99272161 | D31: 8.231263892 | E31: 11.31449257 | F31: 13.96243407 | G31: 14.21297218 | H31: 7.790433371 | I31: 133.7816581 | J31: 2014 | K31: 54.27734042 | L31: 23.99272161 | M31: 8.231263892 | N31: 11.31449257 | O31: 13.96243407 | P31: 14.21297218 | Q31: 7.790433371 | R31: 133.7816581 | S31: 2014 | T31: 54.27734042 | U31: 23.99272161 | V31: 8.231263892 | W31: 11.29061406 | X31: 13.96243407 | Y31: 14.21297218 | Z31: 7.790433371 | AA31: 133.7577796
A32: 2015 | B32: 56.2717863 | C32: 24.23191781 | D32: 9.435701096 | E32: 11.39926575 | F32: 14.69769589 | G32: 16.59263014 | H32: 7.975663562 | I32: 140.6046605 | J32: 2015 | K32: 58.96578214 | L32: 24.85685903 | M32: 10.13465621 | N32: 11.84564464 | O32: 15.5926248 | P32: 17.68068445 | Q32: 8.506691463 | R32: 147.5829427 | S32: 2015 | T32: 53.57779047 | U32: 23.60697659 | V32: 8.736745979 | W32: 10.95288687 | X32: 13.80276698 | Y32: 15.50457582 | Z32: 7.44463566 | AA32: 133.6263784
A33: 2016 | B33: 56.79106027 | C33: 24.57619178 | D33: 9.904143836 | E33: 11.52787123 | F33: 15.28924658 | G33: 17.06702192 | H33: 8.115064384 | I33: 143.2706 | J33: 2016 | K33: 59.48505611 | L33: 25.201133 | M33: 10.60309895 | N33: 11.97425012 | O33: 16.18417549 | P33: 18.15507623 | Q33: 8.646092285 | R33: 150.2488822 | S33: 2016 | T33: 54.09706444 | U33: 23.95125056 | V33: 9.205188719 | W33: 11.08149235 | X33: 14.39431766 | Y33: 15.9789676 | Z33: 7.584036482 | AA33: 136.2923178
A34: 2017 | B34: 58.07067397 | C34: 24.93723288 | D34: 10.41039836 | E34: 11.7467589 | F34: 15.88893425 | G34: 17.76265753 | H34: 8.273257534 | I34: 147.0899134 | J34: 2017 | K34: 60.76466981 | L34: 25.5621741 | M34: 11.10935347 | N34: 12.19313779 | O34: 16.78386316 | P34: 18.85071185 | Q34: 8.804285436 | R34: 154.0681956 | S34: 2017 | T34: 55.37667814 | U34: 24.31229166 | V34: 9.711443239 | W34: 11.30038002 | X34: 14.99400533 | Y34: 16.67460322 | Z34: 7.742229633 | AA34: 140.1116312
A35: 2018 | B35: 59.25928493 | C35: 25.3121863 | D35: 10.93804301 | E35: 11.95419178 | F35: 16.77350685 | G35: 18.46414247 | H35: 8.427118356 | I35: 151.1284737 | J35: 2018 | K35: 61.95328077 | L35: 25.93712752 | M35: 11.63699813 | N35: 12.40057067 | O35: 17.66843576 | P35: 19.55219678 | Q35: 8.958146258 | R35: 158.1067559 | S35: 2018 | T35: 56.5652891 | U35: 24.68724508 | V35: 10.2390879 | W35: 11.5078129 | X35: 15.87857794 | Y35: 17.37608815 | Z35: 7.896090455 | AA35: 144.1501915
A36: 2019 | B36: 60.40106027 | C36: 25.69908767 | D36: 11.47909589 | E36: 12.17150137 | F36: 17.51546575 | G36: 19.19432877 | H36: 8.589428767 | I36: 155.0499685 | J36: 2019 | K36: 63.09505611 | L36: 26.32402889 | M36: 12.17805101 | N36: 12.61788025 | O36: 18.41039467 | P36: 20.28238308 | Q36: 9.120456668 | R36: 162.0282507 | S36: 2019 | T36: 57.70706444 | U36: 25.07414645 | V36: 10.78014077 | W36: 11.72512249 | X36: 16.62053684 | Y36: 18.10627445 | Z36: 8.058400866 | AA36: 148.0716863
A37: 2020 | B37: 61.55886849 | C37: 26.0978137 | D37: 12.03269589 | E37: 12.39480822 | F37: 18.17963836 | G37: 19.94807123 | H37: 8.755701644 | I37: 158.9675975 | J37: 2020 | K37: 64.25286433 | L37: 26.72275492 | M37: 12.73165101 | N37: 12.8411871 | O37: 19.07456727 | P37: 21.03612555 | Q37: 9.286729545 | R37: 165.9458797 | S37: 2020 | T37: 58.86487266 | U37: 25.47287248 | V37: 11.33374077 | W37: 11.94842933 | X37: 17.28470944 | Y37: 18.86001692 | Z37: 8.224673742 | AA37: 151.9893153
A38: 2021 | B38: 62.69252329 | C38: 26.50809863 | D38: 12.59731781 | E38: 12.62431507 | F38: 18.863 | G38: 20.72323288 | H38: 8.926727397 | I38: 162.9352151 | J38: 2021 | K38: 65.38651912 | L38: 27.13303985 | M38: 13.29627292 | N38: 13.07069395 | O38: 19.75792891 | P38: 21.81128719 | Q38: 9.457755299 | R38: 169.9134973 | S38: 2021 | T38: 59.99852745 | U38: 25.88315741 | V38: 11.89836269 | W38: 12.17793618 | X38: 17.96807109 | Y38: 19.63517856 | Z38: 8.395699496 | AA38: 155.9569329
A39: 2022 | B39: 63.81272877 | C39: 26.92964932 | D39: 13.17153425 | E39: 12.85980822 | F39: 19.65777808 | G39: 21.51736986 | H39: 9.102395342 | I39: 167.0512638 | J39: 2022 | K39: 66.5067246 | L39: 27.55459054 | M39: 13.87048936 | N39: 13.3061871 | O39: 20.55270699 | P39: 22.60542418 | Q39: 9.633423244 | R39: 174.029546 | S39: 2022 | T39: 61.11873293 | U39: 26.30470809 | V39: 12.47257913 | W39: 12.41342933 | X39: 18.76284917 | Y39: 20.42931555 | Z39: 8.571367441 | AA39: 160.0729816
A40: 2023 | B40: 64.91309589 | C40: 27.36214521 | D40: 13.75399452 | E40: 13.10100548 | F40: 20.56052603 | G40: 22.32816438 | H40: 9.282563288 | I40: 171.3014948 | J40: 2023 | K40: 67.60709173 | L40: 27.98708643 | M40: 14.45294964 | N40: 13.54738436 | O40: 21.45545494 | P40: 23.4162187 | Q40: 9.813591189 | R40: 178.279777 | S40: 2023 | T40: 62.21910005 | U40: 26.73720398 | V40: 13.0550394 | W40: 12.6546266 | X40: 19.66559712 | Y40: 21.24011007 | Z40: 8.751535386 | AA40: 164.3232126
A41: 2024 | B41: 65.99163014 | C41: 27.80524658 | D41: 14.34347671 | E41: 13.34765479 | F41: 21.58564384 | G41: 23.15344932 | H41: 9.467153699 | I41: 175.6942551 | J41: 2024 | K41: 68.68562597 | L41: 28.4301878 | M41: 15.04243183 | N41: 13.79403368 | O41: 22.48057275 | P41: 24.24150363 | Q41: 9.9981816 | R41: 182.6725373 | S41: 2024 | T41: 63.2976343 | U41: 27.18030535 | V41: 13.6445216 | W41: 12.90127591 | X41: 20.69071492 | Y41: 22.065395 | Z41: 8.936125797 | AA41: 168.7159729
A42: 2025 | B42: 67.04633151 | C42: 28.25859178 | D42: 14.93887397 | E42: 13.59949863 | F42: 22.76038904 | G42: 23.99121096 | H42: 9.656052329 | I42: 180.2509482 | J42: 2025 | K42: 69.74032734 | L42: 28.883533 | M42: 15.63782909 | N42: 14.04587751 | O42: 23.65531795 | P42: 25.07926528 | Q42: 10.18708023 | R42: 187.2292304 | S42: 2025 | T42: 64.35233567 | U42: 27.63365056 | V42: 14.23991886 | W42: 13.15311975 | X42: 21.86546013 | Y42: 22.90315664 | Z42: 9.125024427 | AA42: 173.272666
A43: 2026 | B43: 68.07544658 | C43: 28.7218137 | D43: 15.53920274 | E43: 13.85625479 | F43: 24.08130411 | G43: 24.83963836 | H43: 9.849146027 | I43: 184.9628063 | J43: 2026 | K43: 70.76944241 | L43: 29.34675492 | M43: 16.23815786 | N43: 14.30263368 | O43: 24.97623302 | P43: 25.92769267 | Q43: 10.38017393 | R43: 191.9410885 | S43: 2026 | T43: 65.38145074 | U43: 28.09687248 | V43: 14.84024762 | W43: 13.40987591 | X43: 23.1863752 | Y43: 23.75158404 | Z43: 9.318118126 | AA43: 177.9845241
A44: 2027 | B44: 69.0777726 | C44: 29.19452603 | D44: 16.14359452 | E44: 14.11766575 | F44: 25.5221726 | G44: 25.69711781 | H44: 10.04631342 | I44: 189.7991627 | J44: 2027 | K44: 71.77176844 | L44: 29.81946725 | M44: 16.84254964 | N44: 14.56404464 | O44: 26.41710151 | P44: 26.78517212 | Q44: 10.57734133 | R44: 196.7774449 | S44: 2027 | T44: 66.38377677 | U44: 28.56958481 | V44: 15.4446394 | W44: 13.67128687 | X44: 24.62724369 | Y44: 24.60906349 | Z44: 9.515285523 | AA44: 182.8208806
A45: 2028 | B45: 70.05245479 | C45: 29.67633699 | D45: 16.75131781 | E45: 14.38345479 | F45: 27.03527671 | G45: 26.5622274 | H45: 10.24742849 | I45: 194.708497 | J45: 2028 | K45: 72.74645063 | L45: 30.30127821 | M45: 17.45027292 | N45: 14.82983368 | O45: 27.93020562 | P45: 27.65028171 | Q45: 10.77845639 | R45: 201.6867792 | S45: 2028 | T45: 67.35845896 | U45: 29.05139577 | V45: 16.05236269 | W45: 13.93707591 | X45: 26.1403478 | Y45: 25.47417308 | Z45: 9.716400592 | AA45: 187.7302148
A46: 2029 | B46: 70.99901096 | C46: 30.16685753 | D46: 17.36172877 | E46: 14.65335616 | F46: 28.65999178 | G46: 27.43373973 | H46: 10.45236219 | I46: 199.7270471 | J46: 2029 | K46: 73.69300679 | L46: 30.79179876 | M46: 18.06068388 | N46: 15.09973505 | O46: 29.55492069 | P46: 28.52179404 | Q46: 10.98339009 | R46: 206.7053293 | S46: 2029 | T46: 68.30501512 | U46: 29.54191631 | V46: 16.66277365 | W46: 14.20697728 | X46: 27.76506287 | Y46: 26.34568541 | Z46: 9.92133429 | AA46: 192.7487649

Sheet Mensual (hidden)
AI2: nf | AJ2: nc | AK2: nd | AO2: CENTRO | AP2: COSTA | AQ2: CQR | AR2: NORESTE | AS2: NOROESTE | AT2: SUROESTE | AU2: TG
C3: RESIDENCIAL MEDIO | M3: RESIDENCIAL ALTO | W3: RESIDENCIAL BAJO | AH3: RESIDENCIAL | AI3: 5 | AJ3: 3 | AK3: 180 | AM3: GBTUD | AN3: 1 | AO3: 1 | AP3: 1 | AQ3: 1 | AR3: 1 | AS3: 1 | AT3: 1 | AU3: 1
C4: CENTRO | D4: COSTA | E4: CQR | F4: NORESTE | G4: NOROESTE | H4: SUROESTE | I4: TOLIMA GRANDE | J4: TOTAL | M4: CENTRO | N4: COSTA | O4: CQR | P4: NORESTE | Q4: NOROESTE | R4: SUROESTE | S4: TOLIMA GRANDE | T4: TOTAL | W4: CENTRO | X4: COSTA | Y4: CQR | Z4: NORESTE | AA4: NOROESTE | AB4: SUROESTE | AC4: TOLIMA GRANDE | AD4: TOTAL | AH4: COMERCIAL | AI4: 189 | AJ4: 3 | AK4: 180 | AM4: MPCD | AN4: 2 | AO4: 1.13 | AP4: 0.997 | AQ4: 1.13 | AR4: 1.06 | AS4: 1.13 | AT4: 1.13 | AU4: 1.13
B5: 2015-01-01 | C5: 53.05685697 | D5: 23.16250594 | E5: 8.837705928 | F5: 10.89275565 | G5: 13.95267472 | H5: 15.64222028 | I5: 7.690240226 | J5: 133.2349597 | L5: 2015-01-01 | M5: 55.64454034 | N5: 23.76278526 | O5: 9.509078358 | P5: 11.3215192 | Q5: 14.81228728 | R5: 16.68733698 | S5: 8.20031231 | T5: 139.9378597 | V5: 2015-01-01 | W5: 50.4691736 | X5: 22.56222661 | Y5: 8.166333498 | Z5: 10.4639921 | AA5: 13.09306215 | AB5: 14.59710357 | AC5: 7.180168143 | AD5: 126.5320597 | AH5: INDUSTRIAL | AI5: 373 | AJ5: 3 | AK5: 180
B6: 2015-02-01 | C6: 60.78677741 | D6: 26.53708065 | E6: 10.12528246 | F6: 12.47973497 | G6: 15.9854575 | H6: 17.92115509 | I6: 8.810641029 | J6: 152.6461291 | L6: 2015-02-01 | M6: 63.75146363 | N6: 27.22481543 | O6: 10.89446798 | P6: 12.97096562 | Q6: 16.9703081 | R6: 19.11853617 | S6: 9.395026158 | T6: 160.3255831 | V6: 2015-02-01 | W6: 57.82209118 | X6: 25.84934587 | Y6: 9.356096929 | Z6: 11.98850432 | AA6: 15.0006069 | AB6: 16.72377401 | AC6: 8.226255899 | AD6: 144.9666751 | AH6: PETROQUIMICO | AI6: 557 | AJ6: 3 | AK6: 180
B7: 2015-03-01 | C7: 54.63069892 | D7: 23.84958251 | E7: 9.099861531 | F7: 11.21587083 | G7: 14.36655722 | H7: 16.10622029 | I7: 7.918358199 | J7: 137.1871495 | L7: 2015-03-01 | M7: 57.29514154 | N7: 24.46766811 | O7: 9.791149089 | P7: 11.65735292 | Q7: 15.25166873 | R7: 17.18233862 | S7: 8.443560709 | T7: 144.0888797 | V7: 2015-03-01 | W7: 51.9662563 | X7: 23.23149691 | Y7: 8.408573973 | Z7: 10.77438873 | AA7: 13.4814457 | AB7: 15.03010196 | AC7: 7.39315569 | AD7: 130.2854193 | AH7: ECOPETROL | AI7: 741 | AJ7: 3 | AK7: 180
B8: 2015-04-01 | C8: 57.15838524 | D8: 24.53801478 | E8: 9.541349994 | F8: 11.58037995 | G8: 14.76865841 | H8: 16.91317569 | I8: 8.046354563 | J8: 142.5463186 | L8: 2015-04-01 | M8: 59.89275233 | N8: 25.17232114 | O8: 10.2507794 | P8: 12.03344811 | Q8: 15.67699841 | R8: 18.0175352 | S8: 8.585340258 | T8: 149.6291749 | V8: 2015-04-01 | W8: 54.42401815 | X8: 23.90370841 | Y8: 8.831920587 | Z8: 11.1273118 | AA8: 13.86031842 | AB8: 15.80881618 | AC8: 7.507368868 | AD8: 135.4634624 | AH8: TRANSPORTE | AI8: 925 | AJ8: 3 | AK8: 180
B9: 2015-05-01 | C9: 54.75959985 | D9: 23.50821957 | E9: 9.140924914 | F9: 11.09438221 | G9: 14.1488571 | H9: 16.20337469 | I9: 7.708670465 | J9: 136.5640288 | L9: 2015-05-01 | M9: 57.37921283 | N9: 24.11590578 | O9: 9.820581456 | P9: 11.5284363 | Q9: 15.01907648 | R9: 17.26138717 | S9: 8.225036364 | T9: 143.3496364 | V9: 2015-05-01 | W9: 52.13998688 | X9: 22.90053335 | Y9: 8.461268372 | Z9: 10.66032812 | AA9: 13.27863772 | AB9: 15.14536222 | AC9: 7.192304566 | AD9: 129.7784212 | AH9: TERMOELECTRICO | AI9: 1109 | AJ9: 3 | AK9: 180
B10: 2015-06-01 | C10: 57.54656157 | D10: 24.70465833 | E10: 9.606147595 | F10: 11.6590251 | G10: 14.86895592 | H10: 17.02803713 | I10: 8.10099929 | J10: 143.5143849 | L10: 2015-06-01 | M10: 60.29949841 | N10: 25.34327243 | O10: 10.32039491 | P10: 12.11517015 | Q10: 15.78346467 | R10: 18.13989661 | S10: 8.643645366 | T10: 150.6453425 | V10: 2015-06-01 | W10: 54.79362474 | X10: 24.06604424 | Y10: 8.891900282 | Z10: 11.20288004 | AA10: 13.95444717 | AB10: 15.91617765 | AC10: 7.558353214 | AD10: 136.3834273 | AH10: TOTAL | AI10: 1293 | AJ10: 3 | AK10: 180
B11: 2015-07-01 | C11: 55.65274697 | D11: 23.8029702 | E11: 9.333438214 | F11: 11.19548642 | G11: 14.47868622 | H11: 16.37096918 | I11: 7.810503813 | J11: 138.644801 | L11: 2015-07-01 | M11: 58.29401289 | N11: 24.41567937 | O11: 10.01871259 | P11: 11.63312828 | Q11: 15.35609858 | R11: 17.43772687 | S11: 8.331137839 | T11: 145.4864964 | V11: 2015-07-01 | W11: 53.01148105 | X11: 23.19026103 | Y11: 8.648163834 | Z11: 10.75784457 | AA11: 13.60127386 | AB11: 15.30421149 | AC11: 7.289869787 | AD11: 131.8031056
B12: 2015-08-01 | C12: 55.49981627 | D12: 23.73756094 | E12: 9.307790437 | F12: 11.16472184 | G12: 14.43889958 | H12: 16.32598265 | I12: 7.789040976 | J12: 138.2638127 | L12: 2015-08-01 | M12: 58.13382413 | N12: 24.34858642 | O12: 9.991181721 | P12: 11.60116108 | Q12: 15.31390086 | R12: 17.38980896 | S12: 8.308244328 | T12: 145.0867075 | V12: 2015-08-01 | W12: 52.8658084 | X12: 23.12653547 | Y12: 8.624399153 | Z12: 10.7282826 | AA12: 13.56389831 | AB12: 15.26215635 | AC12: 7.269837624 | AD12: 131.4409179
B13: 2015-09-01 | C13: 57.79888466 | D13: 24.72088449 | E13: 9.693363727 | F13: 11.62721813 | G13: 15.03702801 | H13: 17.0022831 | I13: 8.111700385 | J13: 143.9913625 | L13: 2015-09-01 | M13: 60.54200575 | N13: 25.35722157 | O13: 10.40506435 | P13: 12.08173677 | Q13: 15.94827603 | R13: 18.11017819 | S13: 8.652411628 | T13: 151.0968943 | V13: 2015-09-01 | W13: 55.05576356 | X13: 24.0845474 | Y13: 8.981663101 | Z13: 11.17269948 | AA13: 14.12577998 | AB13: 15.89438802 | AC13: 7.570989141 | AD13: 136.8858307
B14: 2015-10-01 | C14: 55.50895603 | D14: 23.81761836 | E14: 9.407662393 | F14: 11.17409423 | G14: 14.61394696 | H14: 16.35224964 | I14: 7.824412926 | J14: 138.6989405 | L14: 2015-10-01 | M14: 58.1430061 | N14: 24.42865363 | O14: 10.09106463 | P14: 11.61054046 | Q14: 15.48896226 | R14: 17.41609299 | S14: 8.343624596 | T14: 145.5219447 | V14: 2015-10-01 | W14: 52.87490597 | X14: 23.2065831 | Y14: 8.724260161 | Z14: 10.73764799 | AA14: 13.73893167 | AB14: 15.2884063 | AC14: 7.305201255 | AD14: 131.8759364
B15: 2015-11-01 | C15: 57.42046277 | D15: 24.63780201 | E15: 9.731624712 | F15: 11.5588854 | G15: 15.11719293 | H15: 16.91535581 | I15: 8.093854456 | J15: 143.4751781 | L15: 2015-11-01 | M15: 60.145219 | N15: 25.26987889 | O15: 10.43856059 | P15: 12.0103611 | Q15: 16.02234025 | R15: 18.01583367 | S15: 8.630945702 | T15: 150.5331392 | V15: 2015-11-01 | W15: 54.69570655 | X15: 24.00572513 | Y15: 9.024688836 | Z15: 11.10740971 | AA15: 14.2120456 | AB15: 15.81487795 | AC15: 7.55676321 | AD15: 136.417217
B16: 2015-12-01 | C16: 56.03466064 | D16: 24.04318614 | E16: 9.496758853 | F16: 11.2799199 | G16: 14.7523502 | H16: 16.5071157 | I16: 7.89851502 | J16: 140.0125065 | L16: 2015-12-01 | M16: 58.69365681 | N16: 24.66000829 | O16: 10.18663333 | P16: 11.72049955 | Q16: 15.63565244 | R16: 17.58103431 | S16: 8.42264395 | T16: 146.9001287 | V16: 2015-12-01 | W16: 53.37566447 | X16: 23.42636399 | Y16: 8.806884373 | Z16: 10.83934025 | AA16: 13.86904796 | AB16: 15.43319709 | AC16: 7.37438609 | AD16: 133.1248842
B17: 2016-01-01 | C17: 54.07205385 | D17: 23.48274525 | E17: 9.343857461 | F17: 11.00234718 | G17: 14.47721586 | H17: 16.15412845 | I17: 7.730552191 | J17: 136.2629003 | L17: 2016-01-01 | M17: 56.65996272 | N17: 24.08307689 | O17: 10.0152884 | P17: 11.4311481 | Q17: 15.33690334 | R17: 17.19933624 | S17: 8.240668725 | T17: 142.9663844 | V17: 2016-01-01 | W17: 51.48414498 | X17: 22.88241362 | Y17: 8.672426524 | Z17: 10.57354627 | AA17: 13.61752839 | AB17: 15.10892067 | AC17: 7.220435658 | AD17: 129.5594161
B18: 2016-02-01 | C18: 59.85871889 | D18: 25.99581386 | E18: 10.34381528 | F18: 12.17979271 | G18: 16.02653373 | H18: 17.88290559 | I18: 8.557857849 | J18: 150.8454379 | L18: 2016-02-01 | M18: 62.72357973 | N18: 26.66039159 | O18: 11.08710119 | P18: 12.65448289 | Q18: 16.97822295 | R18: 19.03996907 | S18: 9.122565864 | T18: 158.2663133 | V18: 2016-02-01 | W18: 56.99385805 | X18: 25.33123613 | Y18: 9.600529375 | Z18: 11.70510252 | AA18: 15.07484451 | AB18: 16.7258421 | AC18: 7.993149834 | AD18: 143.4245625
B19: 2016-03-01 | C19: 55.61943493 | D19: 24.15475146 | E19: 9.611250822 | F19: 11.31720158 | G19: 14.89151065 | H19: 16.61641148 | I19: 7.951777563 | J19: 140.1623385 | L19: 2016-03-01 | M19: 58.28140205 | N19: 24.7722628 | O19: 10.30189611 | P19: 11.7582735 | Q19: 15.77579982 | R19: 17.69153 | S19: 8.476492112 | T19: 147.0576564 | V19: 2016-03-01 | W19: 52.95746782 | X19: 23.53724012 | Y19: 8.920605532 | Z19: 10.87612966 | AA19: 14.00722148 | AB19: 15.54129296 | AC19: 7.427063014 | AD19: 133.2670206
B20: 2016-04-01 | C20: 57.3774303 | D20: 24.82879293 | E20: 9.959993134 | F20: 11.63589115 | G20: 15.39838306 | H20: 17.17617584 | I20: 8.19260445 | J20: 144.5692709 | L20: 2016-04-01 | M20: 60.10409414 | N20: 25.46131233 | O20: 10.66742394 | P20: 12.08768293 | Q20: 16.30416408 | R20: 18.27742415 | S20: 8.730071717 | T20: 151.6321733 | V20: 2016-04-01 | W20: 54.65076646 | X20: 24.19627352 | Y20: 9.252562328 | Z20: 11.18409938 | AA20: 14.49260203 | AB20: 16.07492753 | AC20: 7.655137183 | AD20: 137.5063684
B21: 2016-05-01 | C21: 55.36392408 | D21: 23.95749338 | E21: 9.610474027 | F21: 11.22756092 | G21: 14.85801832 | H21: 16.57342426 | I21: 7.905107085 | J21: 139.4960021 | L21: 2016-05-01 | M21: 57.994903 | N21: 24.56781622 | O21: 10.29307946 | P21: 11.66349829 | Q21: 15.7320134 | R21: 17.63602723 | S21: 8.423713387 | T21: 146.311051 | V21: 2016-05-01 | W21: 52.73294515 | X21: 23.34717054 | Y21: 8.927868599 | Z21: 10.79162356 | AA21: 13.98402324 | AB21: 15.51082129 | AC21: 7.386500783 | AD21: 132.6809532
B22: 2016-06-01 | C22: 57.84524816 | D22: 25.03123058 | E22: 10.04120037 | F22: 11.73076256 | G22: 15.52393135 | H22: 17.31621909 | I22: 8.259401562 | J22: 145.7479937 | L22: 2016-06-01 | M22: 60.59414342 | N22: 25.66890713 | O22: 10.7543991 | P22: 12.18623795 | Q22: 16.43709752 | R22: 18.42644626 | S22: 8.801250984 | T22: 152.8684824 | V22: 2016-06-01 | W22: 55.09635289 | X22: 24.39355404 | Y22: 9.32800164 | Z22: 11.27528717 | AA22: 14.61076518 | AB22: 16.20599192 | AC22: 7.717552141 | AD22: 138.627505
B23: 2016-07-01 | C23: 55.80125695 | D23: 24.12577297 | E23: 9.761992568 | F23: 11.31981442 | G23: 15.05468251 | H23: 16.80633188 | I23: 7.975553564 | J23: 140.8454049 | L23: 2016-07-01 | M23: 58.44124345 | N23: 24.73818535 | O23: 10.44693501 | P23: 11.75724428 | Q23: 15.93166986 | R23: 17.87257284 | S23: 8.495935398 | T23: 147.6837862 | V23: 2016-07-01 | W23: 53.16127044 | X23: 23.51336059 | Y23: 9.077050129 | Z23: 10.88238455 | AA23: 14.17769517 | AB23: 15.74009092 | AC23: 7.45517173 | AD23: 134.0070235
B24: 2016-08-01 | C24: 55.74925818 | D24: 24.10329121 | E24: 9.752895792 | F24: 11.30926597 | G24: 15.04065371 | H24: 16.79067079 | I24: 7.968121492 | J24: 140.7141571 | L24: 2016-08-01 | M24: 58.3867846 | N24: 24.71513291 | O24: 10.43719996 | P24: 11.74628822 | Q24: 15.91682382 | R24: 17.85591817 | S24: 8.488018405 | T24: 147.5461661 | V24: 2016-08-01 | W24: 53.11173177 | X24: 23.49144952 | Y24: 9.068591621 | Z24: 10.87224373 | AA24: 14.16448359 | AB24: 15.72542341 | AC24: 7.448224579 | AD24: 133.8821482
B25: 2016-09-01 | C25: 57.93230103 | D25: 25.04713368 | E25: 10.13480203 | F25: 11.75211693 | G25: 15.62961924 | H25: 17.44816391 | I25: 8.280139109 | J25: 146.2242759 | L25: 2016-09-01 | M25: 60.67310834 | N25: 25.68293402 | O25: 10.84590235 | P25: 12.20625219 | Q25: 16.54009864 | R25: 18.5551245 | S25: 8.82039427 | T25: 153.3238143 | V25: 2016-09-01 | W25: 55.19149372 | X25: 24.41133334 | Y25: 9.423701711 | Z25: 11.29798167 | AA25: 14.71913984 | AB25: 16.34120332 | AC25: 7.739883947 | AD25: 139.1247375
B26: 2016-10-01 | C26: 56.04562406 | D26: 24.19198588 | E26: 9.876356394 | F26: 11.36742894 | G26: 15.18537406 | H26: 16.9687499 | I26: 8.008574151 | J26: 141.6440934 | L26: 2016-10-01 | M26: 58.68327994 | N26: 24.80385761 | O26: 10.56069415 | P26: 11.80447263 | Q26: 16.06158718 | R26: 18.03404956 | S26: 8.528496582 | T26: 148.4764377 | V26: 2016-10-01 | W26: 53.40796819 | X26: 23.58011416 | Y26: 9.192018635 | Z26: 10.93038525 | AA26: 14.30916094 | AB26: 15.90345023 | AC26: 7.488651719 | AD26: 134.8117491
B27: 2016-11-01 | C27: 57.94890602 | D27: 25.01353388 | E27: 10.21175262 | F27: 11.75346126 | G27: 15.70106193 | H27: 17.54500034 | I27: 8.280541409 | J27: 146.4542575 | L27: 2016-11-01 | M27: 60.67613541 | N27: 25.64618447 | O27: 10.91933016 | P27: 12.20534674 | Q27: 16.60703082 | R27: 18.64647706 | S27: 8.818120152 | T27: 153.5186248 | V27: 2016-11-01 | W27: 55.22167664 | X27: 24.38088329 | Y27: 9.504175089 | Z27: 11.30157578 | AA27: 14.79509304 | AB27: 16.44352362 | AC27: 7.742962666 | AD27: 139.3898901
B28: 2016-12-01 | C28: 56.37159591 | D28: 24.332691 | E28: 9.933799133 | F28: 11.43354403 | G28: 15.27369504 | H28: 17.06744332 | I28: 8.055153518 | J28: 142.467922 | L28: 2016-12-01 | M28: 59.02459289 | N28: 24.94812149 | O28: 10.62211713 | P28: 11.87312966 | Q28: 16.15500438 | R28: 18.13893897 | S28: 8.578099916 | T28: 149.3400044 | V28: 2016-12-01 | W28: 53.71859893 | X28: 23.71726052 | Y28: 9.245481137 | Z28: 10.99395841 | AA28: 14.3923857 | AB28: 15.99594768 | AC28: 7.53220712 | AD28: 135.5958395
B29: 2017-01-01 | C29: 55.1272163 | D29: 23.78806964 | E29: 9.798863923 | F29: 11.19190364 | G29: 15.01545066 | H29: 16.79221795 | I29: 7.88274683 | J29: 139.596469 | L29: 2017-01-01 | M29: 57.71136266 | N29: 24.38752847 | O29: 10.46931868 | P29: 11.62008112 | Q29: 15.87388825 | R29: 17.83590613 | S29: 8.392121715 | T29: 146.290207 | V29: 2017-01-01 | W29: 52.54306995 | X29: 23.18861082 | Y29: 9.128409168 | Z29: 10.76372615 | AA29: 14.15701308 | AB29: 15.74852978 | AC29: 7.373371946 | AD29: 132.9027309
B30: 2017-02-01 | C30: 63.5056665 | D30: 27.40347361 | E30: 11.28813363 | F30: 12.89289297 | G30: 17.29755765 | H30: 19.34436499 | I30: 9.080797559 | J30: 160.8128869 | L30: 2017-02-01 | M30: 66.48256153 | N30: 28.09404054 | O30: 12.06048672 | P30: 13.38614655 | Q30: 18.28646394 | R30: 20.54667698 | S30: 9.667589233 | T30: 168.5239655 | V30: 2017-02-01 | W30: 60.52877146 | X30: 26.71290669 | Y30: 10.51578054 | Z30: 12.39963939 | AA30: 16.30865136 | AB30: 18.142053 | AC30: 8.494005886 | AD30: 153.1018083
B31: 2017-03-01 | C31: 56.68037525 | D31: 24.45827677 | E31: 10.07493796 | F31: 11.50722529 | G31: 15.43849727 | H31: 17.26532335 | I31: 8.104836019 | J31: 143.5294719 | L31: 2017-03-01 | M31: 59.33732757 | N31: 25.0746248 | O31: 10.76428216 | P31: 11.94746629 | Q31: 16.32112055 | R31: 18.33841648 | S31: 8.628562075 | T31: 150.4117999 | V31: 2017-03-01 | W31: 54.02342293 | X31: 23.84192874 | Y31: 9.385593754 | Z31: 11.0669843 | AA31: 14.55587398 | AB31: 16.19223021 | AC31: 7.581109963 | AD31: 136.6471439
B32: 2017-04-01 | C32: 58.91079821 | D32: 25.30575252 | E32: 10.51732437 | F32: 11.91730546 | G32: 16.06347585 | H32: 17.97155899 | I32: 8.392341428 | J32: 149.0785568 | L32: 2017-04-01 | M32: 61.64971447 | N32: 25.94111418 | O32: 11.22793405 | P32: 12.37112739 | Q32: 16.97332706 | R32: 19.07775583 | S32: 8.932223836 | T32: 156.1731968 | V32: 2017-04-01 | W32: 56.17188194 | X32: 24.67039085 | Y32: 9.806714678 | Z32: 11.46348353 | AA32: 15.15362465 | AB32: 16.86536216 | AC32: 7.852459021 | AD32: 141.9839168
B33: 2017-05-01 | C33: 56.63043519 | D33: 24.32619862 | E33: 10.11021195 | F33: 11.45600153 | G33: 15.44167887 | H33: 17.27590251 | I33: 8.067484431 | J33: 143.3079131 | L33: 2017-05-01 | M33: 59.26333144 | N33: 24.93696623 | O33: 10.79331483 | P33: 11.89225658 | Q33: 16.31631088 | R33: 18.33927986 | S33: 8.586468668 | T33: 150.1279285 | V33: 2017-05-01 | W33: 53.99753893 | X33: 23.715431 | Y33: 9.427109068 | Z33: 11.01974648 | AA33: 14.56704687 | AB33: 16.21252517 | AC33: 7.548500193 | AD33: 136.4878977
B34: 2017-06-01 | C34: 58.81928543 | D34: 25.26644224 | E34: 10.50098662 | F34: 11.89879296 | G34: 16.03852265 | H34: 17.94364175 | I34: 8.37930466 | J34: 148.8469763 | L34: 2017-06-01 | M34: 61.55394703 | N34: 25.90081693 | O34: 11.21049244 | P34: 12.35190992 | Q34: 16.94696048 | R34: 19.0481202 | S34: 8.918348407 | T34: 155.9305954 | V34: 2017-06-01 | W34: 56.08462383 | X34: 24.63206756 | Y34: 9.791480805 | Z34: 11.44567601 | AA34: 15.13008482 | AB34: 16.83916329 | AC34: 7.840260913 | AD34: 141.7633572
B35: 2017-07-01 | C35: 57.4857339 | D35: 24.6394606 | E35: 10.33110823 | F35: 11.61157559 | G35: 15.74599073 | H35: 17.6020759 | I35: 8.177490002 | J35: 145.5934349 | L35: 2017-07-01 | M35: 60.142688 | N35: 25.25580904 | O35: 11.0204529 | P35: 12.05181688 | Q35: 16.62861461 | R35: 18.67516975 | S35: 8.701216409 | T35: 152.4757676 | V35: 2017-07-01 | W35: 54.8287798 | X35: 24.02311215 | Y35: 9.64176356 | Z35: 11.1713343 | AA35: 14.86336686 | AB35: 16.52898204 | AC35: 7.653763594 | AD35: 138.7111023
B36: 2017-08-01 | C36: 57.00456165 | D36: 24.43322117 | E36: 10.24463386 | F36: 11.51438334 | G36: 15.61419223 | H36: 17.45474142 | I36: 8.109042041 | J36: 144.3747757 | L36: 2017-08-01 | M36: 59.63927627 | N36: 25.0444106 | O36: 10.92820851 | P36: 11.95093968 | Q36: 16.48942828 | R36: 18.51885317 | S36: 8.628384706 | T36: 151.1995012 | V36: 2017-08-01 | W36: 54.36984702 | X36: 23.82203174 | Y36: 9.561059205 | Z36: 11.07782699 | AA36: 14.73895617 | AB36: 16.39062967 | AC36: 7.589699375 | AD36: 137.5500502
B37: 2017-09-01 | C37: 58.9834946 | D37: 25.28142884 | E37: 10.60027984 | F37: 11.91410911 | G37: 16.15624428 | H37: 18.06068877 | I37: 8.390550223 | J37: 149.3867957 | L37: 2017-09-01 | M37: 61.70967425 | N37: 25.91383592 | O37: 11.30758503 | P37: 12.36582066 | Q37: 17.06186445 | R37: 19.16174152 | S37: 8.927922048 | T37: 156.4484439 | V37: 2017-09-01 | W37: 56.25731495 | X37: 24.64902176 | Y37: 9.892974662 | Z37: 11.46239756 | AA37: 15.2506241 | AB37: 16.95963602 | AC37: 7.853178398 | AD37: 142.3251475
B38: 2017-10-01 | C38: 57.433656 | D38: 24.58513477 | E38: 10.398615 | F38: 11.59262367 | G38: 15.82060818 | H38: 17.66758069 | I38: 8.165969155 | J38: 145.6641875 | L38: 2017-10-01 | M38: 60.07492006 | N38: 25.19784351 | O38: 11.0838889 | P38: 12.03026522 | Q38: 16.69801992 | R38: 18.73433763 | S38: 8.686602815 | T38: 152.5058781 | V38: 2017-10-01 | W38: 54.79239194 | X38: 23.97242604 | Y38: 9.713341105 | Z38: 11.15498213 | AA38: 14.94319644 | AB38: 16.60082375 | AC38: 7.645335496 | AD38: 138.8224969
B39: 2017-11-01 | C39: 59.23884815 | D39: 25.35786797 | E39: 10.72545295 | F39: 11.9569904 | G39: 16.31786431 | H39: 18.22288885 | I39: 8.422633008 | J39: 150.2425456 | L39: 2017-11-01 | M39: 61.96312954 | N39: 25.9898347 | O39: 11.43226563 | P39: 12.40838742 | Q39: 17.2228539 | R39: 19.32317494 | S39: 8.959630658 | T39: 157.2992768 | V39: 2017-11-01 | W39: 56.51456675 | X39: 24.72590124 | Y39: 10.01864027 | Z39: 11.50559338 | AA39: 15.41287473 | AB39: 17.12260277 | AC39: 7.885635358 | AD39: 143.1858145
B40: 2017-12-01 | C40: 57.67236192 | D40: 24.68731558 | E40: 10.44183376 | F40: 11.64080497 | G40: 15.88636184 | H40: 17.74101074 | I40: 8.199908579 | J40: 146.2695974 | L40: 2017-12-01 | M40: 60.32460361 | N40: 25.30257086 | O40: 11.12995579 | P40: 12.08026544 | Q40: 16.76742028 | R40: 18.81220134 | S40: 8.722706097 | T40: 153.1397234 | V40: 2017-12-01 | W40: 55.02012023 | X40: 24.0720603 | Y40: 9.75371172 | Z40: 11.2013445 | AA40: 15.0053034 | AB40: 16.66982014 | AC40: 7.677111061 | AD40: 139.3994713
B41: 2018-01-01 | C41: 56.54833653 | D41: 24.19601751 | E41: 10.32269449 | F41: 11.41565952 | G41: 15.79173362 | H41: 17.49188623 | I41: 8.043781837 | J41: 143.8101097 | L41: 2018-01-01 | M41: 59.13811494 | N41: 24.79678283 | O41: 10.99461048 | P41: 11.8447702 | Q41: 16.65204214 | R41: 18.53784908 | S41: 8.554266884 | T41: 150.5184366 | V41: 2018-01-01 | W41: 53.95855812 | X41: 23.59525219 | Y41: 9.650778504 | Z41: 10.98654884 | AA41: 14.9314251 | AB41: 16.44592337 | AC41: 7.533296789 | AD41: 137.1017829
B42: 2018-02-01 | C42: 65.02606216 | D42: 27.82348404 | E42: 11.87027267 | F42: 13.127095 | G42: 18.15923005 | H42: 20.11426951 | I42: 9.24970547 | J42: 165.3701189 | L42: 2018-02-01 | M42: 68.00410011 | N42: 28.51431609 | O42: 12.64292229 | P42: 13.62053795 | Q42: 19.14851601 | R42: 21.3170431 | S42: 9.836722427 | T42: 173.084158 | V42: 2018-02-01 | W42: 62.04802422 | X42: 27.13265199 | Y42: 11.09762305 | Z42: 12.63365205 | AA42: 17.16994409 | AB42: 18.91149592 | AC42: 8.662688513 | AD42: 157.6560798
B43: 2018-03-01 | C43: 57.86957506 | D43: 24.76135175 | E43: 10.56388181 | F43: 11.68238371 | G43: 16.16070375 | H43: 17.90058002 | I43: 8.2317229 | J43: 147.170199 | L43: 2018-03-01 | M43: 60.51986303 | N43: 25.37615381 | O43: 11.25149695 | P43: 12.12152046 | Q43: 17.04111318 | R43: 18.97098155 | S43: 8.75413531 | T43: 154.0352643 | V43: 2018-03-01 | W43: 55.21928709 | X43: 24.14654968 | Y43: 9.876266664 | Z43: 11.24324695 | AA43: 15.28029432 | AB43: 16.83017849 | AC43: 7.70931049 | AD43: 140.3051337
B44: 2018-04-01 | C44: 60.19492268 | D44: 25.71856543 | E44: 11.06632668 | F44: 12.14160631 | G44: 16.9761912 | H44: 18.70397614 | I44: 8.558040353 | J44: 153.3596288 | L44: 2018-04-01 | M44: 62.93736913 | N44: 26.35474601 | O44: 11.77785227 | P44: 12.59601317 | Q44: 17.88721512 | R44: 19.81159875 | S44: 9.098618614 | T44: 160.4634131 | V44: 2018-04-01 | W44: 57.45247623 | X44: 25.08238485 | Y44: 10.35480109 | Z44: 11.68719945 | AA44: 16.06516729 | AB44: 17.59635353 | AC44: 8.017462091 | AD44: 146.2558445
B45: 2018-05-01 | C45: 57.80117371 | D45: 24.69582487 | E45: 10.62625621 | F45: 11.6587756 | G45: 16.30110536 | H45: 17.96018212 | I45: 8.217715965 | J45: 147.2610338 | L45: 2018-05-01 | M45: 60.43456233 | N45: 25.30670669 | O45: 11.30948683 | P45: 12.09511223 | Q45: 17.17590093 | R45: 19.02375832 | S45: 8.736797253 | T45: 154.0823246 | V45: 2018-05-01 | W45: 55.1677851 | X45: 24.08494304 | Y45: 9.94302559 | Z45: 11.22243897 | AA45: 15.4263098 | AB45: 16.89660592 | AC45: 7.698634677 | AD45: 140.4397431
B46: 2018-06-01 | C46: 59.93539782 | D46: 25.60768221 | E46: 11.01861523 | F46: 12.0892589 | G46: 16.90299992 | H46: 18.62333567 | I46: 8.52114315 | J46: 152.6984329 | L46: 2018-06-01 | M46: 62.66602046 | N46: 26.24111995 | O46: 11.72707315 | P46: 12.54170662 | Q46: 17.81009604 | R46: 19.72618287 | S46: 9.059390758 | T46: 159.7715899 | V46: 2018-06-01 | W46: 57.20477517 | X46: 24.97424446 | Y46: 10.31015732 | Z46: 11.63681117 | AA46: 15.99590381 | AB46: 17.52048847 | AC46: 7.982895542 | AD46: 145.6252759
B47: 2018-07-01 | C47: 58.56783898 | D47: 25.00260408 | E47: 10.84956531 | F47: 11.81171341 | G47: 16.64935763 | H47: 18.29201841 | I47: 8.328008825 | J47: 149.5011066 | L47: 2018-07-01 | M47: 61.22392829 | N47: 25.61875192 | O47: 11.5386856 | P47: 12.25181141 | Q47: 17.53169423 | R47: 19.364763 | S47: 8.851564768 | T47: 156.3811992 | V47: 2018-07-01 | W47: 55.91174967 | X47: 24.38645625 | Y47: 10.16044501 | Z47: 11.37161541 | AA47: 15.76702103 | AB47: 17.21927383 | AC47: 7.804452881 | AD47: 142.6210141
B48: 2018-08-01 | C48: 58.04664484 | D48: 24.78010636 | E48: 10.75301522 | F48: 11.70660118 | G48: 16.5011953 | H48: 18.12923807 | I48: 8.253898025 | J48: 148.170699 | L48: 2018-08-01 | M48: 60.67909766 | N48: 25.39077111 | O48: 11.43600305 | P48: 12.14278276 | Q48: 17.37568 | R48: 19.19243632 | S48: 8.772794854 | T48: 154.9895658 | V48: 2018-08-01 | W48: 55.41419203 | X48: 24.16944162 | Y48: 10.07002739 | Z48: 11.27041961 | AA48: 15.6267106 | AB48: 17.06603983 | AC48: 7.735001197 | AD48: 141.3518323
B49: 2018-09-01 | C49: 60.18460005 | D49: 25.69279921 | E49: 11.14906679 | F49: 12.13777492 | G49: 17.10896197 | H49: 18.79696829 | I49: 8.557902921 | J49: 153.6280742 | L49: 2018-09-01 | M49: 62.91401051 | N49: 26.32595576 | O49: 11.85721021 | P49: 12.5900218 | Q49: 18.01565541 | R49: 19.89932592 | S49: 9.09591159 | T49: 160.6980912 | V49: 2018-09-01 | W49: 57.45518958 | X49: 25.05964266 | Y49: 10.44092338 | Z49: 11.68552805 | AA49: 16.20226854 | AB49: 17.69461067 | AC49: 8.019894253 | AD49: 146.5580571
B50: 2018-10-01 | C50: 58.59604073 | D50: 24.99388683 | E50: 10.93689548 | F50: 11.81614475 | G50: 16.7934641 | H50: 18.39450844 | I50: 8.333407122 | J50: 149.8643475 | L50: 2018-10-01 | M50: 61.24119285 | N50: 25.6074975 | O50: 11.62317814 | P50: 12.25443053 | Q50: 17.67216743 | R50: 19.4628357 | S50: 8.854807178 | T50: 156.7161093 | V50: 2018-10-01 | W50: 55.95088861 | X50: 24.38027616 | Y50: 10.25061283 | Z50: 11.37785898 | AA50: 15.91476077 | AB50: 17.32618118 | AC50: 7.812007066 | AD50: 143.0125856
B51: 2018-11-01 | C51: 60.12903865 | D51: 25.64778044 | E51: 11.22302809 | F51: 12.1252804 | G51: 17.23281709 | H51: 18.87574818 | I51: 8.5514269 | J51: 153.7851197 | L51: 2018-11-01 | M51: 62.84339362 | N51: 26.27744448 | O51: 11.92726537 | P51: 12.57503267 | Q51: 18.13450918 | R51: 19.97202516 | S51: 9.086467898 | T51: 160.8161384 | V51: 2018-11-01 | W51: 57.41468369 | X51: 25.0181164 | Y51: 10.51879082 | Z51: 11.67552813 | AA51: 16.331125 | AB51: 17.77947119 | AC51: 8.016385902 | AD51: 146.7541011
B52: 2018-12-01 | C52: 58.87976058 | D52: 25.1149063 | E52: 10.98985152 | F52: 11.87335808 | G52: 16.87477743 | H52: 18.48357397 | I52: 8.373757169 | J52: 150.589985 | L52: 2018-12-01 | M52: 61.53772043 | N52: 25.73148805 | O52: 11.67945713 | P52: 12.31376602 | Q52: 17.75773541 | R52: 19.55707403 | S52: 8.897681824 | T52: 157.4749229 | V52: 2018-12-01 | W52: 56.22180073 | X52: 24.49832455 | Y52: 10.30024592 | Z52: 11.43295015 | AA52: 15.99181945 | AB52: 17.41007391 | AC52: 7.849832513 | AD52: 143.7050472
B53: 2019-01-01 | C53: 57.66767027 | D53: 24.57735516 | E53: 10.84404519 | F53: 11.62772487 | G53: 16.61046332 | H53: 18.19508857 | I53: 8.202627142 | J53: 147.7249745 | L53: 2019-01-01 | M53: 60.25889411 | N53: 25.17845579 | O53: 11.5163362 | P53: 12.05707506 | Q53: 17.471252 | R53: 19.24163521 | S53: 8.713397107 | T53: 154.4370455 | V53: 2019-01-01 | W53: 55.07644642 | X53: 23.97625453 | Y53: 10.17175419 | Z53: 11.19837469 | AA53: 15.74967463 | AB53: 17.14854193 | AC53: 7.691857176 | AD53: 141.0129036
B54: 2019-02-01 | C54: 66.24756016 | D54: 28.23401408 | E54: 12.4574399 | F54: 13.35771672 | G54: 19.0817951 | H54: 20.90218348 | I54: 9.423027366 | J54: 169.7037368 | L54: 2019-02-01 | M54: 69.22431051 | N54: 28.92454744 | O54: 13.22975545 | P54: 13.85094632 | Q54: 20.07065333 | R54: 22.10443704 | S54: 10.00979052 | T54: 177.4144406 | V54: 2019-02-01 | W54: 63.27080982 | X54: 27.54348072 | Y54: 11.68512434 | Z54: 12.86448711 | AA54: 18.09293687 | AB54: 19.69992993 | AC54: 8.836264213 | AD54: 161.993033
B55: 2019-03-01 | C55: 58.97585603 | D55: 25.13489019 | E55: 11.09004135 | F55: 11.89149874 | G55: 16.98727014 | H55: 18.60784247 | I55: 8.388702979 | J55: 151.0761019 | L55: 2019-03-01 | M55: 61.62586155 | N55: 25.74962673 | O55: 11.77758322 | P55: 12.33058869 | Q55: 17.86758574 | R55: 19.67812993 | S55: 8.911059714 | T55: 157.9404356 | V55: 2019-03-01 | W55: 56.32585052 | X55: 24.52015364 | Y55: 10.40249949 | Z55: 11.45240878 | AA55: 16.10695454 | AB55: 17.53755502 | AC55: 7.866346244 | AD55: 144.2117682
B56: 2019-04-01 | C56: 61.30239513 | D56: 26.09411218 | E56: 11.60798324 | F56: 12.3542406 | G56: 17.73168397 | H56: 19.43181199 | I56: 8.717302923 | J56: 157.23953 | L56: 2019-04-01 | M56: 64.04307723 | N56: 26.72988347 | O56: 12.31905107 | P56: 12.80835511 | Q56: 18.64212177 | R56: 20.53872201 | S56: 9.257533402 | T56: 164.3387441 | V56: 2019-04-01 | W56: 58.56171304 | X56: 25.45834088 | Y56: 10.89691541 | Z56: 11.90012608 | AA56: 16.82124617 | AB56: 18.32490197 | AC56: 8.177072443 | AD56: 150.140316
B57: 2019-05-01 | C57: 58.92230767 | D57: 25.08099892 | E57: 11.15729913 | F57: 11.87458278 | G57: 17.04324498 | H57: 18.67736493 | I57: 8.378850512 | J57: 151.1346489 | L57: 2019-05-01 | M57: 61.5565818 | N57: 25.69208616 | O57: 11.8407595 | P57: 12.31106613 | Q57: 17.91833471 | R57: 19.74129877 | S57: 8.898106349 | T57: 157.9582334 | V57: 2019-05-01 | W57: 56.28803353 | X57: 24.46991167 | Y57: 10.47383876 | Z57: 11.43809942 | AA57: 16.16815526 | AB57: 17.61343108 | AC57: 7.859594674 | AD57: 144.3110644
B58: 2019-06-01 | C58: 61.09638695 | D58: 26.00642228 | E58: 11.56897433 | F58: 12.31272387 | G58: 17.67209621 | H58: 19.36651092 | I58: 8.688008215 | J58: 156.7111228 | L58: 2019-06-01 | M58: 63.82785891 | N58: 26.64005705 | O58: 12.2776526 | P58: 12.76531232 | Q58: 18.57947447 | R58: 20.46970114 | S58: 9.226423237 | T58: 163.7864797 | V58: 2019-06-01 | W58: 58.36491498 | X58: 25.37278751 | Y58: 10.86029606 | Z58: 11.86013542 | AA58: 16.76471796 | AB58: 18.26332069 | AC58: 8.149593193 | AD58: 149.6357658
B59: 2019-07-01 | C59: 59.65631172 | D59: 25.36758132 | E59: 11.376628 | F59: 12.01879413 | G59: 17.34704767 | H59: 19.00154645 | I59: 8.48269438 | J59: 153.2506037 | L59: 2019-07-01 | M59: 62.31052268 | N59: 25.98329342 | O59: 12.06526096 | P59: 12.45858091 | Q59: 18.22876029 | R59: 20.07353241 | S59: 9.005880073 | T59: 160.1258307 | V59: 2019-07-01 | W59: 57.00210076 | X59: 24.75186922 | Y59: 10.68799504 | Z59: 11.57900736 | AA59: 16.46533505 | AB59: 17.9295605 | AC59: 7.959508688 | AD59: 146.3753766
B60: 2019-08-01 | C60: 59.02117125 | D60: 25.0975013 | E60: 11.25550491 | F60: 11.89083412 | G60: 17.16235955 | H60: 18.79924345 | I60: 8.392382017 | J60: 151.6189966 | L60: 2019-08-01 | M60: 61.64712373 | N60: 25.70665813 | O60: 11.93680623 | P60: 12.32593863 | Q60: 18.03468488 | R60: 19.85981633 | S60: 8.909997529 | T60: 158.4210255 | V60: 2019-08-01 | W60: 56.39521877 | X60: 24.48834448 | Y60: 10.57420359 | Z60: 11.45572961 | AA60: 16.29003423 | AB60: 17.73867057 | AC60: 7.874766505 | AD60: 144.8169677
B61: 2019-09-01 | C61: 61.54110094 | D61: 26.16904796 | E61: 11.73606266 | F61: 12.39851747 | G61: 17.89511254 | H61: 19.60188377 | I61: 8.750697723 | J61: 158.0924231 | L61: 2019-09-01 | M61: 64.27916938 | N61: 26.80421295 | O61: 12.44645238 | P61: 12.85219892 | Q61: 18.8046821 | R61: 20.70773818 | S61: 9.290413012 | T61: 165.1848669 | V61: 2019-09-01 | W61: 58.80303249 | X61: 25.53388297 | Y61: 11.02567294 | Z61: 11.94483602 | AA61: 16.98554297 | AB61: 18.49602935 | AC61: 8.210982434 | AD61: 150.9999792
B62: 2019-10-01 | C62: 59.79447301 | D62: 25.40230817 | E62: 11.48390489 | F62: 12.04363434 | G62: 17.4505612 | H62: 19.13853825 | I62: 8.502337696 | J62: 153.8157576 | L62: 2019-10-01 | M62: 62.44214143 | N62: 26.01650256 | O62: 12.17084039 | P62: 12.48233705 | Q62: 18.33010043 | R62: 20.20788179 | S62: 9.024233752 | T62: 160.6740374 | V62: 2019-10-01 | W62: 57.1468046 | X62: 24.78811378 | Y62: 10.79696938 | Z62: 11.60493163 | AA62: 16.57102198 | AB62: 18.06919471 | AC62: 7.98044164 | AD62: 146.9574777
B63: 2019-11-01 | C63: 61.24016252 | D63: 26.01647614 | E63: 11.76155866 | F63: 12.33482105 | G63: 17.87247467 | H63: 19.60126303 | I63: 8.707904194 | J63: 157.5346603 | L63: 2019-11-01 | M63: 63.95184532 | N63: 26.64552031 | O63: 12.46510264 | P63: 12.78413056 | Q63: 18.77327908 | R63: 20.69646077 | S63: 9.242418467 | T63: 164.5587572 | V63: 2019-11-01 | W63: 58.52847973 | X63: 25.38743198 | Y63: 11.05801467 | Z63: 11.88551154 | AA63: 16.97167025 | AB63: 18.50606528 | AC63: 8.173389921 | AD63: 150.5105634
B64: 2019-12-01 | C64: 60.02846648 | D64: 25.50171492 | E64: 11.5288448 | F64: 12.09076464 | G64: 17.51885041 | H64: 19.21343301 | I64: 8.535609859 | J64: 154.4176841 | L64: 2019-12-01 | M64: 62.686496 | N64: 26.11831283 | O64: 12.21846849 | P64: 12.53118413 | Q64: 18.40183153 | R64: 20.28696121 | S64: 9.059548248 | T64: 161.3028024 | V64: 2019-12-01 | W64: 57.37043696 | X64: 24.885117 | Y64: 10.83922112 | Z64: 11.65034516 | AA64: 16.63586929 | AB64: 18.13990482 | AC64: 8.011671469 | AD64: 147.5325658
B65: 2020-01-01 | C65: 58.80074783 | D65: 24.95870904 | E65: 11.37317607 | F65: 11.84151259 | G65: 17.25254034 | H65: 18.91338664 | I65: 8.361718596 | J65: 151.5017911 | L65: 2020-01-01 | M65: 61.39218587 | N65: 25.55985936 | O65: 12.04552264 | P65: 12.27089826 | Q65: 18.11340018 | R65: 19.96001979 | S65: 8.872530782 | T65: 158.2144169 | V65: 2020-01-01 | W65: 56.2093098 | X65: 24.35755872 | Y65: 10.70082949 | Z65: 11.41212691 | AA65: 16.3916805 | AB65: 17.86675349 | AC65: 7.850906411 | AD65: 144.7891653
B66: 2020-02-01 | C66: 65.01756633 | D66: 27.597515 | E66: 12.57562627 | F66: 13.09347854 | G66: 19.07659728 | H66: 20.91303964 | I66: 9.245776857 | J66: 167.5195999 | L66: 2020-02-01 | M66: 67.88298897 | N66: 28.26222306 | O66: 13.31905794 | P66: 13.56826182 | Q66: 20.02847312 | R66: 22.07033003 | S66: 9.810595612 | T66: 174.9419306 | V66: 2020-02-01 | W66: 62.15214369 | X66: 26.93280695 | Y66: 11.83219461 | Z66: 12.61869527 | AA66: 18.12472143 | AB66: 19.75574926 | AC66: 8.680958102 | AD66: 160.0972693
B67: 2020-03-01 | C67: 60.30907721 | D67: 25.59893821 | E67: 11.66491548 | F67: 12.14526555 | G67: 17.69509447 | H67: 19.39854402 | I67: 8.576209505 | J67: 155.3880445 | L67: 2020-03-01 | M67: 62.96698961 | N67: 26.21550896 | O67: 12.35450878 | P67: 12.58566563 | Q67: 18.57803668 | R67: 20.47202491 | S67: 9.100124807 | T67: 162.2728594 | V67: 2020-03-01 | W67: 57.65116482 | X67: 24.98236747 | Y67: 10.97532218 | Z67: 11.70486547 | AA67: 16.81215225 | AB67: 18.32506313 | AC67: 8.052294203 | AD67: 148.5032295
B68: 2020-04-01 | C68: 62.53209666 | D68: 26.51913691 | E68: 12.17931199 | F68: 12.59052532 | G68: 18.43457465 | H68: 20.21171246 | I68: 8.892835492 | J68: 161.3601935 | L68: 2020-04-01 | M68: 65.2749372 | N68: 27.1554089 | O68: 12.89093983 | P68: 13.04499747 | Q68: 19.34572948 | R68: 21.31949424 | S68: 9.433491434 | T68: 168.4649986 | V68: 2020-04-01 | W68: 59.78925612 | X68: 25.88286491 | Y68: 11.46768415 | Z68: 12.13605316 | AA68: 17.52341983 | AB68: 19.10393069 | AC68: 8.352179551 | AD68: 154.2553884
B69: 2020-05-01 | C69: 59.8295508 | D69: 25.37301855 | E69: 11.65293992 | F69: 12.04638121 | G69: 17.63785927 | H69: 19.33819178 | I69: 8.508500135 | J69: 154.3864417 | L69: 2020-05-01 | M69: 62.45384978 | N69: 25.98179181 | O69: 12.33381224 | P69: 12.48121174 | Q69: 18.50963531 | R69: 20.39809685 | S69: 9.025789717 | T69: 161.1841874 | V69: 2020-05-01 | W69: 57.20525183 | X69: 24.7642453 | Y69: 10.9720676 | Z69: 11.61155067 | AA69: 16.76608323 | AB69: 18.27828672 | AC69: 7.991210553 | AD69: 147.5886959
B70: 2020-06-01 | C70: 62.45870084 | D70: 26.48801059 | E70: 12.16501676 | F70: 12.57574743 | G70: 18.41293743 | H70: 20.18798936 | I70: 8.882397701 | J70: 161.1708001 | L70: 2020-06-01 | M70: 65.19832202 | N70: 27.12353578 | O70: 12.87580934 | P70: 13.02968616 | Q70: 19.32302281 | R70: 21.2944709 | S70: 9.422419059 | T70: 168.2672661 | V70: 2020-06-01 | W70: 59.71907966 | X70: 25.8524854 | Y70: 11.45422418 | Z70: 12.12180871 | AA70: 17.50285206 | AB70: 19.08150782 | AC70: 8.342376344 | AD70: 154.0743342
B71: 2020-07-01 | C71: 60.76768978 | D71: 25.75165764 | E71: 11.91882729 | F71: 12.23458097 | G71: 17.98784705 | H71: 19.73920286 | I71: 8.643577889 | J71: 157.0433835 | L71: 2020-07-01 | M71: 63.42084873 | N71: 26.3671257 | O71: 12.60718731 | P71: 12.67419343 | Q71: 18.8692102 | R71: 20.81076393 | S71: 9.166556215 | T71: 163.9158855 | V71: 2020-07-01 | W71: 58.11453083 | X71: 25.13618958 | Y71: 11.23046727 | Z71: 11.79496851 | AA71: 17.1064839 | AB71: 18.6676418 | AC71: 8.120599564 | AD71: 150.1708814
B72: 2020-08-01 | C72: 60.12699999 | D72: 25.48015112 | E72: 11.79316395 | F72: 12.10558855 | G72: 17.79819643 | H72: 19.53108724 | I72: 8.552446368 | J72: 155.3876337 | L72: 2020-08-01 | M72: 62.75218599 | N72: 26.08913014 | O72: 12.4742664 | P72: 12.54056606 | Q72: 18.67026713 | R72: 20.59135055 | S72: 9.069910794 | T72: 162.1876771 | V72: 2020-08-01 | W72: 57.501814 | X72: 24.8711721 | Y72: 11.11206149 | Z72: 11.67061105 | AA72: 16.92612572 | AB72: 18.47082392 | AC72: 8.034981941 | AD72: 148.5875902
B73: 2020-09-01 | C73: 62.75548724 | D73: 26.59403095 | E73: 12.30870906 | F73: 12.63479149 | G73: 18.57625508 | H73: 20.38490023 | I73: 8.926321601 | J73: 162.1804956 | L73: 2020-09-01 | M73: 65.49543479 | N73: 27.22963184 | O73: 13.01958631 | P73: 13.0887843 | Q73: 19.48644887 | R73: 21.49151358 | S73: 9.46640729 | T73: 169.277807 | V73: 2020-09-01 | W73: 60.01553969 | X73: 25.95843005 | Y73: 11.59783181 | Z73: 12.18079869 | AA73: 17.66606129 | AB73: 19.27828688 | AC73: 8.386235912 | AD73: 155.0831843
B74: 2020-10-01 | C74: 60.81454268 | D74: 25.75374736 | E74: 12.01140958 | F74: 12.24400272 | G74: 18.06422865 | H74: 19.85311967 | I74: 8.652392822 | J74: 157.3934435 | L74: 2020-10-01 | M74: 63.45762048 | N74: 26.36687684 | O74: 12.69715405 | P74: 12.68194479 | Q74: 18.9422429 | R74: 20.92060915 | S74: 9.173383998 | T74: 164.2398322 | V74: 2020-10-01 | W74: 58.17146488 | X74: 25.14061788 | Y74: 11.32566511 | Z74: 11.80606065 | AA74: 17.18621439 | AB74: 18.78563019 | AC74: 8.131401647 | AD74: 150.5470547
B75: 2020-11-01 | C75: 62.56768425 | D75: 26.4961679 | E75: 12.35767053 | F75: 12.59696879 | G75: 18.58497827 | H75: 20.42543885 | I75: 8.901821148 | J75: 161.9307297 | L75: 2020-11-01 | M75: 65.28695583 | N75: 27.12697247 | O75: 13.06318342 | P75: 13.04753571 | Q75: 19.48830363 | R75: 21.52370157 | S75: 9.437831286 | T75: 168.9744839 | V75: 2020-11-01 | W75: 59.84841268 | X75: 25.86536332 | Y75: 11.65215764 | Z75: 12.14640187 | AA75: 17.68165291 | AB75: 19.32717614 | AC75: 8.365811011 | AD75: 154.8869756
B76: 2020-12-01 | C76: 61.09521449 | D76: 25.87260628 | E76: 12.06684474 | F76: 12.30051135 | G76: 18.14759883 | H76: 19.94474596 | I76: 8.692325421 | J76: 158.1198471 | L76: 2020-12-01 | M76: 63.75049065 | N76: 26.48856549 | O76: 12.75575407 | P76: 12.74047462 | Q76: 19.02966531 | R76: 21.01716213 | S76: 9.21572108 | T76: 164.9978333 | V76: 2020-12-01 | W76: 58.43993833 | X76: 25.25664708 | Y76: 11.37793542 | Z76: 11.86054808 | AA76: 17.26553236 | AB76: 18.87232979 | AC76: 8.168929763 | AD76: 151.2418608
B77: 2021-01-01 | C77: 59.84078348 | D77: 25.32500096 | E77: 11.90114817 | F77: 12.04846456 | G77: 17.85566635 | H77: 19.63289931 | I77: 8.516329898 | J77: 155.1202927 | L77: 2021-01-01 | M77: 62.42974278 | N77: 25.92557628 | O77: 12.57285164 | P77: 12.47743952 | Q77: 18.71570277 | R77: 20.67853134 | S77: 9.026653487 | T77: 161.8264978 | V77: 2021-01-01 | W77: 57.25182418 | X77: 24.72442565 | Y77: 11.2294447 | Z77: 11.61948959 | AA77: 16.99562993 | AB77: 18.58726728 | AC77: 8.006006309 | AD77: 148.4140876
B78: 2021-02-01 | C78: 68.61382364 | D78: 29.03780747 | E78: 13.64593233 | F78: 13.81484623 | G78: 20.47342081 | H78: 22.51120745 | I78: 9.764878126 | J78: 177.8619161 | L78: 2021-02-01 | M78: 71.58234087 | N78: 29.72643095 | O78: 14.41611181 | P78: 14.30671166 | Q78: 21.45954405 | R78: 23.7101358 | S78: 10.35001841 | T78: 185.5512935 | V78: 2021-02-01 | W78: 65.64530641 | X78: 28.349184 | Y78: 12.87575285 | Z78: 13.32298081 | AA78: 19.48729758 | AB78: 21.3122791 | AC78: 9.179737847 | AD78: 170.1725386
B79: 2021-03-01 | C79: 61.47602098 | D79: 26.0170439 | E79: 12.22636457 | F79: 12.37770659 | G79: 18.34359872 | H79: 20.16939719 | I79: 8.749051149 | J79: 159.3591831 | L79: 2021-03-01 | M79: 64.1357274 | N79: 26.63403081 | O79: 12.91642332 | P79: 12.81840392 | Q79: 19.2271369 | R79: 21.24360265 | S79: 9.273320082 | T79: 166.2486451 | V79: 2021-03-01 | W79: 58.81631455 | X79: 25.40005698 | Y79: 11.53630581 | Z79: 11.93700925 | AA79: 17.46006054 | AB79: 19.09519172 | AC79: 8.224782217 | AD79: 152.4697211
B80: 2021-04-01 | C80: 63.50998988 | D80: 26.8607932 | E80: 12.71758202 | F80: 12.78789156 | G80: 19.05562175 | H80: 20.94027131 | I80: 9.041245253 | J80: 164.913395 | L80: 2021-04-01 | M80: 66.24523158 | N80: 27.49530246 | O80: 13.42723834 | P80: 13.24110463 | Q80: 19.96425229 | R80: 22.04498406 | S80: 9.580403347 | T80: 171.9985167 | V80: 2021-04-01 | W80: 60.77474818 | X80: 26.22628395 | Y80: 12.00792569 | Z80: 12.33467848 | AA80: 18.14699121 | AB80: 19.83555857 | AC80: 8.502087159 | AD80: 157.8282732
B81: 2021-05-01 | C81: 60.99690835 | D81: 25.79791532 | E81: 12.21434905 | F81: 12.28187645 | G81: 18.30159343 | H81: 20.11166767 | I81: 8.683484426 | J81: 158.3877947 | L81: 2021-05-01 | M81: 63.62391691 | N81: 26.40731713 | O81: 12.89592437 | P81: 12.71715595 | Q81: 19.17426958 | R81: 21.17266709 | S81: 9.201308109 | T81: 165.1925591 | V81: 2021-05-01 | W81: 58.36989978 | X81: 25.18851351 | Y81: 11.53277373 | Z81: 11.84659696 | AA81: 17.42891728 | AB81: 19.05066825 | AC81: 8.165660743 | AD81: 151.5830303
B82: 2021-06-01 | C82: 63.72310483 | D82: 26.95092763 | E82: 12.7602573 | F82: 12.83080277 | G82: 19.11956504 | H82: 21.01053876 | I82: 9.071584173 | J82: 165.4667805 | L82: 2021-06-01 | M82: 66.46752494 | N82: 27.58756605 | O82: 13.47229496 | P82: 13.28553666 | Q82: 20.03124459 | R82: 22.1189585 | S82: 9.612551473 | T82: 172.5756772 | V82: 2021-06-01 | W82: 60.97868471 | X82: 26.31428921 | Y82: 12.04821964 | Z82: 12.37606889 | AA82: 18.20788549 | AB82: 19.90211903 | AC82: 8.530616873 | AD82: 158.3578838
B83: 2021-07-01 | C83: 61.65836938 | D83: 26.06277823 | E83: 12.43118998 | F83: 12.41644646 | G83: 18.60345772 | H83: 20.43119245 | I83: 8.780825378 | J83: 160.3842596 | L83: 2021-07-01 | M83: 64.30195682 | N83: 26.67602593 | O83: 13.11706668 | P83: 12.85447297 | Q83: 19.48164127 | R83: 21.49888776 | S83: 9.301917011 | T83: 167.2319685 | V83: 2021-07-01 | W83: 59.01478194 | X83: 25.44953053 | Y83: 11.74531329 | Z83: 11.97841994 | AA83: 17.72527417 | AB83: 19.36349714 | AC83: 8.259733745 | AD83: 153.5365508
B84: 2021-08-01 | C84: 61.51406174 | D84: 26.00177989 | E84: 12.40209554 | F84: 12.38738653 | G84: 18.55991747 | H84: 20.3833745 | I84: 8.760274394 | J84: 160.0088901 | L84: 2021-08-01 | M84: 64.15146203 | N84: 26.61359233 | O84: 13.08636699 | P84: 12.82438787 | Q84: 19.43604569 | R84: 21.44857093 | S84: 9.280146444 | T84: 166.8405723 | V84: 2021-08-01 | W84: 58.87666146 | X84: 25.38996746 | Y84: 11.7178241 | Z84: 11.95038518 | AA84: 17.68378925 | AB84: 19.31817806 | AC84: 8.240402344 | AD84: 153.1772079
B85: 2021-09-01 | C85: 63.84215451 | D85: 26.98585661 | E85: 12.87147162 | F85: 12.85620592 | G85: 19.26234564 | H85: 21.15481415 | I85: 9.091820236 | J85: 166.0646687 | L85: 2021-09-01 | M85: 66.5793712 | N85: 27.62082401 | O85: 13.58164035 | P85: 13.30974624 | Q85: 20.17163225 | R85: 22.26032456 | S85: 9.631367631 | T85: 173.1549062 | V85: 2021-09-01 | W85: 61.10493782 | X85: 26.3508892 | Y85: 12.16130289 | Z85: 12.4026656 | AA85: 18.35305902 | AB85: 20.04930375 | AC85: 8.552272842 | AD85: 158.9744311
B86: 2021-10-01 | C86: 61.88104487 | D86: 26.14306895 | E86: 12.56074576 | F86: 12.46316307 | G86: 18.77109591 | H86: 20.60725559 | I86: 8.81607747 | J86: 161.2424516 | L86: 2021-10-01 | M86: 64.52236504 | N86: 26.7557907 | O86: 13.24603421 | P86: 12.90081392 | Q86: 19.64852629 | R86: 21.6740352 | S86: 9.33672219 | T86: 168.0842875 | V86: 2021-10-01 | W86: 59.2397247 | X86: 25.5303472 | Y86: 11.8754573 | Z86: 12.02551223 | AA86: 17.89366554 | AB86: 19.54047599 | AC86: 8.29543275 | AD86: 154.4006157
B87: 2021-11-01 | C87: 63.89108239 | D87: 26.99225548 | E87: 12.96874744 | F87: 12.86799505 | G87: 19.38082394 | H87: 21.27662627 | I87: 9.102443781 | J87: 166.4799743 | L87: 2021-11-01 | M87: 66.61819867 | N87: 27.62487983 | O87: 13.67629563 | P87: 13.31986179 | Q87: 20.28675526 | R87: 22.37805731 | S87: 9.640000229 | T87: 173.5440487 | V87: 2021-11-01 | W87: 61.16396612 | X87: 26.35963112 | Y87: 12.26119925 | Z87: 12.4161283 | AA87: 18.47489262 | AB87: 20.17519523 | AC87: 8.564887333 | AD87: 159.4159
B88: 2021-12-01 | C88: 62.07132701 | D88: 26.22345801 | E88: 12.59936963 | F88: 12.50148688 | G88: 18.8288164 | H88: 20.67062221 | I88: 8.843186613 | J88: 161.7382668 | L88: 2021-12-01 | M88: 64.72076915 | N88: 26.83806386 | O88: 13.28676532 | P88: 12.94048349 | Q88: 19.70894485 | R88: 21.74068213 | S88: 9.365432298 | T88: 168.6011411 | V88: 2021-12-01 | W88: 59.42188487 | X88: 25.60885216 | Y88: 11.91197393 | Z88: 12.06249028 | AA88: 17.94868796 | AB88: 19.60056229 | AC88: 8.320940928 | AD88: 154.8753924
B89: 2022-01-01 | C89: 60.90620245 | D89: 25.71878131 | E89: 12.44618927 | F89: 12.26919246 | G89: 18.57857975 | H89: 20.38378721 | I89: 8.681045611 | J89: 158.9837781 | L89: 2022-01-01 | M89: 63.49442544 | N89: 26.31918581 | O89: 13.11770171 | P89: 12.69804542 | Q89: 19.43837157 | R89: 21.42912186 | S89: 9.191224062 | T89: 165.6880759 | V89: 2022-01-01 | W89: 58.31797946 | X89: 25.1183768 | Y89: 11.77467684 | Z89: 11.8403395 | AA89: 17.71878793 | AB89: 19.33845256 | AC89: 8.170867161 | AD89: 152.2794803
B90: 2022-02-01 | C90: 69.9836571 | D90: 29.55190604 | E90: 14.30116814 | F90: 14.09779174 | G90: 21.34752952 | H90: 23.42178492 | I90: 9.974867829 | J90: 182.6787053 | L90: 2022-02-01 | M90: 72.9576286 | N90: 30.24179477 | O90: 15.07276273 | P90: 14.59056091 | Q90: 22.33546464 | R90: 24.62291615 | S90: 10.56108323 | T90: 190.382211 | V90: 2022-02-01 | W90: 67.00968561 | X90: 28.8620173 | Y90: 13.52957356 | Z90: 13.60502258 | AA90: 20.35959441 | AB90: 22.2206537 | AC90: 9.38865243 | AD90: 174.9751996
B91: 2022-03-01 | C91: 62.48975243 | D91: 26.38746485 | E91: 12.76978789 | F91: 12.58818919 | G91: 19.06161939 | H91: 20.9137619 | I91: 8.906751189 | J91: 163.1173268 | L91: 2022-03-01 | M91: 65.14526873 | N91: 27.00347976 | O91: 13.45875952 | P91: 13.02819225 | Q91: 19.94376563 | R91: 21.98627505 | S91: 9.430194184 | T91: 169.9959351 | V91: 2022-03-01 | W91: 59.83423612 | X91: 25.77144994 | Y91: 12.08081625 | Z91: 12.14818613 | AA91: 18.17947314 | AB91: 19.84124874 | AC91: 8.383308193 | AD91: 156.2387185
B92: 2022-04-01 | C92: 64.62482677 | D92: 27.27697022 | E92: 13.29441259 | F92: 13.02127896 | G92: 19.84315754 | H92: 21.73606245 | I92: 9.215507707 | J92: 169.0122162 | L92: 2022-04-01 | M92: 67.35902285 | N92: 27.91123691 | O92: 14.00379763 | P92: 13.47431879 | Q92: 20.75144072 | R92: 22.84035289 | S92: 9.754459693 | T92: 176.0946295 | V92: 2022-04-01 | W92: 61.89063068 | X92: 26.64270352 | Y92: 12.58502755 | Z92: 12.56823914 | AA92: 18.93487435 | AB92: 20.63177201 | AC92: 8.67655572 | AD92: 161.929803
B93: 2022-05-01 | C93: 62.24526498 | D93: 26.27260024 | E93: 12.80489676 | F93: 12.54182023 | G93: 19.11250924 | H93: 20.93571518 | I93: 8.876181923 | J93: 162.7889885 | L93: 2022-05-01 | M93: 64.87878476 | N93: 26.88351249 | O93: 13.48816141 | P93: 12.97817859 | Q93: 19.98734838 | R93: 21.99934435 | S93: 9.395289067 | T93: 169.6106191 | V93: 2022-05-01 | W93: 59.6117452 | X93: 25.66168798 | Y93: 12.1216321 | Z93: 12.10546186 | AA93: 18.2376701 | AB93: 19.872086 | AC93: 8.35707478 | AD93: 155.967358
B94: 2022-06-01 | C94: 64.73216609 | D94: 27.3222762 | E94: 13.31649409 | F94: 13.0429068 | G94: 19.87611625 | H94: 21.7721652 | I94: 9.230814306 | J94: 169.2929389 | L94: 2022-06-01 | M94: 67.47090356 | N94: 27.95759639 | O94: 14.02705739 | P94: 13.49669911 | Q94: 20.78590806 | R94: 22.87828983 | S94: 9.770661471 | T94: 176.3871158 | V94: 2022-06-01 | W94: 61.99342861 | X94: 26.68695601 | Y94: 12.60593079 | Z94: 12.5891145 | AA94: 18.96632444 | AB94: 20.66604058 | AC94: 8.690967141 | AD94: 162.1987621
B95: 2022-07-01 | C95: 62.94410859 | D95: 26.5573133 | E95: 13.03481985 | F95: 12.68622269 | G95: 19.45398424 | H95: 21.27642071 | I95: 8.980647541 | J95: 164.9335169 | L95: 2022-07-01 | M95: 65.59563354 | N95: 27.17240231 | O95: 13.72275593 | P95: 13.12556441 | Q95: 20.33480459 | R95: 22.34732183 | S95: 9.50330378 | T95: 171.8017864 | V95: 2022-07-01 | W95: 60.29258364 | X95: 25.94222429 | Y95: 12.34688377 | Z95: 12.24688098 | AA95: 18.5731639 | AB95: 20.20551958 | AC95: 8.457991302 | AD95: 158.0652475
B96: 2022-08-01 | C96: 62.61151855 | D96: 26.41698725 | E96: 12.96594523 | F96: 12.61919003 | G96: 19.35119144 | H96: 21.16399834 | I96: 8.933194745 | J96: 164.0620256 | L96: 2022-08-01 | M96: 65.24903312 | N96: 27.0288262 | O96: 13.65024633 | P96: 13.05621031 | Q96: 20.22735762 | R96: 22.22924094 | S96: 9.453089323 | T96: 170.8940038 | V96: 2022-08-01 | W96: 59.97400397 | X96: 25.8051483 | Y96: 12.28164413 | Z96: 12.18216975 | AA96: 18.47502526 | AB96: 20.09875574 | AC96: 8.413300167 | AD96: 157.2300473
B97: 2022-09-01 | C97: 64.78081862 | D97: 27.3322561 | E97: 13.41517609 | F97: 13.05640686 | G97: 20.0216518 | H97: 21.89726698 | I97: 9.242702971 | J97: 169.7462794 | L97: 2022-09-01 | M97: 67.50971511 | N97: 27.96529342 | O97: 14.12318615 | P97: 13.50856857 | Q97: 20.92817449 | R97: 22.99941702 | S97: 9.780610327 | T97: 176.8149651 | V97: 2022-09-01 | W97: 62.05192213 | X97: 26.69921878 | Y97: 12.70716602 | Z97: 12.60424515 | AA97: 19.1151291 | AB97: 20.79511695 | AC97: 8.704795615 | AD97: 162.6775937
B98: 2022-10-01 | C98: 63.11202692 | D98: 26.61917014 | E98: 13.15598494 | F98: 12.72424839 | G98: 19.62898573 | H98: 21.43963452 | I98: 9.009845256 | J98: 165.6898959 | L98: 2022-10-01 | M98: 65.75918608 | N98: 27.2332464 | O98: 13.84278832 | P98: 13.16286672 | Q98: 20.50835579 | R98: 22.50877239 | S98: 9.531640932 | T98: 172.5468566 | V98: 2022-10-01 | W98: 60.46486775 | X98: 26.00509388 | Y98: 12.46918156 | Z98: 12.28563006 | AA98: 18.74961567 | AB98: 20.37049666 | AC98: 8.48804958 | AD98: 158.8329351
B99: 2022-11-01 | C99: 64.9977918 | D99: 27.41454146 | E99: 13.54908108 | F99: 13.1044444 | G99: 20.21549283 | H99: 22.08024316 | I99: 9.279056223 | J99: 170.640651 | L99: 2022-11-01 | M99: 67.72404714 | N99: 28.0469661 | O99: 14.2564059 | P99: 13.55616849 | Q99: 21.12113815 | R99: 23.18132649 | S99: 9.816442968 | T99: 177.7024952 | V99: 2022-11-01 | W99: 62.27153646 | X99: 26.78211682 | Y99: 12.84175626 | Z99: 12.65272031 | AA99: 19.30984751 | AB99: 20.97915984 | AC99: 8.741669478 | AD99: 163.5788067
B100: 2022-12-01 | C100: 63.04711005 | D100: 26.59178973 | E100: 13.14245273 | F100: 12.71116026 | G100: 19.60879541 | H100: 21.41758177 | I100: 9.000577754 | J100: 165.5194677 | L100: 2022-12-01 | M100: 65.69154636 | N100: 27.20523436 | O100: 13.82854966 | P100: 13.14932743 | Q100: 20.48726095 | R100: 22.48561993 | S100: 9.521836712 | T100: 172.3693754 | V100: 2022-12-01 | W100: 60.40267375 | X100: 25.97834511 | Y100: 12.45635579 | Z100: 12.27299309 | AA100: 18.73032987 | AB100: 20.34954362 | AC100: 8.479318795 | AD100: 158.66956
B101: 2023-01-01 | C101: 61.96593364 | D101: 26.1282037 | E101: 13.00189869 | F101: 12.49784091 | G101: 19.40620862 | H101: 21.15529826 | I101: 8.851778422 | J101: 163.0071622 | L101: 2023-01-01 | M101: 64.55393823 | N101: 26.72855754 | O101: 13.67335446 | P101: 12.92665768 | Q101: 20.26592789 | R101: 22.20054471 | S101: 9.361913823 | T101: 169.7108943 | V101: 2023-01-01 | W101: 59.37792905 | X101: 25.52784986 | Y101: 12.33044292 | Z101: 12.06902414 | AA101: 18.54648935 | AB101: 20.11005182 | AC101: 8.341643022 | AD101: 156.3034302
B102: 2023-02-01 | C102: 71.30053479 | D102: 30.06417862 | E102: 14.96051581 | F102: 14.38052633 | G102: 22.32957645 | H102: 24.34215046 | I102: 10.18521788 | J102: 187.5627003 | L102: 2023-02-01 | M102: 74.2783986 | N102: 30.75497027 | O102: 15.73312025 | P102: 14.87394043 | Q102: 23.31880457 | R102: 25.54485371 | S102: 10.77220051 | T102: 195.2762883 | V102: 2023-02-01 | W102: 68.32267098 | X102: 29.37338696 | Y102: 14.18791136 | Z102: 13.88711224 | AA102: 21.34034834 | AB102: 23.1394472 | AC102: 9.598235249 | AD102: 179.8491123
B103: 2023-03-01 | C103: 63.50345429 | D103: 26.77650593 | E103: 13.32450639 | F103: 12.80794176 | G103: 19.88772233 | H103: 21.680211 | I103: 9.071411878 | J103: 167.0517536 | L103: 2023-03-01 | M103: 66.15567336 | N103: 27.39175596 | O103: 14.01262256 | P103: 13.24739848 | Q103: 20.76877325 | R103: 22.75139247 | S103: 9.594204938 | T103: 173.921821 | V103: 2023-03-01 | W103: 60.85123522 | X103: 26.1612559 | Y103: 12.63639023 | Z103: 12.36848503 | AA103: 19.0066714 | AB103: 20.60902954 | AC103: 8.548618818 | AD103: 160.1816861
B104: 2023-04-01 | C104: 65.98073111 | D104: 27.8142609 | E104: 13.93459565 | F104: 13.31309294 | G104: 20.82012855 | H104: 22.63820089 | I104: 9.431606618 | J104: 173.9326167 | L104: 2023-04-01 | M104: 68.72476323 | N104: 28.45080931 | O104: 14.64653264 | P104: 13.76776254 | Q104: 21.73167921 | R104: 23.74646392 | S104: 9.972497438 | T104: 181.0405083 | V104: 2023-04-01 | W104: 63.23669899 | X104: 27.17771248 | Y104: 13.22265866 | Z104: 12.85842335 | AA104: 19.90857789 | AB104: 21.52993786 | AC104: 8.890715798 | AD104: 166.824725
B105: 2023-05-01 | C105: 63.29516485 | D105: 26.68215704 | E105: 13.36742582 | F105: 12.77121969 | G105: 19.97270183 | H105: 21.71677448 | I105: 9.047718715 | J105: 166.8531624 | L105: 2023-05-01 | M105: 65.9275086 | N105: 27.29279648 | O105: 14.05038535 | P105: 13.2073832 | Q105: 20.8471503 | R105: 22.77992867 | S105: 9.566594045 | T105: 173.6717466 | V105: 2023-05-01 | W105: 60.6628211 | X105: 26.07151759 | Y105: 12.68446629 | Z105: 12.33505619 | AA105: 19.09825336 | AB105: 20.65362028 | AC105: 8.528843386 | AD105: 160.0345782
B106: 2023-06-01 | C106: 65.64613188 | D106: 27.67321017 | E106: 13.863931 | F106: 13.24558004 | G106: 20.71454623 | H106: 22.52339882 | I106: 9.383777376 | J106: 173.0505755 | L106: 2023-06-01 | M106: 68.37624855 | N106: 28.30653054 | O106: 14.57225764 | P106: 13.69794393 | Q106: 21.62147426 | R106: 23.62604166 | S106: 9.921925249 | T106: 180.1224218 | V106: 2023-06-01 | W106: 62.9160152 | X106: 27.03988979 | Y106: 13.15560436 | Z106: 12.79321615 | AA106: 19.80761819 | AB106: 21.42075597 | AC106: 8.845629503 | AD106: 165.9787292
B107: 2023-07-01 | C107: 64.28459438 | D107: 27.09395561 | E107: 13.66435289 | F107: 12.97682384 | G107: 20.43827499 | H107: 22.16609731 | I107: 9.195736793 | J107: 169.8198358 | L107: 2023-07-01 | M107: 66.94689176 | N107: 27.71154356 | O107: 14.35508387 | P107: 13.41795048 | Q107: 21.32267387 | R107: 23.24134922 | S107: 9.720516441 | T107: 176.7160092 | V107: 2023-07-01 | W107: 61.62229701 | X107: 26.47636766 | Y107: 12.97362191 | Z107: 12.5356972 | AA107: 19.55387611 | AB107: 21.09084541 | AC107: 8.670957144 | AD107: 162.9236625
B108: 2023-08-01 | C108: 63.60652977 | D108: 26.80817248 | E108: 13.52022327 | F108: 12.83994618 | G108: 20.22269502 | H108: 21.93229252 | I108: 9.098741489 | J108: 168.0286007 | L108: 2023-08-01 | M108: 66.24074561 | N108: 27.4192462 | O108: 14.20366851 | P108: 13.27641988 | Q108: 21.09776538 | R108: 22.99620282 | S108: 9.617985838 | T108: 174.8520343 | V108: 2023-08-01 | W108: 60.97231392 | X108: 26.19709876 | Y108: 12.83677802 | Z108: 12.40347248 | AA108: 19.34762465 | AB108: 20.86838222 | AC108: 8.579497141 | AD108: 161.2051672
B109: 2023-09-01 | C109: 65.70623838 | D109: 27.6931343 | E109: 13.96653797 | F109: 13.26380432 | G109: 20.89026432 | H109: 22.65629717 | I109: 9.399099109 | J109: 173.5753756 | L109: 2023-09-01 | M109: 68.42741205 | N109: 28.32438012 | O109: 14.67254435 | P109: 13.71468641 | Q109: 21.79422155 | R109: 23.75532811 | S109: 9.935484179 | T109: 180.6240568 | V109: 2023-09-01 | W109: 62.9850647 | X109: 27.06188849 | Y109: 13.26053158 | Z109: 12.81292223 | AA109: 19.9863071 | AB109: 21.55726624 | AC109: 8.862714038 | AD109: 166.5266944
B110: 2023-10-01 | C110: 64.15392892 | D110: 27.03484145 | E110: 13.72435739 | F110: 12.95694864 | G110: 20.54524347 | H110: 22.23108872 | I110: 9.184020676 | J110: 169.8304293 | L110: 2023-10-01 | M110: 66.79978982 | N110: 27.64861654 | O110: 14.41082393 | P110: 13.39535186 | Q110: 21.42418225 | R110: 23.29970224 | S110: 9.705560442 | T110: 176.6840271 | V110: 2023-10-01 | W110: 61.50806803 | X110: 26.42106636 | Y110: 13.03789085 | Z110: 12.51854543 | AA110: 19.66630469 | AB110: 21.1624752 | AC110: 8.662480909 | AD110: 162.9768315
B111: 2023-11-01 | C111: 66.04400594 | D111: 27.83133097 | E111: 14.12869884 | F111: 13.33868101 | G111: 21.15053909 | H111: 22.88605204 | I111: 9.454596566 | J111: 174.8339045 | L111: 2023-11-01 | M111: 68.76781812 | N111: 28.46318886 | O111: 14.83538978 | P111: 13.79000028 | Q111: 22.05537281 | R111: 23.98614861 | S111: 9.991501725 | T111: 181.8894202 | V111: 2023-11-01 | W111: 63.32019376 | X111: 27.19947309 | Y111: 13.42200789 | Z111: 12.88736173 | AA111: 20.24570537 | AB111: 21.78595546 | AC111: 8.917691406 | AD111: 167.7783887
B112: 2023-12-01 | C112: 64.20819436 | D112: 27.05770922 | E112: 13.73596632 | F112: 12.96790845 | G112: 20.56262193 | H112: 22.24989318 | I112: 9.191789099 | J112: 169.9740826 | L112: 2023-12-01 | M112: 66.85629329 | N112: 27.67200348 | O112: 14.42301352 | P112: 13.40668249 | Q112: 21.44230417 | R112: 23.3194106 | S112: 9.713770017 | T112: 176.8334776 | V112: 2023-12-01 | W112: 61.56009543 | X112: 26.44341496 | Y112: 13.04891912 | Z112: 12.5291344 | AA112: 19.68293969 | AB112: 21.18037576 | AC112: 8.669808182 | AD112: 163.1146875
B113: 2024-01-01 | C113: 63.07575275 | D113: 26.57774156 | E113: 13.57996026 | F113: 12.7461171 | G113: 20.36388064 | H113: 21.96604784 | I113: 9.036928293 | J113: 167.3464285 | L113: 2024-01-01 | M113: 65.66645144 | N113: 27.17872037 | O113: 14.25211501 | P113: 13.17538027 | Q113: 21.22449487 | R113: 23.01238239 | S113: 9.547594743 | T113: 174.0571391 | V113: 2024-01-01 | W113: 60.48505406 | X113: 25.97676275 | Y113: 12.90780551 | Z113: 12.31685393 | AA113: 19.5032664 | AB113: 20.9197133 | AC113: 8.526261843 | AD113: 160.6357178
B114: 2024-02-01 | C114: 70.0991569 | D114: 29.53713899 | E114: 15.09207141 | F114: 14.16538089 | G114: 22.63137262 | H114: 24.41193909 | I114: 10.04317867 | J114: 185.9802386 | L114: 2024-02-01 | M114: 72.97832657 | N114: 30.20503602 | O114: 15.83906974 | P114: 14.64244196 | Q114: 23.58781515 | R114: 25.57478164 | S114: 10.61070717 | T114: 193.4381782 | V114: 2024-02-01 | W114: 67.21998723 | X114: 28.86924196 | Y114: 14.34507309 | Z114: 13.68831982 | AA114: 21.6749301 | AB114: 23.24909654 | AC114: 9.475650161 | AD114: 178.5222989
B115: 2024-03-01 | C115: 64.41710047 | D115: 27.14293487 | E115: 13.86874712 | F115: 13.01717174 | G115: 20.79693207 | H115: 22.43317042 | I115: 9.229104568 | J115: 170.9051613 | L115: 2024-03-01 | M115: 67.06289209 | N115: 27.75669389 | O115: 14.5551957 | P115: 13.45556348 | Q115: 21.67584784 | R115: 23.50175596 | S115: 9.750630679 | T115: 177.7585796 | V115: 2024-03-01 | W115: 61.77130886 | X115: 26.52917585 | Y115: 13.18229855 | Z115: 12.57878 | AA115: 19.9180163 | AB115: 21.36458489 | AC115: 8.707578458 | AD115: 164.0517429
B116: 2024-04-01 | C116: 67.13174032 | D116: 28.28513542 | E116: 14.5449693 | F116: 13.57366706 | G116: 21.85774661 | H116: 23.49449774 | I116: 9.626172583 | J116: 178.513929 | L116: 2024-04-01 | M116: 69.87779767 | N116: 28.92215364 | O116: 15.25743174 | P116: 14.02867222 | Q116: 22.76997004 | R116: 24.60357873 | S116: 10.16746261 | T116: 185.6270667 | V116: 2024-04-01 | W116: 64.38568297 | X116: 27.6481172 | Y116: 13.83250686 | Z116: 13.11866189 | AA116: 20.94552318 | AB116: 22.38541675 | AC116: 9.084882558 | AD116: 171.4007914
B117: 2024-05-01 | C117: 64.38319772 | D117: 27.12707071 | E117: 13.94946161 | F117: 13.01792693 | G117: 20.96283539 | H117: 22.53257381 | I117: 9.232052823 | J117: 171.205119 | L117: 2024-05-01 | M117: 67.01682457 | N117: 27.7380078 | O117: 14.63275404 | P117: 13.45430304 | Q117: 21.8377101 | R117: 23.59624622 | S117: 9.751181071 | T117: 178.0270268 | V117: 2024-05-01 | W117: 61.74957088 | X117: 26.51613362 | Y117: 13.26616918 | Z117: 12.58155082 | AA117: 20.08796069 | AB117: 21.46890139 | AC117: 8.712924575 | AD117: 164.3832112
B118: 2024-06-01 | C118: 66.66012203 | D118: 28.08642484 | E118: 14.44278703 | F118: 13.47830845 | G118: 21.70419015 | H118: 23.32944266 | I118: 9.558546167 | J118: 177.2598213 | L118: 2024-06-01 | M118: 69.3868876 | N118: 28.71896784 | O118: 15.15024423 | P118: 13.93011708 | Q118: 22.61000496 | R118: 24.43073206 | S118: 10.09603349 | T118: 184.3229873 | V118: 2024-06-01 | W118: 63.93335646 | X118: 27.45388184 | Y118: 13.73532983 | Z118: 13.02649981 | AA118: 20.79837533 | AB118: 22.22815326 | AC118: 9.021058848 | AD118: 170.1966554
B119: 2024-07-01 | C119: 65.33478367 | D119: 27.52769814 | E119: 14.2449127 | F119: 13.21861979 | G119: 21.45865296 | H119: 22.97885671 | I119: 9.376843437 | J119: 174.1403674 | L119: 2024-07-01 | M119: 67.99655457 | N119: 28.14516396 | O119: 14.93550709 | P119: 13.6596592 | Q119: 22.34287695 | R119: 24.05389598 | S119: 9.901519309 | T119: 181.0351771 | V119: 2024-07-01 | W119: 62.67301278 | X119: 26.91023231 | Y119: 13.55431832 | Z119: 12.77758039 | AA119: 20.57442898 | AB119: 21.90381745 | AC119: 8.852167566 | AD119: 167.2455578
B120: 2024-08-01 | C120: 64.59371004 | D120: 27.21545938 | E120: 14.08333676 | F120: 13.06868479 | G120: 21.21525364 | H120: 22.71821416 | I120: 9.270484602 | J120: 172.1651434 | L120: 2024-08-01 | M120: 67.22528923 | N120: 27.82592147 | O120: 14.76609793 | P120: 13.50472162 | Q120: 22.08944813 | R120: 23.78105957 | S120: 9.789209227 | T120: 178.9817472 | V120: 2024-08-01 | W120: 61.96213084 | X120: 26.6049973 | Y120: 13.40057559 | Z120: 12.63264797 | AA120: 20.34105915 | AB120: 21.65536875 | AC120: 8.751759978 | AD120: 165.3485396
B121: 2024-09-01 | C121: 66.87308983 | D121: 28.17583723 | E121: 14.58030889 | F121: 13.52985193 | G121: 21.96389651 | H121: 23.51989343 | I121: 9.597621026 | J121: 178.2404988 | L121: 2024-09-01 | M121: 69.59753207 | N121: 28.80784127 | O121: 15.2871633 | P121: 13.9812756 | Q121: 22.86893953 | R121: 24.62024448 | S121: 10.13465038 | T121: 185.2976466 | V121: 2024-09-01 | W121: 64.14864759 | X121: 27.54383319 | Y121: 13.87345447 | Z121: 13.07842826 | AA121: 21.05885349 | AB121: 22.41954238 | AC121: 9.060591671 | AD121: 171.1833511
B122: 2024-10-01 | C122: 65.31095255 | D122: 27.51859583 | E122: 14.32893523 | F122: 13.22263852 | G122: 21.64696204 | H122: 23.0840406 | I122: 9.382169986 | J122: 174.4942948 | L122: 2024-10-01 | M122: 67.96112197 | N122: 28.13337039 | O122: 15.01651962 | P122: 13.66175563 | Q122: 22.52733208 | R122: 24.15439425 | S122: 9.904559029 | T122: 181.359053 | V122: 2024-10-01 | W122: 62.66078313 | X122: 26.90382126 | Y122: 13.64135085 | Z122: 12.78352141 | AA122: 20.76659199 | AB122: 22.01368695 | AC122: 8.859780944 | AD122: 167.6295365
B123: 2024-11-01 | C123: 66.85512255 | D123: 28.16922774 | E123: 14.66771933 | F123: 13.53526605 | G123: 22.15876884 | H123: 23.62982475 | I123: 9.603995957 | J123: 178.6199252 | L123: 2024-11-01 | M123: 69.56795087 | N123: 28.79853764 | O123: 15.37156052 | P123: 13.98476536 | Q123: 23.05995378 | R123: 24.72548516 | S123: 10.13873603 | T123: 185.6469893 | V123: 2024-11-01 | W123: 64.14229424 | X123: 27.53991785 | Y123: 13.96387814 | Z123: 13.08576673 | AA123: 21.25758389 | AB123: 22.53416435 | AC123: 9.069255885 | AD123: 171.5928611
B124: 2024-12-01 | C124: 65.41570304 | D124: 27.56273217 | E124: 14.35191703 | F124: 13.24384595 | G124: 21.68168102 | H124: 23.12106448 | I124: 9.397217798 | J124: 174.7741615 | L124: 2024-12-01 | M124: 68.070123 | N124: 28.17849275 | O124: 15.04060421 | P124: 13.68366735 | Q124: 22.56346307 | R124: 24.19313484 | S124: 9.920444686 | T124: 181.6499299 | V124: 2024-12-01 | W124: 62.76128309 | X124: 26.94697158 | Y124: 13.66322984 | Z124: 12.80402455 | AA124: 20.79989898 | AB124: 22.04899411 | AC124: 8.87399091 | AD124: 167.8983931
B125: 2025-01-01 | C125: 64.10396731 | D125: 27.01217659 | E125: 14.15165543 | F125: 12.98749084 | G125: 21.44544058 | H125: 22.76925793 | I125: 9.217769564 | J125: 171.6877582 | L125: 2025-01-01 | M125: 66.694869 | N125: 27.61320249 | O125: 14.82386285 | P125: 13.41678765 | Q125: 22.30612224 | R125: 23.81567445 | S125: 9.728476028 | T125: 178.3989947 | V125: 2025-01-01 | W125: 61.51306562 | X125: 26.41115069 | Y125: 13.47944801 | Z125: 12.55819404 | AA125: 20.58475891 | AB125: 21.7228414 | AC125: 8.7070631 | AD125: 164.9765218
B126: 2025-02-01 | C126: 73.51800021 | D126: 30.97906865 | E126: 16.22990668 | F126: 14.89477788 | G126: 24.59482573 | H126: 26.11305321 | I126: 10.57145155 | J126: 196.9010839 | L126: 2025-02-01 | M126: 76.48939057 | N126: 31.66835863 | O126: 17.00083159 | P126: 15.38711937 | Q126: 25.58190341 | R126: 27.31314196 | S126: 11.15715817 | T126: 204.5979037 | V126: 2025-02-01 | W126: 70.54660984 | X126: 30.28977868 | Y126: 15.45898177 | Z126: 14.4024364 | AA126: 23.60774806 | AB126: 24.91296445 | AC126: 9.985744935 | AD126: 189.2042641
B127: 2025-03-01 | C127: 65.69406477 | D127: 27.68221302 | E127: 14.50268692 | F127: 13.30964526 | G127: 21.97739424 | H127: 23.33404885 | I127: 9.44641613 | J127: 175.9464692 | L127: 2025-03-01 | M127: 68.34923371 | N127: 28.29814735 | O127: 15.19156844 | P127: 13.74959076 | Q127: 22.8594251 | R127: 24.40642172 | S127: 9.969790656 | T127: 182.8241777 | V127: 2025-03-01 | W127: 63.03889582 | X127: 27.06627869 | Y127: 13.81380541 | Z127: 12.86969976 | AA127: 21.09536339 | AB127: 22.26167599 | AC127: 8.923041604 | AD127: 169.0687607
B128: 2025-04-01 | C128: 68.25837578 | D128: 28.76634311 | E128: 15.16195121 | F128: 13.83954497 | G128: 23.05318331 | H128: 24.36428798 | I128: 9.825141394 | J128: 183.2688278 | L128: 2025-04-01 | M128: 71.00637926 | N128: 29.40381279 | O128: 15.87491857 | P128: 14.2948726 | Q128: 23.96605324 | R128: 25.47415497 | S128: 10.36681503 | T128: 190.3870065 | V128: 2025-04-01 | W128: 65.5103723 | X128: 28.12887344 | Y128: 14.44898385 | Z128: 13.38421735 | AA128: 22.14031339 | AB128: 23.25442099 | AC128: 9.283467757 | AD128: 176.1506491
B129: 2025-05-01 | C129: 65.14242551 | D129: 27.45317834 | E129: 14.46981804 | F129: 13.20777879 | G129: 22.00082055 | H129: 23.25207415 | I129: 9.376630107 | J129: 174.9027255 | L129: 2025-05-01 | M129: 67.76498443 | N129: 28.06154794 | O129: 15.1502389 | P129: 13.642321 | Q129: 22.87201856 | R129: 24.31127644 | S129: 9.893576696 | T129: 181.695964 | V129: 2025-05-01 | W129: 62.5198666 | X129: 26.84480874 | Y129: 13.78939717 | Z129: 12.77323657 | AA129: 21.12962255 | AB129: 22.19287186 | AC129: 8.859683518 | AD129: 168.109487
B130: 2025-06-01 | C130: 67.96658452 | D130: 28.6433726 | E130: 15.09713682 | F130: 13.78038361 | G130: 22.95463545 | H130: 24.2601354 | I130: 9.783140828 | J130: 182.4853892 | L130: 2025-06-01 | M130: 70.70284082 | N130: 29.27811722 | O130: 15.80705638 | P130: 14.2337648 | Q130: 23.86360303 | R130: 25.36525792 | S130: 10.32249892 | T130: 189.5731391 | V130: 2025-06-01 | W130: 65.23032822 | X130: 28.00862798 | Y130: 14.38721726 | Z130: 13.32700243 | AA130: 22.04566787 | AB130: 23.15501287 | AC130: 9.243782741 | AD130: 175.3976394
B131: 2025-07-01 | C131: 66.28196385 | D131: 27.93815196 | E131: 14.81335779 | F131: 13.44943851 | G131: 22.60567619 | H131: 23.77511595 | I131: 9.550771816 | J131: 178.4144761 | L131: 2025-07-01 | M131: 68.94005016 | N131: 28.55476305 | O131: 15.50299621 | P131: 13.8898674 | Q131: 23.48867618 | R131: 24.84866709 | S131: 10.0747214 | T131: 185.2997415 | V131: 2025-07-01 | W131: 63.62387754 | X131: 27.32154087 | Y131: 14.12371937 | Z131: 13.00900962 | AA131: 21.7226762 | AB131: 22.70156482 | AC131: 9.026822233 | AD131: 171.5292107
B132: 2025-08-01 | C132: 65.4181928 | D132: 27.5740685 | E132: 14.62031358 | F132: 13.27416857 | G132: 22.31108431 | H132: 23.4652842 | I132: 9.426308391 | J132: 176.0894204 | L132: 2025-08-01 | M132: 68.04163955 | N132: 28.18264406 | O132: 15.30096479 | P132: 13.7088579 | Q132: 23.18257724 | R132: 24.52484507 | S132: 9.943429986 | T132: 182.8849586 | V132: 2025-08-01 | W132: 62.79474605 | X132: 26.96549294 | Y132: 13.93966237 | Z132: 12.83947925 | AA132: 21.43959137 | AB132: 22.40572334 | AC132: 8.909186797 | AD132: 169.2938821
B133: 2025-09-01 | C133: 68.24110479 | D133: 28.76393886 | E133: 15.25120625 | F133: 13.84697268 | G133: 23.27384749 | H133: 24.47785317 | I133: 9.833070452 | J133: 183.6879937 | L133: 2025-09-01 | M133: 70.97775796 | N133: 29.39877554 | O133: 15.96122878 | P133: 14.30041963 | Q133: 24.1829469 | R133: 25.58313598 | S133: 10.37250677 | T133: 190.7767716 | V133: 2025-09-01 | W133: 65.50445162 | X133: 28.12910218 | Y133: 14.54118372 | Z133: 13.39352573 | AA133: 22.36474807 | AB133: 23.37257036 | AC133: 9.293634136 | AD133: 176.5992158
B134: 2025-10-01 | C134: 66.26522742 | D134: 27.93704916 | E134: 14.89995913 | F134: 13.45720502 | G134: 22.828161 | H134: 23.88569035 | I134: 9.558879712 | J134: 178.8321718 | L134: 2025-10-01 | M134: 68.91243881 | N134: 28.55113754 | O134: 15.58677606 | P134: 13.89583201 | Q134: 23.7075484 | R134: 24.95484931 | S134: 10.08068568 | T134: 185.6892678 | V134: 2025-10-01 | W134: 63.61801603 | X134: 27.32296079 | Y134: 14.2131422 | Z134: 13.01857804 | AA134: 21.94877359 | AB134: 22.81653139 | AC134: 9.037073742 | AD134: 171.9750758
B135: 2025-11-01 | C135: 68.03713619 | D135: 28.68407599 | E135: 15.29837878 | F135: 13.81704593 | G135: 23.43857796 | H135: 24.52438527 | I135: 9.814480778 | J135: 183.6140809 | L135: 2025-11-01 | M135: 70.75513308 | N135: 29.31458487 | O135: 16.00356095 | P135: 14.26740164 | Q135: 24.34147987 | R135: 25.62213316 | S135: 10.35023966 | T135: 190.6545332 | V135: 2025-11-01 | W135: 65.3191393 | X135: 28.05356711 | Y135: 14.5931966 | Z135: 13.36669022 | AA135: 22.53567604 | AB135: 23.42663738 | AC135: 9.278721901 | AD135: 176.5736286
B136: 2025-12-01 | C136: 66.39451175 | D136: 27.99155472 | E136: 14.92902915 | F136: 13.48346021 | G136: 22.87269904 | H136: 23.93229165 | I136: 9.577529212 | J136: 179.1810757 | L136: 2025-12-01 | M136: 69.04688789 | N136: 28.60684118 | O136: 15.61718607 | P136: 13.92294296 | Q136: 23.75380214 | R136: 25.00353655 | S136: 10.10035323 | T136: 186.05155 | V136: 2025-12-01 | W136: 63.74213562 | X136: 27.37626825 | Y136: 14.24087223 | Z136: 13.04397746 | AA136: 21.99159594 | AB136: 22.86104675 | AC136: 9.054705192 | AD136: 172.3106014
B137: 2026-01-01 | C137: 65.08873159 | D137: 27.44809855 | E137: 14.7241187 | F137: 13.22975469 | G137: 22.65494953 | H137: 23.57640622 | I137: 9.399898194 | J137: 176.1219575 | L137: 2026-01-01 | M137: 67.67906005 | N137: 28.04899147 | O137: 15.3961774 | P137: 13.65895652 | Q137: 23.51544078 | R137: 24.62259123 | S137: 9.910491665 | T137: 182.8317091 | V137: 2026-01-01 | W137: 62.49840314 | X137: 26.84720563 | Y137: 14.05206001 | Z137: 12.80055287 | AA137: 21.79445829 | AB137: 22.53022121 | AC137: 8.889304724 | AD137: 169.4122059
B138: 2026-02-01 | C138: 74.60722015 | D138: 31.46207156 | E138: 16.87735402 | F138: 15.16445623 | G138: 25.96797888 | H138: 27.02418815 | I138: 10.77452666 | J138: 201.8777956 | L138: 2026-02-01 | M138: 77.57635476 | N138: 32.15083825 | O138: 17.64769367 | P138: 15.65642395 | Q138: 26.95430721 | R138: 28.22336585 | S138: 11.35978864 | T138: 209.5687723 | V138: 2026-02-01 | W138: 71.63808555 | X138: 30.77330486 | Y138: 16.10701436 | Z138: 14.6724885 | AA138: 24.98165056 | AB138: 25.82501045 | AC138: 10.18926469 | AD138: 194.186819
B139: 2026-03-01 | C139: 66.78361795 | D139: 28.16283682 | E139: 15.10752928 | F139: 13.57425259 | G139: 23.24487599 | H139: 24.19032706 | I139: 9.644668046 | J139: 180.7081077 | L139: 2026-03-01 | M139: 69.44139759 | N139: 28.77937677 | O139: 15.79708813 | P139: 14.01463066 | Q139: 24.12777411 | R139: 25.26375434 | S139: 10.16855718 | T139: 187.5925788 | V139: 2026-03-01 | W139: 64.1258383 | X139: 27.54629687 | Y139: 14.41797042 | Z139: 13.13387451 | AA139: 22.36197788 | AB139: 23.11689979 | AC139: 9.120778912 | AD139: 173.8236367
B140: 2026-04-01 | C140: 69.212003 | D140: 29.19566191 | E140: 15.75112379 | F140: 14.08060282 | G140: 24.34550956 | H140: 25.19231212 | I140: 10.00719683 | J140: 187.78441 | L140: 2026-04-01 | M140: 71.95606169 | N140: 29.83221649 | O140: 16.46306767 | P140: 14.53527682 | Q140: 25.25706904 | R140: 26.30058588 | S140: 10.54809289 | T140: 194.8923705 | V140: 2026-04-01 | W140: 66.46794432 | X140: 28.55910734 | Y140: 15.0391799 | Z140: 13.62592882 | AA140: 23.43395007 | AB140: 24.08403836 | AC140: 9.466300778 | AD140: 180.6764496
B141: 2026-05-01 | C141: 65.9982382 | D141: 27.84000124 | E141: 15.01974187 | F141: 13.42678927 | G141: 23.21505908 | H141: 24.02254153 | I141: 9.542526321 | J141: 179.0648975 | L141: 2026-05-01 | M141: 68.61488027 | N141: 28.44699828 | O141: 15.69862762 | P141: 13.8603511 | Q141: 24.08429154 | R141: 25.07935411 | S141: 10.05830661 | T141: 185.8428095 | V141: 2026-05-01 | W141: 63.38159613 | X141: 27.2330042 | Y141: 14.34085613 | Z141: 12.99322744 | AA141: 22.34582662 | AB141: 22.96572894 | AC141: 9.026746034 | AD141: 172.2869855
B142: 2026-06-01 | C142: 69.26891752 | D142: 29.21967014 | E142: 15.76407628 | F142: 14.0921816 | G142: 24.36552939 | H142: 25.2130283 | I142: 10.01542597 | J142: 187.9388292 | L142: 2026-06-01 | M142: 72.0152327 | N142: 29.85674817 | O142: 16.47660561 | P142: 14.54722949 | Q142: 25.27783847 | R142: 26.32221342 | S142: 10.55676681 | T142: 195.0526347 | V142: 2026-06-01 | W142: 66.52260234 | X142: 28.58259211 | Y142: 15.05154695 | Z142: 13.63713372 | AA142: 23.45322032 | AB142: 24.10384318 | AC142: 9.474085121 | AD142: 180.8250237
B143: 2026-07-01 | C143: 67.0899239 | D143: 28.31021577 | E143: 15.35949918 | F143: 13.66178765 | G143: 23.85522549 | H143: 24.53879674 | I143: 9.71223865 | J143: 182.5276874 | L143: 2026-07-01 | M143: 69.73994285 | N143: 28.92495543 | O143: 16.04704452 | P143: 14.10087983 | Q143: 24.73554555 | R143: 25.60908962 | S143: 10.23459803 | T143: 189.3920558 | V143: 2026-07-01 | W143: 64.43990495 | X143: 27.69547612 | Y143: 14.67195383 | Z143: 13.22269548 | AA143: 22.97490543 | AB143: 23.46850386 | AC143: 9.189879268 | AD143: 175.6633189
B144: 2026-08-01 | C144: 66.65262083 | D144: 28.12568517 | E144: 15.25938346 | F144: 13.57273789 | G144: 23.69973324 | H144: 24.37884886 | I144: 9.648932695 | J144: 181.3379422 | L144: 2026-08-01 | M144: 69.28536653 | N144: 28.73641786 | O144: 15.94244727 | P144: 14.008968 | Q144: 24.57431523 | R144: 25.4421654 | S144: 10.16788725 | T144: 188.1575675 | V144: 2026-08-01 | W144: 64.01987514 | X144: 27.51495249 | Y144: 14.57631964 | Z144: 13.13650779 | AA144: 22.82515125 | AB144: 23.31553233 | AC144: 9.129978136 | AD144: 174.5183168
B145: 2026-09-01 | C145: 69.25100378 | D145: 29.22213569 | E145: 15.85425461 | F145: 14.10185693 | G145: 24.62364264 | H145: 25.32923287 | I145: 10.02508628 | J145: 188.4072128 | L145: 2026-09-01 | M145: 71.98638431 | N145: 29.85667715 | O145: 16.56394696 | P145: 14.55509301 | Q145: 25.53231929 | R145: 26.43400169 | S145: 10.56427174 | T145: 195.4926942 | V145: 2026-09-01 | W145: 66.51562324 | X145: 28.58759423 | Y145: 15.14456227 | Z145: 13.64862085 | AA145: 23.71496598 | AB145: 24.22446405 | AC145: 9.485900816 | AD145: 181.3217314
B146: 2026-10-01 | C146: 67.13680336 | D146: 28.34092078 | E146: 15.46155959 | F146: 13.68476798 | G146: 24.13702133 | H146: 24.67518443 | I146: 9.731303745 | J146: 183.1675612 | L146: 2026-10-01 | M146: 69.77890045 | N146: 28.95382276 | O146: 16.14704961 | P146: 14.12254755 | Q146: 25.0147098 | R146: 25.74227782 | S146: 10.25210161 | T146: 190.0114096 | V146: 2026-10-01 | W146: 64.49470628 | X146: 27.72801881 | Y146: 14.77606956 | Z146: 13.24698841 | AA146: 23.25933287 | AB146: 23.60809105 | AC146: 9.210505883 | AD146: 176.3237129
B147: 2026-11-01 | C147: 69.21132094 | D147: 29.21665116 | E147: 15.93931955 | F147: 14.10762534 | G147: 24.88285182 | H147: 25.43764409 | I147: 10.03199963 | J147: 188.8274125 | L147: 2026-11-01 | M147: 71.93505844 | N147: 29.84849172 | O147: 16.64599112 | P147: 14.55893224 | Q147: 25.78766073 | R147: 26.5377105 | S147: 10.56889007 | T147: 195.8827348 | V147: 2026-11-01 | W147: 66.48758344 | X147: 28.5848106 | Y147: 15.23264799 | Z147: 13.65631844 | AA147: 23.97804291 | AB147: 24.33757767 | AC147: 9.495109191 | AD147: 181.7720902
B148: 2026-12-01 | C148: 67.38678928 | D148: 28.44644906 | E148: 15.51913117 | F148: 13.73572363 | G148: 24.22689626 | H148: 24.76706323 | I148: 9.767538547 | J148: 183.8495912 | L148: 2026-12-01 | M148: 70.03872429 | N148: 29.06163319 | O148: 16.20717364 | P148: 14.17513328 | Q148: 25.10785282 | R148: 25.83812997 | S148: 10.29027562 | T148: 190.7189228 | V148: 2026-12-01 | W148: 64.73485426 | X148: 27.83126492 | Y148: 14.8310887 | Z148: 13.29631397 | AA148: 23.3459397 | AB148: 23.69599649 | AC148: 9.24480148 | AD148: 176.9802595
B149: 2027-01-01 | C149: 66.01050741 | D149: 27.87738844 | E149: 15.29190984 | F149: 13.46890892 | G149: 23.99348529 | H149: 24.37872851 | I149: 9.580512022 | J149: 180.6014404 | L149: 2027-01-01 | M149: 68.59880527 | N149: 28.47781031 | O149: 15.9634417 | P149: 13.89777428 | Q149: 24.85330198 | R149: 25.42409339 | S149: 10.09070523 | T149: 187.3059322 | V149: 2027-01-01 | W149: 63.42220956 | X149: 27.27696656 | Y149: 14.62037798 | Z149: 13.04004355 | AA149: 23.1336686 | AB149: 23.33336362 | AC149: 9.070318814 | AD149: 173.8969487
B150: 2027-02-01 | C150: 75.8426146 | D150: 32.02965876 | E150: 17.56960323 | F150: 15.47507068 | G150: 27.56725753 | H150: 28.00988181 | I150: 11.00750637 | J150: 207.501593 | L150: 2027-02-01 | M150: 78.81643323 | N150: 32.71951204 | O150: 18.34115816 | P150: 15.96781452 | Q150: 28.55514186 | R150: 29.21095129 | S150: 11.59369164 | T150: 215.2047027 | V150: 2027-02-01 | W150: 72.86879597 | X150: 31.33980549 | Y150: 16.79804831 | Z150: 14.98232685 | AA150: 26.57937321 | AB150: 26.80881232 | AC150: 10.42132111 | AD150: 199.7984832
B151: 2027-03-01 | C151: 67.72642134 | D151: 28.60204881 | E151: 15.68941627 | F151: 13.81902724 | G151: 24.61718532 | H151: 25.01244276 | I151: 9.829553191 | J151: 185.2960949 | L151: 2027-03-01 | M151: 70.38200085 | N151: 29.21807838 | O151: 16.3784043 | P151: 14.25904077 | Q151: 25.49935257 | R151: 26.08498145 | S151: 10.35300865 | T151: 192.174867 | V151: 2027-03-01 | W151: 65.07084182 | X151: 27.98601924 | Y151: 15.00042824 | Z151: 13.37901371 | AA151: 23.73501808 | AB151: 23.93990408 | AC151: 9.306097737 | AD151: 178.4173229
B152: 2027-04-01 | C152: 70.07463619 | D152: 29.60761459 | E152: 16.32859616 | F152: 14.31325191 | G152: 25.7478654 | H152: 26.00465858 | I152: 10.18400352 | J152: 192.2606264 | L152: 2027-04-01 | M152: 72.8123727 | N152: 30.24270258 | O152: 17.03889976 | P152: 14.76687836 | Q152: 26.65732469 | R152: 27.11037893 | S152: 10.72365338 | T152: 199.3522104 | V152: 2027-04-01 | W152: 67.33689969 | X152: 28.97252661 | Y152: 15.61829256 | Z152: 13.85962546 | AA152: 24.83840611 | AB152: 24.89893823 | AC152: 9.64435366 | AD152: 185.1690423
B153: 2027-05-01 | C153: 67.26018696 | D153: 28.41846639 | E153: 15.67278106 | F153: 13.73838027 | G153: 24.71373859 | H153: 24.96021803 | I153: 9.774977337 | J153: 184.5387486 | L153: 2027-05-01 | M153: 69.88796613 | N153: 29.02804696 | O153: 16.35455631 | P153: 14.17378746 | Q153: 25.58667073 | R153: 26.02152868 | S153: 10.29295292 | T153: 191.3455092 | V153: 2027-05-01 | W153: 64.6324078 | X153: 27.80888581 | Y153: 14.9910058 | Z153: 13.30297309 | AA153: 23.84080645 | AB153: 23.89890739 | AC153: 9.257001756 | AD153: 177.7319881
B154: 2027-06-01 | C154: 70.16147061 | D154: 29.64430347 | E154: 16.34883008 | F154: 14.33098847 | G154: 25.77977139 | H154: 26.03688278 | I154: 10.19662323 | J154: 192.49887 | L154: 2027-06-01 | M154: 72.90259964 | N154: 30.28017844 | O154: 17.06001386 | P154: 14.78517704 | Q154: 26.69035766 | R154: 27.14397331 | S154: 10.73694181 | T154: 199.5992418 | V154: 2027-06-01 | W154: 67.42034159 | X154: 29.00842851 | Y154: 15.63764629 | Z154: 13.8767999 | AA154: 24.86918512 | AB154: 24.92979226 | AC154: 9.656304658 | AD154: 185.3984983
B155: 2027-07-01 | C155: 68.03963998 | D155: 28.76244658 | E155: 15.94678506 | F155: 13.91276207 | G155: 25.27209132 | H155: 25.3710686 | I155: 9.90189363 | J155: 187.2066872 | L155: 2027-07-01 | M155: 70.68837718 | N155: 29.3768889 | O155: 16.63399786 | P155: 14.35164188 | Q155: 26.15198559 | R155: 26.4408438 | S155: 10.42400036 | T155: 194.0677356 | V155: 2027-07-01 | W155: 65.39090278 | X155: 28.14800426 | Y155: 15.25957227 | Z155: 13.47388227 | AA155: 24.39219705 | AB155: 24.30129339 | AC155: 9.3797869 | AD155: 180.3456389
B156: 2027-08-01 | C156: 67.72448215 | D156: 28.62921968 | E156: 15.87291997 | F156: 13.84831852 | G156: 25.15503165 | H156: 25.25355047 | I156: 9.856028317 | J156: 186.3395508 | L156: 2027-08-01 | M156: 70.36095046 | N156: 29.24081592 | O156: 16.55694962 | P156: 14.28516545 | Q156: 26.03085027 | R156: 26.31837051 | S156: 10.37571666 | T156: 193.1688189 | V156: 2027-08-01 | W156: 65.08801383 | X156: 28.01762344 | Y156: 15.18889033 | Z156: 13.4114716 | AA156: 24.27921303 | AB156: 24.18873044 | AC156: 9.336339972 | AD156: 179.5102826
B157: 2027-09-01 | C157: 70.20050714 | D157: 29.67591153 | E157: 16.45323813 | F157: 14.35461671 | G157: 26.07470627 | H157: 26.17682696 | I157: 10.21636732 | J157: 193.1521741 | L157: 2027-09-01 | M157: 72.93336544 | N157: 30.30986789 | O157: 17.16227608 | P157: 14.80743488 | Q157: 26.98254505 | R157: 27.2805771 | S157: 10.75505561 | T157: 200.231122 | V157: 2027-09-01 | W157: 67.46764884 | X157: 29.04195517 | Y157: 15.74420018 | Z157: 13.90179855 | AA157: 25.16686748 | AB157: 25.07307683 | AC157: 9.677679033 | AD157: 186.0732261
B158: 2027-10-01 | C158: 68.21933767 | D158: 28.854282 | E158: 16.08146422 | F158: 13.96522231 | G158: 25.61380003 | H158: 25.56021148 | I158: 9.94211385 | J158: 188.2364315 | L158: 2027-10-01 | M158: 70.86568556 | N158: 29.46817006 | O158: 16.76805712 | P158: 14.40370622 | Q158: 26.49290059 | R158: 26.62902168 | S158: 10.46374961 | T158: 195.0912908 | V158: 2027-10-01 | W158: 65.57298977 | X158: 28.24039394 | Y158: 15.39487133 | Z158: 13.5267384 | AA158: 24.73469947 | AB158: 24.49140127 | AC158: 9.420478088 | AD158: 181.3815723
B159: 2027-11-01 | C159: 70.28237386 | D159: 29.72687077 | E159: 16.56778736 | F159: 14.38754771 | G159: 26.38839266 | H159: 26.33318353 | I159: 10.24277553 | J159: 193.9289314 | L159: 2027-11-01 | M159: 73.00875055 | N159: 30.35932356 | O159: 17.27514367 | P159: 14.83929191 | Q159: 27.2940783 | R159: 27.43431586 | S159: 10.78018619 | T159: 200.99109 | V159: 2027-11-01 | W159: 67.55599717 | X159: 29.09441799 | Y159: 15.86043106 | Z159: 13.93580351 | AA159: 25.48270703 | AB159: 25.23205119 | AC159: 9.705364865 | AD159: 186.8667728
B160: 2027-12-01 | C160: 68.1879457 | D160: 28.84100435 | E160: 16.07406414 | F160: 13.95879604 | G160: 25.60201352 | H160: 25.54844963 | I160: 9.937538863 | J160: 188.1498122 | L160: 2027-12-01 | M160: 70.83307584 | N160: 29.45460992 | O160: 16.76034109 | P160: 14.39707817 | Q160: 26.48070955 | R160: 26.61676801 | S160: 10.45893459 | T160: 195.0015172 | V160: 2027-12-01 | W160: 65.54281555 | X160: 28.22739877 | Y160: 15.38778718 | Z160: 13.5205139 | AA160: 24.72331749 | AB160: 24.48013125 | AC160: 9.416143139 | AD160: 181.2981073
B161: 2028-01-01 | C161: 66.8405081 | D161: 28.28776778 | E161: 15.84706617 | F161: 13.69885389 | G161: 25.37036759 | H161: 25.16348714 | I161: 9.755330627 | J161: 184.9633813 | L161: 2028-01-01 | M161: 69.4243026 | N161: 28.88714499 | O161: 16.51742964 | P161: 14.12697308 | Q161: 26.22868829 | R161: 26.2070332 | S161: 10.26463615 | T161: 191.656208 | V161: 2028-01-01 | W161: 64.25671361 | X161: 27.68839058 | Y161: 15.17670271 | Z161: 13.27073471 | AA161: 24.51204689 | AB161: 24.11994107 | AC161: 9.2460251 | AD161: 178.2705547
B162: 2028-02-01 | C162: 74.49147783 | D162: 31.52575716 | E162: 17.66101743 | F162: 15.26690775 | G162: 28.27441366 | H162: 28.04385241 | I162: 10.8719849 | J162: 206.1354111 | L162: 2028-02-01 | M162: 77.37102911 | N162: 32.19374271 | O162: 18.40811476 | P162: 15.74403205 | Q162: 29.23098295 | R162: 29.20684908 | S162: 11.43958863 | T162: 213.5943393 | V162: 2028-02-01 | W162: 71.61192655 | X162: 30.85777161 | Y162: 16.9139201 | Z162: 14.78978345 | AA162: 27.31784436 | AB162: 26.88085573 | AC162: 10.30438118 | AD162: 198.676483
B163: 2028-03-01 | C163: 68.61369005 | D163: 29.03820133 | E163: 16.26746591 | F163: 14.06226466 | G163: 26.04340673 | H163: 25.83103803 | I163: 10.01412543 | J163: 189.8701921 | L163: 2028-03-01 | M163: 71.26602888 | N163: 29.65347914 | O163: 16.95561314 | P163: 14.50174123 | Q163: 26.92449744 | R163: 26.90226787 | S163: 10.5369421 | T163: 196.7405698 | V163: 2028-03-01 | W163: 65.96135123 | X163: 28.42292351 | Y163: 15.57931867 | Z163: 13.62278809 | AA163: 25.16231602 | AB163: 24.7598082 | AC163: 9.491308765 | AD163: 182.9998145
B164: 2028-04-01 | C164: 71.13225314 | D164: 30.12304104 | E164: 16.96098442 | F164: 14.59586877 | G164: 27.29728411 | H164: 26.90700141 | I164: 10.39718237 | J164: 197.4136153 | L164: 2028-04-01 | M164: 73.87243747 | N164: 30.75869687 | O164: 17.67192311 | P164: 15.04990081 | Q164: 28.20755656 | R164: 28.01371039 | S164: 10.93731473 | T164: 204.5115399 | V164: 2028-04-01 | W164: 68.39206881 | X164: 29.48738522 | Y164: 16.25004574 | Z164: 14.14183673 | AA164: 26.38701167 | AB164: 25.80029243 | AC164: 9.857050006 | AD164: 190.3156906
B165: 2028-05-01 | C165: 68.31711281 | D165: 28.93088722 | E165: 16.28973405 | F165: 14.01822055 | G165: 26.21696285 | H165: 25.84212603 | I165: 9.985701976 | J165: 189.6007455 | L165: 2028-05-01 | M165: 70.94885121 | N165: 29.54138623 | O165: 16.97253652 | P165: 14.45428376 | Q165: 27.09121023 | R165: 26.90503574 | S165: 10.50445798 | T165: 196.4177617 | V165: 2028-05-01 | W165: 65.68537441 | X165: 28.3203882 | Y165: 15.60693158 | Z165: 13.58215735 | AA165: 25.34271548 | AB165: 24.77921632 | AC165: 9.46694597 | AD165: 182.7837293
B166: 2028-06-01 | C166: 70.98703029 | D166: 30.06154216 | E166: 16.92635706 | F166: 14.56607 | G166: 27.24155427 | H166: 26.85206836 | I166: 10.37595559 | J166: 197.0105777 | L166: 2028-06-01 | M166: 73.72162029 | N166: 30.69590024 | O166: 17.6358443 | P166: 15.01917509 | Q166: 28.14996831 | R166: 27.9565179 | S166: 10.91498522 | T166: 204.0940113 | V166: 2028-06-01 | W166: 68.25244029 | X166: 29.42718409 | Y166: 16.21686982 | Z166: 14.1129649 | AA166: 26.33314023 | AB166: 25.74761882 | AC166: 9.836925958 | AD166: 189.9271441
B167: 2028-07-01 | C167: 69.24607838 | D167: 29.34386955 | E167: 16.60501132 | F167: 14.22629188 | G167: 26.86780175 | H167: 26.31814362 | I167: 10.13693615 | J167: 192.7441327 | L167: 2028-07-01 | M167: 71.90447289 | N167: 29.96055213 | O167: 17.2947297 | P167: 14.66677184 | Q167: 27.75090412 | R167: 27.39181923 | S167: 10.66094649 | T167: 199.6301964 | V167: 2028-07-01 | W167: 66.58768387 | X167: 28.72718697 | Y167: 15.91529294 | Z167: 13.78581192 | AA167: 25.98469938 | AB167: 25.24446801 | AC167: 9.612925819 | AD167: 185.8580689
B168: 2028-08-01 | C168: 68.67375326 | D168: 29.1013398 | E168: 16.46776939 | F168: 14.10871029 | G168: 26.64573693 | H168: 26.10062177 | I168: 10.05315346 | J168: 191.1510849 | L168: 2028-08-01 | M168: 71.31017589 | N168: 29.71292545 | O168: 17.15178719 | P168: 14.54554964 | Q168: 27.52154038 | R168: 27.16542336 | S168: 10.5728328 | T168: 197.9802347 | V168: 2028-08-01 | W168: 66.03733062 | X168: 28.48975416 | Y168: 15.7837516 | Z168: 13.67187094 | AA168: 25.76993348 | AB168: 25.03582019 | AC168: 9.533474114 | AD168: 184.3219351
B169: 2028-09-01 | C169: 70.92700731 | D169: 30.05618367 | E169: 17.00809326 | F169: 14.57163109 | G169: 27.52001003 | H169: 26.9570091 | I169: 10.38300741 | J169: 197.4229419 | L169: 2028-09-01 | M169: 73.64993359 | N169: 30.68783605 | O169: 17.71455436 | P169: 15.02280357 | Q169: 28.42454946 | R169: 28.05674788 | S169: 10.91973794 | T169: 204.4761628 | V169: 2028-09-01 | W169: 68.20408103 | X169: 29.42453129 | Y169: 16.30163217 | Z169: 14.1204586 | AA169: 26.6154706 | AB169: 25.85727032 | AC169: 9.846276869 | AD169: 190.3697209
B170: 2028-10-01 | C170: 69.35468632 | D170: 29.41065622 | E170: 16.72490634 | F170: 14.2665855 | G170: 27.20915505 | H170: 26.48443177 | I170: 10.1686947 | J170: 193.6191159 | L170: 2028-10-01 | M170: 72.00823545 | N170: 30.02621479 | O170: 17.41336759 | P170: 14.70626261 | Q170: 28.09064781 | R170: 27.55615043 | S170: 10.69174993 | T170: 200.4926286 | V170: 2028-10-01 | W170: 66.70113719 | X170: 28.79509764 | Y170: 16.03644509 | Z170: 13.82690839 | AA170: 26.32766228 | AB170: 25.41271312 | AC170: 9.645639463 | AD170: 186.7456032
B171: 2028-11-01 | C171: 71.22734734 | D171: 30.20477976 | E171: 17.17649919 | F171: 14.65180069 | G171: 27.94383538 | H171: 27.1995437 | I171: 10.44326184 | J171: 198.8470679 | L171: 2028-11-01 | M171: 73.95254553 | N171: 30.83695917 | O171: 17.88354973 | P171: 15.10334962 | Q171: 28.84912953 | R171: 28.30020006 | S171: 10.98044021 | T171: 205.9061738 | V171: 2028-11-01 | W171: 68.50214915 | X171: 29.57260036 | Y171: 16.46944865 | Z171: 14.20025176 | AA171: 27.03854124 | AB171: 26.09888734 | AC171: 9.906083479 | AD171: 191.787962
B172: 2028-12-01 | C172: 68.97623561 | D172: 29.25016982 | E172: 16.63364283 | F172: 14.18873641 | G172: 27.06068168 | H172: 26.33991303 | I172: 10.11320674 | J172: 192.5625861 | L172: 2028-12-01 | M172: 71.615305 | N172: 29.86236945 | O172: 17.31834732 | P172: 14.62601431 | Q172: 27.93736436 | R172: 27.40578359 | S172: 10.6334078 | T172: 199.3985918 | V172: 2028-12-01 | W172: 66.33716621 | X172: 28.63797019 | Y172: 15.94893833 | Z172: 13.75145851 | AA172: 26.18399899 | AB172: 25.27404247 | AC172: 9.593005686 | AD172: 185.7265804
B173: 2029-01-01 | C173: 67.75850532 | D173: 28.75515386 | E173: 16.4316246 | F173: 13.95626939 | G173: 26.88298189 | H173: 25.99721023 | I173: 9.950527483 | J173: 189.7322728 | L173: 2029-01-01 | M173: 70.34229982 | N173: 29.35453107 | O173: 17.10198807 | P173: 14.38438858 | Q173: 27.7413026 | R173: 27.04075629 | S173: 10.45983301 | T173: 196.4250994 | V173: 2029-01-01 | W173: 65.17471082 | X173: 28.15577666 | Y173: 15.76126114 | Z173: 13.52815021 | AA173: 26.02466119 | AB173: 24.95366416 | AC173: 9.441221956 | AD173: 183.0394461
B174: 2029-02-01 | C174: 78.21150295 | D174: 33.19116605 | E174: 18.96650539 | F174: 16.10928104 | G174: 31.03017706 | H174: 30.0077588 | I174: 11.48557965 | J174: 219.0019709 | L174: 2029-02-01 | M174: 81.19389534 | N174: 33.88300822 | O174: 19.74028476 | P174: 16.60344549 | Q174: 32.02090955 | R174: 31.21229107 | S174: 12.07345493 | T174: 226.7272894 | V174: 2029-02-01 | W174: 75.22911055 | X174: 32.49932387 | Y174: 18.19272601 | Z174: 15.61511658 | AA174: 30.03944458 | AB174: 28.80322653 | AC174: 10.89770436 | AD174: 211.2766525
B175: 2029-03-01 | C175: 69.55604041 | D175: 29.51798648 | E175: 16.86753182 | F175: 14.32650902 | G175: 27.5961485 | H175: 26.68687859 | I175: 10.21450058 | J175: 194.7655954 | L175: 2029-03-01 | M175: 72.20837923 | N175: 30.13326429 | O175: 17.55567906 | P175: 14.76598559 | Q175: 28.47723921 | R175: 27.75810843 | S175: 10.73731724 | T175: 201.6359731 | V175: 2029-03-01 | W175: 66.90370158 | X175: 28.90270867 | Y175: 16.17938459 | Z175: 13.88703246 | AA175: 26.71505779 | AB175: 25.61564876 | AC175: 9.691683912 | AD175: 187.8952178
B176: 2029-04-01 | C176: 72.09863562 | D176: 30.62090146 | E176: 17.58157105 | F176: 14.86990156 | G176: 28.93195034 | H176: 27.79274797 | I176: 10.60515703 | J176: 202.500865 | L176: 2029-04-01 | M176: 74.83881994 | N176: 31.25655729 | O176: 18.29250973 | P176: 15.32393359 | Q176: 29.84222279 | R176: 28.89945695 | S176: 11.14528939 | T176: 209.5987897 | V176: 2029-04-01 | W176: 69.35845129 | X176: 29.98524564 | Y176: 16.87063236 | Z176: 14.41586952 | AA176: 28.0216779 | AB176: 26.68603899 | AC176: 10.06502466 | AD176: 195.4029404
B177: 2029-05-01 | C177: 69.24524959 | D177: 29.40904424 | E177: 16.88576025 | F177: 14.28140818 | G177: 27.7869353 | H177: 26.69281816 | I177: 10.1854458 | J177: 194.4866615 | L177: 2029-05-01 | M177: 71.87698799 | N177: 30.01954326 | O177: 17.56856272 | P177: 14.71747138 | Q177: 28.66118267 | R177: 27.75572787 | S177: 10.7042018 | T177: 201.3036777 | V177: 2029-05-01 | W177: 66.61351119 | X177: 28.79854522 | Y177: 16.20295778 | Z177: 13.84534498 | AA177: 26.91268792 | AB177: 25.62990846 | AC177: 9.666689793 | AD177: 187.6696453
B178: 2029-06-01 | C178: 71.95143981 | D178: 30.55838616 | E178: 17.5456767 | F178: 14.83954332 | G178: 28.87288318 | H178: 27.73600659 | I178: 10.58350565 | J178: 202.0874414 | L178: 2029-06-01 | M178: 74.6860298 | N178: 31.19274423 | O178: 18.25516394 | P178: 15.29264841 | Q178: 29.78129723 | R178: 28.84045613 | S178: 11.12253528 | T178: 209.170875 | V178: 2029-06-01 | W178: 69.21684981 | X178: 29.92402808 | Y178: 16.83618946 | Z178: 14.38643823 | AA178: 27.96446914 | AB178: 26.63155706 | AC178: 10.04447602 | AD178: 195.0040078
B179: 2029-07-01 | C179: 70.17664091 | D179: 29.82896762 | E179: 17.20766927 | F179: 14.49312934 | G179: 28.48575055 | H179: 27.17889043 | I179: 10.33962881 | J179: 197.7106769 | L179: 2029-07-01 | M179: 72.83503541 | N179: 30.4456502 | O179: 17.89738765 | P179: 14.9336093 | Q179: 29.36885292 | R179: 28.25256604 | S179: 10.86363914 | T179: 204.5967407 | V179: 2029-07-01 | W179: 67.5182464 | X179: 29.21228503 | Y179: 16.51795089 | Z179: 14.05264939 | AA179: 27.60264819 | AB179: 26.10521482 | AC179: 9.815618474 | AD179: 190.8246132
B180: 2029-08-01 | C180: 69.5966246 | D180: 29.58242849 | E180: 17.06544632 | F180: 14.37334231 | G180: 28.25031324 | H180: 26.95425444 | I180: 10.25417084 | J180: 196.0765802 | L180: 2029-08-01 | M180: 72.23304724 | N180: 30.19401414 | O180: 17.74946411 | P180: 14.81018167 | Q180: 29.12611669 | R180: 28.01905602 | S180: 10.77385018 | T180: 202.90573 | V180: 2029-08-01 | W180: 66.96020196 | X180: 28.97084285 | Y180: 16.38142852 | Z180: 13.93650296 | AA180: 27.37450979 | AB180: 25.88945285 | AC180: 9.734491496 | AD180: 189.2474304
B181: 2029-09-01 | C181: 71.88015898 | D181: 30.55305735 | E181: 17.62538056 | F181: 14.84494595 | G181: 29.17723408 | H181: 27.8386503 | I181: 10.59062037 | J181: 202.5100476 | L181: 2029-09-01 | M181: 74.60308526 | N181: 31.18470973 | O181: 18.33184166 | P181: 15.29611844 | Q181: 30.08177351 | R181: 28.93838908 | S181: 11.1273509 | T181: 209.5632686 | V181: 2029-09-01 | W181: 69.1572327 | X181: 29.92140498 | Y181: 16.91891946 | Z181: 14.39377347 | AA181: 28.27269465 | AB181: 26.73891152 | AC181: 10.05388983 | AD181: 195.4568266
B182: 2029-10-01 | C182: 70.27659037 | D182: 29.89694263 | E182: 17.32702715 | F182: 14.53389731 | G182: 28.85900989 | H182: 27.34499141 | I182: 10.37193327 | J182: 198.610392 | L182: 2029-10-01 | M182: 72.9301395 | N182: 30.5125012 | O182: 18.0154884 | P182: 14.97357441 | Q182: 29.74050265 | R182: 28.41671007 | S182: 10.89498851 | T182: 205.4839047 | V182: 2029-10-01 | W182: 67.62304124 | X182: 29.28138406 | Y182: 16.6385659 | Z182: 14.0942202 | AA182: 27.97751712 | AB182: 26.27327276 | AC182: 9.848878039 | AD182: 191.7368793
B183: 2029-11-01 | C183: 72.17414392 | D183: 30.7041965 | E183: 17.79487799 | F183: 14.92633024 | G183: 29.63823831 | H183: 28.08333949 | I183: 10.65198811 | J183: 203.9731146 | L183: 2029-11-01 | M183: 74.89934211 | N183: 31.33637591 | O183: 18.50192854 | P183: 15.37787917 | Q183: 30.54353245 | R183: 29.18399586 | S183: 11.18916647 | T183: 211.0322205 | V183: 2029-11-01 | W183: 69.44894573 | X183: 30.0720171 | Y183: 17.08782745 | Z183: 14.47478131 | AA183: 28.73294417 | AB183: 26.98268313 | AC183: 10.11480974 | AD183: 196.9140086
B184: 2029-12-01 | C184: 69.89310906 | D184: 29.73380269 | E184: 17.23247802 | F184: 14.45458956 | G184: 28.70153368 | H184: 27.19577682 | I184: 10.3153363 | J184: 197.5266261 | L184: 2029-12-01 | M184: 72.53217846 | N184: 30.34600232 | O184: 17.91718251 | P184: 14.89186746 | Q184: 29.57821637 | R184: 28.26164738 | S184: 10.83553736 | T184: 204.3626319 | V184: 2029-12-01 | W184: 67.25403967 | X184: 29.12160306 | Y184: 16.54777352 | Z184: 14.01731166 | AA184: 27.824851 | AB184: 26.12990626 | AC184: 9.795135241 | AD184: 190.6906204
C187: COMERCIAL MEDIO | M187: COMERCIAL ALTO | W187: COMERCIAL BAJO
C188: CENTRO | D188: COSTA | E188: CQR | F188: NORESTE | G188: NOROESTE | H188: SUROESTE | I188: TOLIMA GRANDE | J188: TOTAL | M188: CENTRO | N188: COSTA | O188: CQR | P188: NORESTE | Q188: NOROESTE | R188: SUROESTE | S188: TOLIMA GRANDE | T188: TOTAL | W188: CENTRO | X188: COSTA | Y188: CQR | Z188: NORESTE | AA188: NOROESTE | AB188: SUROESTE | AC188: TOLIMA GRANDE | AD188: TOTAL
B189: 2015-01-01 | C189: 26.69614618 | D189: 7.184783943 | E189: 2.418853867 | F189: 5.284733879 | G189: 4.040750236 | H189: 4.112103681 | I189: 1.468590412 | J189: 51.2059622 | L189: 2015-01-01 | M189: 28.93365403 | N189: 8.015257575 | O189: 2.585845892 | P189: 5.803867456 | Q189: 4.328459231 | R189: 4.433073223 | S189: 2.075390423 | T189: 56.17554783 | V189: 2015-01-01 | W189: 24.45863834 | X189: 6.354310311 | Y189: 2.251861843 | Z189: 4.765600303 | AA189: 3.753041241 | AB189: 3.791134138 | AC189: 0.8617904014 | AD189: 46.23637658
B190: 2015-02-01 | C190: 30.58554141 | D190: 8.231544181 | E190: 2.77125974 | F190: 6.054673427 | G190: 4.629452237 | H190: 4.711201254 | I190: 1.682551202 | J190: 58.66622345 | L190: 2015-02-01 | M190: 33.14903459 | N190: 9.183010565 | O190: 2.962581043 | P190: 6.649440229 | Q190: 4.959077918 | R190: 5.078933254 | S190: 2.377756672 | T190: 64.35983427 | V190: 2015-02-01 | W190: 28.02204822 | X190: 7.280077798 | Y190: 2.579938436 | Z190: 5.459906625 | AA190: 4.299826555 | AB190: 4.343469255 | AC190: 0.9873457324 | AD190: 52.97261262
B191: 2015-03-01 | C191: 27.48804222 | D191: 7.39790841 | E191: 2.490605077 | F191: 5.441496574 | G191: 4.16061226 | H191: 4.234082283 | I191: 1.512153663 | J191: 52.72490049 | L191: 2015-03-01 | M191: 29.79192195 | N191: 8.253016638 | O191: 2.662550638 | P191: 5.97602937 | Q191: 4.456855655 | R191: 4.564572844 | S191: 2.13695337 | T191: 57.84190047 | V191: 2015-03-01 | W191: 25.18416249 | X191: 6.542800182 | Y191: 2.318659517 | Z191: 4.906963778 | AA191: 3.864368864 | AB191: 3.903591722 | AC191: 0.8873539565 | AD191: 47.60790051
B192: 2015-04-01 | C192: 29.62246438 | D192: 8.294829722 | E192: 2.50462306 | F192: 5.592902351 | G192: 4.252539565 | H192: 4.33403318 | I192: 1.370691113 | J192: 55.97208338 | L192: 2015-04-01 | M192: 31.98680613 | N192: 9.172379037 | O192: 2.681081085 | P192: 6.141463193 | Q192: 4.556557444 | R192: 4.673196991 | S192: 2.011887791 | T192: 61.22337167 | V192: 2015-04-01 | W192: 27.25812264 | X192: 7.417280407 | Y192: 2.328165035 | Z192: 5.04434151 | AA192: 3.948521687 | AB192: 3.994869369 | AC192: 0.7294944353 | AD192: 50.72079508
B193: 2015-05-01 | C193: 28.37928835 | D193: 7.946717782 | E193: 2.399510693 | F193: 5.358183116 | G193: 4.074071791 | H193: 4.152145335 | I193: 1.313166853 | J193: 53.62308392 | L193: 2015-05-01 | M193: 30.64440496 | N193: 8.787438687 | O193: 2.568563244 | P193: 5.883722318 | Q193: 4.365330848 | R193: 4.477075343 | S193: 1.927454212 | T193: 58.65398961 | V193: 2015-05-01 | W193: 26.11417174 | X193: 7.105996877 | Y193: 2.230458142 | Z193: 4.832643914 | AA193: 3.782812735 | AB193: 3.827215327 | AC193: 0.6988794943 | AD193: 48.59217823
B194: 2015-06-01 | C194: 29.82363766 | D194: 8.351161904 | E194: 2.521632557 | F194: 5.630885095 | G194: 4.281419583 | H194: 4.36346664 | I194: 1.379999806 | J194: 56.35220324 | L194: 2015-06-01 | M194: 32.20403621 | N194: 9.234670867 | O194: 2.699288951 | P194: 6.183171345 | Q194: 4.58750212 | R194: 4.704933794 | S194: 2.025551004 | T194: 61.6391543 | V194: 2015-06-01 | W194: 27.4432391 | X194: 7.46765294 | Y194: 2.343976164 | Z194: 5.078598845 | AA194: 3.975337047 | AB194: 4.021999486 | AC194: 0.7344486073 | AD194: 51.06525219
B195: 2015-07-01 | C195: 29.08976499 | D195: 8.349163769 | E195: 2.429878147 | F195: 5.432119297 | G195: 4.138255591 | H195: 4.24875749 | I195: 1.376883567 | J195: 55.06482285 | L195: 2015-07-01 | M195: 31.37360438 | N195: 9.196833822 | O195: 2.600328036 | P195: 5.962002449 | Q195: 4.431922108 | R195: 4.576373272 | S195: 1.996248442 | T195: 60.13731251 | V195: 2015-07-01 | W195: 26.8059256 | X195: 7.501493715 | Y195: 2.259428258 | Z195: 4.902236144 | AA195: 3.844589074 | AB195: 3.921141707 | AC195: 0.7575186923 | AD195: 49.99233319
B196: 2015-08-01 | C196: 29.0098279 | D196: 8.326220723 | E196: 2.423200975 | F196: 5.41719213 | G196: 4.126883891 | H196: 4.237082137 | I196: 1.373099967 | J196: 54.91350773 | L196: 2015-08-01 | M196: 31.28739143 | N196: 9.171561426 | O196: 2.593182477 | P196: 5.945619193 | Q196: 4.419743429 | R196: 4.563797649 | S196: 1.990762861 | T196: 59.97205846 | V196: 2015-08-01 | W196: 26.73226438 | X196: 7.480880021 | Y196: 2.253219473 | Z196: 4.888765068 | AA196: 3.834024354 | AB196: 3.910366624 | AC196: 0.7554370724 | AD196: 49.85495699
B197: 2015-09-01 | C197: 30.21155401 | D197: 8.671132692 | E197: 2.523581573 | F197: 5.641598192 | G197: 4.297839201 | H197: 4.412602386 | I197: 1.429980348 | J197: 57.18828841 | L197: 2015-09-01 | M197: 32.58346514 | N197: 9.551491457 | O197: 2.700604524 | P197: 6.191915236 | Q197: 4.602830385 | R197: 4.752852021 | S197: 2.0732298 | T197: 62.45638856 | V197: 2015-09-01 | W197: 27.83964289 | X197: 7.790773926 | Y197: 2.346558623 | Z197: 5.091281148 | AA197: 3.992848018 | AB197: 4.072352751 | AC197: 0.7867308966 | AD197: 51.92018825
B198: 2015-10-01 | C198: 28.43530162 | D198: 8.389809722 | E198: 2.357828699 | F198: 5.442875034 | G198: 4.177356822 | H198: 4.246975721 | I198: 1.413046244 | J198: 54.46319387 | L198: 2015-10-01 | M198: 30.71290164 | N198: 9.235163968 | O198: 2.527812924 | P198: 5.971310562 | Q198: 4.470221052 | R198: 4.573696468 | S198: 2.030719034 | T198: 59.52182565 | V198: 2015-10-01 | W198: 26.15770161 | X198: 7.544455476 | Y198: 2.187844474 | Z198: 4.914439505 | AA198: 3.884492593 | AB198: 3.920254975 | AC198: 0.7953734544 | AD198: 49.40456209
B199: 2015-11-01 | C199: 29.41449984 | D199: 8.67872126 | E199: 2.439022902 | F199: 5.630305911 | G199: 4.321208307 | H199: 4.393224603 | I199: 1.461705913 | J199: 56.33868874 | L199: 2015-11-01 | M199: 31.7705313 | N199: 9.553186129 | O199: 2.614860706 | P199: 6.176938649 | Q199: 4.624157611 | R199: 4.731196307 | S199: 2.100648887 | T199: 61.57151959 | V199: 2015-11-01 | W199: 27.05846838 | X199: 7.80425639 | Y199: 2.263185099 | Z199: 5.083673173 | AA199: 4.018259003 | AB199: 4.055252898 | AC199: 0.8227629395 | AD199: 51.10585788
B200: 2015-12-01 | C200: 28.70460175 | D200: 8.469266479 | E200: 2.380158815 | F200: 5.494422472 | G200: 4.21691901 | H200: 4.287197244 | I200: 1.426428678 | J200: 54.97899445 | L200: 2015-12-01 | M200: 31.00377207 | N200: 9.322626759 | O200: 2.551752897 | P200: 6.027862616 | Q200: 4.512556847 | R200: 4.617012241 | S200: 2.049951217 | T200: 60.08553464 | V200: 2015-12-01 | W200: 26.40543144 | X200: 7.615906198 | Y200: 2.208564732 | Z200: 4.960982327 | AA200: 3.921281172 | AB200: 3.957382246 | AC200: 0.8029061396 | AD200: 49.87245426
B201: 2016-01-01 | C201: 27.7484287 | D201: 8.186061282 | E201: 2.261134361 | F201: 5.374282141 | G201: 4.150401557 | H201: 4.202426682 | I201: 1.411561182 | J201: 53.3342959 | L201: 2016-01-01 | M201: 29.98613153 | N201: 9.016607285 | O201: 2.428140938 | P201: 5.893460958 | Q201: 4.438135624 | R201: 4.523424196 | S201: 2.018414072 | T201: 58.3043146 | V201: 2016-01-01 | W201: 25.51072586 | X201: 7.355515278 | Y201: 2.094127784 | Z201: 4.855103325 | AA201: 3.862667489 | AB201: 3.881429169 | AC201: 0.8047082915 | AD201: 48.3642772
B202: 2016-02-01 | C202: 30.71800079 | D202: 9.062114459 | E202: 2.503115684 | F202: 5.949425276 | G202: 4.594567847 | H202: 4.65216058 | I202: 1.562623166 | J202: 59.0420078 | L202: 2016-02-01 | M202: 33.19517735 | N202: 9.981543558 | O202: 2.687994915 | P202: 6.524165398 | Q202: 4.913094543 | R202: 5.007510498 | S202: 2.234420036 | T202: 64.5439063 | V202: 2016-02-01 | W202: 28.24082422 | X202: 8.14268536 | Y202: 2.318236453 | Z202: 5.374685155 | AA202: 4.276041151 | AB202: 4.296810662 | AC202: 0.8908262952 | AD202: 53.5401093
B203: 2016-03-01 | C203: 28.54250605 | D203: 8.420321966 | E203: 2.325841289 | F203: 5.528078084 | G203: 4.269173683 | H203: 4.322687613 | I203: 1.451955857 | J203: 54.86056454 | L203: 2016-03-01 | M203: 30.84424527 | N203: 9.274635722 | O203: 2.497627097 | P203: 6.062114251 | Q203: 4.565141843 | R203: 4.652871119 | S203: 2.076175069 | T203: 59.97281037 | V203: 2016-03-01 | W203: 26.24076683 | X203: 7.56600821 | Y203: 2.154055482 | Z203: 4.994041917 | AA203: 3.973205524 | AB203: 3.992504108 | AC203: 0.8277366452 | AD203: 49.74831872
... 1258 more rows

Sheet Demanda_Mensual
H3: Contenido | BX3: RESIDENCIAL | BZ3: GBTUD
BX4: COMERCIAL | BZ4: MPCD
C5: Sector de consumo | BX5: INDUSTRIAL
BX6: PETROQUIMICO | CC6: nf | CD6: nc | CE6: nd
C7: Unidad de energía | BX7: ECOPETROL | CB7: RESIDENCIAL | CC7: =+VLOOKUP($CB7,Mensual!$AH$3:$AK$10,2,FALSE) -> 5 | CD7: =+VLOOKUP($CB7,Mensual!$AH$3:$AK$10,3,FALSE) -> 3 | CE7: =+VLOOKUP($CB7,Mensual!$AH$3:$AK$10,4,FALSE) -> 180
BX8: TRANSPORTE | CB8: GBTUD | CC8: =+VLOOKUP($CB8,Mensual!$AM$3:$AN$4,2,FALSE) -> 1
A9: Fuente: Construcción UPME con datos de Ecopetrol, Chevron, CNO Gas y Concentra | BX9: TERMOELECTRICO
BX10: TOTAL
A11: MES | B11: Proyección Demanda Gas Natural - Escenario Medio - Revisión Marzo de 2015 | J11: MES | K11: Proyección Demanda Gas Natural - Escenario Alto - Revisión Marzo de 2015 | S11: MES | T11: Proyección Demanda Gas Natural - Escenario Bajo - Revisión Marzo de 2015
B12: CENTRO | C12: COSTA | D12: CQR | E12: NORESTE | F12: NOROESTE | G12: SUROESTE | H12: TOLIMA GRANDE | I12: TOTAL | K12: CENTRO | L12: COSTA | M12: CQR | N12: NORESTE | O12: NOROESTE | P12: SUROESTE | Q12: TOLIMA GRANDE | R12: TOTAL | T12: CENTRO | U12: COSTA | V12: CQR | W12: NORESTE | X12: NOROESTE | Y12: SUROESTE | Z12: TOLIMA GRANDE | AA12: TOTAL
A13: 2015-01-01 | B13: 53.05685697 | C13: 23.16250594 | D13: 8.837705928 | E13: 10.89275565 | F13: 13.95267472 | G13: 15.64222028 | H13: 7.690240226 | I13: 133.2349597 | J13: 2015-01-01 | K13: 55.64454034 | L13: 23.76278526 | M13: 9.509078358 | N13: 11.3215192 | O13: 14.81228728 | P13: 16.68733698 | Q13: 8.20031231 | R13: 139.9378597 | S13: 2015-01-01 | T13: 50.4691736 | U13: 22.56222661 | V13: 8.166333498 | W13: 10.4639921 | X13: 13.09306215 | Y13: 14.59710357 | Z13: 7.180168143 | AA13: 126.5320597
A14: 2015-02-01 | B14: 60.78677741 | C14: 26.53708065 | D14: 10.12528246 | E14: 12.47973497 | F14: 15.9854575 | G14: 17.92115509 | H14: 8.810641029 | I14: 152.6461291 | J14: 2015-02-01 | K14: 63.75146363 | L14: 27.22481543 | M14: 10.89446798 | N14: 12.97096562 | O14: 16.9703081 | P14: 19.11853617 | Q14: 9.395026158 | R14: 160.3255831 | S14: 2015-02-01 | T14: 57.82209118 | U14: 25.84934587 | V14: 9.356096929 | W14: 11.98850432 | X14: 15.0006069 | Y14: 16.72377401 | Z14: 8.226255899 | AA14: 144.9666751
A15: 2015-03-01 | B15: 54.63069892 | C15: 23.84958251 | D15: 9.099861531 | E15: 11.21587083 | F15: 14.36655722 | G15: 16.10622029 | H15: 7.918358199 | I15: 137.1871495 | J15: 2015-03-01 | K15: 57.29514154 | L15: 24.46766811 | M15: 9.791149089 | N15: 11.65735292 | O15: 15.25166873 | P15: 17.18233862 | Q15: 8.443560709 | R15: 144.0888797 | S15: 2015-03-01 | T15: 51.9662563 | U15: 23.23149691 | V15: 8.408573973 | W15: 10.77438873 | X15: 13.4814457 | Y15: 15.03010196 | Z15: 7.39315569 | AA15: 130.2854193
A16: 2015-04-01 | B16: 57.15838524 | C16: 24.53801478 | D16: 9.541349994 | E16: 11.58037995 | F16: 14.76865841 | G16: 16.91317569 | H16: 8.046354563 | I16: 142.5463186 | J16: 2015-04-01 | K16: 59.89275233 | L16: 25.17232114 | M16: 10.2507794 | N16: 12.03344811 | O16: 15.67699841 | P16: 18.0175352 | Q16: 8.585340258 | R16: 149.6291749 | S16: 2015-04-01 | T16: 54.42401815 | U16: 23.90370841 | V16: 8.831920587 | W16: 11.1273118 | X16: 13.86031842 | Y16: 15.80881618 | Z16: 7.507368868 | AA16: 135.4634624
A17: 2015-05-01 | B17: 54.75959985 | C17: 23.50821957 | D17: 9.140924914 | E17: 11.09438221 | F17: 14.1488571 | G17: 16.20337469 | H17: 7.708670465 | I17: 136.5640288 | J17: 2015-05-01 | K17: 57.37921283 | L17: 24.11590578 | M17: 9.820581456 | N17: 11.5284363 | O17: 15.01907648 | P17: 17.26138717 | Q17: 8.225036364 | R17: 143.3496364 | S17: 2015-05-01 | T17: 52.13998688 | U17: 22.90053335 | V17: 8.461268372 | W17: 10.66032812 | X17: 13.27863772 | Y17: 15.14536222 | Z17: 7.192304566 | AA17: 129.7784212
A18: 2015-06-01 | B18: 57.54656157 | C18: 24.70465833 | D18: 9.606147595 | E18: 11.6590251 | F18: 14.86895592 | G18: 17.02803713 | H18: 8.10099929 | I18: 143.5143849 | J18: 2015-06-01 | K18: 60.29949841 | L18: 25.34327243 | M18: 10.32039491 | N18: 12.11517015 | O18: 15.78346467 | P18: 18.13989661 | Q18: 8.643645366 | R18: 150.6453425 | S18: 2015-06-01 | T18: 54.79362474 | U18: 24.06604424 | V18: 8.891900282 | W18: 11.20288004 | X18: 13.95444717 | Y18: 15.91617765 | Z18: 7.558353214 | AA18: 136.3834273
A19: 2015-07-01 | B19: 55.65274697 | C19: 23.8029702 | D19: 9.333438214 | E19: 11.19548642 | F19: 14.47868622 | G19: 16.37096918 | H19: 7.810503813 | I19: 138.644801 | J19: 2015-07-01 | K19: 58.29401289 | L19: 24.41567937 | M19: 10.01871259 | N19: 11.63312828 | O19: 15.35609858 | P19: 17.43772687 | Q19: 8.331137839 | R19: 145.4864964 | S19: 2015-07-01 | T19: 53.01148105 | U19: 23.19026103 | V19: 8.648163834 | W19: 10.75784457 | X19: 13.60127386 | Y19: 15.30421149 | Z19: 7.289869787 | AA19: 131.8031056
A20: 2015-08-01 | B20: 55.49981627 | C20: 23.73756094 | D20: 9.307790437 | E20: 11.16472184 | F20: 14.43889958 | G20: 16.32598265 | H20: 7.789040976 | I20: 138.2638127 | J20: 2015-08-01 | K20: 58.13382413 | L20: 24.34858642 | M20: 9.991181721 | N20: 11.60116108 | O20: 15.31390086 | P20: 17.38980896 | Q20: 8.308244328 | R20: 145.0867075 | S20: 2015-08-01 | T20: 52.8658084 | U20: 23.12653547 | V20: 8.624399153 | W20: 10.7282826 | X20: 13.56389831 | Y20: 15.26215635 | Z20: 7.269837624 | AA20: 131.4409179
A21: 2015-09-01 | B21: 57.79888466 | C21: 24.72088449 | D21: 9.693363727 | E21: 11.62721813 | F21: 15.03702801 | G21: 17.0022831 | H21: 8.111700385 | I21: 143.9913625 | J21: 2015-09-01 | K21: 60.54200575 | L21: 25.35722157 | M21: 10.40506435 | N21: 12.08173677 | O21: 15.94827603 | P21: 18.11017819 | Q21: 8.652411628 | R21: 151.0968943 | S21: 2015-09-01 | T21: 55.05576356 | U21: 24.0845474 | V21: 8.981663101 | W21: 11.17269948 | X21: 14.12577998 | Y21: 15.89438802 | Z21: 7.570989141 | AA21: 136.8858307
A22: 2015-10-01 | B22: 55.50895603 | C22: 23.81761836 | D22: 9.407662393 | E22: 11.17409423 | F22: 14.61394696 | G22: 16.35224964 | H22: 7.824412926 | I22: 138.6989405 | J22: 2015-10-01 | K22: 58.1430061 | L22: 24.42865363 | M22: 10.09106463 | N22: 11.61054046 | O22: 15.48896226 | P22: 17.41609299 | Q22: 8.343624596 | R22: 145.5219447 | S22: 2015-10-01 | T22: 52.87490597 | U22: 23.2065831 | V22: 8.724260161 | W22: 10.73764799 | X22: 13.73893167 | Y22: 15.2884063 | Z22: 7.305201255 | AA22: 131.8759364
A23: 2015-11-01 | B23: 57.42046277 | C23: 24.63780201 | D23: 9.731624712 | E23: 11.5588854 | F23: 15.11719293 | G23: 16.91535581 | H23: 8.093854456 | I23: 143.4751781 | J23: 2015-11-01 | K23: 60.145219 | L23: 25.26987889 | M23: 10.43856059 | N23: 12.0103611 | O23: 16.02234025 | P23: 18.01583367 | Q23: 8.630945702 | R23: 150.5331392 | S23: 2015-11-01 | T23: 54.69570655 | U23: 24.00572513 | V23: 9.024688836 | W23: 11.10740971 | X23: 14.2120456 | Y23: 15.81487795 | Z23: 7.55676321 | AA23: 136.417217
A24: 2015-12-01 | B24: 56.03466064 | C24: 24.04318614 | D24: 9.496758853 | E24: 11.2799199 | F24: 14.7523502 | G24: 16.5071157 | H24: 7.89851502 | I24: 140.0125065 | J24: 2015-12-01 | K24: 58.69365681 | L24: 24.66000829 | M24: 10.18663333 | N24: 11.72049955 | O24: 15.63565244 | P24: 17.58103431 | Q24: 8.42264395 | R24: 146.9001287 | S24: 2015-12-01 | T24: 53.37566447 | U24: 23.42636399 | V24: 8.806884373 | W24: 10.83934025 | X24: 13.86904796 | Y24: 15.43319709 | Z24: 7.37438609 | AA24: 133.1248842
A25: 2016-01-01 | B25: 54.07205385 | C25: 23.48274525 | D25: 9.343857461 | E25: 11.00234718 | F25: 14.47721586 | G25: 16.15412845 | H25: 7.730552191 | I25: 136.2629003 | J25: 2016-01-01 | K25: 56.65996272 | L25: 24.08307689 | M25: 10.0152884 | N25: 11.4311481 | O25: 15.33690334 | P25: 17.19933624 | Q25: 8.240668725 | R25: 142.9663844 | S25: 2016-01-01 | T25: 51.48414498 | U25: 22.88241362 | V25: 8.672426524 | W25: 10.57354627 | X25: 13.61752839 | Y25: 15.10892067 | Z25: 7.220435658 | AA25: 129.5594161
A26: 2016-02-01 | B26: 59.85871889 | C26: 25.99581386 | D26: 10.34381528 | E26: 12.17979271 | F26: 16.02653373 | G26: 17.88290559 | H26: 8.557857849 | I26: 150.8454379 | J26: 2016-02-01 | K26: 62.72357973 | L26: 26.66039159 | M26: 11.08710119 | N26: 12.65448289 | O26: 16.97822295 | P26: 19.03996907 | Q26: 9.122565864 | R26: 158.2663133 | S26: 2016-02-01 | T26: 56.99385805 | U26: 25.33123613 | V26: 9.600529375 | W26: 11.70510252 | X26: 15.07484451 | Y26: 16.7258421 | Z26: 7.993149834 | AA26: 143.4245625
A27: 2016-03-01 | B27: 55.61943493 | C27: 24.15475146 | D27: 9.611250822 | E27: 11.31720158 | F27: 14.89151065 | G27: 16.61641148 | H27: 7.951777563 | I27: 140.1623385 | J27: 2016-03-01 | K27: 58.28140205 | L27: 24.7722628 | M27: 10.30189611 | N27: 11.7582735 | O27: 15.77579982 | P27: 17.69153 | Q27: 8.476492112 | R27: 147.0576564 | S27: 2016-03-01 | T27: 52.95746782 | U27: 23.53724012 | V27: 8.920605532 | W27: 10.87612966 | X27: 14.00722148 | Y27: 15.54129296 | Z27: 7.427063014 | AA27: 133.2670206
A28: 2016-04-01 | B28: 57.3774303 | C28: 24.82879293 | D28: 9.959993134 | E28: 11.63589115 | F28: 15.39838306 | G28: 17.17617584 | H28: 8.19260445 | I28: 144.5692709 | J28: 2016-04-01 | K28: 60.10409414 | L28: 25.46131233 | M28: 10.66742394 | N28: 12.08768293 | O28: 16.30416408 | P28: 18.27742415 | Q28: 8.730071717 | R28: 151.6321733 | S28: 2016-04-01 | T28: 54.65076646 | U28: 24.19627352 | V28: 9.252562328 | W28: 11.18409938 | X28: 14.49260203 | Y28: 16.07492753 | Z28: 7.655137183 | AA28: 137.5063684
A29: 2016-05-01 | B29: 55.36392408 | C29: 23.95749338 | D29: 9.610474027 | E29: 11.22756092 | F29: 14.85801832 | G29: 16.57342426 | H29: 7.905107085 | I29: 139.4960021 | J29: 2016-05-01 | K29: 57.994903 | L29: 24.56781622 | M29: 10.29307946 | N29: 11.66349829 | O29: 15.7320134 | P29: 17.63602723 | Q29: 8.423713387 | R29: 146.311051 | S29: 2016-05-01 | T29: 52.73294515 | U29: 23.34717054 | V29: 8.927868599 | W29: 10.79162356 | X29: 13.98402324 | Y29: 15.51082129 | Z29: 7.386500783 | AA29: 132.6809532
A30: 2016-06-01 | B30: 57.84524816 | C30: 25.03123058 | D30: 10.04120037 | E30: 11.73076256 | F30: 15.52393135 | G30: 17.31621909 | H30: 8.259401562 | I30: 145.7479937 | J30: 2016-06-01 | K30: 60.59414342 | L30: 25.66890713 | M30: 10.7543991 | N30: 12.18623795 | O30: 16.43709752 | P30: 18.42644626 | Q30: 8.801250984 | R30: 152.8684824 | S30: 2016-06-01 | T30: 55.09635289 | U30: 24.39355404 | V30: 9.32800164 | W30: 11.27528717 | X30: 14.61076518 | Y30: 16.20599192 | Z30: 7.717552141 | AA30: 138.627505
A31: 2016-07-01 | B31: 55.80125695 | C31: 24.12577297 | D31: 9.761992568 | E31: 11.31981442 | F31: 15.05468251 | G31: 16.80633188 | H31: 7.975553564 | I31: 140.8454049 | J31: 2016-07-01 | K31: 58.44124345 | L31: 24.73818535 | M31: 10.44693501 | N31: 11.75724428 | O31: 15.93166986 | P31: 17.87257284 | Q31: 8.495935398 | R31: 147.6837862 | S31: 2016-07-01 | T31: 53.16127044 | U31: 23.51336059 | V31: 9.077050129 | W31: 10.88238455 | X31: 14.17769517 | Y31: 15.74009092 | Z31: 7.45517173 | AA31: 134.0070235
A32: 2016-08-01 | B32: 55.74925818 | C32: 24.10329121 | D32: 9.752895792 | E32: 11.30926597 | F32: 15.04065371 | G32: 16.79067079 | H32: 7.968121492 | I32: 140.7141571 | J32: 2016-08-01 | K32: 58.3867846 | L32: 24.71513291 | M32: 10.43719996 | N32: 11.74628822 | O32: 15.91682382 | P32: 17.85591817 | Q32: 8.488018405 | R32: 147.5461661 | S32: 2016-08-01 | T32: 53.11173177 | U32: 23.49144952 | V32: 9.068591621 | W32: 10.87224373 | X32: 14.16448359 | Y32: 15.72542341 | Z32: 7.448224579 | AA32: 133.8821482
A33: 2016-09-01 | B33: 57.93230103 | C33: 25.04713368 | D33: 10.13480203 | E33: 11.75211693 | F33: 15.62961924 | G33: 17.44816391 | H33: 8.280139109 | I33: 146.2242759 | J33: 2016-09-01 | K33: 60.67310834 | L33: 25.68293402 | M33: 10.84590235 | N33: 12.20625219 | O33: 16.54009864 | P33: 18.5551245 | Q33: 8.82039427 | R33: 153.3238143 | S33: 2016-09-01 | T33: 55.19149372 | U33: 24.41133334 | V33: 9.423701711 | W33: 11.29798167 | X33: 14.71913984 | Y33: 16.34120332 | Z33: 7.739883947 | AA33: 139.1247375
A34: 2016-10-01 | B34: 56.04562406 | C34: 24.19198588 | D34: 9.876356394 | E34: 11.36742894 | F34: 15.18537406 | G34: 16.9687499 | H34: 8.008574151 | I34: 141.6440934 | J34: 2016-10-01 | K34: 58.68327994 | L34: 24.80385761 | M34: 10.56069415 | N34: 11.80447263 | O34: 16.06158718 | P34: 18.03404956 | Q34: 8.528496582 | R34: 148.4764377 | S34: 2016-10-01 | T34: 53.40796819 | U34: 23.58011416 | V34: 9.192018635 | W34: 10.93038525 | X34: 14.30916094 | Y34: 15.90345023 | Z34: 7.488651719 | AA34: 134.8117491
A35: 2016-11-01 | B35: 57.94890602 | C35: 25.01353388 | D35: 10.21175262 | E35: 11.75346126 | F35: 15.70106193 | G35: 17.54500034 | H35: 8.280541409 | I35: 146.4542575 | J35: 2016-11-01 | K35: 60.67613541 | L35: 25.64618447 | M35: 10.91933016 | N35: 12.20534674 | O35: 16.60703082 | P35: 18.64647706 | Q35: 8.818120152 | R35: 153.5186248 | S35: 2016-11-01 | T35: 55.22167664 | U35: 24.38088329 | V35: 9.504175089 | W35: 11.30157578 | X35: 14.79509304 | Y35: 16.44352362 | Z35: 7.742962666 | AA35: 139.3898901
A36: 2016-12-01 | B36: 56.37159591 | C36: 24.332691 | D36: 9.933799133 | E36: 11.43354403 | F36: 15.27369504 | G36: 17.06744332 | H36: 8.055153518 | I36: 142.467922 | J36: 2016-12-01 | K36: 59.02459289 | L36: 24.94812149 | M36: 10.62211713 | N36: 11.87312966 | O36: 16.15500438 | P36: 18.13893897 | Q36: 8.578099916 | R36: 149.3400044 | S36: 2016-12-01 | T36: 53.71859893 | U36: 23.71726052 | V36: 9.245481137 | W36: 10.99395841 | X36: 14.3923857 | Y36: 15.99594768 | Z36: 7.53220712 | AA36: 135.5958395
A37: 2017-01-01 | B37: 55.1272163 | C37: 23.78806964 | D37: 9.798863923 | E37: 11.19190364 | F37: 15.01545066 | G37: 16.79221795 | H37: 7.88274683 | I37: 139.596469 | J37: 2017-01-01 | K37: 57.71136266 | L37: 24.38752847 | M37: 10.46931868 | N37: 11.62008112 | O37: 15.87388825 | P37: 17.83590613 | Q37: 8.392121715 | R37: 146.290207 | S37: 2017-01-01 | T37: 52.54306995 | U37: 23.18861082 | V37: 9.128409168 | W37: 10.76372615 | X37: 14.15701308 | Y37: 15.74852978 | Z37: 7.373371946 | AA37: 132.9027309
A38: 2017-02-01 | B38: 63.5056665 | C38: 27.40347361 | D38: 11.28813363 | E38: 12.89289297 | F38: 17.29755765 | G38: 19.34436499 | H38: 9.080797559 | I38: 160.8128869 | J38: 2017-02-01 | K38: 66.48256153 | L38: 28.09404054 | M38: 12.06048672 | N38: 13.38614655 | O38: 18.28646394 | P38: 20.54667698 | Q38: 9.667589233 | R38: 168.5239655 | S38: 2017-02-01 | T38: 60.52877146 | U38: 26.71290669 | V38: 10.51578054 | W38: 12.39963939 | X38: 16.30865136 | Y38: 18.142053 | Z38: 8.494005886 | AA38: 153.1018083
A39: 2017-03-01 | B39: 56.68037525 | C39: 24.45827677 | D39: 10.07493796 | E39: 11.50722529 | F39: 15.43849727 | G39: 17.26532335 | H39: 8.104836019 | I39: 143.5294719 | J39: 2017-03-01 | K39: 59.33732757 | L39: 25.0746248 | M39: 10.76428216 | N39: 11.94746629 | O39: 16.32112055 | P39: 18.33841648 | Q39: 8.628562075 | R39: 150.4117999 | S39: 2017-03-01 | T39: 54.02342293 | U39: 23.84192874 | V39: 9.385593754 | W39: 11.0669843 | X39: 14.55587398 | Y39: 16.19223021 | Z39: 7.581109963 | AA39: 136.6471439
A40: 2017-04-01 | B40: 58.91079821 | C40: 25.30575252 | D40: 10.51732437 | E40: 11.91730546 | F40: 16.06347585 | G40: 17.97155899 | H40: 8.392341428 | I40: 149.0785568 | J40: 2017-04-01 | K40: 61.64971447 | L40: 25.94111418 | M40: 11.22793405 | N40: 12.37112739 | O40: 16.97332706 | P40: 19.07775583 | Q40: 8.932223836 | R40: 156.1731968 | S40: 2017-04-01 | T40: 56.17188194 | U40: 24.67039085 | V40: 9.806714678 | W40: 11.46348353 | X40: 15.15362465 | Y40: 16.86536216 | Z40: 7.852459021 | AA40: 141.9839168
A41: 2017-05-01 | B41: 56.63043519 | C41: 24.32619862 | D41: 10.11021195 | E41: 11.45600153 | F41: 15.44167887 | G41: 17.27590251 | H41: 8.067484431 | I41: 143.3079131 | J41: 2017-05-01 | K41: 59.26333144 | L41: 24.93696623 | M41: 10.79331483 | N41: 11.89225658 | O41: 16.31631088 | P41: 18.33927986 | Q41: 8.586468668 | R41: 150.1279285 | S41: 2017-05-01 | T41: 53.99753893 | U41: 23.715431 | V41: 9.427109068 | W41: 11.01974648 | X41: 14.56704687 | Y41: 16.21252517 | Z41: 7.548500193 | AA41: 136.4878977
A42: 2017-06-01 | B42: 58.81928543 | C42: 25.26644224 | D42: 10.50098662 | E42: 11.89879296 | F42: 16.03852265 | G42: 17.94364175 | H42: 8.37930466 | I42: 148.8469763 | J42: 2017-06-01 | K42: 61.55394703 | L42: 25.90081693 | M42: 11.21049244 | N42: 12.35190992 | O42: 16.94696048 | P42: 19.0481202 | Q42: 8.918348407 | R42: 155.9305954 | S42: 2017-06-01 | T42: 56.08462383 | U42: 24.63206756 | V42: 9.791480805 | W42: 11.44567601 | X42: 15.13008482 | Y42: 16.83916329 | Z42: 7.840260913 | AA42: 141.7633572
A43: 2017-07-01 | B43: 57.4857339 | C43: 24.6394606 | D43: 10.33110823 | E43: 11.61157559 | F43: 15.74599073 | G43: 17.6020759 | H43: 8.177490002 | I43: 145.5934349 | J43: 2017-07-01 | K43: 60.142688 | L43: 25.25580904 | M43: 11.0204529 | N43: 12.05181688 | O43: 16.62861461 | P43: 18.67516975 | Q43: 8.701216409 | R43: 152.4757676 | S43: 2017-07-01 | T43: 54.8287798 | U43: 24.02311215 | V43: 9.64176356 | W43: 11.1713343 | X43: 14.86336686 | Y43: 16.52898204 | Z43: 7.653763594 | AA43: 138.7111023
A44: 2017-08-01 | B44: 57.00456165 | C44: 24.43322117 | D44: 10.24463386 | E44: 11.51438334 | F44: 15.61419223 | G44: 17.45474142 | H44: 8.109042041 | I44: 144.3747757 | J44: 2017-08-01 | K44: 59.63927627 | L44: 25.0444106 | M44: 10.92820851 | N44: 11.95093968 | O44: 16.48942828 | P44: 18.51885317 | Q44: 8.628384706 | R44: 151.1995012 | S44: 2017-08-01 | T44: 54.36984702 | U44: 23.82203174 | V44: 9.561059205 | W44: 11.07782699 | X44: 14.73895617 | Y44: 16.39062967 | Z44: 7.589699375 | AA44: 137.5500502
A45: 2017-09-01 | B45: 58.9834946 | C45: 25.28142884 | D45: 10.60027984 | E45: 11.91410911 | F45: 16.15624428 | G45: 18.06068877 | H45: 8.390550223 | I45: 149.3867957 | J45: 2017-09-01 | K45: 61.70967425 | L45: 25.91383592 | M45: 11.30758503 | N45: 12.36582066 | O45: 17.06186445 | P45: 19.16174152 | Q45: 8.927922048 | R45: 156.4484439 | S45: 2017-09-01 | T45: 56.25731495 | U45: 24.64902176 | V45: 9.892974662 | W45: 11.46239756 | X45: 15.2506241 | Y45: 16.95963602 | Z45: 7.853178398 | AA45: 142.3251475
A46: 2017-10-01 | B46: 57.433656 | C46: 24.58513477 | D46: 10.398615 | E46: 11.59262367 | F46: 15.82060818 | G46: 17.66758069 | H46: 8.165969155 | I46: 145.6641875 | J46: 2017-10-01 | K46: 60.07492006 | L46: 25.19784351 | M46: 11.0838889 | N46: 12.03026522 | O46: 16.69801992 | P46: 18.73433763 | Q46: 8.686602815 | R46: 152.5058781 | S46: 2017-10-01 | T46: 54.79239194 | U46: 23.97242604 | V46: 9.713341105 | W46: 11.15498213 | X46: 14.94319644 | Y46: 16.60082375 | Z46: 7.645335496 | AA46: 138.8224969
A47: 2017-11-01 | B47: 59.23884815 | C47: 25.35786797 | D47: 10.72545295 | E47: 11.9569904 | F47: 16.31786431 | G47: 18.22288885 | H47: 8.422633008 | I47: 150.2425456 | J47: 2017-11-01 | K47: 61.96312954 | L47: 25.9898347 | M47: 11.43226563 | N47: 12.40838742 | O47: 17.2228539 | P47: 19.32317494 | Q47: 8.959630658 | R47: 157.2992768 | S47: 2017-11-01 | T47: 56.51456675 | U47: 24.72590124 | V47: 10.01864027 | W47: 11.50559338 | X47: 15.41287473 | Y47: 17.12260277 | Z47: 7.885635358 | AA47: 143.1858145
A48: 2017-12-01 | B48: 57.67236192 | C48: 24.68731558 | D48: 10.44183376 | E48: 11.64080497 | F48: 15.88636184 | G48: 17.74101074 | H48: 8.199908579 | I48: 146.2695974 | J48: 2017-12-01 | K48: 60.32460361 | L48: 25.30257086 | M48: 11.12995579 | N48: 12.08026544 | O48: 16.76742028 | P48: 18.81220134 | Q48: 8.722706097 | R48: 153.1397234 | S48: 2017-12-01 | T48: 55.02012023 | U48: 24.0720603 | V48: 9.75371172 | W48: 11.2013445 | X48: 15.0053034 | Y48: 16.66982014 | Z48: 7.677111061 | AA48: 139.3994713
A49: 2018-01-01 | B49: 56.54833653 | C49: 24.19601751 | D49: 10.32269449 | E49: 11.41565952 | F49: 15.79173362 | G49: 17.49188623 | H49: 8.043781837 | I49: 143.8101097 | J49: 2018-01-01 | K49: 59.13811494 | L49: 24.79678283 | M49: 10.99461048 | N49: 11.8447702 | O49: 16.65204214 | P49: 18.53784908 | Q49: 8.554266884 | R49: 150.5184366 | S49: 2018-01-01 | T49: 53.95855812 | U49: 23.59525219 | V49: 9.650778504 | W49: 10.98654884 | X49: 14.9314251 | Y49: 16.44592337 | Z49: 7.533296789 | AA49: 137.1017829
A50: 2018-02-01 | B50: 65.02606216 | C50: 27.82348404 | D50: 11.87027267 | E50: 13.127095 | F50: 18.15923005 | G50: 20.11426951 | H50: 9.24970547 | I50: 165.3701189 | J50: 2018-02-01 | K50: 68.00410011 | L50: 28.51431609 | M50: 12.64292229 | N50: 13.62053795 | O50: 19.14851601 | P50: 21.3170431 | Q50: 9.836722427 | R50: 173.084158 | S50: 2018-02-01 | T50: 62.04802422 | U50: 27.13265199 | V50: 11.09762305 | W50: 12.63365205 | X50: 17.16994409 | Y50: 18.91149592 | Z50: 8.662688513 | AA50: 157.6560798
A51: 2018-03-01 | B51: 57.86957506 | C51: 24.76135175 | D51: 10.56388181 | E51: 11.68238371 | F51: 16.16070375 | G51: 17.90058002 | H51: 8.2317229 | I51: 147.170199 | J51: 2018-03-01 | K51: 60.51986303 | L51: 25.37615381 | M51: 11.25149695 | N51: 12.12152046 | O51: 17.04111318 | P51: 18.97098155 | Q51: 8.75413531 | R51: 154.0352643 | S51: 2018-03-01 | T51: 55.21928709 | U51: 24.14654968 | V51: 9.876266664 | W51: 11.24324695 | X51: 15.28029432 | Y51: 16.83017849 | Z51: 7.70931049 | AA51: 140.3051337
A52: 2018-04-01 | B52: 60.19492268 | C52: 25.71856543 | D52: 11.06632668 | E52: 12.14160631 | F52: 16.9761912 | G52: 18.70397614 | H52: 8.558040353 | I52: 153.3596288 | J52: 2018-04-01 | K52: 62.93736913 | L52: 26.35474601 | M52: 11.77785227 | N52: 12.59601317 | O52: 17.88721512 | P52: 19.81159875 | Q52: 9.098618614 | R52: 160.4634131 | S52: 2018-04-01 | T52: 57.45247623 | U52: 25.08238485 | V52: 10.35480109 | W52: 11.68719945 | X52: 16.06516729 | Y52: 17.59635353 | Z52: 8.017462091 | AA52: 146.2558445
A53: 2018-05-01 | B53: 57.80117371 | C53: 24.69582487 | D53: 10.62625621 | E53: 11.6587756 | F53: 16.30110536 | G53: 17.96018212 | H53: 8.217715965 | I53: 147.2610338 | J53: 2018-05-01 | K53: 60.43456233 | L53: 25.30670669 | M53: 11.30948683 | N53: 12.09511223 | O53: 17.17590093 | P53: 19.02375832 | Q53: 8.736797253 | R53: 154.0823246 | S53: 2018-05-01 | T53: 55.1677851 | U53: 24.08494304 | V53: 9.94302559 | W53: 11.22243897 | X53: 15.4263098 | Y53: 16.89660592 | Z53: 7.698634677 | AA53: 140.4397431
A54: 2018-06-01 | B54: 59.93539782 | C54: 25.60768221 | D54: 11.01861523 | E54: 12.0892589 | F54: 16.90299992 | G54: 18.62333567 | H54: 8.52114315 | I54: 152.6984329 | J54: 2018-06-01 | K54: 62.66602046 | L54: 26.24111995 | M54: 11.72707315 | N54: 12.54170662 | O54: 17.81009604 | P54: 19.72618287 | Q54: 9.059390758 | R54: 159.7715899 | S54: 2018-06-01 | T54: 57.20477517 | U54: 24.97424446 | V54: 10.31015732 | W54: 11.63681117 | X54: 15.99590381 | Y54: 17.52048847 | Z54: 7.982895542 | AA54: 145.6252759
A55: 2018-07-01 | B55: 58.56783898 | C55: 25.00260408 | D55: 10.84956531 | E55: 11.81171341 | F55: 16.64935763 | G55: 18.29201841 | H55: 8.328008825 | I55: 149.5011066 | J55: 2018-07-01 | K55: 61.22392829 | L55: 25.61875192 | M55: 11.5386856 | N55: 12.25181141 | O55: 17.53169423 | P55: 19.364763 | Q55: 8.851564768 | R55: 156.3811992 | S55: 2018-07-01 | T55: 55.91174967 | U55: 24.38645625 | V55: 10.16044501 | W55: 11.37161541 | X55: 15.76702103 | Y55: 17.21927383 | Z55: 7.804452881 | AA55: 142.6210141
A56: 2018-08-01 | B56: 58.04664484 | C56: 24.78010636 | D56: 10.75301522 | E56: 11.70660118 | F56: 16.5011953 | G56: 18.12923807 | H56: 8.253898025 | I56: 148.170699 | J56: 2018-08-01 | K56: 60.67909766 | L56: 25.39077111 | M56: 11.43600305 | N56: 12.14278276 | O56: 17.37568 | P56: 19.19243632 | Q56: 8.772794854 | R56: 154.9895658 | S56: 2018-08-01 | T56: 55.41419203 | U56: 24.16944162 | V56: 10.07002739 | W56: 11.27041961 | X56: 15.6267106 | Y56: 17.06603983 | Z56: 7.735001197 | AA56: 141.3518323
A57: 2018-09-01 | B57: 60.18460005 | C57: 25.69279921 | D57: 11.14906679 | E57: 12.13777492 | F57: 17.10896197 | G57: 18.79696829 | H57: 8.557902921 | I57: 153.6280742 | J57: 2018-09-01 | K57: 62.91401051 | L57: 26.32595576 | M57: 11.85721021 | N57: 12.5900218 | O57: 18.01565541 | P57: 19.89932592 | Q57: 9.09591159 | R57: 160.6980912 | S57: 2018-09-01 | T57: 57.45518958 | U57: 25.05964266 | V57: 10.44092338 | W57: 11.68552805 | X57: 16.20226854 | Y57: 17.69461067 | Z57: 8.019894253 | AA57: 146.5580571
A58: 2018-10-01 | B58: 58.59604073 | C58: 24.99388683 | D58: 10.93689548 | E58: 11.81614475 | F58: 16.7934641 | G58: 18.39450844 | H58: 8.333407122 | I58: 149.8643475 | J58: 2018-10-01 | K58: 61.24119285 | L58: 25.6074975 | M58: 11.62317814 | N58: 12.25443053 | O58: 17.67216743 | P58: 19.4628357 | Q58: 8.854807178 | R58: 156.7161093 | S58: 2018-10-01 | T58: 55.95088861 | U58: 24.38027616 | V58: 10.25061283 | W58: 11.37785898 | X58: 15.91476077 | Y58: 17.32618118 | Z58: 7.812007066 | AA58: 143.0125856
A59: 2018-11-01 | B59: 60.12903865 | C59: 25.64778044 | D59: 11.22302809 | E59: 12.1252804 | F59: 17.23281709 | G59: 18.87574818 | H59: 8.5514269 | I59: 153.7851197 | J59: 2018-11-01 | K59: 62.84339362 | L59: 26.27744448 | M59: 11.92726537 | N59: 12.57503267 | O59: 18.13450918 | P59: 19.97202516 | Q59: 9.086467898 | R59: 160.8161384 | S59: 2018-11-01 | T59: 57.41468369 | U59: 25.0181164 | V59: 10.51879082 | W59: 11.67552813 | X59: 16.331125 | Y59: 17.77947119 | Z59: 8.016385902 | AA59: 146.7541011
A60: 2018-12-01 | B60: 58.87976058 | C60: 25.1149063 | D60: 10.98985152 | E60: 11.87335808 | F60: 16.87477743 | G60: 18.48357397 | H60: 8.373757169 | I60: 150.589985 | J60: 2018-12-01 | K60: 61.53772043 | L60: 25.73148805 | M60: 11.67945713 | N60: 12.31376602 | O60: 17.75773541 | P60: 19.55707403 | Q60: 8.897681824 | R60: 157.4749229 | S60: 2018-12-01 | T60: 56.22180073 | U60: 24.49832455 | V60: 10.30024592 | W60: 11.43295015 | X60: 15.99181945 | Y60: 17.41007391 | Z60: 7.849832513 | AA60: 143.7050472
A61: 2019-01-01 | B61: 57.66767027 | C61: 24.57735516 | D61: 10.84404519 | E61: 11.62772487 | F61: 16.61046332 | G61: 18.19508857 | H61: 8.202627142 | I61: 147.7249745 | J61: 2019-01-01 | K61: 60.25889411 | L61: 25.17845579 | M61: 11.5163362 | N61: 12.05707506 | O61: 17.471252 | P61: 19.24163521 | Q61: 8.713397107 | R61: 154.4370455 | S61: 2019-01-01 | T61: 55.07644642 | U61: 23.97625453 | V61: 10.17175419 | W61: 11.19837469 | X61: 15.74967463 | Y61: 17.14854193 | Z61: 7.691857176 | AA61: 141.0129036
A62: 2019-02-01 | B62: 66.24756016 | C62: 28.23401408 | D62: 12.4574399 | E62: 13.35771672 | F62: 19.0817951 | G62: 20.90218348 | H62: 9.423027366 | I62: 169.7037368 | J62: 2019-02-01 | K62: 69.22431051 | L62: 28.92454744 | M62: 13.22975545 | N62: 13.85094632 | O62: 20.07065333 | P62: 22.10443704 | Q62: 10.00979052 | R62: 177.4144406 | S62: 2019-02-01 | T62: 63.27080982 | U62: 27.54348072 | V62: 11.68512434 | W62: 12.86448711 | X62: 18.09293687 | Y62: 19.69992993 | Z62: 8.836264213 | AA62: 161.993033
A63: 2019-03-01 | B63: 58.97585603 | C63: 25.13489019 | D63: 11.09004135 | E63: 11.89149874 | F63: 16.98727014 | G63: 18.60784247 | H63: 8.388702979 | I63: 151.0761019 | J63: 2019-03-01 | K63: 61.62586155 | L63: 25.74962673 | M63: 11.77758322 | N63: 12.33058869 | O63: 17.86758574 | P63: 19.67812993 | Q63: 8.911059714 | R63: 157.9404356 | S63: 2019-03-01 | T63: 56.32585052 | U63: 24.52015364 | V63: 10.40249949 | W63: 11.45240878 | X63: 16.10695454 | Y63: 17.53755502 | Z63: 7.866346244 | AA63: 144.2117682
A64: 2019-04-01 | B64: 61.30239513 | C64: 26.09411218 | D64: 11.60798324 | E64: 12.3542406 | F64: 17.73168397 | G64: 19.43181199 | H64: 8.717302923 | I64: 157.23953 | J64: 2019-04-01 | K64: 64.04307723 | L64: 26.72988347 | M64: 12.31905107 | N64: 12.80835511 | O64: 18.64212177 | P64: 20.53872201 | Q64: 9.257533402 | R64: 164.3387441 | S64: 2019-04-01 | T64: 58.56171304 | U64: 25.45834088 | V64: 10.89691541 | W64: 11.90012608 | X64: 16.82124617 | Y64: 18.32490197 | Z64: 8.177072443 | AA64: 150.140316
A65: 2019-05-01 | B65: 58.92230767 | C65: 25.08099892 | D65: 11.15729913 | E65: 11.87458278 | F65: 17.04324498 | G65: 18.67736493 | H65: 8.378850512 | I65: 151.1346489 | J65: 2019-05-01 | K65: 61.5565818 | L65: 25.69208616 | M65: 11.8407595 | N65: 12.31106613 | O65: 17.91833471 | P65: 19.74129877 | Q65: 8.898106349 | R65: 157.9582334 | S65: 2019-05-01 | T65: 56.28803353 | U65: 24.46991167 | V65: 10.47383876 | W65: 11.43809942 | X65: 16.16815526 | Y65: 17.61343108 | Z65: 7.859594674 | AA65: 144.3110644
A66: 2019-06-01 | B66: 61.09638695 | C66: 26.00642228 | D66: 11.56897433 | E66: 12.31272387 | F66: 17.67209621 | G66: 19.36651092 | H66: 8.688008215 | I66: 156.7111228 | J66: 2019-06-01 | K66: 63.82785891 | L66: 26.64005705 | M66: 12.2776526 | N66: 12.76531232 | O66: 18.57947447 | P66: 20.46970114 | Q66: 9.226423237 | R66: 163.7864797 | S66: 2019-06-01 | T66: 58.36491498 | U66: 25.37278751 | V66: 10.86029606 | W66: 11.86013542 | X66: 16.76471796 | Y66: 18.26332069 | Z66: 8.149593193 | AA66: 149.6357658
A67: 2019-07-01 | B67: 59.65631172 | C67: 25.36758132 | D67: 11.376628 | E67: 12.01879413 | F67: 17.34704767 | G67: 19.00154645 | H67: 8.48269438 | I67: 153.2506037 | J67: 2019-07-01 | K67: 62.31052268 | L67: 25.98329342 | M67: 12.06526096 | N67: 12.45858091 | O67: 18.22876029 | P67: 20.07353241 | Q67: 9.005880073 | R67: 160.1258307 | S67: 2019-07-01 | T67: 57.00210076 | U67: 24.75186922 | V67: 10.68799504 | W67: 11.57900736 | X67: 16.46533505 | Y67: 17.9295605 | Z67: 7.959508688 | AA67: 146.3753766
A68: 2019-08-01 | B68: 59.02117125 | C68: 25.0975013 | D68: 11.25550491 | E68: 11.89083412 | F68: 17.16235955 | G68: 18.79924345 | H68: 8.392382017 | I68: 151.6189966 | J68: 2019-08-01 | K68: 61.64712373 | L68: 25.70665813 | M68: 11.93680623 | N68: 12.32593863 | O68: 18.03468488 | P68: 19.85981633 | Q68: 8.909997529 | R68: 158.4210255 | S68: 2019-08-01 | T68: 56.39521877 | U68: 24.48834448 | V68: 10.57420359 | W68: 11.45572961 | X68: 16.29003423 | Y68: 17.73867057 | Z68: 7.874766505 | AA68: 144.8169677
A69: 2019-09-01 | B69: 61.54110094 | C69: 26.16904796 | D69: 11.73606266 | E69: 12.39851747 | F69: 17.89511254 | G69: 19.60188377 | H69: 8.750697723 | I69: 158.0924231 | J69: 2019-09-01 | K69: 64.27916938 | L69: 26.80421295 | M69: 12.44645238 | N69: 12.85219892 | O69: 18.8046821 | P69: 20.70773818 | Q69: 9.290413012 | R69: 165.1848669 | S69: 2019-09-01 | T69: 58.80303249 | U69: 25.53388297 | V69: 11.02567294 | W69: 11.94483602 | X69: 16.98554297 | Y69: 18.49602935 | Z69: 8.210982434 | AA69: 150.9999792
A70: 2019-10-01 | B70: 59.79447301 | C70: 25.40230817 | D70: 11.48390489 | E70: 12.04363434 | F70: 17.4505612 | G70: 19.13853825 | H70: 8.502337696 | I70: 153.8157576 | J70: 2019-10-01 | K70: 62.44214143 | L70: 26.01650256 | M70: 12.17084039 | N70: 12.48233705 | O70: 18.33010043 | P70: 20.20788179 | Q70: 9.024233752 | R70: 160.6740374 | S70: 2019-10-01 | T70: 57.1468046 | U70: 24.78811378 | V70: 10.79696938 | W70: 11.60493163 | X70: 16.57102198 | Y70: 18.06919471 | Z70: 7.98044164 | AA70: 146.9574777
A71: 2019-11-01 | B71: 61.24016252 | C71: 26.01647614 | D71: 11.76155866 | E71: 12.33482105 | F71: 17.87247467 | G71: 19.60126303 | H71: 8.707904194 | I71: 157.5346603 | J71: 2019-11-01 | K71: 63.95184532 | L71: 26.64552031 | M71: 12.46510264 | N71: 12.78413056 | O71: 18.77327908 | P71: 20.69646077 | Q71: 9.242418467 | R71: 164.5587572 | S71: 2019-11-01 | T71: 58.52847973 | U71: 25.38743198 | V71: 11.05801467 | W71: 11.88551154 | X71: 16.97167025 | Y71: 18.50606528 | Z71: 8.173389921 | AA71: 150.5105634
A72: 2019-12-01 | B72: 60.02846648 | C72: 25.50171492 | D72: 11.5288448 | E72: 12.09076464 | F72: 17.51885041 | G72: 19.21343301 | H72: 8.535609859 | I72: 154.4176841 | J72: 2019-12-01 | K72: 62.686496 | L72: 26.11831283 | M72: 12.21846849 | N72: 12.53118413 | O72: 18.40183153 | P72: 20.28696121 | Q72: 9.059548248 | R72: 161.3028024 | S72: 2019-12-01 | T72: 57.37043696 | U72: 24.885117 | V72: 10.83922112 | W72: 11.65034516 | X72: 16.63586929 | Y72: 18.13990482 | Z72: 8.011671469 | AA72: 147.5325658
A73: 2020-01-01 | B73: 58.80074783 | C73: 24.95870904 | D73: 11.37317607 | E73: 11.84151259 | F73: 17.25254034 | G73: 18.91338664 | H73: 8.361718596 | I73: 151.5017911 | J73: 2020-01-01 | K73: 61.39218587 | L73: 25.55985936 | M73: 12.04552264 | N73: 12.27089826 | O73: 18.11340018 | P73: 19.96001979 | Q73: 8.872530782 | R73: 158.2144169 | S73: 2020-01-01 | T73: 56.2093098 | U73: 24.35755872 | V73: 10.70082949 | W73: 11.41212691 | X73: 16.3916805 | Y73: 17.86675349 | Z73: 7.850906411 | AA73: 144.7891653
A74: 2020-02-01 | B74: 65.01756633 | C74: 27.597515 | D74: 12.57562627 | E74: 13.09347854 | F74: 19.07659728 | G74: 20.91303964 | H74: 9.245776857 | I74: 167.5195999 | J74: 2020-02-01 | K74: 67.88298897 | L74: 28.26222306 | M74: 13.31905794 | N74: 13.56826182 | O74: 20.02847312 | P74: 22.07033003 | Q74: 9.810595612 | R74: 174.9419306 | S74: 2020-02-01 | T74: 62.15214369 | U74: 26.93280695 | V74: 11.83219461 | W74: 12.61869527 | X74: 18.12472143 | Y74: 19.75574926 | Z74: 8.680958102 | AA74: 160.0972693
A75: 2020-03-01 | B75: 60.30907721 | C75: 25.59893821 | D75: 11.66491548 | E75: 12.14526555 | F75: 17.69509447 | G75: 19.39854402 | H75: 8.576209505 | I75: 155.3880445 | J75: 2020-03-01 | K75: 62.96698961 | L75: 26.21550896 | M75: 12.35450878 | N75: 12.58566563 | O75: 18.57803668 | P75: 20.47202491 | Q75: 9.100124807 | R75: 162.2728594 | S75: 2020-03-01 | T75: 57.65116482 | U75: 24.98236747 | V75: 10.97532218 | W75: 11.70486547 | X75: 16.81215225 | Y75: 18.32506313 | Z75: 8.052294203 | AA75: 148.5032295
A76: 2020-04-01 | B76: 62.53209666 | C76: 26.51913691 | D76: 12.17931199 | E76: 12.59052532 | F76: 18.43457465 | G76: 20.21171246 | H76: 8.892835492 | I76: 161.3601935 | J76: 2020-04-01 | K76: 65.2749372 | L76: 27.1554089 | M76: 12.89093983 | N76: 13.04499747 | O76: 19.34572948 | P76: 21.31949424 | Q76: 9.433491434 | R76: 168.4649986 | S76: 2020-04-01 | T76: 59.78925612 | U76: 25.88286491 | V76: 11.46768415 | W76: 12.13605316 | X76: 17.52341983 | Y76: 19.10393069 | Z76: 8.352179551 | AA76: 154.2553884
A77: 2020-05-01 | B77: 59.8295508 | C77: 25.37301855 | D77: 11.65293992 | E77: 12.04638121 | F77: 17.63785927 | G77: 19.33819178 | H77: 8.508500135 | I77: 154.3864417 | J77: 2020-05-01 | K77: 62.45384978 | L77: 25.98179181 | M77: 12.33381224 | N77: 12.48121174 | O77: 18.50963531 | P77: 20.39809685 | Q77: 9.025789717 | R77: 161.1841874 | S77: 2020-05-01 | T77: 57.20525183 | U77: 24.7642453 | V77: 10.9720676 | W77: 11.61155067 | X77: 16.76608323 | Y77: 18.27828672 | Z77: 7.991210553 | AA77: 147.5886959
A78: 2020-06-01 | B78: 62.45870084 | C78: 26.48801059 | D78: 12.16501676 | E78: 12.57574743 | F78: 18.41293743 | G78: 20.18798936 | H78: 8.882397701 | I78: 161.1708001 | J78: 2020-06-01 | K78: 65.19832202 | L78: 27.12353578 | M78: 12.87580934 | N78: 13.02968616 | O78: 19.32302281 | P78: 21.2944709 | Q78: 9.422419059 | R78: 168.2672661 | S78: 2020-06-01 | T78: 59.71907966 | U78: 25.8524854 | V78: 11.45422418 | W78: 12.12180871 | X78: 17.50285206 | Y78: 19.08150782 | Z78: 8.342376344 | AA78: 154.0743342
A79: 2020-07-01 | B79: 60.76768978 | C79: 25.75165764 | D79: 11.91882729 | E79: 12.23458097 | F79: 17.98784705 | G79: 19.73920286 | H79: 8.643577889 | I79: 157.0433835 | J79: 2020-07-01 | K79: 63.42084873 | L79: 26.3671257 | M79: 12.60718731 | N79: 12.67419343 | O79: 18.8692102 | P79: 20.81076393 | Q79: 9.166556215 | R79: 163.9158855 | S79: 2020-07-01 | T79: 58.11453083 | U79: 25.13618958 | V79: 11.23046727 | W79: 11.79496851 | X79: 17.1064839 | Y79: 18.6676418 | Z79: 8.120599564 | AA79: 150.1708814
A80: 2020-08-01 | B80: 60.12699999 | C80: 25.48015112 | D80: 11.79316395 | E80: 12.10558855 | F80: 17.79819643 | G80: 19.53108724 | H80: 8.552446368 | I80: 155.3876337 | J80: 2020-08-01 | K80: 62.75218599 | L80: 26.08913014 | M80: 12.4742664 | N80: 12.54056606 | O80: 18.67026713 | P80: 20.59135055 | Q80: 9.069910794 | R80: 162.1876771 | S80: 2020-08-01 | T80: 57.501814 | U80: 24.8711721 | V80: 11.11206149 | W80: 11.67061105 | X80: 16.92612572 | Y80: 18.47082392 | Z80: 8.034981941 | AA80: 148.5875902
A81: 2020-09-01 | B81: 62.75548724 | C81: 26.59403095 | D81: 12.30870906 | E81: 12.63479149 | F81: 18.57625508 | G81: 20.38490023 | H81: 8.926321601 | I81: 162.1804956 | J81: 2020-09-01 | K81: 65.49543479 | L81: 27.22963184 | M81: 13.01958631 | N81: 13.0887843 | O81: 19.48644887 | P81: 21.49151358 | Q81: 9.46640729 | R81: 169.277807 | S81: 2020-09-01 | T81: 60.01553969 | U81: 25.95843005 | V81: 11.59783181 | W81: 12.18079869 | X81: 17.66606129 | Y81: 19.27828688 | Z81: 8.386235912 | AA81: 155.0831843
A82: 2020-10-01 | B82: 60.81454268 | C82: 25.75374736 | D82: 12.01140958 | E82: 12.24400272 | F82: 18.06422865 | G82: 19.85311967 | H82: 8.652392822 | I82: 157.3934435 | J82: 2020-10-01 | K82: 63.45762048 | L82: 26.36687684 | M82: 12.69715405 | N82: 12.68194479 | O82: 18.9422429 | P82: 20.92060915 | Q82: 9.173383998 | R82: 164.2398322 | S82: 2020-10-01 | T82: 58.17146488 | U82: 25.14061788 | V82: 11.32566511 | W82: 11.80606065 | X82: 17.18621439 | Y82: 18.78563019 | Z82: 8.131401647 | AA82: 150.5470547
A83: 2020-11-01 | B83: 62.56768425 | C83: 26.4961679 | D83: 12.35767053 | E83: 12.59696879 | F83: 18.58497827 | G83: 20.42543885 | H83: 8.901821148 | I83: 161.9307297 | J83: 2020-11-01 | K83: 65.28695583 | L83: 27.12697247 | M83: 13.06318342 | N83: 13.04753571 | O83: 19.48830363 | P83: 21.52370157 | Q83: 9.437831286 | R83: 168.9744839 | S83: 2020-11-01 | T83: 59.84841268 | U83: 25.86536332 | V83: 11.65215764 | W83: 12.14640187 | X83: 17.68165291 | Y83: 19.32717614 | Z83: 8.365811011 | AA83: 154.8869756
A84: 2020-12-01 | B84: 61.09521449 | C84: 25.87260628 | D84: 12.06684474 | E84: 12.30051135 | F84: 18.14759883 | G84: 19.94474596 | H84: 8.692325421 | I84: 158.1198471 | J84: 2020-12-01 | K84: 63.75049065 | L84: 26.48856549 | M84: 12.75575407 | N84: 12.74047462 | O84: 19.02966531 | P84: 21.01716213 | Q84: 9.21572108 | R84: 164.9978333 | S84: 2020-12-01 | T84: 58.43993833 | U84: 25.25664708 | V84: 11.37793542 | W84: 11.86054808 | X84: 17.26553236 | Y84: 18.87232979 | Z84: 8.168929763 | AA84: 151.2418608
A85: 2021-01-01 | B85: 59.84078348 | C85: 25.32500096 | D85: 11.90114817 | E85: 12.04846456 | F85: 17.85566635 | G85: 19.63289931 | H85: 8.516329898 | I85: 155.1202927 | J85: 2021-01-01 | K85: 62.42974278 | L85: 25.92557628 | M85: 12.57285164 | N85: 12.47743952 | O85: 18.71570277 | P85: 20.67853134 | Q85: 9.026653487 | R85: 161.8264978 | S85: 2021-01-01 | T85: 57.25182418 | U85: 24.72442565 | V85: 11.2294447 | W85: 11.61948959 | X85: 16.99562993 | Y85: 18.58726728 | Z85: 8.006006309 | AA85: 148.4140876
A86: 2021-02-01 | B86: 68.61382364 | C86: 29.03780747 | D86: 13.64593233 | E86: 13.81484623 | F86: 20.47342081 | G86: 22.51120745 | H86: 9.764878126 | I86: 177.8619161 | J86: 2021-02-01 | K86: 71.58234087 | L86: 29.72643095 | M86: 14.41611181 | N86: 14.30671166 | O86: 21.45954405 | P86: 23.7101358 | Q86: 10.35001841 | R86: 185.5512935 | S86: 2021-02-01 | T86: 65.64530641 | U86: 28.349184 | V86: 12.87575285 | W86: 13.32298081 | X86: 19.48729758 | Y86: 21.3122791 | Z86: 9.179737847 | AA86: 170.1725386
A87: 2021-03-01 | B87: 61.47602098 | C87: 26.0170439 | D87: 12.22636457 | E87: 12.37770659 | F87: 18.34359872 | G87: 20.16939719 | H87: 8.749051149 | I87: 159.3591831 | J87: 2021-03-01 | K87: 64.1357274 | L87: 26.63403081 | M87: 12.91642332 | N87: 12.81840392 | O87: 19.2271369 | P87: 21.24360265 | Q87: 9.273320082 | R87: 166.2486451 | S87: 2021-03-01 | T87: 58.81631455 | U87: 25.40005698 | V87: 11.53630581 | W87: 11.93700925 | X87: 17.46006054 | Y87: 19.09519172 | Z87: 8.224782217 | AA87: 152.4697211
A88: 2021-04-01 | B88: 63.50998988 | C88: 26.8607932 | D88: 12.71758202 | E88: 12.78789156 | F88: 19.05562175 | G88: 20.94027131 | H88: 9.041245253 | I88: 164.913395 | J88: 2021-04-01 | K88: 66.24523158 | L88: 27.49530246 | M88: 13.42723834 | N88: 13.24110463 | O88: 19.96425229 | P88: 22.04498406 | Q88: 9.580403347 | R88: 171.9985167 | S88: 2021-04-01 | T88: 60.77474818 | U88: 26.22628395 | V88: 12.00792569 | W88: 12.33467848 | X88: 18.14699121 | Y88: 19.83555857 | Z88: 8.502087159 | AA88: 157.8282732
A89: 2021-05-01 | B89: 60.99690835 | C89: 25.79791532 | D89: 12.21434905 | E89: 12.28187645 | F89: 18.30159343 | G89: 20.11166767 | H89: 8.683484426 | I89: 158.3877947 | J89: 2021-05-01 | K89: 63.62391691 | L89: 26.40731713 | M89: 12.89592437 | N89: 12.71715595 | O89: 19.17426958 | P89: 21.17266709 | Q89: 9.201308109 | R89: 165.1925591 | S89: 2021-05-01 | T89: 58.36989978 | U89: 25.18851351 | V89: 11.53277373 | W89: 11.84659696 | X89: 17.42891728 | Y89: 19.05066825 | Z89: 8.165660743 | AA89: 151.5830303
A90: 2021-06-01 | B90: 63.72310483 | C90: 26.95092763 | D90: 12.7602573 | E90: 12.83080277 | F90: 19.11956504 | G90: 21.01053876 | H90: 9.071584173 | I90: 165.4667805 | J90: 2021-06-01 | K90: 66.46752494 | L90: 27.58756605 | M90: 13.47229496 | N90: 13.28553666 | O90: 20.03124459 | P90: 22.1189585 | Q90: 9.612551473 | R90: 172.5756772 | S90: 2021-06-01 | T90: 60.97868471 | U90: 26.31428921 | V90: 12.04821964 | W90: 12.37606889 | X90: 18.20788549 | Y90: 19.90211903 | Z90: 8.530616873 | AA90: 158.3578838
A91: 2021-07-01 | B91: 61.65836938 | C91: 26.06277823 | D91: 12.43118998 | E91: 12.41644646 | F91: 18.60345772 | G91: 20.43119245 | H91: 8.780825378 | I91: 160.3842596 | J91: 2021-07-01 | K91: 64.30195682 | L91: 26.67602593 | M91: 13.11706668 | N91: 12.85447297 | O91: 19.48164127 | P91: 21.49888776 | Q91: 9.301917011 | R91: 167.2319685 | S91: 2021-07-01 | T91: 59.01478194 | U91: 25.44953053 | V91: 11.74531329 | W91: 11.97841994 | X91: 17.72527417 | Y91: 19.36349714 | Z91: 8.259733745 | AA91: 153.5365508
A92: 2021-08-01 | B92: 61.51406174 | C92: 26.00177989 | D92: 12.40209554 | E92: 12.38738653 | F92: 18.55991747 | G92: 20.3833745 | H92: 8.760274394 | I92: 160.0088901 | J92: 2021-08-01 | K92: 64.15146203 | L92: 26.61359233 | M92: 13.08636699 | N92: 12.82438787 | O92: 19.43604569 | P92: 21.44857093 | Q92: 9.280146444 | R92: 166.8405723 | S92: 2021-08-01 | T92: 58.87666146 | U92: 25.38996746 | V92: 11.7178241 | W92: 11.95038518 | X92: 17.68378925 | Y92: 19.31817806 | Z92: 8.240402344 | AA92: 153.1772079
A93: 2021-09-01 | B93: 63.84215451 | C93: 26.98585661 | D93: 12.87147162 | E93: 12.85620592 | F93: 19.26234564 | G93: 21.15481415 | H93: 9.091820236 | I93: 166.0646687 | J93: 2021-09-01 | K93: 66.5793712 | L93: 27.62082401 | M93: 13.58164035 | N93: 13.30974624 | O93: 20.17163225 | P93: 22.26032456 | Q93: 9.631367631 | R93: 173.1549062 | S93: 2021-09-01 | T93: 61.10493782 | U93: 26.3508892 | V93: 12.16130289 | W93: 12.4026656 | X93: 18.35305902 | Y93: 20.04930375 | Z93: 8.552272842 | AA93: 158.9744311
A94: 2021-10-01 | B94: 61.88104487 | C94: 26.14306895 | D94: 12.56074576 | E94: 12.46316307 | F94: 18.77109591 | G94: 20.60725559 | H94: 8.81607747 | I94: 161.2424516 | J94: 2021-10-01 | K94: 64.52236504 | L94: 26.7557907 | M94: 13.24603421 | N94: 12.90081392 | O94: 19.64852629 | P94: 21.6740352 | Q94: 9.33672219 | R94: 168.0842875 | S94: 2021-10-01 | T94: 59.2397247 | U94: 25.5303472 | V94: 11.8754573 | W94: 12.02551223 | X94: 17.89366554 | Y94: 19.54047599 | Z94: 8.29543275 | AA94: 154.4006157
A95: 2021-11-01 | B95: 63.89108239 | C95: 26.99225548 | D95: 12.96874744 | E95: 12.86799505 | F95: 19.38082394 | G95: 21.27662627 | H95: 9.102443781 | I95: 166.4799743 | J95: 2021-11-01 | K95: 66.61819867 | L95: 27.62487983 | M95: 13.67629563 | N95: 13.31986179 | O95: 20.28675526 | P95: 22.37805731 | Q95: 9.640000229 | R95: 173.5440487 | S95: 2021-11-01 | T95: 61.16396612 | U95: 26.35963112 | V95: 12.26119925 | W95: 12.4161283 | X95: 18.47489262 | Y95: 20.17519523 | Z95: 8.564887333 | AA95: 159.4159
A96: 2021-12-01 | B96: 62.07132701 | C96: 26.22345801 | D96: 12.59936963 | E96: 12.50148688 | F96: 18.8288164 | G96: 20.67062221 | H96: 8.843186613 | I96: 161.7382668 | J96: 2021-12-01 | K96: 64.72076915 | L96: 26.83806386 | M96: 13.28676532 | N96: 12.94048349 | O96: 19.70894485 | P96: 21.74068213 | Q96: 9.365432298 | R96: 168.6011411 | S96: 2021-12-01 | T96: 59.42188487 | U96: 25.60885216 | V96: 11.91197393 | W96: 12.06249028 | X96: 17.94868796 | Y96: 19.60056229 | Z96: 8.320940928 | AA96: 154.8753924
A97: 2022-01-01 | B97: 60.90620245 | C97: 25.71878131 | D97: 12.44618927 | E97: 12.26919246 | F97: 18.57857975 | G97: 20.38378721 | H97: 8.681045611 | I97: 158.9837781 | J97: 2022-01-01 | K97: 63.49442544 | L97: 26.31918581 | M97: 13.11770171 | N97: 12.69804542 | O97: 19.43837157 | P97: 21.42912186 | Q97: 9.191224062 | R97: 165.6880759 | S97: 2022-01-01 | T97: 58.31797946 | U97: 25.1183768 | V97: 11.77467684 | W97: 11.8403395 | X97: 17.71878793 | Y97: 19.33845256 | Z97: 8.170867161 | AA97: 152.2794803
A98: 2022-02-01 | B98: 69.9836571 | C98: 29.55190604 | D98: 14.30116814 | E98: 14.09779174 | F98: 21.34752952 | G98: 23.42178492 | H98: 9.974867829 | I98: 182.6787053 | J98: 2022-02-01 | K98: 72.9576286 | L98: 30.24179477 | M98: 15.07276273 | N98: 14.59056091 | O98: 22.33546464 | P98: 24.62291615 | Q98: 10.56108323 | R98: 190.382211 | S98: 2022-02-01 | T98: 67.00968561 | U98: 28.8620173 | V98: 13.52957356 | W98: 13.60502258 | X98: 20.35959441 | Y98: 22.2206537 | Z98: 9.38865243 | AA98: 174.9751996
A99: 2022-03-01 | B99: 62.48975243 | C99: 26.38746485 | D99: 12.76978789 | E99: 12.58818919 | F99: 19.06161939 | G99: 20.9137619 | H99: 8.906751189 | I99: 163.1173268 | J99: 2022-03-01 | K99: 65.14526873 | L99: 27.00347976 | M99: 13.45875952 | N99: 13.02819225 | O99: 19.94376563 | P99: 21.98627505 | Q99: 9.430194184 | R99: 169.9959351 | S99: 2022-03-01 | T99: 59.83423612 | U99: 25.77144994 | V99: 12.08081625 | W99: 12.14818613 | X99: 18.17947314 | Y99: 19.84124874 | Z99: 8.383308193 | AA99: 156.2387185
A100: 2022-04-01 | B100: 64.62482677 | C100: 27.27697022 | D100: 13.29441259 | E100: 13.02127896 | F100: 19.84315754 | G100: 21.73606245 | H100: 9.215507707 | I100: 169.0122162 | J100: 2022-04-01 | K100: 67.35902285 | L100: 27.91123691 | M100: 14.00379763 | N100: 13.47431879 | O100: 20.75144072 | P100: 22.84035289 | Q100: 9.754459693 | R100: 176.0946295 | S100: 2022-04-01 | T100: 61.89063068 | U100: 26.64270352 | V100: 12.58502755 | W100: 12.56823914 | X100: 18.93487435 | Y100: 20.63177201 | Z100: 8.67655572 | AA100: 161.929803
A101: 2022-05-01 | B101: 62.24526498 | C101: 26.27260024 | D101: 12.80489676 | E101: 12.54182023 | F101: 19.11250924 | G101: 20.93571518 | H101: 8.876181923 | I101: 162.7889885 | J101: 2022-05-01 | K101: 64.87878476 | L101: 26.88351249 | M101: 13.48816141 | N101: 12.97817859 | O101: 19.98734838 | P101: 21.99934435 | Q101: 9.395289067 | R101: 169.6106191 | S101: 2022-05-01 | T101: 59.6117452 | U101: 25.66168798 | V101: 12.1216321 | W101: 12.10546186 | X101: 18.2376701 | Y101: 19.872086 | Z101: 8.35707478 | AA101: 155.967358
A102: 2022-06-01 | B102: 64.73216609 | C102: 27.3222762 | D102: 13.31649409 | E102: 13.0429068 | F102: 19.87611625 | G102: 21.7721652 | H102: 9.230814306 | I102: 169.2929389 | J102: 2022-06-01 | K102: 67.47090356 | L102: 27.95759639 | M102: 14.02705739 | N102: 13.49669911 | O102: 20.78590806 | P102: 22.87828983 | Q102: 9.770661471 | R102: 176.3871158 | S102: 2022-06-01 | T102: 61.99342861 | U102: 26.68695601 | V102: 12.60593079 | W102: 12.5891145 | X102: 18.96632444 | Y102: 20.66604058 | Z102: 8.690967141 | AA102: 162.1987621
A103: 2022-07-01 | B103: 62.94410859 | C103: 26.5573133 | D103: 13.03481985 | E103: 12.68622269 | F103: 19.45398424 | G103: 21.27642071 | H103: 8.980647541 | I103: 164.9335169 | J103: 2022-07-01 | K103: 65.59563354 | L103: 27.17240231 | M103: 13.72275593 | N103: 13.12556441 | O103: 20.33480459 | P103: 22.34732183 | Q103: 9.50330378 | R103: 171.8017864 | S103: 2022-07-01 | T103: 60.29258364 | U103: 25.94222429 | V103: 12.34688377 | W103: 12.24688098 | X103: 18.5731639 | Y103: 20.20551958 | Z103: 8.457991302 | AA103: 158.0652475
A104: 2022-08-01 | B104: 62.61151855 | C104: 26.41698725 | D104: 12.96594523 | E104: 12.61919003 | F104: 19.35119144 | G104: 21.16399834 | H104: 8.933194745 | I104: 164.0620256 | J104: 2022-08-01 | K104: 65.24903312 | L104: 27.0288262 | M104: 13.65024633 | N104: 13.05621031 | O104: 20.22735762 | P104: 22.22924094 | Q104: 9.453089323 | R104: 170.8940038 | S104: 2022-08-01 | T104: 59.97400397 | U104: 25.8051483 | V104: 12.28164413 | W104: 12.18216975 | X104: 18.47502526 | Y104: 20.09875574 | Z104: 8.413300167 | AA104: 157.2300473
A105: 2022-09-01 | B105: 64.78081862 | C105: 27.3322561 | D105: 13.41517609 | E105: 13.05640686 | F105: 20.0216518 | G105: 21.89726698 | H105: 9.242702971 | I105: 169.7462794 | J105: 2022-09-01 | K105: 67.50971511 | L105: 27.96529342 | M105: 14.12318615 | N105: 13.50856857 | O105: 20.92817449 | P105: 22.99941702 | Q105: 9.780610327 | R105: 176.8149651 | S105: 2022-09-01 | T105: 62.05192213 | U105: 26.69921878 | V105: 12.70716602 | W105: 12.60424515 | X105: 19.1151291 | Y105: 20.79511695 | Z105: 8.704795615 | AA105: 162.6775937
A106: 2022-10-01 | B106: 63.11202692 | C106: 26.61917014 | D106: 13.15598494 | E106: 12.72424839 | F106: 19.62898573 | G106: 21.43963452 | H106: 9.009845256 | I106: 165.6898959 | J106: 2022-10-01 | K106: 65.75918608 | L106: 27.2332464 | M106: 13.84278832 | N106: 13.16286672 | O106: 20.50835579 | P106: 22.50877239 | Q106: 9.531640932 | R106: 172.5468566 | S106: 2022-10-01 | T106: 60.46486775 | U106: 26.00509388 | V106: 12.46918156 | W106: 12.28563006 | X106: 18.74961567 | Y106: 20.37049666 | Z106: 8.48804958 | AA106: 158.8329351
A107: 2022-11-01 | B107: 64.9977918 | C107: 27.41454146 | D107: 13.54908108 | E107: 13.1044444 | F107: 20.21549283 | G107: 22.08024316 | H107: 9.279056223 | I107: 170.640651 | J107: 2022-11-01 | K107: 67.72404714 | L107: 28.0469661 | M107: 14.2564059 | N107: 13.55616849 | O107: 21.12113815 | P107: 23.18132649 | Q107: 9.816442968 | R107: 177.7024952 | S107: 2022-11-01 | T107: 62.27153646 | U107: 26.78211682 | V107: 12.84175626 | W107: 12.65272031 | X107: 19.30984751 | Y107: 20.97915984 | Z107: 8.741669478 | AA107: 163.5788067
A108: 2022-12-01 | B108: 63.04711005 | C108: 26.59178973 | D108: 13.14245273 | E108: 12.71116026 | F108: 19.60879541 | G108: 21.41758177 | H108: 9.000577754 | I108: 165.5194677 | J108: 2022-12-01 | K108: 65.69154636 | L108: 27.20523436 | M108: 13.82854966 | N108: 13.14932743 | O108: 20.48726095 | P108: 22.48561993 | Q108: 9.521836712 | R108: 172.3693754 | S108: 2022-12-01 | T108: 60.40267375 | U108: 25.97834511 | V108: 12.45635579 | W108: 12.27299309 | X108: 18.73032987 | Y108: 20.34954362 | Z108: 8.479318795 | AA108: 158.66956
A109: 2023-01-01 | B109: 61.96593364 | C109: 26.1282037 | D109: 13.00189869 | E109: 12.49784091 | F109: 19.40620862 | G109: 21.15529826 | H109: 8.851778422 | I109: 163.0071622 | J109: 2023-01-01 | K109: 64.55393823 | L109: 26.72855754 | M109: 13.67335446 | N109: 12.92665768 | O109: 20.26592789 | P109: 22.20054471 | Q109: 9.361913823 | R109: 169.7108943 | S109: 2023-01-01 | T109: 59.37792905 | U109: 25.52784986 | V109: 12.33044292 | W109: 12.06902414 | X109: 18.54648935 | Y109: 20.11005182 | Z109: 8.341643022 | AA109: 156.3034302
A110: 2023-02-01 | B110: 71.30053479 | C110: 30.06417862 | D110: 14.96051581 | E110: 14.38052633 | F110: 22.32957645 | G110: 24.34215046 | H110: 10.18521788 | I110: 187.5627003 | J110: 2023-02-01 | K110: 74.2783986 | L110: 30.75497027 | M110: 15.73312025 | N110: 14.87394043 | O110: 23.31880457 | P110: 25.54485371 | Q110: 10.77220051 | R110: 195.2762883 | S110: 2023-02-01 | T110: 68.32267098 | U110: 29.37338696 | V110: 14.18791136 | W110: 13.88711224 | X110: 21.34034834 | Y110: 23.1394472 | Z110: 9.598235249 | AA110: 179.8491123
A111: 2023-03-01 | B111: 63.50345429 | C111: 26.77650593 | D111: 13.32450639 | E111: 12.80794176 | F111: 19.88772233 | G111: 21.680211 | H111: 9.071411878 | I111: 167.0517536 | J111: 2023-03-01 | K111: 66.15567336 | L111: 27.39175596 | M111: 14.01262256 | N111: 13.24739848 | O111: 20.76877325 | P111: 22.75139247 | Q111: 9.594204938 | R111: 173.921821 | S111: 2023-03-01 | T111: 60.85123522 | U111: 26.1612559 | V111: 12.63639023 | W111: 12.36848503 | X111: 19.0066714 | Y111: 20.60902954 | Z111: 8.548618818 | AA111: 160.1816861
A112: 2023-04-01 | B112: 65.98073111 | C112: 27.8142609 | D112: 13.93459565 | E112: 13.31309294 | F112: 20.82012855 | G112: 22.63820089 | H112: 9.431606618 | I112: 173.9326167 | J112: 2023-04-01 | K112: 68.72476323 | L112: 28.45080931 | M112: 14.64653264 | N112: 13.76776254 | O112: 21.73167921 | P112: 23.74646392 | Q112: 9.972497438 | R112: 181.0405083 | S112: 2023-04-01 | T112: 63.23669899 | U112: 27.17771248 | V112: 13.22265866 | W112: 12.85842335 | X112: 19.90857789 | Y112: 21.52993786 | Z112: 8.890715798 | AA112: 166.824725
A113: 2023-05-01 | B113: 63.29516485 | C113: 26.68215704 | D113: 13.36742582 | E113: 12.77121969 | F113: 19.97270183 | G113: 21.71677448 | H113: 9.047718715 | I113: 166.8531624 | J113: 2023-05-01 | K113: 65.9275086 | L113: 27.29279648 | M113: 14.05038535 | N113: 13.2073832 | O113: 20.8471503 | P113: 22.77992867 | Q113: 9.566594045 | R113: 173.6717466 | S113: 2023-05-01 | T113: 60.6628211 | U113: 26.07151759 | V113: 12.68446629 | W113: 12.33505619 | X113: 19.09825336 | Y113: 20.65362028 | Z113: 8.528843386 | AA113: 160.0345782
A114: 2023-06-01 | B114: 65.64613188 | C114: 27.67321017 | D114: 13.863931 | E114: 13.24558004 | F114: 20.71454623 | G114: 22.52339882 | H114: 9.383777376 | I114: 173.0505755 | J114: 2023-06-01 | K114: 68.37624855 | L114: 28.30653054 | M114: 14.57225764 | N114: 13.69794393 | O114: 21.62147426 | P114: 23.62604166 | Q114: 9.921925249 | R114: 180.1224218 | S114: 2023-06-01 | T114: 62.9160152 | U114: 27.03988979 | V114: 13.15560436 | W114: 12.79321615 | X114: 19.80761819 | Y114: 21.42075597 | Z114: 8.845629503 | AA114: 165.9787292
A115: 2023-07-01 | B115: 64.28459438 | C115: 27.09395561 | D115: 13.66435289 | E115: 12.97682384 | F115: 20.43827499 | G115: 22.16609731 | H115: 9.195736793 | I115: 169.8198358 | J115: 2023-07-01 | K115: 66.94689176 | L115: 27.71154356 | M115: 14.35508387 | N115: 13.41795048 | O115: 21.32267387 | P115: 23.24134922 | Q115: 9.720516441 | R115: 176.7160092 | S115: 2023-07-01 | T115: 61.62229701 | U115: 26.47636766 | V115: 12.97362191 | W115: 12.5356972 | X115: 19.55387611 | Y115: 21.09084541 | Z115: 8.670957144 | AA115: 162.9236625
A116: 2023-08-01 | B116: 63.60652977 | C116: 26.80817248 | D116: 13.52022327 | E116: 12.83994618 | F116: 20.22269502 | G116: 21.93229252 | H116: 9.098741489 | I116: 168.0286007 | J116: 2023-08-01 | K116: 66.24074561 | L116: 27.4192462 | M116: 14.20366851 | N116: 13.27641988 | O116: 21.09776538 | P116: 22.99620282 | Q116: 9.617985838 | R116: 174.8520343 | S116: 2023-08-01 | T116: 60.97231392 | U116: 26.19709876 | V116: 12.83677802 | W116: 12.40347248 | X116: 19.34762465 | Y116: 20.86838222 | Z116: 8.579497141 | AA116: 161.2051672
A117: 2023-09-01 | B117: 65.70623838 | C117: 27.6931343 | D117: 13.96653797 | E117: 13.26380432 | F117: 20.89026432 | G117: 22.65629717 | H117: 9.399099109 | I117: 173.5753756 | J117: 2023-09-01 | K117: 68.42741205 | L117: 28.32438012 | M117: 14.67254435 | N117: 13.71468641 | O117: 21.79422155 | P117: 23.75532811 | Q117: 9.935484179 | R117: 180.6240568 | S117: 2023-09-01 | T117: 62.9850647 | U117: 27.06188849 | V117: 13.26053158 | W117: 12.81292223 | X117: 19.9863071 | Y117: 21.55726624 | Z117: 8.862714038 | AA117: 166.5266944
A118: 2023-10-01 | B118: 64.15392892 | C118: 27.03484145 | D118: 13.72435739 | E118: 12.95694864 | F118: 20.54524347 | G118: 22.23108872 | H118: 9.184020676 | I118: 169.8304293 | J118: 2023-10-01 | K118: 66.79978982 | L118: 27.64861654 | M118: 14.41082393 | N118: 13.39535186 | O118: 21.42418225 | P118: 23.29970224 | Q118: 9.705560442 | R118: 176.6840271 | S118: 2023-10-01 | T118: 61.50806803 | U118: 26.42106636 | V118: 13.03789085 | W118: 12.51854543 | X118: 19.66630469 | Y118: 21.1624752 | Z118: 8.662480909 | AA118: 162.9768315
A119: 2023-11-01 | B119: 66.04400594 | C119: 27.83133097 | D119: 14.12869884 | E119: 13.33868101 | F119: 21.15053909 | G119: 22.88605204 | H119: 9.454596566 | I119: 174.8339045 | J119: 2023-11-01 | K119: 68.76781812 | L119: 28.46318886 | M119: 14.83538978 | N119: 13.79000028 | O119: 22.05537281 | P119: 23.98614861 | Q119: 9.991501725 | R119: 181.8894202 | S119: 2023-11-01 | T119: 63.32019376 | U119: 27.19947309 | V119: 13.42200789 | W119: 12.88736173 | X119: 20.24570537 | Y119: 21.78595546 | Z119: 8.917691406 | AA119: 167.7783887
A120: 2023-12-01 | B120: 64.20819436 | C120: 27.05770922 | D120: 13.73596632 | E120: 12.96790845 | F120: 20.56262193 | G120: 22.24989318 | H120: 9.191789099 | I120: 169.9740826 | J120: 2023-12-01 | K120: 66.85629329 | L120: 27.67200348 | M120: 14.42301352 | N120: 13.40668249 | O120: 21.44230417 | P120: 23.3194106 | Q120: 9.713770017 | R120: 176.8334776 | S120: 2023-12-01 | T120: 61.56009543 | U120: 26.44341496 | V120: 13.04891912 | W120: 12.5291344 | X120: 19.68293969 | Y120: 21.18037576 | Z120: 8.669808182 | AA120: 163.1146875
A121: 2024-01-01 | B121: 63.07575275 | C121: 26.57774156 | D121: 13.57996026 | E121: 12.7461171 | F121: 20.36388064 | G121: 21.96604784 | H121: 9.036928293 | I121: 167.3464285 | J121: 2024-01-01 | K121: 65.66645144 | L121: 27.17872037 | M121: 14.25211501 | N121: 13.17538027 | O121: 21.22449487 | P121: 23.01238239 | Q121: 9.547594743 | R121: 174.0571391 | S121: 2024-01-01 | T121: 60.48505406 | U121: 25.97676275 | V121: 12.90780551 | W121: 12.31685393 | X121: 19.5032664 | Y121: 20.9197133 | Z121: 8.526261843 | AA121: 160.6357178
A122: 2024-02-01 | B122: 70.0991569 | C122: 29.53713899 | D122: 15.09207141 | E122: 14.16538089 | F122: 22.63137262 | G122: 24.41193909 | H122: 10.04317867 | I122: 185.9802386 | J122: 2024-02-01 | K122: 72.97832657 | L122: 30.20503602 | M122: 15.83906974 | N122: 14.64244196 | O122: 23.58781515 | P122: 25.57478164 | Q122: 10.61070717 | R122: 193.4381782 | S122: 2024-02-01 | T122: 67.21998723 | U122: 28.86924196 | V122: 14.34507309 | W122: 13.68831982 | X122: 21.6749301 | Y122: 23.24909654 | Z122: 9.475650161 | AA122: 178.5222989
A123: 2024-03-01 | B123: 64.41710047 | C123: 27.14293487 | D123: 13.86874712 | E123: 13.01717174 | F123: 20.79693207 | G123: 22.43317042 | H123: 9.229104568 | I123: 170.9051613 | J123: 2024-03-01 | K123: 67.06289209 | L123: 27.75669389 | M123: 14.5551957 | N123: 13.45556348 | O123: 21.67584784 | P123: 23.50175596 | Q123: 9.750630679 | R123: 177.7585796 | S123: 2024-03-01 | T123: 61.77130886 | U123: 26.52917585 | V123: 13.18229855 | W123: 12.57878 | X123: 19.9180163 | Y123: 21.36458489 | Z123: 8.707578458 | AA123: 164.0517429
A124: 2024-04-01 | B124: 67.13174032 | C124: 28.28513542 | D124: 14.5449693 | E124: 13.57366706 | F124: 21.85774661 | G124: 23.49449774 | H124: 9.626172583 | I124: 178.513929 | J124: 2024-04-01 | K124: 69.87779767 | L124: 28.92215364 | M124: 15.25743174 | N124: 14.02867222 | O124: 22.76997004 | P124: 24.60357873 | Q124: 10.16746261 | R124: 185.6270667 | S124: 2024-04-01 | T124: 64.38568297 | U124: 27.6481172 | V124: 13.83250686 | W124: 13.11866189 | X124: 20.94552318 | Y124: 22.38541675 | Z124: 9.084882558 | AA124: 171.4007914
A125: 2024-05-01 | B125: 64.38319772 | C125: 27.12707071 | D125: 13.94946161 | E125: 13.01792693 | F125: 20.96283539 | G125: 22.53257381 | H125: 9.232052823 | I125: 171.205119 | J125: 2024-05-01 | K125: 67.01682457 | L125: 27.7380078 | M125: 14.63275404 | N125: 13.45430304 | O125: 21.8377101 | P125: 23.59624622 | Q125: 9.751181071 | R125: 178.0270268 | S125: 2024-05-01 | T125: 61.74957088 | U125: 26.51613362 | V125: 13.26616918 | W125: 12.58155082 | X125: 20.08796069 | Y125: 21.46890139 | Z125: 8.712924575 | AA125: 164.3832112
A126: 2024-06-01 | B126: 66.66012203 | C126: 28.08642484 | D126: 14.44278703 | E126: 13.47830845 | F126: 21.70419015 | G126: 23.32944266 | H126: 9.558546167 | I126: 177.2598213 | J126: 2024-06-01 | K126: 69.3868876 | L126: 28.71896784 | M126: 15.15024423 | N126: 13.93011708 | O126: 22.61000496 | P126: 24.43073206 | Q126: 10.09603349 | R126: 184.3229873 | S126: 2024-06-01 | T126: 63.93335646 | U126: 27.45388184 | V126: 13.73532983 | W126: 13.02649981 | X126: 20.79837533 | Y126: 22.22815326 | Z126: 9.021058848 | AA126: 170.1966554
A127: 2024-07-01 | B127: 65.33478367 | C127: 27.52769814 | D127: 14.2449127 | E127: 13.21861979 | F127: 21.45865296 | G127: 22.97885671 | H127: 9.376843437 | I127: 174.1403674 | J127: 2024-07-01 | K127: 67.99655457 | L127: 28.14516396 | M127: 14.93550709 | N127: 13.6596592 | O127: 22.34287695 | P127: 24.05389598 | Q127: 9.901519309 | R127: 181.0351771 | S127: 2024-07-01 | T127: 62.67301278 | U127: 26.91023231 | V127: 13.55431832 | W127: 12.77758039 | X127: 20.57442898 | Y127: 21.90381745 | Z127: 8.852167566 | AA127: 167.2455578
A128: 2024-08-01 | B128: 64.59371004 | C128: 27.21545938 | D128: 14.08333676 | E128: 13.06868479 | F128: 21.21525364 | G128: 22.71821416 | H128: 9.270484602 | I128: 172.1651434 | J128: 2024-08-01 | K128: 67.22528923 | L128: 27.82592147 | M128: 14.76609793 | N128: 13.50472162 | O128: 22.08944813 | P128: 23.78105957 | Q128: 9.789209227 | R128: 178.9817472 | S128: 2024-08-01 | T128: 61.96213084 | U128: 26.6049973 | V128: 13.40057559 | W128: 12.63264797 | X128: 20.34105915 | Y128: 21.65536875 | Z128: 8.751759978 | AA128: 165.3485396
A129: 2024-09-01 | B129: 66.87308983 | C129: 28.17583723 | D129: 14.58030889 | E129: 13.52985193 | F129: 21.96389651 | G129: 23.51989343 | H129: 9.597621026 | I129: 178.2404988 | J129: 2024-09-01 | K129: 69.59753207 | L129: 28.80784127 | M129: 15.2871633 | N129: 13.9812756 | O129: 22.86893953 | P129: 24.62024448 | Q129: 10.13465038 | R129: 185.2976466 | S129: 2024-09-01 | T129: 64.14864759 | U129: 27.54383319 | V129: 13.87345447 | W129: 13.07842826 | X129: 21.05885349 | Y129: 22.41954238 | Z129: 9.060591671 | AA129: 171.1833511
A130: 2024-10-01 | B130: 65.31095255 | C130: 27.51859583 | D130: 14.32893523 | E130: 13.22263852 | F130: 21.64696204 | G130: 23.0840406 | H130: 9.382169986 | I130: 174.4942948 | J130: 2024-10-01 | K130: 67.96112197 | L130: 28.13337039 | M130: 15.01651962 | N130: 13.66175563 | O130: 22.52733208 | P130: 24.15439425 | Q130: 9.904559029 | R130: 181.359053 | S130: 2024-10-01 | T130: 62.66078313 | U130: 26.90382126 | V130: 13.64135085 | W130: 12.78352141 | X130: 20.76659199 | Y130: 22.01368695 | Z130: 8.859780944 | AA130: 167.6295365
A131: 2024-11-01 | B131: 66.85512255 | C131: 28.16922774 | D131: 14.66771933 | E131: 13.53526605 | F131: 22.15876884 | G131: 23.62982475 | H131: 9.603995957 | I131: 178.6199252 | J131: 2024-11-01 | K131: 69.56795087 | L131: 28.79853764 | M131: 15.37156052 | N131: 13.98476536 | O131: 23.05995378 | P131: 24.72548516 | Q131: 10.13873603 | R131: 185.6469893 | S131: 2024-11-01 | T131: 64.14229424 | U131: 27.53991785 | V131: 13.96387814 | W131: 13.08576673 | X131: 21.25758389 | Y131: 22.53416435 | Z131: 9.069255885 | AA131: 171.5928611
A132: 2024-12-01 | B132: 65.41570304 | C132: 27.56273217 | D132: 14.35191703 | E132: 13.24384595 | F132: 21.68168102 | G132: 23.12106448 | H132: 9.397217798 | I132: 174.7741615 | J132: 2024-12-01 | K132: 68.070123 | L132: 28.17849275 | M132: 15.04060421 | N132: 13.68366735 | O132: 22.56346307 | P132: 24.19313484 | Q132: 9.920444686 | R132: 181.6499299 | S132: 2024-12-01 | T132: 62.76128309 | U132: 26.94697158 | V132: 13.66322984 | W132: 12.80402455 | X132: 20.79989898 | Y132: 22.04899411 | Z132: 8.87399091 | AA132: 167.8983931
A133: 2025-01-01 | B133: 64.10396731 | C133: 27.01217659 | D133: 14.15165543 | E133: 12.98749084 | F133: 21.44544058 | G133: 22.76925793 | H133: 9.217769564 | I133: 171.6877582 | J133: 2025-01-01 | K133: 66.694869 | L133: 27.61320249 | M133: 14.82386285 | N133: 13.41678765 | O133: 22.30612224 | P133: 23.81567445 | Q133: 9.728476028 | R133: 178.3989947 | S133: 2025-01-01 | T133: 61.51306562 | U133: 26.41115069 | V133: 13.47944801 | W133: 12.55819404 | X133: 20.58475891 | Y133: 21.7228414 | Z133: 8.7070631 | AA133: 164.9765218
A134: 2025-02-01 | B134: 73.51800021 | C134: 30.97906865 | D134: 16.22990668 | E134: 14.89477788 | F134: 24.59482573 | G134: 26.11305321 | H134: 10.57145155 | I134: 196.9010839 | J134: 2025-02-01 | K134: 76.48939057 | L134: 31.66835863 | M134: 17.00083159 | N134: 15.38711937 | O134: 25.58190341 | P134: 27.31314196 | Q134: 11.15715817 | R134: 204.5979037 | S134: 2025-02-01 | T134: 70.54660984 | U134: 30.28977868 | V134: 15.45898177 | W134: 14.4024364 | X134: 23.60774806 | Y134: 24.91296445 | Z134: 9.985744935 | AA134: 189.2042641
A135: 2025-03-01 | B135: 65.69406477 | C135: 27.68221302 | D135: 14.50268692 | E135: 13.30964526 | F135: 21.97739424 | G135: 23.33404885 | H135: 9.44641613 | I135: 175.9464692 | J135: 2025-03-01 | K135: 68.34923371 | L135: 28.29814735 | M135: 15.19156844 | N135: 13.74959076 | O135: 22.8594251 | P135: 24.40642172 | Q135: 9.969790656 | R135: 182.8241777 | S135: 2025-03-01 | T135: 63.03889582 | U135: 27.06627869 | V135: 13.81380541 | W135: 12.86969976 | X135: 21.09536339 | Y135: 22.26167599 | Z135: 8.923041604 | AA135: 169.0687607
A136: 2025-04-01 | B136: 68.25837578 | C136: 28.76634311 | D136: 15.16195121 | E136: 13.83954497 | F136: 23.05318331 | G136: 24.36428798 | H136: 9.825141394 | I136: 183.2688278 | J136: 2025-04-01 | K136: 71.00637926 | L136: 29.40381279 | M136: 15.87491857 | N136: 14.2948726 | O136: 23.96605324 | P136: 25.47415497 | Q136: 10.36681503 | R136: 190.3870065 | S136: 2025-04-01 | T136: 65.5103723 | U136: 28.12887344 | V136: 14.44898385 | W136: 13.38421735 | X136: 22.14031339 | Y136: 23.25442099 | Z136: 9.283467757 | AA136: 176.1506491
A137: 2025-05-01 | B137: 65.14242551 | C137: 27.45317834 | D137: 14.46981804 | E137: 13.20777879 | F137: 22.00082055 | G137: 23.25207415 | H137: 9.376630107 | I137: 174.9027255 | J137: 2025-05-01 | K137: 67.76498443 | L137: 28.06154794 | M137: 15.1502389 | N137: 13.642321 | O137: 22.87201856 | P137: 24.31127644 | Q137: 9.893576696 | R137: 181.695964 | S137: 2025-05-01 | T137: 62.5198666 | U137: 26.84480874 | V137: 13.78939717 | W137: 12.77323657 | X137: 21.12962255 | Y137: 22.19287186 | Z137: 8.859683518 | AA137: 168.109487
A138: 2025-06-01 | B138: 67.96658452 | C138: 28.6433726 | D138: 15.09713682 | E138: 13.78038361 | F138: 22.95463545 | G138: 24.2601354 | H138: 9.783140828 | I138: 182.4853892 | J138: 2025-06-01 | K138: 70.70284082 | L138: 29.27811722 | M138: 15.80705638 | N138: 14.2337648 | O138: 23.86360303 | P138: 25.36525792 | Q138: 10.32249892 | R138: 189.5731391 | S138: 2025-06-01 | T138: 65.23032822 | U138: 28.00862798 | V138: 14.38721726 | W138: 13.32700243 | X138: 22.04566787 | Y138: 23.15501287 | Z138: 9.243782741 | AA138: 175.3976394
A139: 2025-07-01 | B139: 66.28196385 | C139: 27.93815196 | D139: 14.81335779 | E139: 13.44943851 | F139: 22.60567619 | G139: 23.77511595 | H139: 9.550771816 | I139: 178.4144761 | J139: 2025-07-01 | K139: 68.94005016 | L139: 28.55476305 | M139: 15.50299621 | N139: 13.8898674 | O139: 23.48867618 | P139: 24.84866709 | Q139: 10.0747214 | R139: 185.2997415 | S139: 2025-07-01 | T139: 63.62387754 | U139: 27.32154087 | V139: 14.12371937 | W139: 13.00900962 | X139: 21.7226762 | Y139: 22.70156482 | Z139: 9.026822233 | AA139: 171.5292107
A140: 2025-08-01 | B140: 65.4181928 | C140: 27.5740685 | D140: 14.62031358 | E140: 13.27416857 | F140: 22.31108431 | G140: 23.4652842 | H140: 9.426308391 | I140: 176.0894204 | J140: 2025-08-01 | K140: 68.04163955 | L140: 28.18264406 | M140: 15.30096479 | N140: 13.7088579 | O140: 23.18257724 | P140: 24.52484507 | Q140: 9.943429986 | R140: 182.8849586 | S140: 2025-08-01 | T140: 62.79474605 | U140: 26.96549294 | V140: 13.93966237 | W140: 12.83947925 | X140: 21.43959137 | Y140: 22.40572334 | Z140: 8.909186797 | AA140: 169.2938821
A141: 2025-09-01 | B141: 68.24110479 | C141: 28.76393886 | D141: 15.25120625 | E141: 13.84697268 | F141: 23.27384749 | G141: 24.47785317 | H141: 9.833070452 | I141: 183.6879937 | J141: 2025-09-01 | K141: 70.97775796 | L141: 29.39877554 | M141: 15.96122878 | N141: 14.30041963 | O141: 24.1829469 | P141: 25.58313598 | Q141: 10.37250677 | R141: 190.7767716 | S141: 2025-09-01 | T141: 65.50445162 | U141: 28.12910218 | V141: 14.54118372 | W141: 13.39352573 | X141: 22.36474807 | Y141: 23.37257036 | Z141: 9.293634136 | AA141: 176.5992158
A142: 2025-10-01 | B142: 66.26522742 | C142: 27.93704916 | D142: 14.89995913 | E142: 13.45720502 | F142: 22.828161 | G142: 23.88569035 | H142: 9.558879712 | I142: 178.8321718 | J142: 2025-10-01 | K142: 68.91243881 | L142: 28.55113754 | M142: 15.58677606 | N142: 13.89583201 | O142: 23.7075484 | P142: 24.95484931 | Q142: 10.08068568 | R142: 185.6892678 | S142: 2025-10-01 | T142: 63.61801603 | U142: 27.32296079 | V142: 14.2131422 | W142: 13.01857804 | X142: 21.94877359 | Y142: 22.81653139 | Z142: 9.037073742 | AA142: 171.9750758
A143: 2025-11-01 | B143: 68.03713619 | C143: 28.68407599 | D143: 15.29837878 | E143: 13.81704593 | F143: 23.43857796 | G143: 24.52438527 | H143: 9.814480778 | I143: 183.6140809 | J143: 2025-11-01 | K143: 70.75513308 | L143: 29.31458487 | M143: 16.00356095 | N143: 14.26740164 | O143: 24.34147987 | P143: 25.62213316 | Q143: 10.35023966 | R143: 190.6545332 | S143: 2025-11-01 | T143: 65.3191393 | U143: 28.05356711 | V143: 14.5931966 | W143: 13.36669022 | X143: 22.53567604 | Y143: 23.42663738 | Z143: 9.278721901 | AA143: 176.5736286
A144: 2025-12-01 | B144: 66.39451175 | C144: 27.99155472 | D144: 14.92902915 | E144: 13.48346021 | F144: 22.87269904 | G144: 23.93229165 | H144: 9.577529212 | I144: 179.1810757 | J144: 2025-12-01 | K144: 69.04688789 | L144: 28.60684118 | M144: 15.61718607 | N144: 13.92294296 | O144: 23.75380214 | P144: 25.00353655 | Q144: 10.10035323 | R144: 186.05155 | S144: 2025-12-01 | T144: 63.74213562 | U144: 27.37626825 | V144: 14.24087223 | W144: 13.04397746 | X144: 21.99159594 | Y144: 22.86104675 | Z144: 9.054705192 | AA144: 172.3106014
A145: 2026-01-01 | B145: 65.08873159 | C145: 27.44809855 | D145: 14.7241187 | E145: 13.22975469 | F145: 22.65494953 | G145: 23.57640622 | H145: 9.399898194 | I145: 176.1219575 | J145: 2026-01-01 | K145: 67.67906005 | L145: 28.04899147 | M145: 15.3961774 | N145: 13.65895652 | O145: 23.51544078 | P145: 24.62259123 | Q145: 9.910491665 | R145: 182.8317091 | S145: 2026-01-01 | T145: 62.49840314 | U145: 26.84720563 | V145: 14.05206001 | W145: 12.80055287 | X145: 21.79445829 | Y145: 22.53022121 | Z145: 8.889304724 | AA145: 169.4122059
A146: 2026-02-01 | B146: 74.60722015 | C146: 31.46207156 | D146: 16.87735402 | E146: 15.16445623 | F146: 25.96797888 | G146: 27.02418815 | H146: 10.77452666 | I146: 201.8777956 | J146: 2026-02-01 | K146: 77.57635476 | L146: 32.15083825 | M146: 17.64769367 | N146: 15.65642395 | O146: 26.95430721 | P146: 28.22336585 | Q146: 11.35978864 | R146: 209.5687723 | S146: 2026-02-01 | T146: 71.63808555 | U146: 30.77330486 | V146: 16.10701436 | W146: 14.6724885 | X146: 24.98165056 | Y146: 25.82501045 | Z146: 10.18926469 | AA146: 194.186819
A147: 2026-03-01 | B147: 66.78361795 | C147: 28.16283682 | D147: 15.10752928 | E147: 13.57425259 | F147: 23.24487599 | G147: 24.19032706 | H147: 9.644668046 | I147: 180.7081077 | J147: 2026-03-01 | K147: 69.44139759 | L147: 28.77937677 | M147: 15.79708813 | N147: 14.01463066 | O147: 24.12777411 | P147: 25.26375434 | Q147: 10.16855718 | R147: 187.5925788 | S147: 2026-03-01 | T147: 64.1258383 | U147: 27.54629687 | V147: 14.41797042 | W147: 13.13387451 | X147: 22.36197788 | Y147: 23.11689979 | Z147: 9.120778912 | AA147: 173.8236367
A148: 2026-04-01 | B148: 69.212003 | C148: 29.19566191 | D148: 15.75112379 | E148: 14.08060282 | F148: 24.34550956 | G148: 25.19231212 | H148: 10.00719683 | I148: 187.78441 | J148: 2026-04-01 | K148: 71.95606169 | L148: 29.83221649 | M148: 16.46306767 | N148: 14.53527682 | O148: 25.25706904 | P148: 26.30058588 | Q148: 10.54809289 | R148: 194.8923705 | S148: 2026-04-01 | T148: 66.46794432 | U148: 28.55910734 | V148: 15.0391799 | W148: 13.62592882 | X148: 23.43395007 | Y148: 24.08403836 | Z148: 9.466300778 | AA148: 180.6764496
A149: 2026-05-01 | B149: 65.9982382 | C149: 27.84000124 | D149: 15.01974187 | E149: 13.42678927 | F149: 23.21505908 | G149: 24.02254153 | H149: 9.542526321 | I149: 179.0648975 | J149: 2026-05-01 | K149: 68.61488027 | L149: 28.44699828 | M149: 15.69862762 | N149: 13.8603511 | O149: 24.08429154 | P149: 25.07935411 | Q149: 10.05830661 | R149: 185.8428095 | S149: 2026-05-01 | T149: 63.38159613 | U149: 27.2330042 | V149: 14.34085613 | W149: 12.99322744 | X149: 22.34582662 | Y149: 22.96572894 | Z149: 9.026746034 | AA149: 172.2869855
A150: 2026-06-01 | B150: 69.26891752 | C150: 29.21967014 | D150: 15.76407628 | E150: 14.0921816 | F150: 24.36552939 | G150: 25.2130283 | H150: 10.01542597 | I150: 187.9388292 | J150: 2026-06-01 | K150: 72.0152327 | L150: 29.85674817 | M150: 16.47660561 | N150: 14.54722949 | O150: 25.27783847 | P150: 26.32221342 | Q150: 10.55676681 | R150: 195.0526347 | S150: 2026-06-01 | T150: 66.52260234 | U150: 28.58259211 | V150: 15.05154695 | W150: 13.63713372 | X150: 23.45322032 | Y150: 24.10384318 | Z150: 9.474085121 | AA150: 180.8250237
A151: 2026-07-01 | B151: 67.0899239 | C151: 28.31021577 | D151: 15.35949918 | E151: 13.66178765 | F151: 23.85522549 | G151: 24.53879674 | H151: 9.71223865 | I151: 182.5276874 | J151: 2026-07-01 | K151: 69.73994285 | L151: 28.92495543 | M151: 16.04704452 | N151: 14.10087983 | O151: 24.73554555 | P151: 25.60908962 | Q151: 10.23459803 | R151: 189.3920558 | S151: 2026-07-01 | T151: 64.43990495 | U151: 27.69547612 | V151: 14.67195383 | W151: 13.22269548 | X151: 22.97490543 | Y151: 23.46850386 | Z151: 9.189879268 | AA151: 175.6633189
A152: 2026-08-01 | B152: 66.65262083 | C152: 28.12568517 | D152: 15.25938346 | E152: 13.57273789 | F152: 23.69973324 | G152: 24.37884886 | H152: 9.648932695 | I152: 181.3379422 | J152: 2026-08-01 | K152: 69.28536653 | L152: 28.73641786 | M152: 15.94244727 | N152: 14.008968 | O152: 24.57431523 | P152: 25.4421654 | Q152: 10.16788725 | R152: 188.1575675 | S152: 2026-08-01 | T152: 64.01987514 | U152: 27.51495249 | V152: 14.57631964 | W152: 13.13650779 | X152: 22.82515125 | Y152: 23.31553233 | Z152: 9.129978136 | AA152: 174.5183168
A153: 2026-09-01 | B153: 69.25100378 | C153: 29.22213569 | D153: 15.85425461 | E153: 14.10185693 | F153: 24.62364264 | G153: 25.32923287 | H153: 10.02508628 | I153: 188.4072128 | J153: 2026-09-01 | K153: 71.98638431 | L153: 29.85667715 | M153: 16.56394696 | N153: 14.55509301 | O153: 25.53231929 | P153: 26.43400169 | Q153: 10.56427174 | R153: 195.4926942 | S153: 2026-09-01 | T153: 66.51562324 | U153: 28.58759423 | V153: 15.14456227 | W153: 13.64862085 | X153: 23.71496598 | Y153: 24.22446405 | Z153: 9.485900816 | AA153: 181.3217314
A154: 2026-10-01 | B154: 67.13680336 | C154: 28.34092078 | D154: 15.46155959 | E154: 13.68476798 | F154: 24.13702133 | G154: 24.67518443 | H154: 9.731303745 | I154: 183.1675612 | J154: 2026-10-01 | K154: 69.77890045 | L154: 28.95382276 | M154: 16.14704961 | N154: 14.12254755 | O154: 25.0147098 | P154: 25.74227782 | Q154: 10.25210161 | R154: 190.0114096 | S154: 2026-10-01 | T154: 64.49470628 | U154: 27.72801881 | V154: 14.77606956 | W154: 13.24698841 | X154: 23.25933287 | Y154: 23.60809105 | Z154: 9.210505883 | AA154: 176.3237129
A155: 2026-11-01 | B155: 69.21132094 | C155: 29.21665116 | D155: 15.93931955 | E155: 14.10762534 | F155: 24.88285182 | G155: 25.43764409 | H155: 10.03199963 | I155: 188.8274125 | J155: 2026-11-01 | K155: 71.93505844 | L155: 29.84849172 | M155: 16.64599112 | N155: 14.55893224 | O155: 25.78766073 | P155: 26.5377105 | Q155: 10.56889007 | R155: 195.8827348 | S155: 2026-11-01 | T155: 66.48758344 | U155: 28.5848106 | V155: 15.23264799 | W155: 13.65631844 | X155: 23.97804291 | Y155: 24.33757767 | Z155: 9.495109191 | AA155: 181.7720902
A156: 2026-12-01 | B156: 67.38678928 | C156: 28.44644906 | D156: 15.51913117 | E156: 13.73572363 | F156: 24.22689626 | G156: 24.76706323 | H156: 9.767538547 | I156: 183.8495912 | J156: 2026-12-01 | K156: 70.03872429 | L156: 29.06163319 | M156: 16.20717364 | N156: 14.17513328 | O156: 25.10785282 | P156: 25.83812997 | Q156: 10.29027562 | R156: 190.7189228 | S156: 2026-12-01 | T156: 64.73485426 | U156: 27.83126492 | V156: 14.8310887 | W156: 13.29631397 | X156: 23.3459397 | Y156: 23.69599649 | Z156: 9.24480148 | AA156: 176.9802595
A157: 2027-01-01 | B157: 66.01050741 | C157: 27.87738844 | D157: 15.29190984 | E157: 13.46890892 | F157: 23.99348529 | G157: 24.37872851 | H157: 9.580512022 | I157: 180.6014404 | J157: 2027-01-01 | K157: 68.59880527 | L157: 28.47781031 | M157: 15.9634417 | N157: 13.89777428 | O157: 24.85330198 | P157: 25.42409339 | Q157: 10.09070523 | R157: 187.3059322 | S157: 2027-01-01 | T157: 63.42220956 | U157: 27.27696656 | V157: 14.62037798 | W157: 13.04004355 | X157: 23.1336686 | Y157: 23.33336362 | Z157: 9.070318814 | AA157: 173.8969487
A158: 2027-02-01 | B158: 75.8426146 | C158: 32.02965876 | D158: 17.56960323 | E158: 15.47507068 | F158: 27.56725753 | G158: 28.00988181 | H158: 11.00750637 | I158: 207.501593 | J158: 2027-02-01 | K158: 78.81643323 | L158: 32.71951204 | M158: 18.34115816 | N158: 15.96781452 | O158: 28.55514186 | P158: 29.21095129 | Q158: 11.59369164 | R158: 215.2047027 | S158: 2027-02-01 | T158: 72.86879597 | U158: 31.33980549 | V158: 16.79804831 | W158: 14.98232685 | X158: 26.57937321 | Y158: 26.80881232 | Z158: 10.42132111 | AA158: 199.7984832
A159: 2027-03-01 | B159: 67.72642134 | C159: 28.60204881 | D159: 15.68941627 | E159: 13.81902724 | F159: 24.61718532 | G159: 25.01244276 | H159: 9.829553191 | I159: 185.2960949 | J159: 2027-03-01 | K159: 70.38200085 | L159: 29.21807838 | M159: 16.3784043 | N159: 14.25904077 | O159: 25.49935257 | P159: 26.08498145 | Q159: 10.35300865 | R159: 192.174867 | S159: 2027-03-01 | T159: 65.07084182 | U159: 27.98601924 | V159: 15.00042824 | W159: 13.37901371 | X159: 23.73501808 | Y159: 23.93990408 | Z159: 9.306097737 | AA159: 178.4173229
A160: 2027-04-01 | B160: 70.07463619 | C160: 29.60761459 | D160: 16.32859616 | E160: 14.31325191 | F160: 25.7478654 | G160: 26.00465858 | H160: 10.18400352 | I160: 192.2606264 | J160: 2027-04-01 | K160: 72.8123727 | L160: 30.24270258 | M160: 17.03889976 | N160: 14.76687836 | O160: 26.65732469 | P160: 27.11037893 | Q160: 10.72365338 | R160: 199.3522104 | S160: 2027-04-01 | T160: 67.33689969 | U160: 28.97252661 | V160: 15.61829256 | W160: 13.85962546 | X160: 24.83840611 | Y160: 24.89893823 | Z160: 9.64435366 | AA160: 185.1690423
A161: 2027-05-01 | B161: 67.26018696 | C161: 28.41846639 | D161: 15.67278106 | E161: 13.73838027 | F161: 24.71373859 | G161: 24.96021803 | H161: 9.774977337 | I161: 184.5387486 | J161: 2027-05-01 | K161: 69.88796613 | L161: 29.02804696 | M161: 16.35455631 | N161: 14.17378746 | O161: 25.58667073 | P161: 26.02152868 | Q161: 10.29295292 | R161: 191.3455092 | S161: 2027-05-01 | T161: 64.6324078 | U161: 27.80888581 | V161: 14.9910058 | W161: 13.30297309 | X161: 23.84080645 | Y161: 23.89890739 | Z161: 9.257001756 | AA161: 177.7319881
A162: 2027-06-01 | B162: 70.16147061 | C162: 29.64430347 | D162: 16.34883008 | E162: 14.33098847 | F162: 25.77977139 | G162: 26.03688278 | H162: 10.19662323 | I162: 192.49887 | J162: 2027-06-01 | K162: 72.90259964 | L162: 30.28017844 | M162: 17.06001386 | N162: 14.78517704 | O162: 26.69035766 | P162: 27.14397331 | Q162: 10.73694181 | R162: 199.5992418 | S162: 2027-06-01 | T162: 67.42034159 | U162: 29.00842851 | V162: 15.63764629 | W162: 13.8767999 | X162: 24.86918512 | Y162: 24.92979226 | Z162: 9.656304658 | AA162: 185.3984983
A163: 2027-07-01 | B163: 68.03963998 | C163: 28.76244658 | D163: 15.94678506 | E163: 13.91276207 | F163: 25.27209132 | G163: 25.3710686 | H163: 9.90189363 | I163: 187.2066872 | J163: 2027-07-01 | K163: 70.68837718 | L163: 29.3768889 | M163: 16.63399786 | N163: 14.35164188 | O163: 26.15198559 | P163: 26.4408438 | Q163: 10.42400036 | R163: 194.0677356 | S163: 2027-07-01 | T163: 65.39090278 | U163: 28.14800426 | V163: 15.25957227 | W163: 13.47388227 | X163: 24.39219705 | Y163: 24.30129339 | Z163: 9.3797869 | AA163: 180.3456389
A164: 2027-08-01 | B164: 67.72448215 | C164: 28.62921968 | D164: 15.87291997 | E164: 13.84831852 | F164: 25.15503165 | G164: 25.25355047 | H164: 9.856028317 | I164: 186.3395508 | J164: 2027-08-01 | K164: 70.36095046 | L164: 29.24081592 | M164: 16.55694962 | N164: 14.28516545 | O164: 26.03085027 | P164: 26.31837051 | Q164: 10.37571666 | R164: 193.1688189 | S164: 2027-08-01 | T164: 65.08801383 | U164: 28.01762344 | V164: 15.18889033 | W164: 13.4114716 | X164: 24.27921303 | Y164: 24.18873044 | Z164: 9.336339972 | AA164: 179.5102826
A165: 2027-09-01 | B165: 70.20050714 | C165: 29.67591153 | D165: 16.45323813 | E165: 14.35461671 | F165: 26.07470627 | G165: 26.17682696 | H165: 10.21636732 | I165: 193.1521741 | J165: 2027-09-01 | K165: 72.93336544 | L165: 30.30986789 | M165: 17.16227608 | N165: 14.80743488 | O165: 26.98254505 | P165: 27.2805771 | Q165: 10.75505561 | R165: 200.231122 | S165: 2027-09-01 | T165: 67.46764884 | U165: 29.04195517 | V165: 15.74420018 | W165: 13.90179855 | X165: 25.16686748 | Y165: 25.07307683 | Z165: 9.677679033 | AA165: 186.0732261
A166: 2027-10-01 | B166: 68.21933767 | C166: 28.854282 | D166: 16.08146422 | E166: 13.96522231 | F166: 25.61380003 | G166: 25.56021148 | H166: 9.94211385 | I166: 188.2364315 | J166: 2027-10-01 | K166: 70.86568556 | L166: 29.46817006 | M166: 16.76805712 | N166: 14.40370622 | O166: 26.49290059 | P166: 26.62902168 | Q166: 10.46374961 | R166: 195.0912908 | S166: 2027-10-01 | T166: 65.57298977 | U166: 28.24039394 | V166: 15.39487133 | W166: 13.5267384 | X166: 24.73469947 | Y166: 24.49140127 | Z166: 9.420478088 | AA166: 181.3815723
A167: 2027-11-01 | B167: 70.28237386 | C167: 29.72687077 | D167: 16.56778736 | E167: 14.38754771 | F167: 26.38839266 | G167: 26.33318353 | H167: 10.24277553 | I167: 193.9289314 | J167: 2027-11-01 | K167: 73.00875055 | L167: 30.35932356 | M167: 17.27514367 | N167: 14.83929191 | O167: 27.2940783 | P167: 27.43431586 | Q167: 10.78018619 | R167: 200.99109 | S167: 2027-11-01 | T167: 67.55599717 | U167: 29.09441799 | V167: 15.86043106 | W167: 13.93580351 | X167: 25.48270703 | Y167: 25.23205119 | Z167: 9.705364865 | AA167: 186.8667728
A168: 2027-12-01 | B168: 68.1879457 | C168: 28.84100435 | D168: 16.07406414 | E168: 13.95879604 | F168: 25.60201352 | G168: 25.54844963 | H168: 9.937538863 | I168: 188.1498122 | J168: 2027-12-01 | K168: 70.83307584 | L168: 29.45460992 | M168: 16.76034109 | N168: 14.39707817 | O168: 26.48070955 | P168: 26.61676801 | Q168: 10.45893459 | R168: 195.0015172 | S168: 2027-12-01 | T168: 65.54281555 | U168: 28.22739877 | V168: 15.38778718 | W168: 13.5205139 | X168: 24.72331749 | Y168: 24.48013125 | Z168: 9.416143139 | AA168: 181.2981073
A169: 2028-01-01 | B169: 66.8405081 | C169: 28.28776778 | D169: 15.84706617 | E169: 13.69885389 | F169: 25.37036759 | G169: 25.16348714 | H169: 9.755330627 | I169: 184.9633813 | J169: 2028-01-01 | K169: 69.4243026 | L169: 28.88714499 | M169: 16.51742964 | N169: 14.12697308 | O169: 26.22868829 | P169: 26.2070332 | Q169: 10.26463615 | R169: 191.656208 | S169: 2028-01-01 | T169: 64.25671361 | U169: 27.68839058 | V169: 15.17670271 | W169: 13.27073471 | X169: 24.51204689 | Y169: 24.11994107 | Z169: 9.2460251 | AA169: 178.2705547
A170: 2028-02-01 | B170: 74.49147783 | C170: 31.52575716 | D170: 17.66101743 | E170: 15.26690775 | F170: 28.27441366 | G170: 28.04385241 | H170: 10.8719849 | I170: 206.1354111 | J170: 2028-02-01 | K170: 77.37102911 | L170: 32.19374271 | M170: 18.40811476 | N170: 15.74403205 | O170: 29.23098295 | P170: 29.20684908 | Q170: 11.43958863 | R170: 213.5943393 | S170: 2028-02-01 | T170: 71.61192655 | U170: 30.85777161 | V170: 16.9139201 | W170: 14.78978345 | X170: 27.31784436 | Y170: 26.88085573 | Z170: 10.30438118 | AA170: 198.676483
A171: 2028-03-01 | B171: 68.61369005 | C171: 29.03820133 | D171: 16.26746591 | E171: 14.06226466 | F171: 26.04340673 | G171: 25.83103803 | H171: 10.01412543 | I171: 189.8701921 | J171: 2028-03-01 | K171: 71.26602888 | L171: 29.65347914 | M171: 16.95561314 | N171: 14.50174123 | O171: 26.92449744 | P171: 26.90226787 | Q171: 10.5369421 | R171: 196.7405698 | S171: 2028-03-01 | T171: 65.96135123 | U171: 28.42292351 | V171: 15.57931867 | W171: 13.62278809 | X171: 25.16231602 | Y171: 24.7598082 | Z171: 9.491308765 | AA171: 182.9998145
A172: 2028-04-01 | B172: 71.13225314 | C172: 30.12304104 | D172: 16.96098442 | E172: 14.59586877 | F172: 27.29728411 | G172: 26.90700141 | H172: 10.39718237 | I172: 197.4136153 | J172: 2028-04-01 | K172: 73.87243747 | L172: 30.75869687 | M172: 17.67192311 | N172: 15.04990081 | O172: 28.20755656 | P172: 28.01371039 | Q172: 10.93731473 | R172: 204.5115399 | S172: 2028-04-01 | T172: 68.39206881 | U172: 29.48738522 | V172: 16.25004574 | W172: 14.14183673 | X172: 26.38701167 | Y172: 25.80029243 | Z172: 9.857050006 | AA172: 190.3156906
A173: 2028-05-01 | B173: 68.31711281 | C173: 28.93088722 | D173: 16.28973405 | E173: 14.01822055 | F173: 26.21696285 | G173: 25.84212603 | H173: 9.985701976 | I173: 189.6007455 | J173: 2028-05-01 | K173: 70.94885121 | L173: 29.54138623 | M173: 16.97253652 | N173: 14.45428376 | O173: 27.09121023 | P173: 26.90503574 | Q173: 10.50445798 | R173: 196.4177617 | S173: 2028-05-01 | T173: 65.68537441 | U173: 28.3203882 | V173: 15.60693158 | W173: 13.58215735 | X173: 25.34271548 | Y173: 24.77921632 | Z173: 9.46694597 | AA173: 182.7837293
A174: 2028-06-01 | B174: 70.98703029 | C174: 30.06154216 | D174: 16.92635706 | E174: 14.56607 | F174: 27.24155427 | G174: 26.85206836 | H174: 10.37595559 | I174: 197.0105777 | J174: 2028-06-01 | K174: 73.72162029 | L174: 30.69590024 | M174: 17.6358443 | N174: 15.01917509 | O174: 28.14996831 | P174: 27.9565179 | Q174: 10.91498522 | R174: 204.0940113 | S174: 2028-06-01 | T174: 68.25244029 | U174: 29.42718409 | V174: 16.21686982 | W174: 14.1129649 | X174: 26.33314023 | Y174: 25.74761882 | Z174: 9.836925958 | AA174: 189.9271441
A175: 2028-07-01 | B175: 69.24607838 | C175: 29.34386955 | D175: 16.60501132 | E175: 14.22629188 | F175: 26.86780175 | G175: 26.31814362 | H175: 10.13693615 | I175: 192.7441327 | J175: 2028-07-01 | K175: 71.90447289 | L175: 29.96055213 | M175: 17.2947297 | N175: 14.66677184 | O175: 27.75090412 | P175: 27.39181923 | Q175: 10.66094649 | R175: 199.6301964 | S175: 2028-07-01 | T175: 66.58768387 | U175: 28.72718697 | V175: 15.91529294 | W175: 13.78581192 | X175: 25.98469938 | Y175: 25.24446801 | Z175: 9.612925819 | AA175: 185.8580689
A176: 2028-08-01 | B176: 68.67375326 | C176: 29.1013398 | D176: 16.46776939 | E176: 14.10871029 | F176: 26.64573693 | G176: 26.10062177 | H176: 10.05315346 | I176: 191.1510849 | J176: 2028-08-01 | K176: 71.31017589 | L176: 29.71292545 | M176: 17.15178719 | N176: 14.54554964 | O176: 27.52154038 | P176: 27.16542336 | Q176: 10.5728328 | R176: 197.9802347 | S176: 2028-08-01 | T176: 66.03733062 | U176: 28.48975416 | V176: 15.7837516 | W176: 13.67187094 | X176: 25.76993348 | Y176: 25.03582019 | Z176: 9.533474114 | AA176: 184.3219351
A177: 2028-09-01 | B177: 70.92700731 | C177: 30.05618367 | D177: 17.00809326 | E177: 14.57163109 | F177: 27.52001003 | G177: 26.9570091 | H177: 10.38300741 | I177: 197.4229419 | J177: 2028-09-01 | K177: 73.64993359 | L177: 30.68783605 | M177: 17.71455436 | N177: 15.02280357 | O177: 28.42454946 | P177: 28.05674788 | Q177: 10.91973794 | R177: 204.4761628 | S177: 2028-09-01 | T177: 68.20408103 | U177: 29.42453129 | V177: 16.30163217 | W177: 14.1204586 | X177: 26.6154706 | Y177: 25.85727032 | Z177: 9.846276869 | AA177: 190.3697209
A178: 2028-10-01 | B178: 69.35468632 | C178: 29.41065622 | D178: 16.72490634 | E178: 14.2665855 | F178: 27.20915505 | G178: 26.48443177 | H178: 10.1686947 | I178: 193.6191159 | J178: 2028-10-01 | K178: 72.00823545 | L178: 30.02621479 | M178: 17.41336759 | N178: 14.70626261 | O178: 28.09064781 | P178: 27.55615043 | Q178: 10.69174993 | R178: 200.4926286 | S178: 2028-10-01 | T178: 66.70113719 | U178: 28.79509764 | V178: 16.03644509 | W178: 13.82690839 | X178: 26.32766228 | Y178: 25.41271312 | Z178: 9.645639463 | AA178: 186.7456032
A179: 2028-11-01 | B179: 71.22734734 | C179: 30.20477976 | D179: 17.17649919 | E179: 14.65180069 | F179: 27.94383538 | G179: 27.1995437 | H179: 10.44326184 | I179: 198.8470679 | J179: 2028-11-01 | K179: 73.95254553 | L179: 30.83695917 | M179: 17.88354973 | N179: 15.10334962 | O179: 28.84912953 | P179: 28.30020006 | Q179: 10.98044021 | R179: 205.9061738 | S179: 2028-11-01 | T179: 68.50214915 | U179: 29.57260036 | V179: 16.46944865 | W179: 14.20025176 | X179: 27.03854124 | Y179: 26.09888734 | Z179: 9.906083479 | AA179: 191.787962
A180: 2028-12-01 | B180: 68.97623561 | C180: 29.25016982 | D180: 16.63364283 | E180: 14.18873641 | F180: 27.06068168 | G180: 26.33991303 | H180: 10.11320674 | I180: 192.5625861 | J180: 2028-12-01 | K180: 71.615305 | L180: 29.86236945 | M180: 17.31834732 | N180: 14.62601431 | O180: 27.93736436 | P180: 27.40578359 | Q180: 10.6334078 | R180: 199.3985918 | S180: 2028-12-01 | T180: 66.33716621 | U180: 28.63797019 | V180: 15.94893833 | W180: 13.75145851 | X180: 26.18399899 | Y180: 25.27404247 | Z180: 9.593005686 | AA180: 185.7265804
A181: 2029-01-01 | B181: 67.75850532 | C181: 28.75515386 | D181: 16.4316246 | E181: 13.95626939 | F181: 26.88298189 | G181: 25.99721023 | H181: 9.950527483 | I181: 189.7322728 | J181: 2029-01-01 | K181: 70.34229982 | L181: 29.35453107 | M181: 17.10198807 | N181: 14.38438858 | O181: 27.7413026 | P181: 27.04075629 | Q181: 10.45983301 | R181: 196.4250994 | S181: 2029-01-01 | T181: 65.17471082 | U181: 28.15577666 | V181: 15.76126114 | W181: 13.52815021 | X181: 26.02466119 | Y181: 24.95366416 | Z181: 9.441221956 | AA181: 183.0394461
A182: 2029-02-01 | B182: 78.21150295 | C182: 33.19116605 | D182: 18.96650539 | E182: 16.10928104 | F182: 31.03017706 | G182: 30.0077588 | H182: 11.48557965 | I182: 219.0019709 | J182: 2029-02-01 | K182: 81.19389534 | L182: 33.88300822 | M182: 19.74028476 | N182: 16.60344549 | O182: 32.02090955 | P182: 31.21229107 | Q182: 12.07345493 | R182: 226.7272894 | S182: 2029-02-01 | T182: 75.22911055 | U182: 32.49932387 | V182: 18.19272601 | W182: 15.61511658 | X182: 30.03944458 | Y182: 28.80322653 | Z182: 10.89770436 | AA182: 211.2766525
A183: 2029-03-01 | B183: 69.55604041 | C183: 29.51798648 | D183: 16.86753182 | E183: 14.32650902 | F183: 27.5961485 | G183: 26.68687859 | H183: 10.21450058 | I183: 194.7655954 | J183: 2029-03-01 | K183: 72.20837923 | L183: 30.13326429 | M183: 17.55567906 | N183: 14.76598559 | O183: 28.47723921 | P183: 27.75810843 | Q183: 10.73731724 | R183: 201.6359731 | S183: 2029-03-01 | T183: 66.90370158 | U183: 28.90270867 | V183: 16.17938459 | W183: 13.88703246 | X183: 26.71505779 | Y183: 25.61564876 | Z183: 9.691683912 | AA183: 187.8952178
A184: 2029-04-01 | B184: 72.09863562 | C184: 30.62090146 | D184: 17.58157105 | E184: 14.86990156 | F184: 28.93195034 | G184: 27.79274797 | H184: 10.60515703 | I184: 202.500865 | J184: 2029-04-01 | K184: 74.83881994 | L184: 31.25655729 | M184: 18.29250973 | N184: 15.32393359 | O184: 29.84222279 | P184: 28.89945695 | Q184: 11.14528939 | R184: 209.5987897 | S184: 2029-04-01 | T184: 69.35845129 | U184: 29.98524564 | V184: 16.87063236 | W184: 14.41586952 | X184: 28.0216779 | Y184: 26.68603899 | Z184: 10.06502466 | AA184: 195.4029404
A185: 2029-05-01 | B185: 69.24524959 | C185: 29.40904424 | D185: 16.88576025 | E185: 14.28140818 | F185: 27.7869353 | G185: 26.69281816 | H185: 10.1854458 | I185: 194.4866615 | J185: 2029-05-01 | K185: 71.87698799 | L185: 30.01954326 | M185: 17.56856272 | N185: 14.71747138 | O185: 28.66118267 | P185: 27.75572787 | Q185: 10.7042018 | R185: 201.3036777 | S185: 2029-05-01 | T185: 66.61351119 | U185: 28.79854522 | V185: 16.20295778 | W185: 13.84534498 | X185: 26.91268792 | Y185: 25.62990846 | Z185: 9.666689793 | AA185: 187.6696453
A186: 2029-06-01 | B186: 71.95143981 | C186: 30.55838616 | D186: 17.5456767 | E186: 14.83954332 | F186: 28.87288318 | G186: 27.73600659 | H186: 10.58350565 | I186: 202.0874414 | J186: 2029-06-01 | K186: 74.6860298 | L186: 31.19274423 | M186: 18.25516394 | N186: 15.29264841 | O186: 29.78129723 | P186: 28.84045613 | Q186: 11.12253528 | R186: 209.170875 | S186: 2029-06-01 | T186: 69.21684981 | U186: 29.92402808 | V186: 16.83618946 | W186: 14.38643823 | X186: 27.96446914 | Y186: 26.63155706 | Z186: 10.04447602 | AA186: 195.0040078
A187: 2029-07-01 | B187: 70.17664091 | C187: 29.82896762 | D187: 17.20766927 | E187: 14.49312934 | F187: 28.48575055 | G187: 27.17889043 | H187: 10.33962881 | I187: 197.7106769 | J187: 2029-07-01 | K187: 72.83503541 | L187: 30.4456502 | M187: 17.89738765 | N187: 14.9336093 | O187: 29.36885292 | P187: 28.25256604 | Q187: 10.86363914 | R187: 204.5967407 | S187: 2029-07-01 | T187: 67.5182464 | U187: 29.21228503 | V187: 16.51795089 | W187: 14.05264939 | X187: 27.60264819 | Y187: 26.10521482 | Z187: 9.815618474 | AA187: 190.8246132
A188: 2029-08-01 | B188: 69.5966246 | C188: 29.58242849 | D188: 17.06544632 | E188: 14.37334231 | F188: 28.25031324 | G188: 26.95425444 | H188: 10.25417084 | I188: 196.0765802 | J188: 2029-08-01 | K188: 72.23304724 | L188: 30.19401414 | M188: 17.74946411 | N188: 14.81018167 | O188: 29.12611669 | P188: 28.01905602 | Q188: 10.77385018 | R188: 202.90573 | S188: 2029-08-01 | T188: 66.96020196 | U188: 28.97084285 | V188: 16.38142852 | W188: 13.93650296 | X188: 27.37450979 | Y188: 25.88945285 | Z188: 9.734491496 | AA188: 189.2474304
A189: 2029-09-01 | B189: 71.88015898 | C189: 30.55305735 | D189: 17.62538056 | E189: 14.84494595 | F189: 29.17723408 | G189: 27.8386503 | H189: 10.59062037 | I189: 202.5100476 | J189: 2029-09-01 | K189: 74.60308526 | L189: 31.18470973 | M189: 18.33184166 | N189: 15.29611844 | O189: 30.08177351 | P189: 28.93838908 | Q189: 11.1273509 | R189: 209.5632686 | S189: 2029-09-01 | T189: 69.1572327 | U189: 29.92140498 | V189: 16.91891946 | W189: 14.39377347 | X189: 28.27269465 | Y189: 26.73891152 | Z189: 10.05388983 | AA189: 195.4568266
A190: 2029-10-01 | B190: 70.27659037 | C190: 29.89694263 | D190: 17.32702715 | E190: 14.53389731 | F190: 28.85900989 | G190: 27.34499141 | H190: 10.37193327 | I190: 198.610392 | J190: 2029-10-01 | K190: 72.9301395 | L190: 30.5125012 | M190: 18.0154884 | N190: 14.97357441 | O190: 29.74050265 | P190: 28.41671007 | Q190: 10.89498851 | R190: 205.4839047 | S190: 2029-10-01 | T190: 67.62304124 | U190: 29.28138406 | V190: 16.6385659 | W190: 14.0942202 | X190: 27.97751712 | Y190: 26.27327276 | Z190: 9.848878039 | AA190: 191.7368793
A191: 2029-11-01 | B191: 72.17414392 | C191: 30.7041965 | D191: 17.79487799 | E191: 14.92633024 | F191: 29.63823831 | G191: 28.08333949 | H191: 10.65198811 | I191: 203.9731146 | J191: 2029-11-01 | K191: 74.89934211 | L191: 31.33637591 | M191: 18.50192854 | N191: 15.37787917 | O191: 30.54353245 | P191: 29.18399586 | Q191: 11.18916647 | R191: 211.0322205 | S191: 2029-11-01 | T191: 69.44894573 | U191: 30.0720171 | V191: 17.08782745 | W191: 14.47478131 | X191: 28.73294417 | Y191: 26.98268313 | Z191: 10.11480974 | AA191: 196.9140086
A192: 2029-12-01 | B192: 69.89310906 | C192: 29.73380269 | D192: 17.23247802 | E192: 14.45458956 | F192: 28.70153368 | G192: 27.19577682 | H192: 10.3153363 | I192: 197.5266261 | J192: 2029-12-01 | K192: 72.53217846 | L192: 30.34600232 | M192: 17.91718251 | N192: 14.89186746 | O192: 29.57821637 | P192: 28.26164738 | Q192: 10.83553736 | R192: 204.3626319 | S192: 2029-12-01 | T192: 67.25403967 | U192: 29.12160306 | V192: 16.54777352 | W192: 14.01731166 | X192: 27.824851 | Y192: 26.12990626 | Z192: 9.795135241 | AA192: 190.6906204
